Workbook

Sheet HelpSheet (hidden)
A1: General | B1: The Help Topics are displayed here from the sheet called HelpSheet. The topics covered in this menu are listed first by Macro then Model Logic The macro coding in this book was written by Dave Hockin in June of 2002. See the Read Me sheet for details concerning how the base model was changed an the implications.
A2: Utilities Menu | B2: This menu item holds a number of customized macros that are note needed to actually run the COS model, but are helpful in administering and understanding the data and to investigate errors, find data, find links etc.
A3: AddNotes | B3: The workbook has code in the before_close event to offer the option to add information about the status of the workbook, your reminder notes, key assumptions that have changed, or any other notes that you want to jot down. Users are encouraged to use this automatic reminder to maintain an audit trail of ongoing changes. Code will take you to the sheet called 'ProjectNotes' insert row at the top and format the row. You will then have a historical listing of notes in reverse chronological order.
A4: Menu Item--Find Something | B4: This menu category holds a number of find and report macros, see the next set of help topics for details. Each of the macros in this category will work on any open workbook.
A5: Count Instances of Word on a sheet or all sheets | B5: Allows you to count the number of instances that a word appears in a formula or text cell. This returns the number to times it is found, not the specific addresses where it can be found. The code allows you to specify the active sheet or all sheets.
A6: List Links in Book | B6: The excel menu item Edit| links provides a dialog box the lists the names of linked files, but does not give your the ability to print the list out. This macro will add a sheet and list the file names of all files that this book is linked to.
A7: Find and List Word | B7: This macro will search the activesheet or all sheets for a word or word in either a formula or text cell and provide at you option a new sheet with a list of all found occurrence, their addresses, and the formula of the cell where it is found. Use this macro to find the addresses of all linked formulas---search for [ Use this macro to create a list of address of a Factor. Note: This macro is case sensitive. Type the word as you expect it to appear. If you are searching for address of a formula, keep in mind that Excel's functions are all upper case (example to search for the all cells that use the SUMPRODUCT function all characters must be upper case.
A8: List All Files in a Folder | B8: This macro can be used to document create a list of all files (all types) in a file folder. When the code starts you will be given a dialog box to select the folder and it will list all files. A handy tool to document file list.
A9: List Macros in Activebook | B9: Creates a new sheet and lists all macros in the activeworkbook.
A10: Hide-Unhide Sheets | B10: Menu item that has the macros to hide or unhide a list of sheets.
A11: Hide Coding Sheets | B11: Hide the coding sheets, these are listed on the sheet called CodeTable, and running this macro will hide these sheets, note they are automatically hidden as part of the workbook close event.
A12: Unhide Coding Sheets | B12: Unhides the coding sheets listed on CodeTable
A13: Unhide All Sheets | B13: Unhides all sheets in the workbook.
A14: UnHide 'Match' Columns | B14: Using sheet names and columns ranges listed on CodeTable, this macro will unhide the columns that have the 'Match' function used to find the allocator for that row
A15: Hide 'Match' Columns | B15: Using sheet names and columns ranges listed on CodeTable, this macro will hide the columns that have the 'Match' function used to find the allocator for that row
A16: Names Menu Item | B16: Holds 3 names macros, see the following help topics for details
A17: List Sheet Level Names | B17: Creates a new sheet and lists all sheet level names in the activeworkbook.
A18: List Book Level Names | B18: Creates a new sheet and lists only the book level names in the activeworkbook.
A19: Check Book for Errored Names | B19: Code will check the activeworkbook to see if any name has become corrupt (has an #ref) in the name. This can occur if a sheet has a named range is deleted or moved out of the workbook. This can also be run on another workbook to determine is any range names that get copied into the new book become corrupt. If nay names are in error, you will be given the option to delete the name. Warning you do not have a recovery or undo function for this action.
A20: Test For Errors | B20: Holds a number or macros used to audit the book and test of errors
A21: Show Audit Summary | B21: This code will create new sheet called AuditReport and list each cell that does not meet the testing conditions. The sheets and cell ranges that are being evaluated are listed on sheet named CodeTable. You can add sheets names and address ranges and cell test conditions to this area.
A22: Tell me if Book has Formula Errors | B22: Each sheet is evaluated and a message box returns the number of errors on each sheet.
A23: Check This Sheet For Errors | B23: Tests only the activesheet, and a message box provides the number of errors on the active sheet.
A24: Find Unused Factors | B24: This menu item holds the macros to identify the allocation factors that are not being used in the book.
A25: Highlight Ffactors that are not being used | B25: For each factor on Factor sheet, search the Funct sheet, and if the factor is not found, highlight it on Ffactor sheet.
A26: Highlight CFactors that are not being used | B26: For each factor on CFaactor sheet, search the Class sheet, and if the factor is not found, highlight it on CFactor sheet.
A27: Highlight AFactors that are not being used | B27: For each factor on AFactor sheet, search the each allocation sheet, and if the factor is not found, highlight it on AFactor sheet.
A28: Convert Formula Links to Values | B28: On activeworkbook, search each sheet for a formula that is linked to an external workbook. If found convert the formula to the value of the formula thereby terminating the link. Note this does not affect linked ranges names, only formulas.
A29: Fix Status Bar | B29: The StatusBar is the lower bar that shows the word "Calculate' when the book needs to be calculated. Several macros in this workbook use the statusbar to report which sheet or cell range where the code it working. In the event that a macro encounters an error, the status bar may show the last message. This macro will return the status bar back to normal.
A30: &Model Help | B30: Menu item holds the codes that are help or information macros applicable to this model only.
A31: Help with Macros or Logic | B31: Launches this help menu, you can add additional help topics by simply following the format of typing additional help topics on the HelpSheet. The code will add all help topics to this dialog box up until it encounters a blank line in column a.
A32: When LastSaved | B32: Shows message box with key data as to when saved, by who and on which PC.
A33: Read Me | B33: Takes the user to the ReadMe sheet. The Readme sheet holds a number of text boxes with information about how the model was changed and information on how excel operates

Sheet MenuSheet (hidden)
A1: Level | B1: Caption | C1: Position/Macro | D1: Divider | E1: FaceID | F1: COS MODEL MENU V-02 | G1: FloatingBar------------> | H1: TRUE | I1: TRUE
A2: 1 | B2: &Assumptions | C2: 1 | G2: Pic Number | I2: FALSE
A3: 2 | B3: Functionalization | C3: Goto_Functionalization
A4: 2 | B4: Classification | H4: Last User | I4: Brinkman, Trisha
A5: 3 | B5: Production | C5: Goto_Class_Production | H5: Computer | I5: L1126483
A6: 3 | B6: Storage Dehydrator | C6: Goto_Class_Stor_Dehydrator | H6: Last Saved | I6: 2011-01-24T09:16:43
A7: ProdDemand | B7: Storage Excluding Dehydrator | C7: Goto_Class_Stor_Excl_Dehydrator
A8: 3 | B8: Dawn Station | C8: Goto_Class_Dawn_Station
A9: 3 | B9: Dawn Trafalgar Easterly | C9: Goto_Class_Dawn_Trafalgar_East
A10: 3 | B10: Dawn Trafalgar Westerly | C10: Goto_Class_Dawn_Trafalgar_West
A11: 3 | B11: Other Transmission | C11: Goto_Class_Other_Transmission
A12: 3 | B12: Ojibway/St. Clair | C12: Goto_Class_St_Clair
A13: 3 | B13: Distribution | C13: Goto_Class_Distribution
A14: 2 | B14: Allocation (Prod - Stor)
A15: 3 | B15: Purchase Production System | C15: Goto_PurProd_Sys_Allocate
A16: 3 | B16: Purchase Production Other | C16: Goto_PurProd_Other_Allocate
A17: 3 | B17: Storage Dehydrator Demand | C17: Goto_StorDehy_Dmd_Allocate
A18: 3 | B18: Storage Dehydrator Commodity | C18: Goto_StorDehy_Comm_Allocate
A19: 3 | B19: Storage Excluding Dehydrator Deliverability | C19: Goto_StorExcDehy_Del_Allocate
A20: 3 | B20: Storage Excluding Dehydration Commodity | C20: Goto_StorExcDehy_Comm_Allocate
A21: 3 | B21: Storage Excluding Dehydration Space | C21: Goto_StorExcDehy_Space_Allocate
A22: 2 | B22: Allocation (Trans - Dist)
A23: 3 | B23: Dawn Station Demand | C23: Goto_DawnStationDemand_Allocate
A24: 3 | B24: Dawn Station Commodity | C24: Goto_DawnStationComm_Allocate
A25: 3 | B25: Dawn Station Customer | C25: Goto_DawnStationCust_Allocate
A26: 3 | B26: Dawn Trafalgar Easterly excl OSE | C26: Goto_DawnEastExcl_Allocate
A27: 3 | B27: Dawn Trafalgar Easterly OSE | C27: Goto_DawnEastOSE_Allocate
A28: 3 | B28: Dawn Trafalgar Easterly Commodity | C28: Goto_DawnEastComm_Allocate
A29: 3 | B29: Dawn Trafalgar Westerly Commodity | C29: Goto_DawnWest_Commodity_Allocate
A30: 3 | B30: Other Transmission Demand | C30: Goto_OtherTransDemand_Allocate
A31: 3 | B31: Ojibway/St. Clair Demand | C31: Goto_StClairDemand_Allocate
A32: 3 | B32: Ojibway/St. Clair Commodity | C32: Goto_StClairComm_Allocate
A33: 3 | B33: Distribution Demand | C33: Goto_DistDemand_Allocate
A34: 3 | B34: Distribution Commodity | C34: Goto_DistComm_Allocate
A35: 3 | B35: Distribution Customer | C35: Goto_DistCust_Allocate
A36: 2 | B36: Dollars by Account | C36: Goto_Account_Dollars | D36: TRUE
A37: 2 | B37: Rate Revenue | C37: Enter_RateRevenue'
A38: 2 | B38: Labor by Account | C38: Goto_Labor_Subschedule
A39: 2 | B39: Depreciation Reserve by Account | C39: Goto_AccumDep_Subschedule
A40: 2 | B40: Depreciation Expense by Account | C40: Goto_DepExp_Subschedule
A41: 2 | B41: Property Taxes | C41: Goto_PropTax_Subschedule
A42: 2 | B42: Billing Determinants (Prod - Stor) | D42: TRUE
A43: 3 | B43: Purchase Production System | C43: Goto_BD_PurProd_Sys
A44: 3 | B44: Purchase Production Other | C44: Goto_BD_PurProd_Other
A45: 3 | B45: Storage Dehydrator Demand | C45: Goto_BD_StorDehy_Dmd
A46: 3 | B46: Storage Dehydrator Commodity | C46: Goto_BD_StorDehy_Comm
A47: 3 | B47: Storage Excluding Dehydrator Deliverability | C47: Goto_BD_StorExcDehy_Del
A48: 3 | B48: Storage Excluding Dehydrator Commodity | C48: Goto_BD_StorExcDehy_Comm
A49: 3 | B49: Storage Excluding Dehydrator Space | C49: Goto_BD_StorExcDehy_Space
A50: 2 | B50: Billing Determinants (Trans - Dist)
A51: 3 | B51: Dawn Station Demand | C51: Goto_BD_DawnStation_Demand
A52: 3 | B52: Dawn Station Commodity | C52: Goto_BD_DawnWest_Commodity
A53: 3 | B53: Dawn Station Customer | C53: Goto_BD_DawnStation_Cust
A54: 3 | B54: Dawn Trafalgar Easterly Excluding OSE | C54: Goto_BD_DawnEastExcl
A55: 3 | B55: Dawn Trafalgar Easterly OSE | C55: Goto_BD_DawnEastOSE
A56: 3 | B56: Dawn Trafalgar Easterly Commodity | C56: Goto_BD_DawnEastComm
A57: 3 | B57: Dawn Trafalgar Westerly Commodity | C57: Goto_BD_DawnWest_Commodity
A58: 3 | B58: Other Transmission Demand | C58: Goto_BD_OtherTransDemand
A59: 3 | B59: Other Transmission Customer | C59: Goto_BD_OtherTransCust
A60: 3 | B60: Ojibway/St. Clair Demand | C60: Goto_BD_StClairDemand
A61: 3 | B61: Ojibway/St. Clair Commodity | C61: Goto_BD_StClairComm
A62: 3 | B62: Distribution Demand | C62: Goto_BD_DistDemand
A63: 3 | B63: Distribution Commodity | C63: Goto_BD_DistComm
A64: 3 | B64: Distribution Customer | C64: Goto_BD_DistCust
A65: 2 | B65: ROR by Function | C65: Goto_ROR
A66: 2 | B66: Statutory Tax Rate | C66: Goto_StatTax
A67: 2 | B67: Insert Rate Class | C67: InsertRateClassCheck | D67: TRUE
A68: 1 | B68: &Define | C68: 2
A69: 2 | B69: Define Functionalization Factors | C69: Goto_FunctFact
A70: 2 | B70: Define Classification Factors | C70: Goto_ClassFact
A71: 2 | B71: Define Allocation Factors | C71: Goto_AllocFact
A72: 1 | B72: &Calc | C72: 3
A73: 2 | B73: Calc Activesheet only | E73: 283
A74: 2 | B74: Update Allocation Factors | C74: Calc_Factors
A75: 2 | B75: Update Unit Cost | C75: Calc_UnitCosts
A76: 2 | B76: Update Verification Table | C76: Calc_Verify
A77: 2 | B77: Update Quick List | C77: Calc_QuickList
A78: 2 | B78: Calculate COS Model | C78: Calc_Model_All | D78: TRUE | E78: 283
A79: 2 | B79: Calc All Allocation Sheets | C79: Calc_Model_Allocation | D79: TRUE
A80: 2 | B80: Calc Purchase Production | C80: Calc_Model_ProdPurchase | D80: TRUE
A81: 2 | B81: Calc Storage Dehydrator | C81: Calc_Model_StorDehydrator
A82: 2 | B82: Calc Storage excl. Dehydrator | C82: Calc_Model_StorX
A83: 2 | B83: Calc Dawn Station | C83: Calc_Model_DawnStation
A84: 2 | B84: Calc Dawn Trafalgar Easterly | C84: Calc_Model_DawnEast
A85: 2 | B85: Calc Dawn Trafalgar Westerly | C85: Calc_Model_DawnWest
A86: 2 | B86: Calc Other Transmission | C86: Calc_Model_OtherTrans
A87: 2 | B87: Calc Ojibway/St. Clair | C87: Calc_Model_StClair
A88: 2 | B88: Calc Distribution | C88: Calc_Model_Distribution
A89: 2 | B89: Calculate Total Allocation | C89: Calc_Model_Total
A90: 1 | B90: &FIT | C90: 4
A91: 2 | B91: Enter FIT Dollars | C91: Goto_FIT_Dollars
A92: 2 | B92: Enter Functionalization Factors | C92: Goto_FIT_Funct | D92: TRUE
A93: 2 | B93: Enter Classification Factors
A94: 3 | B94: Purchase Production | C94: Goto_FIT_Class_Production
A95: 3 | B95: Storage Dehydrator | C95: Goto_FIT_Class_Stor_Dehydrator | J95: 1 | K95: &ZeroMacro | L95: 4
A96: 3 | B96: Storage Excluding Dehydrator | C96: Goto_FIT_Class_Stor_Excl_Dehydrator | J96: 2 | K96: Zero Out Lookups for the Entire Workbook | L96: Chg_Lookup
A97: 3 | B97: Dawn Station | C97: Goto_FIT_Class_Dawn_Station | J97: 2 | K97: Zero Out Lookups for the Current Sheet | L97: Chg_Sheet
A98: 3 | B98: Dawn Trafalgar Easterly | C98: Goto_FIT_Class_Dawn_East | J98: 2 | K98: Check the Lookups for Entire WorkBook | L98: TempCheckALL
A99: 3 | B99: Dawn Trafalgar Westerly | C99: Goto_FIT_Class_Dawn_West | J99: 2 | K99: Check the Lookups for the Current Sheet | L99: TEMPErrorCheck
A100: 3 | B100: Other Transmission | C100: Goto_FIT_Class_Other_Transmission | J100: 2 | K100: Search for a Factor | L100: Factor_Search
A101: 3 | B101: Ojibway/St. Clair | C101: Goto_FIT_Class_St_Clair | J101: 2 | K101: Hide all unused Factors Automatically | L101: Factor_Hide
A102: 3 | B102: Distribution | C102: Goto_FIT_Class_Distribution
A103: 2 | B103: Enter Allocation (Prod - Stor) Factors
A104: 3 | B104: Purchase Production System | C104: Goto_FIT_PurProd_Sys_Allocate
A105: 3 | B105: Purchase Production Other | C105: Goto_FIT_PurProd_Other_Allocate
A106: 3 | B106: Storage Dehydrator Demand | C106: Goto_FIT_StorDehy_Dmd_Allocate
A107: 3 | B107: Storage Dehydrator Commodity | C107: Goto_FIT_StorDehy_Comm_Allocate
A108: 3 | B108: Storage Excluding Dehydrator Deliverability | C108: Goto_FIT_StorExcDehy_Del_Allocate
A109: 3 | B109: Storage Excluding Dehydrator Commodity | C109: Goto_FIT_StorExcDehy_Comm_Allocate
A110: 3 | B110: Storage Excluding Dehydrator Space | C110: Goto_FIT_StorExcDehy_Space_Allocate
A111: 2 | B111: Enter Allocation (Trans - Dist) Factors
A112: 3 | B112: Dawn Station Demand | C112: Goto_FIT_DawnStationDemand_Allocate
A113: 3 | B113: Dawn Station Commodity | C113: Goto_FIT_DawnStationComm_Allocate
A114: 3 | B114: Dawn Station Customer | C114: Goto_FIT_DawnStationCust_Allocate
A115: 3 | B115: Dawn Trafalgar Easterly Excluding OSE | C115: Goto_FIT_DawnEastExcl_Allocate
A116: 3 | B116: Dawn Trafalgar Easterly OSE | C116: Goto_FIT_DawnEastOSE_Allocate
A117: 3 | B117: Dawn Trafalgar Easterly Commodity | C117: Goto_FIT_DawnEastComm_Allocate
A118: 3 | B118: Dawn Trafalgar Westerly Commodity | C118: Goto_FIT_DawnWest_Commodity_Allocate
A119: 3 | B119: Other Transmission Demand | C119: Goto_FIT_OtherTransDemand_Allocate
A120: 3 | B120: Ojibway/St. Clair Demand | C120: Goto_FIT_StClairDemand_Allocate
A121: 3 | B121: Ojibway/St. Clair Commodity | C121: Goto_FIT_StClairComm_Allocate
A122: 3 | B122: Distribution Demand | C122: Goto_FIT_DistDemand_Allocate
A123: 3 | B123: Distribution Commodity | C123: Goto_FIT_DistComm_Allocate
A124: 3 | B124: Distribution Customer | C124: Goto_FIT_DistCust_Allocate
A125: 2 | B125: Print Functionalization | C125: Print_Funct_FIT | D125: TRUE
A126: 2 | B126: Print Classification
A127: 3 | B127: Purchase Production | C127: Print_Class_PurProd_FIT
A128: 3 | B128: Storage Dehydrator | C128: Print_Class_StorDeh_FIT
A129: 3 | B129: Storage Excluding Dehydrator | C129: Print_Class_StorDehX_FIT
A130: 3 | B130: Dawn Station | C130: Print_Class_Dawn_FIT
A131: 3 | B131: Dawn Trafalgar Easterly | C131: Print_Class_DawnEast_FIT
A132: 3 | B132: Dawn Trafalgar Westerly | C132: Print_Class_DawnWest_FIT
A133: 3 | B133: Other Transmission | C133: Print_Class_OtTrans_FIT
A134: 3 | B134: Ojibway/St. Clair | C134: Print_Class_StClair_FIT
A135: 3 | B135: Distribution | C135: Print_Class_Dist_FIT
A136: 2 | B136: Print Allocation (Prod - Stor)
A137: 3 | B137: Purchase Production System | C137: Print_A1_FIT
A138: 3 | B138: Purchase Production Other | C138: Print_A2_FIT
A139: 3 | B139: Storage Dehydrator Demand | C139: Print_A4_FIT
A140: 3 | B140: Storage Dehydrator Commodity | C140: Print_A5_FIT
A141: 3 | B141: Storage Excluding Dehydrator Deliverability | C141: Print_A7_FIT
A142: 3 | B142: Storage Excluding Dehydration Commodity | C142: Print_A8_FIT
A143: 3 | B143: Storage Excluding Dehydration Space | C143: Print_A9_FIT
A144: 2 | B144: Print Allocation (Trans - Dist)
A145: 3 | B145: Dawn Station Demand | C145: Print_A10_FIT
A146: 3 | B146: Dawn Station Commodity | C146: Print_A11_FIT
A147: 3 | B147: Dawn Station Customer | C147: Print_A12_FIT
A148: 3 | B148: Dawn Trafalgar Easterly Excluding OSE | C148: Print_A13_FIT
A149: 3 | B149: Dawn Trafalgar Easterly OSE | C149: Print_A14_FIT
A150: 3 | B150: Dawn Trafalgar Easterly Commodity | C150: Print_A15_FIT
A151: 3 | B151: Dawn Trafalgar Westerly Commodity | C151: Print_A17_FIT
A152: 3 | B152: Other Transmission Demand | C152: Print_A19_FIT
A153: 3 | B153: Ojibway/St. Clair Demand | C153: Print_A22_FIT
A154: 3 | B154: Ojibway/St. Clair Commodity | C154: Print_A23_FIT
A155: 3 | B155: Distribution Demand | C155: Print_A25_FIT
A156: 3 | B156: Distribution Commodity | C156: Print_A26_FIT
A157: 3 | B157: Distribution Customer | C157: Print_A27_FIT
A158: 2 | B158: Print Total FIT Summary | C158: Print_Total_FIT | D158: TRUE
A159: 1 | B159: &View | C159: 5
A160: 2 | B160: Verification Table | C160: Goto_Verification_Table | E160: 2560
A161: 2 | B161: Total Allocation Summary | C161: Goto_Total_Allocate
A162: 2 | B162: Unit Costs | C162: Goto_UnitCost
A163: 2 | B163: Quick List | C163: Goto_QuickList
A164: 1 | B164: &Print | C164: 6
A165: 2 | B165: Add Header | C165: AddHeader | E165: 326
A166: 2 | B166: Print Functionalization Detail | C166: Print_Funct_Detail | D166: TRUE
A167: 2 | B167: All Classification Detail | C167: Print_AllClass_Detail
A168: 2 | B168: Print Classification Detail
A169: 3 | B169: Purchase Production | C169: Print_Class_PurProd_Detail
A170: 3 | B170: Storage Dehydrator | C170: Print_Class_StorDeh_Detail
A171: 3 | B171: Storage Excluding Dehydrator | C171: Print_Class_StorDehX_Detail
A172: 3 | B172: Dawn Station | C172: Print_Class_Dawn_Detail
A173: 3 | B173: Dawn Trafalgar Easterly | C173: Print_Class_DawnEast_Detail
A174: 3 | B174: Dawn Trafalgar Westerly | C174: Print_Class_DawnWest_Detail
A175: 3 | B175: Other Transmission | C175: Print_Class_OtTrans_Detail
A176: 3 | B176: Ojibway/St. Clair | C176: Print_Class_StClair_Detail
A177: 3 | B177: Distribution | C177: Print_Class_Dist_Detail
A178: 2 | B178: Print All Allocation Detail Reports | C178: Print_All_Detail
A179: 2 | B179: Print Allocation (Prod - Stor) Detail
A180: 3 | B180: Purchase Production System | C180: Print_A1_Detail
A181: 3 | B181: Purchase Production Other | C181: Print_A2_Detail
A182: 3 | B182: Purchase Production Demand | C182: Print_A3_Detail
A183: 3 | B183: Storage Dehydrator Demand | C183: Print_A4_Detail
A184: 3 | B184: Storage Dehydrator Commodity | C184: Print_A5_Detail
A185: 3 | B185: Storage Excluding Dehydrator Deliverability | C185: Print_A7_Detail
A186: 3 | B186: Storage Excluding Dehydrator Commodity | C186: Print_A8_Detail
A187: 3 | B187: Storage Excluding Dehydrator Space | C187: Print_A9_Detail | J187: These notes from FION
A188: 3 | B188: Storage Excluding Dehydration Contingency | C188: Print_A9b_Detail | J188: Purchase Production System | M188: ProdSys
A189: 3 | B189: (End of submenu) | J189: Purchase Production Other | M189: Prod Other
A190: 2 | B190: Print Allocation (Trans-Dist) Detail | J190: Purchase Production Demand | M190: ProdNA
A191: 3 | B191: Dawn Station Demand | C191: Print_A10_Detail | J191: Storage Dehydrator Demand | M191: StorDeh Demand
A192: 3 | B192: Dawn Station Commodity | C192: Print_A11_Detail | J192: Storage Dehydrator Commodity | M192: StorDeh Comm
A193: 3 | B193: Dawn Station Customer | C193: Print_A12_Detail | J193: Storage Excluding Dehydrator Delivery | M193: StorX Deliver
A194: 3 | B194: Dawn Trafalgar Easterly Demand | C194: Print_A13_Detail | J194: Storage Excluding Dehydrator Commodity | M194: StorX Comm
A195: 3 | B195: Dawn Trafalgar Easterly OSE | C195: Print_A14_Detail | J195: Storage Excluding Dehydrator Space | M195: StorX Space
A196: 3 | B196: Dawn Trafalgar Easterly Commodity | C196: Print_A15_Detail | J196: Storage Excluding Dehydrator Contingency | M196: StorX Contingen
A197: 3 | B197: Dawn Trafalgar Westerly Commodity | C197: Print_A17_Detail
A198: 3 | B198: Other Transmission Demand | C198: Print_A19_Detail
A199: 3 | B199: Ojibway/St. Clair Demand | C199: Print_A22_Detail | J199: Dawn Station Demand | M199: DawnStation Demand
A200: 3 | B200: Ojibway/St. Clair Commodity | C200: Print_A23_Detail | J200: Dawn Station Commodity | M200: DawnStation Comm
... 95 more rows

Sheet ReadMe (hidden)
A1: ="Current Date " &TEXT(NOW(),"ddd-mmm-dd-yyyy") -> Current Date Wed-Mar-08-2023
A2: ="Last Update " &TEXT(LastSaved,"ddd-mmm-dd-yyyy HH:MM AM/PM") -> Last Update Mon-Jan-24-2011 09:16 AM
A3: ="Last Saved by : " &LastUser -> Last Saved by : Brinkman, Trisha

Sheet CodeTable (hidden)
B3: Class | E3: This Range used for Code AuditBookSummary | I3: See comments in these cells for information about this lists
A4: Allocation SheetNames | B4: Columns to apply code on 3Class sheet | C4: List of Columns to Hide/Show Match on 3Class sheet | E4: SheetName | F4: AddressRange | G4: Condition | I4: HideSheetsOnClose | K4: CodingSheets | M4: SheetName | N4: Columns with 'Lookup Title"
A5: ProdSys | B5: E | C5: F | E5: 1Funct | F5: Z12:Z600 | G5: ***** | I5: MenuSheet | K5: MenuSheet | M5: ProdSys | N5: F | O5: J
A6: ProdOther | B6: I | C6: J | E6: 2FFactors | F6: EntireSheet | G6: AnyError | I6: HelpSheet | K6: HelpSheet | M6: ProdOther | N6: F | O6: J
A7: ProdDemand | B7: Q | C7: R | E7: 2FFactors | F7: L12:L290 | G7: 1.001 | I7: ReadMe | K7: ReadMe | M7: ProdDemand | N7: F | O7: J
A8: StorDehDemand | B8: U | C8: V | E8: 3Class | F8: N9:N600 | G8: ***** | I8: CodeTable | K8: CodeTable | M8: StorDehDemand | N8: F | O8: J
A9: StorDehComm | B9: AC | C9: AD | E9: 3Class | F9: Z9:Z600 | G9: ***** | I9: PgBreakList | M9: StorDehComm | N9: F | O9: J
A10: StorXDeliver | B10: AG | C10: AH | E10: 3Class | F10: AM9:AM600 | G10: ***** | I10: NamedRanges | M10: StorXDeliver | N10: F | O10: J
A11: StorXComm | B11: AP | C11: AQ | E11: 3Class | F11: AY9:AY600 | G11: ***** | M11: StorXComm | N11: F | O11: J
A12: StorXSpace | B12: AT | C12: AU | E12: 3Class | F12: BK9:BK600 | G12: ***** | M12: StorXSpace | N12: F | O12: J
A13: StorXContingen | B13: BB | C13: BC | E13: 3Class | F13: BW9:BW600 | G13: ***** | M13: StorXContingen | N13: F | O13: J
A14: DawnStationDemand | B14: BF | C14: BG | E14: 3Class | F14: Ci9:Ci600 | G14: ***** | M14: DawnStationDemand | N14: F | O14: J
A15: DawnStationComm | B15: BN | C15: BO | E15: 3Class | F15: CU9:CU600 | G15: ***** | M15: DawnStationComm | N15: F | O15: J
A16: DawnStationCust | B16: BR | C16: BS | E16: 3Class | F16: DG9:DG600 | G16: ***** | M16: DawnStationCust | N16: F | O16: J
A17: DawnEastXOSE | B17: BZ | C17: CA | E17: 4CFactors | F17: H12:H660 | G17: 1.0001 | M17: DawnEastXOSE | N17: F | O17: J
A18: DawnEastOSE | B18: CD | C18: CE | E18: 5AFactors | F18: EntireSheet | G18: AnyError | M18: DawnEastOSE | N18: F | O18: J
A19: DawnEastComm | B19: CL | C19: CM | E19: DawnEastComm | F19: AL11:AL600 | G19: ***** | M19: DawnEastComm | N19: F | O19: J
A20: DawnWestComm | B20: CP | C20: CQ | E20: DawnEastOSE | F20: AL11:AL600 | G20: ***** | M20: DawnWestComm | N20: F | O20: J
A21: OtherTransDemand | B21: CX | C21: CY | E21: DawnEastXOSE | F21: AL11:AL600 | G21: ***** | M21: OtherTransDemand | N21: F | O21: J
A22: St.ClairDemand | B22: DB | C22: DC | E22: DawnStationComm | F22: AL11:AL600 | G22: ***** | M22: St.ClairDemand | N22: F | O22: J
A23: St.ClairComm | E23: DawnStationCust | F23: AL11:AL600 | G23: ***** | M23: St.ClairComm | N23: F | O23: J
A24: DistDemand | E24: DawnStationDemand | F24: AL11:AL600 | G24: ***** | M24: DistDemand | N24: F | O24: J
A25: DistComm | E25: DawnWestComm | F25: AL11:AL600 | G25: ***** | M25: DistComm | N25: F | O25: J
A26: DistCust | E26: DistComm | F26: AL11:AL600 | G26: ***** | M26: DistCust | N26: F | O26: J
A27: UnitCost | E27: DistCust | F27: AL11:AL600 | G27: ***** | M27: Total | N27: F | O27: J
A28: Total | E28: DistDemand | F28: AL11:AL600 | G28: ***** | M28: 1Funct | N28: F | O28: J
E29: OtherTransDemand | F29: AL11:AL600 | G29: ***** | M29: 3Class | N29: F
E30: ProdDemand | F30: AL11:AL600 | G30: ***** | M30: 3Class | N30: J
E31: ProdOther | F31: AL11:AL600 | G31: ***** | M31: 3Class | N31: R
E32: ProdSys | F32: AL11:AL600 | G32: ***** | M32: 3Class | N32: V
E33: QuickList | F33: EntireSheet | G33: AnyError | M33: 3Class | N33: AD
E34: St.ClairComm | F34: AL11:AL600 | G34: ***** | M34: 3Class | N34: AH
E35: St.ClairDemand | F35: AL11:AL600 | G35: ***** | M35: 3Class | N35: AQ
E36: StorDehComm | F36: AL11:AL600 | G36: ***** | M36: 3Class | N36: AU
E37: StorDehDemand | F37: AL11:AL600 | G37: ***** | M37: 3Class | N37: BC
E38: StorXComm | F38: AL11:AL600 | G38: ***** | M38: 3Class | N38: BG
E39: StorXContingen | F39: AL11:AL600 | G39: ***** | M39: 3Class | N39: BO
E40: StorXDeliver | F40: AL11:AL600 | G40: ***** | M40: 3Class | N40: BS
E41: StorXSpace | F41: AL11:AL600 | G41: ***** | M41: 3Class | N41: CA
E42: Total | F42: AL11:AL600 | G42: ***** | M42: 3Class | N42: CE
E43: UnitCost | F43: EntireSheet | G43: AnyError | M43: 3Class | N43: CM
E44: Verify | F44: K54 | G44: 1.01 | M44: 3Class | N44: CQ
M45: 3Class | N45: CY
M46: 3Class | N46: DC
A50: This area was used in the transition from the orginal book to the new revised version, the address ranges are not longer operative,because the were moved from row 5
B51: Each Allocation Sheet | G51: Class | L51: Funct
A52: SheetNames | B52: Columns to Insert on Each Allocation Sheet | C52: Range to check for "Look" on Allocation Sheet | D52: Range to check for "Temp" on Allocation Sheet | E52: Copy formulas from if Temp or factor found | F52: Sheet Name | G52: Columns to Insert on Class Sheet | H52: Range to Zero Formuals if Temop found in column using J | I52: Copy formulas from if Temp or factor found | J52: Range to check for "Temp" on Class Sheet | K52: Sheet Name | L52: Columns to Insert on Funct Sheet | M52: Range to check for "Look" on Funct sheet | N52: Copy formulas from if Temp or factor found | O52: Range to check for "Temp" on Funct Sheet
A53: ProdSys | B53: F | C53: G12:G600 | D53: I12:I83 | E53: J11:AK11 | F53: Class | G53: F | H53: F | I53: F10:G10 | J53: E | K53: Funct | L53: F | M53: G | N53: F11:G11 | O53: E12:E600 | S53: 1Funct
A54: ProdOther | B54: J | C54: K12:K600 | D54: I95:I173 | E54: J11:AK11 | G54: J | H54: K | I54: J10:M10 | J54: I | L54: J | M54: K | N54: J11:S11 | O54: I12:i84 | S54: 2FFactors
A55: ProdDemand | D55: I185:I398 | E55: J11:AK11 | G55: R | H55: S | I55: R10:S10 | J55: Q | O55: I93:i173 | S55: 3Class
A56: StorDeh Demand | D56: I406:I484 | E56: J11:AK11 | G56: V | H56: W | I56: V10:Y10 | J56: U | O56: I183:I190 | S56: 4Cfactors
A57: StorDeh Comm | D57: I486:I600 | E57: J11:AK11 | G57: AD | H57: AE | I57: AD10:AE10 | J57: AC | O57: I202:I210 | S57: 5Afactors
A58: StorX Deliver | D58: E12:E600 | E58: F11:G11 | G58: AH | H58: AI | I58: AH10:AL10 | J58: AG | O58: I214:I398 | S58: DawnEast Comm
A59: StorX Comm | G59: AQ | H59: AR | I59: AQ10:AR10 | J59: AP | O59: I406:I552 | S59: DawnEast OSE
A60: StorX Space | G60: AU | H60: AV | I60: AU10:AX10 | J60: AT | O60: I557:I558 | S60: DawnEastX OSE
A61: StorX Contingen | C61: List to kill Temp | G61: BC | H61: BD | I61: BC10:BD10 | J61: BB | O61: I567:I569 | S61: DawnStation Comm
A62: DawnStation Demand | C62: I12:I600 | D62: J11:J600 | G62: BG | H62: BH | I62: BG10:BJ10 | J62: BF | O62: I571 | S62: DawnStation Cust
A63: DawnStation Comm | G63: BO | H63: BP | I63: BO10:BP10 | J63: BN | O63: I573:i600 | S63: DawnStation Demand
A64: DawnStation Cust | D64: I84:I94 | E64: J11:AK11 | G64: BS | H64: BT | I64: BS10:BV10 | J64: BR | S64: DawnWest Comm
A65: DawnEastX OSE | D65: I174:I184 | E65: J11:AK11 | G65: CA | H65: CB | I65: CA10:CB10 | J65: BZ | M65: error_rge | N65: J11:S11 | O65: I85:i92 | S65: Dist Comm
A66: DawnEast OSE | D66: I399:I405 | E66: J11:AK11 | G66: CE | H66: CF | I66: CE10:CH10 | J66: CD | N66: J11:S11 | O66: i174:i182 | S66: Dist Cust
A67: DawnEast Comm | D67: I485 | E67: J11:AK11 | G67: CM | H67: CN | I67: CM10:CN10 | J67: CL | N67: J11:S11 | O67: i191:i201 | S67: Dist Demand
A68: DawnWest Comm | D68: G12:G600 | E68: G11 | G68: CQ | H68: CR | I68: CQ10:CT10 | J68: CP | N68: J11:S11 | O68: i211:i213 | S68: OtherTrans Demand
A69: OtherTrans Demand | G69: CY | H69: CZ | I69: CY10:CZ10 | J69: CX | N69: J11:S11 | O69: i399:i405 | S69: ProdDemand
A70: St. Clair Demand | G70: DC | H70: DD | I70: DC10:DF10 | J70: DB | N70: J11:S11 | O70: i553:i556 | S70: ProdOther
A71: St. Clair Comm | N71: J11:S11 | O71: i559:i566 | S71: ProdSys
A72: Dist Demand | N72: J11:S11 | O72: i570 | S72: Quick List
A73: Dist Comm | N73: J11:S11 | O73: i572 | S73: St. Clair Comm
A74: Dist Cust | S74: St. Clair Demand
A75: Unit Cost | S75: StorDeh Comm
A76: Total | S76: StorDeh Demand

Sheet Table of Contents
A1: UNION GAS LIMITED
A2: Table of Contents
A3: 2013 Cost Allocation Study
C5: Contents
C7: Cost Allocation Study
C9: Summary Revenue Requirement - By Function
C10: Summary Revenue Requirement - By Rate Class
C12: Functional-Classification Allocation Summaries
C13: Purchase Production System
C14: Purchase Production Other
C15: Purchase Production Demand
C16: Storage Dehydrator Demand
C17: Storage Dehydrator Commodity
C18: Storage Excluding Dehydrator Deliverability
C19: Storage Excluding Dehydrator Commodity
C20: Storage Excluding Dehydrator Space
C21: Storage Excluding Dehydrator System Storage
C22: Dawn Station Demand
C23: Dawn Station Commodity
C24: Dawn-Parkway Easterly Demand
C25: Dawn-Parkway Easterly Commodity
C26: Dawn-Parkway Westerly Commodity
C27: Other Transmission Demand
C28: St. Clair Demand
C29: St. Clair Commodity
C30: Distribution Demand
C31: Distribution Customer
C33: Functional Detail Report
C34: Functionalization Factors
C36: Classification Detail Reports
C37: Purchase/Production
C38: Storage Dehydrator
C39: Storage Excluding Dehydrator
C40: Dawn Station
C41: Dawn-Trafalgar Easterly
C42: Dawn-Trafalgar Westerly
C43: Other Transmission
C44: Ojibway/St. Clair
C45: Distribution
C46: Classification Factors
C48: Allocation Detail Reports
C49: Total Allocation Detail Report
C50: Purchase Production System
C51: Purchase Production Other
C52: Purchase Production Demand
C53: Storage Dehydrator Demand
C54: Storage Dehydrator Commodity
C55: Storage Excluding Dehydrator Deliverability
C56: Storage Excluding Dehyrdator Commodity
C57: Storage Excluding Dehydrator Space
C58: Storage Excluding Dehydrator System Storage
C59: Dawn Station Demand
C60: Dawn Station Commodity
C61: Dawn-Parkway Easterly Demand
C62: Dawn-Parkway Easterly Commodity
C63: Dawn-Parkway Westerly Commodity
C64: Other Transmission Demand
C65: St. Clair Demand
C66: St. Clair Commodity
C67: Distribution Demand
C68: Distribution Customer

Sheet Functionalization
A1: UNION GAS LIMITED
A2: Functionalization
A3: 2013 Cost Allocation Study
A4: ($000's)
L5: Storage | N5: Transmission
E6: Direct | G6: Total | H6: Balance | I6: Functional | O6: Dawn- | P6: Dawn- | V6: Depreciation | W6: Depreciation
B7: Account | C7: Account | D7: Account | E7: Assignment | F7: Match | G7: Direct | H7: to be | I7: Allocation | J7: Match | K7: Purchase | M7: Excluding | N7: Dawn | O7: Trafalgar | P7: Trafalgar | Q7: Other | R7: Ojibway/ | T7: Labour | U7: Labour | V7: Expense | W7: Expense | X7: Property Tax | Y7: Property Tax
B8: Description | C8: Code | D8: Dollars | E8: Factor | G8: Assignment | H8: Allocated | I8: Factor | K8: Production | L8: Dehydrator | M8: Dehydrator | N8: Station | O8: Easterly | P8: Westerly | Q8: Transmission | R8: St. Clair | S8: Distribution | T8: Percent | U8: Costs | V8: Percent | W8: Costs | X8: Percent | Y8: Costs | Z8: check
K9: 2 | L9: =1+K9 -> 3 | M9: 4 | N9: 5 | O9: 6 | P9: 7 | Q9: 8 | R9: 9 | S9: =1+R9 -> 10
A11: I. GROSS PLANT IN SERVICE
A13: A. PRODUCTION AND GATHERING
B14: Land | C14: 410 | D14: 0 | F14: 0 | G14: 0 | H14: =DOLLARS-G14 -> 0 | I14: PROD | J14: =MATCH(I14,'Functionalization Factors'!$A$12:$A$191,0) -> 3 | K14: =OFFSET('Functionalization Factors'!$A$12,$J14,K$9)*$H14+OFFSET('Functionalization Factors'!$A$12,$F14-1,K$9) -> 0 | L14: =OFFSET('Functionalization Factors'!$A$12,$J14,L$9)*$H14+OFFSET('Functionalization Factors'!$A$12,$F14-1,L$9) -> 0 | M14: =OFFSET('Functionalization Factors'!$A$12,$J14,M$9)*$H14+OFFSET('Functionalization Factors'!$A$12,$F14-1,M$9) -> 0 | N14: =OFFSET('Functionalization Factors'!$A$12,$J14,N$9)*$H14+OFFSET('Functionalization Factors'!$A$12,$F14-1,N$9) -> 0 | O14: =OFFSET('Functionalization Factors'!$A$12,$J14,O$9)*$H14+OFFSET('Functionalization Factors'!$A$12,$F14-1,O$9) -> 0 | P14: =OFFSET('Functionalization Factors'!$A$12,$J14,P$9)*$H14+OFFSET('Functionalization Factors'!$A$12,$F14-1,P$9) -> 0 | Q14: =OFFSET('Functionalization Factors'!$A$12,$J14,Q$9)*$H14+OFFSET('Functionalization Factors'!$A$12,$F14-1,Q$9) -> 0 | R14: =OFFSET('Functionalization Factors'!$A$12,$J14,R$9)*$H14+OFFSET('Functionalization Factors'!$A$12,$F14-1,R$9) -> 0 | S14: =OFFSET('Functionalization Factors'!$A$12,$J14,S$9)*$H14+OFFSET('Functionalization Factors'!$A$12,$F14-1,S$9) -> 0 | V14: =IF($D14=0,0,DEPEXP_SUB/$D14) -> 0 | W14: 0 | X14: =IF($D14=0,0,Y14/$D14) -> 0 | Y14: 0 | Z14: =IF(ABS(SUM(K14:S14)-DOLLARS)>1,"*****","") -> 
B15: Land Rights | C15: 411 | D15: 0 | F15: 0 | G15: 0 | H15: =D15-G15 -> 0 | I15: PROD | J15: =MATCH(I15,'Functionalization Factors'!$A$12:$A$191,0) -> 3 | K15: =OFFSET('Functionalization Factors'!$A$12,$J15,K$9)*$H15+OFFSET('Functionalization Factors'!$A$12,$F15-1,K$9) -> 0 | L15: =OFFSET('Functionalization Factors'!$A$12,$J15,L$9)*$H15+OFFSET('Functionalization Factors'!$A$12,$F15-1,L$9) -> 0 | M15: =OFFSET('Functionalization Factors'!$A$12,$J15,M$9)*$H15+OFFSET('Functionalization Factors'!$A$12,$F15-1,M$9) -> 0 | N15: =OFFSET('Functionalization Factors'!$A$12,$J15,N$9)*$H15+OFFSET('Functionalization Factors'!$A$12,$F15-1,N$9) -> 0 | O15: =OFFSET('Functionalization Factors'!$A$12,$J15,O$9)*$H15+OFFSET('Functionalization Factors'!$A$12,$F15-1,O$9) -> 0 | P15: =OFFSET('Functionalization Factors'!$A$12,$J15,P$9)*$H15+OFFSET('Functionalization Factors'!$A$12,$F15-1,P$9) -> 0 | Q15: =OFFSET('Functionalization Factors'!$A$12,$J15,Q$9)*$H15+OFFSET('Functionalization Factors'!$A$12,$F15-1,Q$9) -> 0 | R15: =OFFSET('Functionalization Factors'!$A$12,$J15,R$9)*$H15+OFFSET('Functionalization Factors'!$A$12,$F15-1,R$9) -> 0 | S15: =OFFSET('Functionalization Factors'!$A$12,$J15,S$9)*$H15+OFFSET('Functionalization Factors'!$A$12,$F15-1,S$9) -> 0 | V15: =IF($D15=0,0,W15/$D15) -> 0 | W15: 0 | X15: =IF($D15=0,0,Y15/$D15) -> 0 | Y15: 0 | Z15: =IF(ABS(SUM(K15:S15)-D15)>1,"*****","") -> 
B16: Wells and Lines | C16: 406/7/8/415 | D16: 0 | F16: 0 | G16: 0 | H16: =D16-G16 -> 0 | I16: PROD | J16: =MATCH(I16,'Functionalization Factors'!$A$12:$A$191,0) -> 3 | K16: =OFFSET('Functionalization Factors'!$A$12,$J16,K$9)*$H16+OFFSET('Functionalization Factors'!$A$12,$F16-1,K$9) -> 0 | L16: =OFFSET('Functionalization Factors'!$A$12,$J16,L$9)*$H16+OFFSET('Functionalization Factors'!$A$12,$F16-1,L$9) -> 0 | M16: =OFFSET('Functionalization Factors'!$A$12,$J16,M$9)*$H16+OFFSET('Functionalization Factors'!$A$12,$F16-1,M$9) -> 0 | N16: =OFFSET('Functionalization Factors'!$A$12,$J16,N$9)*$H16+OFFSET('Functionalization Factors'!$A$12,$F16-1,N$9) -> 0 | O16: =OFFSET('Functionalization Factors'!$A$12,$J16,O$9)*$H16+OFFSET('Functionalization Factors'!$A$12,$F16-1,O$9) -> 0 | P16: =OFFSET('Functionalization Factors'!$A$12,$J16,P$9)*$H16+OFFSET('Functionalization Factors'!$A$12,$F16-1,P$9) -> 0 | Q16: =OFFSET('Functionalization Factors'!$A$12,$J16,Q$9)*$H16+OFFSET('Functionalization Factors'!$A$12,$F16-1,Q$9) -> 0 | R16: =OFFSET('Functionalization Factors'!$A$12,$J16,R$9)*$H16+OFFSET('Functionalization Factors'!$A$12,$F16-1,R$9) -> 0 | S16: =OFFSET('Functionalization Factors'!$A$12,$J16,S$9)*$H16+OFFSET('Functionalization Factors'!$A$12,$F16-1,S$9) -> 0 | V16: =IF($D16=0,0,W16/$D16) -> 0 | W16: 0 | X16: =IF($D16=0,0,Y16/$D16) -> 0 | Y16: 0
B17: Comp., Meas., & Reg. Equipment | C17: 412/13/16/17 | D17: 0 | F17: 0 | G17: 0 | H17: =D17-G17 -> 0 | I17: PROD | J17: =MATCH(I17,'Functionalization Factors'!$A$12:$A$191,0) -> 3 | K17: =OFFSET('Functionalization Factors'!$A$12,$J17,K$9)*$H17+OFFSET('Functionalization Factors'!$A$12,$F17-1,K$9) -> 0 | L17: =OFFSET('Functionalization Factors'!$A$12,$J17,L$9)*$H17+OFFSET('Functionalization Factors'!$A$12,$F17-1,L$9) -> 0 | M17: =OFFSET('Functionalization Factors'!$A$12,$J17,M$9)*$H17+OFFSET('Functionalization Factors'!$A$12,$F17-1,M$9) -> 0 | N17: =OFFSET('Functionalization Factors'!$A$12,$J17,N$9)*$H17+OFFSET('Functionalization Factors'!$A$12,$F17-1,N$9) -> 0 | O17: =OFFSET('Functionalization Factors'!$A$12,$J17,O$9)*$H17+OFFSET('Functionalization Factors'!$A$12,$F17-1,O$9) -> 0 | P17: =OFFSET('Functionalization Factors'!$A$12,$J17,P$9)*$H17+OFFSET('Functionalization Factors'!$A$12,$F17-1,P$9) -> 0 | Q17: =OFFSET('Functionalization Factors'!$A$12,$J17,Q$9)*$H17+OFFSET('Functionalization Factors'!$A$12,$F17-1,Q$9) -> 0 | R17: =OFFSET('Functionalization Factors'!$A$12,$J17,R$9)*$H17+OFFSET('Functionalization Factors'!$A$12,$F17-1,R$9) -> 0 | S17: =OFFSET('Functionalization Factors'!$A$12,$J17,S$9)*$H17+OFFSET('Functionalization Factors'!$A$12,$F17-1,S$9) -> 0 | V17: =IF($D17=0,0,W17/$D17) -> 0 | W17: 0 | X17: =IF($D17=0,0,Y17/$D17) -> 0 | Y17: 0
B18: Other | C18: 419 | D18: 0 | F18: 0 | G18: 0 | H18: =D18-G18 -> 0 | I18: PROD | J18: =MATCH(I18,'Functionalization Factors'!$A$12:$A$191,0) -> 3 | K18: =OFFSET('Functionalization Factors'!$A$12,$J18,K$9)*$H18+OFFSET('Functionalization Factors'!$A$12,$F18-1,K$9) -> 0 | L18: =OFFSET('Functionalization Factors'!$A$12,$J18,L$9)*$H18+OFFSET('Functionalization Factors'!$A$12,$F18-1,L$9) -> 0 | M18: =OFFSET('Functionalization Factors'!$A$12,$J18,M$9)*$H18+OFFSET('Functionalization Factors'!$A$12,$F18-1,M$9) -> 0 | N18: =OFFSET('Functionalization Factors'!$A$12,$J18,N$9)*$H18+OFFSET('Functionalization Factors'!$A$12,$F18-1,N$9) -> 0 | O18: =OFFSET('Functionalization Factors'!$A$12,$J18,O$9)*$H18+OFFSET('Functionalization Factors'!$A$12,$F18-1,O$9) -> 0 | P18: =OFFSET('Functionalization Factors'!$A$12,$J18,P$9)*$H18+OFFSET('Functionalization Factors'!$A$12,$F18-1,P$9) -> 0 | Q18: =OFFSET('Functionalization Factors'!$A$12,$J18,Q$9)*$H18+OFFSET('Functionalization Factors'!$A$12,$F18-1,Q$9) -> 0 | R18: =OFFSET('Functionalization Factors'!$A$12,$J18,R$9)*$H18+OFFSET('Functionalization Factors'!$A$12,$F18-1,R$9) -> 0 | S18: =OFFSET('Functionalization Factors'!$A$12,$J18,S$9)*$H18+OFFSET('Functionalization Factors'!$A$12,$F18-1,S$9) -> 0 | V18: =IF($D18=0,0,W18/$D18) -> 0 | W18: 0 | X18: =IF($D18=0,0,Y18/$D18) -> 0 | Y18: 0
B19: Subtotal | D19: =SUM(D14:D18) -> 0 | G19: =SUM(G14:G18) -> 0 | H19: =SUM(H14:H18) -> 0 | K19: =SUM(K14:K18) -> 0 | L19: 0 | M19: 0 | N19: 0 | O19: 0 | P19: 0 | Q19: 0 | R19: 0 | S19: =SUM(S14:S18) -> 0 | W19: =SUM(W14:W18) -> 0 | Y19: =SUM(Y14:Y18) -> 0
A21: B. LOCAL STORAGE
B22: Gas Holders Storage and Equipment | C22: 443 | D22: 19220.16578 | F22: 0 | G22: 0 | H22: =D22-G22 -> 19220.16578 | I22: STORDEHYX | J22: =MATCH(I22,'Functionalization Factors'!$A$12:$A$191,0) -> 9 | K22: =OFFSET('Functionalization Factors'!$A$12,$J22,K$9)*$H22+OFFSET('Functionalization Factors'!$A$12,$F22-1,K$9) -> 0 | L22: =OFFSET('Functionalization Factors'!$A$12,$J22,L$9)*$H22+OFFSET('Functionalization Factors'!$A$12,$F22-1,L$9) -> 0 | M22: =OFFSET('Functionalization Factors'!$A$12,$J22,M$9)*$H22+OFFSET('Functionalization Factors'!$A$12,$F22-1,M$9) -> 19220.16578 | N22: =OFFSET('Functionalization Factors'!$A$12,$J22,N$9)*$H22+OFFSET('Functionalization Factors'!$A$12,$F22-1,N$9) -> 0 | O22: =OFFSET('Functionalization Factors'!$A$12,$J22,O$9)*$H22+OFFSET('Functionalization Factors'!$A$12,$F22-1,O$9) -> 0 | P22: =OFFSET('Functionalization Factors'!$A$12,$J22,P$9)*$H22+OFFSET('Functionalization Factors'!$A$12,$F22-1,P$9) -> 0 | Q22: =OFFSET('Functionalization Factors'!$A$12,$J22,Q$9)*$H22+OFFSET('Functionalization Factors'!$A$12,$F22-1,Q$9) -> 0 | R22: =OFFSET('Functionalization Factors'!$A$12,$J22,R$9)*$H22+OFFSET('Functionalization Factors'!$A$12,$F22-1,R$9) -> 0 | S22: =OFFSET('Functionalization Factors'!$A$12,$J22,S$9)*$H22+OFFSET('Functionalization Factors'!$A$12,$F22-1,S$9) -> 0 | V22: =IF($D22=0,0,W22/$D22) -> 0.03283010184 | W22: 631 | X22: =IF($D22=0,0,Y22/$D22) -> 0.003039436249 | Y22: 58.41846858 | Z22: =IF(ABS(SUM(K22:S22)-D22)>1,"*****","") -> 
B23: Land | C23: 440 | D23: 7 | F23: 0 | G23: 0 | H23: =D23-G23 -> 7 | I23: STORDEHYX | J23: =MATCH(I23,'Functionalization Factors'!$A$12:$A$191,0) -> 9 | K23: =OFFSET('Functionalization Factors'!$A$12,$J23,K$9)*$H23+OFFSET('Functionalization Factors'!$A$12,$F23-1,K$9) -> 0 | L23: =OFFSET('Functionalization Factors'!$A$12,$J23,L$9)*$H23+OFFSET('Functionalization Factors'!$A$12,$F23-1,L$9) -> 0 | M23: =OFFSET('Functionalization Factors'!$A$12,$J23,M$9)*$H23+OFFSET('Functionalization Factors'!$A$12,$F23-1,M$9) -> 7 | N23: =OFFSET('Functionalization Factors'!$A$12,$J23,N$9)*$H23+OFFSET('Functionalization Factors'!$A$12,$F23-1,N$9) -> 0 | O23: =OFFSET('Functionalization Factors'!$A$12,$J23,O$9)*$H23+OFFSET('Functionalization Factors'!$A$12,$F23-1,O$9) -> 0 | P23: =OFFSET('Functionalization Factors'!$A$12,$J23,P$9)*$H23+OFFSET('Functionalization Factors'!$A$12,$F23-1,P$9) -> 0 | Q23: =OFFSET('Functionalization Factors'!$A$12,$J23,Q$9)*$H23+OFFSET('Functionalization Factors'!$A$12,$F23-1,Q$9) -> 0 | R23: =OFFSET('Functionalization Factors'!$A$12,$J23,R$9)*$H23+OFFSET('Functionalization Factors'!$A$12,$F23-1,R$9) -> 0 | S23: =OFFSET('Functionalization Factors'!$A$12,$J23,S$9)*$H23+OFFSET('Functionalization Factors'!$A$12,$F23-1,S$9) -> 0 | V23: =IF($D23=0,0,W23/$D23) -> 0 | W23: 0 | X23: =IF($D23=0,0,Y23/$D23) -> 0.2812590334 | Y23: 1.968813234
B24: Structures & Improvements | C24: 442 | D24: 3541.292552 | F24: 0 | G24: 0 | H24: =D24-G24 -> 3541.292552 | I24: STORDEHYX | J24: =MATCH(I24,'Functionalization Factors'!$A$12:$A$191,0) -> 9 | K24: =OFFSET('Functionalization Factors'!$A$12,$J24,K$9)*$H24+OFFSET('Functionalization Factors'!$A$12,$F24-1,K$9) -> 0 | L24: =OFFSET('Functionalization Factors'!$A$12,$J24,L$9)*$H24+OFFSET('Functionalization Factors'!$A$12,$F24-1,L$9) -> 0 | M24: =OFFSET('Functionalization Factors'!$A$12,$J24,M$9)*$H24+OFFSET('Functionalization Factors'!$A$12,$F24-1,M$9) -> 3541.292552 | N24: =OFFSET('Functionalization Factors'!$A$12,$J24,N$9)*$H24+OFFSET('Functionalization Factors'!$A$12,$F24-1,N$9) -> 0 | O24: =OFFSET('Functionalization Factors'!$A$12,$J24,O$9)*$H24+OFFSET('Functionalization Factors'!$A$12,$F24-1,O$9) -> 0 | P24: =OFFSET('Functionalization Factors'!$A$12,$J24,P$9)*$H24+OFFSET('Functionalization Factors'!$A$12,$F24-1,P$9) -> 0 | Q24: =OFFSET('Functionalization Factors'!$A$12,$J24,Q$9)*$H24+OFFSET('Functionalization Factors'!$A$12,$F24-1,Q$9) -> 0 | R24: =OFFSET('Functionalization Factors'!$A$12,$J24,R$9)*$H24+OFFSET('Functionalization Factors'!$A$12,$F24-1,R$9) -> 0 | S24: =OFFSET('Functionalization Factors'!$A$12,$J24,S$9)*$H24+OFFSET('Functionalization Factors'!$A$12,$F24-1,S$9) -> 0 | V24: =IF($D24=0,0,W24/$D24) -> 0.0290854253 | W24: 103 | X24: =IF($D24=0,0,Y24/$D24) -> 0.004664849785 | Y24: 16.5195978
B25: Other | C25: 444 | D25: 0 | F25: 0 | G25: 0 | H25: =D25-G25 -> 0 | I25: STORDEHYX | J25: =MATCH(I25,'Functionalization Factors'!$A$12:$A$191,0) -> 9 | K25: =OFFSET('Functionalization Factors'!$A$12,$J25,K$9)*$H25+OFFSET('Functionalization Factors'!$A$12,$F25-1,K$9) -> 0 | L25: =OFFSET('Functionalization Factors'!$A$12,$J25,L$9)*$H25+OFFSET('Functionalization Factors'!$A$12,$F25-1,L$9) -> 0 | M25: =OFFSET('Functionalization Factors'!$A$12,$J25,M$9)*$H25+OFFSET('Functionalization Factors'!$A$12,$F25-1,M$9) -> 0 | N25: =OFFSET('Functionalization Factors'!$A$12,$J25,N$9)*$H25+OFFSET('Functionalization Factors'!$A$12,$F25-1,N$9) -> 0 | O25: =OFFSET('Functionalization Factors'!$A$12,$J25,O$9)*$H25+OFFSET('Functionalization Factors'!$A$12,$F25-1,O$9) -> 0 | P25: =OFFSET('Functionalization Factors'!$A$12,$J25,P$9)*$H25+OFFSET('Functionalization Factors'!$A$12,$F25-1,P$9) -> 0 | Q25: =OFFSET('Functionalization Factors'!$A$12,$J25,Q$9)*$H25+OFFSET('Functionalization Factors'!$A$12,$F25-1,Q$9) -> 0 | R25: =OFFSET('Functionalization Factors'!$A$12,$J25,R$9)*$H25+OFFSET('Functionalization Factors'!$A$12,$F25-1,R$9) -> 0 | S25: =OFFSET('Functionalization Factors'!$A$12,$J25,S$9)*$H25+OFFSET('Functionalization Factors'!$A$12,$F25-1,S$9) -> 0 | V25: =IF($D25=0,0,W25/$D25) -> 0 | W25: 0 | X25: =IF($D25=0,0,Y25/$D25) -> 0 | Y25: 0
B26: Subtotal | D26: =SUM(D22:D25) -> 22768.45833 | G26: =SUM(G22:G25) -> 0 | H26: =SUM(H22:H25) -> 22768.45833 | K26: =SUM(K22:K25) -> 0 | L26: 0 | M26: 22768.45833 | N26: 0 | O26: 0 | P26: 0 | Q26: 0 | R26: 0 | S26: =SUM(S22:S25) -> 0 | W26: =SUM(W22:W25) -> 734 | Y26: =SUM(Y22:Y25) -> 76.90687961
A28: C. UNDERGROUND STORAGE
B29: Land | C29: 450 | D29: 3814.10069 | E29: STORLAND | F29: =MATCH(E29,'Functionalization Factors'!$A$12:$A$191,0) -> 153 | G29: =IF(F29<>0,OFFSET('Functionalization Factors'!$A$12,$F29,1),0) -> 811.53566 | H29: =D29-G29 -> 3002.56503 | I29: COMPRECL-PT | J29: =MATCH(I29,'Functionalization Factors'!$A$12:$A$191,0) -> 69 | K29: =OFFSET('Functionalization Factors'!$A$12,$J29,K$9)*$H29+OFFSET('Functionalization Factors'!$A$12,$F29-1,K$9) -> 0 | L29: =OFFSET('Functionalization Factors'!$A$12,$J29,L$9)*$H29+OFFSET('Functionalization Factors'!$A$12,$F29-1,L$9) -> 0 | M29: =OFFSET('Functionalization Factors'!$A$12,$J29,M$9)*$H29+OFFSET('Functionalization Factors'!$A$12,$F29-1,M$9) -> 2455.983458 | N29: =OFFSET('Functionalization Factors'!$A$12,$J29,N$9)*$H29+OFFSET('Functionalization Factors'!$A$12,$F29-1,N$9) -> 1260.461594 | O29: =OFFSET('Functionalization Factors'!$A$12,$J29,O$9)*$H29+OFFSET('Functionalization Factors'!$A$12,$F29-1,O$9) -> 0 | P29: =OFFSET('Functionalization Factors'!$A$12,$J29,P$9)*$H29+OFFSET('Functionalization Factors'!$A$12,$F29-1,P$9) -> 0 | Q29: =OFFSET('Functionalization Factors'!$A$12,$J29,Q$9)*$H29+OFFSET('Functionalization Factors'!$A$12,$F29-1,Q$9) -> 0 | R29: =OFFSET('Functionalization Factors'!$A$12,$J29,R$9)*$H29+OFFSET('Functionalization Factors'!$A$12,$F29-1,R$9) -> 97.65563874 | S29: =OFFSET('Functionalization Factors'!$A$12,$J29,S$9)*$H29+OFFSET('Functionalization Factors'!$A$12,$F29-1,S$9) -> 0 | V29: =IF($D29=0,0,W29/$D29) -> 0 | W29: 0 | X29: =IF($D29=0,0,Y29/$D29) -> 0.009474682744 | Y29: 36.13739399
B30: Land Rights | C30: 451 | D30: 32062.296 | F30: 0 | G30: 0 | H30: 32062.296 | I30: STORDEHYX | J30: =MATCH(I30,'Functionalization Factors'!$A$12:$A$191,0) -> 9 | K30: =OFFSET('Functionalization Factors'!$A$12,$J30,K$9)*$H30+OFFSET('Functionalization Factors'!$A$12,$F30-1,K$9) -> 0 | L30: =OFFSET('Functionalization Factors'!$A$12,$J30,L$9)*$H30+OFFSET('Functionalization Factors'!$A$12,$F30-1,L$9) -> 0 | M30: =OFFSET('Functionalization Factors'!$A$12,$J30,M$9)*$H30+OFFSET('Functionalization Factors'!$A$12,$F30-1,M$9) -> 32062.296 | N30: =OFFSET('Functionalization Factors'!$A$12,$J30,N$9)*$H30+OFFSET('Functionalization Factors'!$A$12,$F30-1,N$9) -> 0 | O30: =OFFSET('Functionalization Factors'!$A$12,$J30,O$9)*$H30+OFFSET('Functionalization Factors'!$A$12,$F30-1,O$9) -> 0 | P30: =OFFSET('Functionalization Factors'!$A$12,$J30,P$9)*$H30+OFFSET('Functionalization Factors'!$A$12,$F30-1,P$9) -> 0 | Q30: =OFFSET('Functionalization Factors'!$A$12,$J30,Q$9)*$H30+OFFSET('Functionalization Factors'!$A$12,$F30-1,Q$9) -> 0 | R30: =OFFSET('Functionalization Factors'!$A$12,$J30,R$9)*$H30+OFFSET('Functionalization Factors'!$A$12,$F30-1,R$9) -> 0 | S30: =OFFSET('Functionalization Factors'!$A$12,$J30,S$9)*$H30+OFFSET('Functionalization Factors'!$A$12,$F30-1,S$9) -> 0 | V30: 0.02099038696 | W30: 673 | X30: 0 | Y30: 0
B31: Structures & Improvements | C31: 452 | D31: 48848.22558 | E31: STORS&I | F31: =MATCH(E31,'Functionalization Factors'!$A$12:$A$191,0) -> 24 | G31: =IF(F31<>0,OFFSET('Functionalization Factors'!$A$12,$F31,1),0) -> 13961.15437 | H31: =D31-G31 -> 34887.07122 | I31: COMPRECL-PT | J31: =MATCH(I31,'Functionalization Factors'!$A$12:$A$191,0) -> 69 | K31: =OFFSET('Functionalization Factors'!$A$12,$J31,K$9)*$H31+OFFSET('Functionalization Factors'!$A$12,$F31-1,K$9) -> 0 | L31: =OFFSET('Functionalization Factors'!$A$12,$J31,L$9)*$H31+OFFSET('Functionalization Factors'!$A$12,$F31-1,L$9) -> 0 | M31: =OFFSET('Functionalization Factors'!$A$12,$J31,M$9)*$H31+OFFSET('Functionalization Factors'!$A$12,$F31-1,M$9) -> 21771.89818 | N31: =OFFSET('Functionalization Factors'!$A$12,$J31,N$9)*$H31+OFFSET('Functionalization Factors'!$A$12,$F31-1,N$9) -> 25287.04582 | O31: =OFFSET('Functionalization Factors'!$A$12,$J31,O$9)*$H31+OFFSET('Functionalization Factors'!$A$12,$F31-1,O$9) -> 654.612 | P31: =OFFSET('Functionalization Factors'!$A$12,$J31,P$9)*$H31+OFFSET('Functionalization Factors'!$A$12,$F31-1,P$9) -> 0 | Q31: =OFFSET('Functionalization Factors'!$A$12,$J31,Q$9)*$H31+OFFSET('Functionalization Factors'!$A$12,$F31-1,Q$9) -> 0 | R31: =OFFSET('Functionalization Factors'!$A$12,$J31,R$9)*$H31+OFFSET('Functionalization Factors'!$A$12,$F31-1,R$9) -> 1134.669587 | S31: =OFFSET('Functionalization Factors'!$A$12,$J31,S$9)*$H31+OFFSET('Functionalization Factors'!$A$12,$F31-1,S$9) -> 0 | V31: 0.02493381074 | W31: 1217.972411 | X31: 0.004378781266 | Y31: 213.895695
B32: Wells and Lines | C32: 453/4/5 | D32: 91465.0155 | F32: 0 | G32: 0 | H32: =D32-G32 -> 91465.0155 | I32: STORDEHYX | J32: =MATCH(I32,'Functionalization Factors'!$A$12:$A$191,0) -> 9 | K32: =OFFSET('Functionalization Factors'!$A$12,$J32,K$9)*$H32+OFFSET('Functionalization Factors'!$A$12,$F32-1,K$9) -> 0 | L32: =OFFSET('Functionalization Factors'!$A$12,$J32,L$9)*$H32+OFFSET('Functionalization Factors'!$A$12,$F32-1,L$9) -> 0 | M32: =OFFSET('Functionalization Factors'!$A$12,$J32,M$9)*$H32+OFFSET('Functionalization Factors'!$A$12,$F32-1,M$9) -> 91465.0155 | N32: =OFFSET('Functionalization Factors'!$A$12,$J32,N$9)*$H32+OFFSET('Functionalization Factors'!$A$12,$F32-1,N$9) -> 0 | O32: =OFFSET('Functionalization Factors'!$A$12,$J32,O$9)*$H32+OFFSET('Functionalization Factors'!$A$12,$F32-1,O$9) -> 0 | P32: =OFFSET('Functionalization Factors'!$A$12,$J32,P$9)*$H32+OFFSET('Functionalization Factors'!$A$12,$F32-1,P$9) -> 0 | Q32: =OFFSET('Functionalization Factors'!$A$12,$J32,Q$9)*$H32+OFFSET('Functionalization Factors'!$A$12,$F32-1,Q$9) -> 0 | R32: =OFFSET('Functionalization Factors'!$A$12,$J32,R$9)*$H32+OFFSET('Functionalization Factors'!$A$12,$F32-1,R$9) -> 0 | S32: =OFFSET('Functionalization Factors'!$A$12,$J32,S$9)*$H32+OFFSET('Functionalization Factors'!$A$12,$F32-1,S$9) -> 0 | V32: 0.02487289799 | W32: 2275 | X32: 0.006749942874 | Y32: 617.3836296
B33: Measuring and Regulating | C33: 457 | D33: 55790.37404 | E33: STORM&R | F33: =MATCH(E33,'Functionalization Factors'!$A$12:$A$191,0) -> 27 | G33: =IF(F33<>0,OFFSET('Functionalization Factors'!$A$12,$F33,1),0) -> 38018.31542 | H33: 17772.05862 | I33: M&RRECL-PT | J33: =MATCH(I33,'Functionalization Factors'!$A$12:$A$191,0) -> 66 | K33: =OFFSET('Functionalization Factors'!$A$12,$J33,K$9)*$H33+OFFSET('Functionalization Factors'!$A$12,$F33-1,K$9) -> 0 | L33: =OFFSET('Functionalization Factors'!$A$12,$J33,L$9)*$H33+OFFSET('Functionalization Factors'!$A$12,$F33-1,L$9) -> 0 | M33: =OFFSET('Functionalization Factors'!$A$12,$J33,M$9)*$H33+OFFSET('Functionalization Factors'!$A$12,$F33-1,M$9) -> 23557.82465 | N33: =OFFSET('Functionalization Factors'!$A$12,$J33,N$9)*$H33+OFFSET('Functionalization Factors'!$A$12,$F33-1,N$9) -> 15400.87226 | O33: =OFFSET('Functionalization Factors'!$A$12,$J33,O$9)*$H33+OFFSET('Functionalization Factors'!$A$12,$F33-1,O$9) -> 16554.04364 | P33: =OFFSET('Functionalization Factors'!$A$12,$J33,P$9)*$H33+OFFSET('Functionalization Factors'!$A$12,$F33-1,P$9) -> 0 | Q33: =OFFSET('Functionalization Factors'!$A$12,$J33,Q$9)*$H33+OFFSET('Functionalization Factors'!$A$12,$F33-1,Q$9) -> 0 | R33: =OFFSET('Functionalization Factors'!$A$12,$J33,R$9)*$H33+OFFSET('Functionalization Factors'!$A$12,$F33-1,R$9) -> 277.6334914 | S33: =OFFSET('Functionalization Factors'!$A$12,$J33,S$9)*$H33+OFFSET('Functionalization Factors'!$A$12,$F33-1,S$9) -> 0 | V33: 0.03071011121 | W33: 1713.328591 | X33: 0 | Y33: 0
B34: Base Pressure Gas | C34: 458 | D34: 35204.078 | F34: 0 | G34: 0 | H34: 35204.078 | I34: STORDEHYX | J34: =MATCH(I34,'Functionalization Factors'!$A$12:$A$191,0) -> 9 | K34: =OFFSET('Functionalization Factors'!$A$12,$J34,K$9)*$H34+OFFSET('Functionalization Factors'!$A$12,$F34-1,K$9) -> 0 | L34: =OFFSET('Functionalization Factors'!$A$12,$J34,L$9)*$H34+OFFSET('Functionalization Factors'!$A$12,$F34-1,L$9) -> 0 | M34: =OFFSET('Functionalization Factors'!$A$12,$J34,M$9)*$H34+OFFSET('Functionalization Factors'!$A$12,$F34-1,M$9) -> 35204.078 | N34: =OFFSET('Functionalization Factors'!$A$12,$J34,N$9)*$H34+OFFSET('Functionalization Factors'!$A$12,$F34-1,N$9) -> 0 | O34: =OFFSET('Functionalization Factors'!$A$12,$J34,O$9)*$H34+OFFSET('Functionalization Factors'!$A$12,$F34-1,O$9) -> 0 | P34: =OFFSET('Functionalization Factors'!$A$12,$J34,P$9)*$H34+OFFSET('Functionalization Factors'!$A$12,$F34-1,P$9) -> 0 | Q34: =OFFSET('Functionalization Factors'!$A$12,$J34,Q$9)*$H34+OFFSET('Functionalization Factors'!$A$12,$F34-1,Q$9) -> 0 | R34: =OFFSET('Functionalization Factors'!$A$12,$J34,R$9)*$H34+OFFSET('Functionalization Factors'!$A$12,$F34-1,R$9) -> 0 | S34: =OFFSET('Functionalization Factors'!$A$12,$J34,S$9)*$H34+OFFSET('Functionalization Factors'!$A$12,$F34-1,S$9) -> 0 | V34: 0 | W34: 0 | X34: 0 | Y34: 0
B35: Compressor Equipment | C35: 456 | D35: 239970.0126 | E35: STORCOMP | F35: =MATCH(E35,'Functionalization Factors'!$A$12:$A$191,0) -> 30 | G35: =IF(F35<>0,OFFSET('Functionalization Factors'!$A$12,$F35,1),0) -> 46488.15499 | H35: 193481.8576 | I35: COMPRECL-PT | J35: =MATCH(I35,'Functionalization Factors'!$A$12:$A$191,0) -> 69 | K35: =OFFSET('Functionalization Factors'!$A$12,$J35,K$9)*$H35+OFFSET('Functionalization Factors'!$A$12,$F35-1,K$9) -> 0 | L35: =OFFSET('Functionalization Factors'!$A$12,$J35,L$9)*$H35+OFFSET('Functionalization Factors'!$A$12,$F35-1,L$9) -> 0 | M35: =OFFSET('Functionalization Factors'!$A$12,$J35,M$9)*$H35+OFFSET('Functionalization Factors'!$A$12,$F35-1,M$9) -> 122444.772 | N35: =OFFSET('Functionalization Factors'!$A$12,$J35,N$9)*$H35+OFFSET('Functionalization Factors'!$A$12,$F35-1,N$9) -> 108335.8029 | O35: =OFFSET('Functionalization Factors'!$A$12,$J35,O$9)*$H35+OFFSET('Functionalization Factors'!$A$12,$F35-1,O$9) -> 2896.62 | P35: =OFFSET('Functionalization Factors'!$A$12,$J35,P$9)*$H35+OFFSET('Functionalization Factors'!$A$12,$F35-1,P$9) -> 0 | Q35: =OFFSET('Functionalization Factors'!$A$12,$J35,Q$9)*$H35+OFFSET('Functionalization Factors'!$A$12,$F35-1,Q$9) -> 0 | R35: =OFFSET('Functionalization Factors'!$A$12,$J35,R$9)*$H35+OFFSET('Functionalization Factors'!$A$12,$F35-1,R$9) -> 6292.817707 | S35: =OFFSET('Functionalization Factors'!$A$12,$J35,S$9)*$H35+OFFSET('Functionalization Factors'!$A$12,$F35-1,S$9) -> 0 | V35: 0.02682335747 | W35: 6436.801429 | X35: 0.004820254555 | Y35: 1156.716546
B36: Other | C36: 459 | D36: 9707.858 | E36: STOROTHER | F36: =MATCH(E36,'Functionalization Factors'!$A$12:$A$191,0) -> 33 | G36: =IF(F36<>0,OFFSET('Functionalization Factors'!$A$12,$F36,1),0) -> 2301.53328 | H36: 7406.32472 | I36: STORDEHY | J36: =MATCH(I36,'Functionalization Factors'!$A$12:$A$191,0) -> 6 | K36: =OFFSET('Functionalization Factors'!$A$12,$J36,K$9)*$H36+OFFSET('Functionalization Factors'!$A$12,$F36-1,K$9) -> 0 | L36: =OFFSET('Functionalization Factors'!$A$12,$J36,L$9)*$H36+OFFSET('Functionalization Factors'!$A$12,$F36-1,L$9) -> 7406.32472 | M36: =OFFSET('Functionalization Factors'!$A$12,$J36,M$9)*$H36+OFFSET('Functionalization Factors'!$A$12,$F36-1,M$9) -> 0 | N36: =OFFSET('Functionalization Factors'!$A$12,$J36,N$9)*$H36+OFFSET('Functionalization Factors'!$A$12,$F36-1,N$9) -> 2301.53328 | O36: =OFFSET('Functionalization Factors'!$A$12,$J36,O$9)*$H36+OFFSET('Functionalization Factors'!$A$12,$F36-1,O$9) -> 0 | P36: =OFFSET('Functionalization Factors'!$A$12,$J36,P$9)*$H36+OFFSET('Functionalization Factors'!$A$12,$F36-1,P$9) -> 0 | Q36: =OFFSET('Functionalization Factors'!$A$12,$J36,Q$9)*$H36+OFFSET('Functionalization Factors'!$A$12,$F36-1,Q$9) -> 0 | R36: =OFFSET('Functionalization Factors'!$A$12,$J36,R$9)*$H36+OFFSET('Functionalization Factors'!$A$12,$F36-1,R$9) -> 0 | S36: =OFFSET('Functionalization Factors'!$A$12,$J36,S$9)*$H36+OFFSET('Functionalization Factors'!$A$12,$F36-1,S$9) -> 0 | V36: 0.06769688167 | W36: 657.1917143 | X36: 0 | Y36: 0
B37: Subtotal | D37: =SUM(D29:D36) -> 516861.9604 | G37: =SUM(G29:G36) -> 101580.6937 | H37: =SUM(H29:H36) -> 415281.2667 | K37: =SUM(K29:K36) -> 0 | L37: 7406.32472 | M37: 328961.8677 | N37: 152585.7159 | O37: 20105.27564 | P37: 0 | Q37: 0 | R37: 7802.776425 | S37: 0 | W37: =SUM(W29:W36) -> 12973.29415 | Y37: =SUM(Y29:Y36) -> 2024.133265
A39: D. TRANSMISSION | AA39: Transmission Details
B40: Land | C40: 460 | D40: 25014.08333 | E40: TRANSLAND | F40: =MATCH(E40,'Functionalization Factors'!$A$12:$A$191,0) -> 42 | G40: =IF(F40<>0,OFFSET('Functionalization Factors'!$A$12,$F40,1),0) -> 20568.15667 | H40: =D40-G40 -> 4445.926663 | I40: OTHERTRANS | J40: =MATCH(I40,'Functionalization Factors'!$A$12:$A$191,0) -> 15 | K40: =OFFSET('Functionalization Factors'!$A$12,$J40,K$9)*$H40+OFFSET('Functionalization Factors'!$A$12,$F40-1,K$9) -> 0 | L40: =OFFSET('Functionalization Factors'!$A$12,$J40,L$9)*$H40+OFFSET('Functionalization Factors'!$A$12,$F40-1,L$9) -> 0 | M40: =OFFSET('Functionalization Factors'!$A$12,$J40,M$9)*$H40+OFFSET('Functionalization Factors'!$A$12,$F40-1,M$9) -> 0 | N40: =OFFSET('Functionalization Factors'!$A$12,$J40,N$9)*$H40+OFFSET('Functionalization Factors'!$A$12,$F40-1,N$9) -> 0 | O40: =OFFSET('Functionalization Factors'!$A$12,$J40,O$9)*$H40+OFFSET('Functionalization Factors'!$A$12,$F40-1,O$9) -> 19969.523 | P40: =OFFSET('Functionalization Factors'!$A$12,$J40,P$9)*$H40+OFFSET('Functionalization Factors'!$A$12,$F40-1,P$9) -> 0 | Q40: =OFFSET('Functionalization Factors'!$A$12,$J40,Q$9)*$H40+OFFSET('Functionalization Factors'!$A$12,$F40-1,Q$9) -> 4445.926663 | R40: =OFFSET('Functionalization Factors'!$A$12,$J40,R$9)*$H40+OFFSET('Functionalization Factors'!$A$12,$F40-1,R$9) -> 598.63367 | S40: =OFFSET('Functionalization Factors'!$A$12,$J40,S$9)*$H40+OFFSET('Functionalization Factors'!$A$12,$F40-1,S$9) -> 0 | V40: =IF($D40=0,0,W40/$D40) -> 0 | W40: 0 | X40: =IF($D40=0,0,Y40/$D40) -> 0.01399438735 | Y40: 350.0567714 | AA40: Dawn Traf East | AB40: 15153.68015
B41: Land Rights | C41: 461 | D41: 37875.04167 | E41: TRANSLANDRGT | F41: =MATCH(E41,'Functionalization Factors'!$A$12:$A$191,0) -> 45 | G41: =IF(F41<>0,OFFSET('Functionalization Factors'!$A$12,$F41,1),0) -> 30962.82138 | H41: 6912.220287 | I41: OTHERTRANS | J41: =MATCH(I41,'Functionalization Factors'!$A$12:$A$191,0) -> 15 | K41: =OFFSET('Functionalization Factors'!$A$12,$J41,K$9)*$H41+OFFSET('Functionalization Factors'!$A$12,$F41-1,K$9) -> 0 | L41: =OFFSET('Functionalization Factors'!$A$12,$J41,L$9)*$H41+OFFSET('Functionalization Factors'!$A$12,$F41-1,L$9) -> 0 | M41: =OFFSET('Functionalization Factors'!$A$12,$J41,M$9)*$H41+OFFSET('Functionalization Factors'!$A$12,$F41-1,M$9) -> 0 | N41: =OFFSET('Functionalization Factors'!$A$12,$J41,N$9)*$H41+OFFSET('Functionalization Factors'!$A$12,$F41-1,N$9) -> 0 | O41: =OFFSET('Functionalization Factors'!$A$12,$J41,O$9)*$H41+OFFSET('Functionalization Factors'!$A$12,$F41-1,O$9) -> 29611.11 | P41: =OFFSET('Functionalization Factors'!$A$12,$J41,P$9)*$H41+OFFSET('Functionalization Factors'!$A$12,$F41-1,P$9) -> 0 | Q41: =OFFSET('Functionalization Factors'!$A$12,$J41,Q$9)*$H41+OFFSET('Functionalization Factors'!$A$12,$F41-1,Q$9) -> 6912.220287 | R41: =OFFSET('Functionalization Factors'!$A$12,$J41,R$9)*$H41+OFFSET('Functionalization Factors'!$A$12,$F41-1,R$9) -> 1351.711379 | S41: =OFFSET('Functionalization Factors'!$A$12,$J41,S$9)*$H41+OFFSET('Functionalization Factors'!$A$12,$F41-1,S$9) -> 0 | V41: =IF($D41=0,0,W41/$D41) -> 0.01758413907 | W41: 666 | X41: 0 | Y41: 0
B42: Mains | C42: 465 | D42: 1085372.503 | E42: TRANSMAINS | F42: =MATCH(E42,'Functionalization Factors'!$A$12:$A$191,0) -> 48 | G42: =IF(F42<>0,OFFSET('Functionalization Factors'!$A$12,$F42,1),0) -> 864512.8562 | H42: 220859.6463 | I42: OTHERTRANS | J42: =MATCH(I42,'Functionalization Factors'!$A$12:$A$191,0) -> 15 | K42: =OFFSET('Functionalization Factors'!$A$12,$J42,K$9)*$H42+OFFSET('Functionalization Factors'!$A$12,$F42-1,K$9) -> 0 | L42: =OFFSET('Functionalization Factors'!$A$12,$J42,L$9)*$H42+OFFSET('Functionalization Factors'!$A$12,$F42-1,L$9) -> 0 | M42: =OFFSET('Functionalization Factors'!$A$12,$J42,M$9)*$H42+OFFSET('Functionalization Factors'!$A$12,$F42-1,M$9) -> 0 | N42: =OFFSET('Functionalization Factors'!$A$12,$J42,N$9)*$H42+OFFSET('Functionalization Factors'!$A$12,$F42-1,N$9) -> 0 | O42: =OFFSET('Functionalization Factors'!$A$12,$J42,O$9)*$H42+OFFSET('Functionalization Factors'!$A$12,$F42-1,O$9) -> 826697.3195 | P42: =OFFSET('Functionalization Factors'!$A$12,$J42,P$9)*$H42+OFFSET('Functionalization Factors'!$A$12,$F42-1,P$9) -> 0 | Q42: =OFFSET('Functionalization Factors'!$A$12,$J42,Q$9)*$H42+OFFSET('Functionalization Factors'!$A$12,$F42-1,Q$9) -> 220859.6463 | R42: =OFFSET('Functionalization Factors'!$A$12,$J42,R$9)*$H42+OFFSET('Functionalization Factors'!$A$12,$F42-1,R$9) -> 37815.53666 | S42: =OFFSET('Functionalization Factors'!$A$12,$J42,S$9)*$H42+OFFSET('Functionalization Factors'!$A$12,$F42-1,S$9) -> 0 | V42: 0.02001893355 | W42: 21728 | X42: 0.01846957608 | Y42: 20046.37001 | AA42: Other Trans | AB42: 6191.068006
B43: Compressor Equipment | C43: 466 | D43: 360323.9495 | E43: TRANSCOMPEQ | F43: =MATCH(E43,'Functionalization Factors'!$A$12:$A$191,0) -> 51 | G43: =IF(F43<>0,OFFSET('Functionalization Factors'!$A$12,$F43,1),0) -> 350233.0934 | H43: 10090.8561 | I43: OTHERTRANS | J43: =MATCH(I43,'Functionalization Factors'!$A$12:$A$191,0) -> 15 | K43: =OFFSET('Functionalization Factors'!$A$12,$J43,K$9)*$H43+OFFSET('Functionalization Factors'!$A$12,$F43-1,K$9) -> 0 | L43: =OFFSET('Functionalization Factors'!$A$12,$J43,L$9)*$H43+OFFSET('Functionalization Factors'!$A$12,$F43-1,L$9) -> 0 | M43: =OFFSET('Functionalization Factors'!$A$12,$J43,M$9)*$H43+OFFSET('Functionalization Factors'!$A$12,$F43-1,M$9) -> 0 | N43: =OFFSET('Functionalization Factors'!$A$12,$J43,N$9)*$H43+OFFSET('Functionalization Factors'!$A$12,$F43-1,N$9) -> 0 | O43: =OFFSET('Functionalization Factors'!$A$12,$J43,O$9)*$H43+OFFSET('Functionalization Factors'!$A$12,$F43-1,O$9) -> 345384.4014 | P43: =OFFSET('Functionalization Factors'!$A$12,$J43,P$9)*$H43+OFFSET('Functionalization Factors'!$A$12,$F43-1,P$9) -> 0 | Q43: =OFFSET('Functionalization Factors'!$A$12,$J43,Q$9)*$H43+OFFSET('Functionalization Factors'!$A$12,$F43-1,Q$9) -> 10090.8561 | R43: =OFFSET('Functionalization Factors'!$A$12,$J43,R$9)*$H43+OFFSET('Functionalization Factors'!$A$12,$F43-1,R$9) -> 4848.692 | S43: =OFFSET('Functionalization Factors'!$A$12,$J43,S$9)*$H43+OFFSET('Functionalization Factors'!$A$12,$F43-1,S$9) -> 0 | V43: 0.03167705065 | W43: 11414 | X43: 0.005005882399 | Y43: 1803.739317
B44: Measuring and Regulating | C44: 467 | D44: 164681.2959 | E44: TRANSM&R | F44: =MATCH(E44,'Functionalization Factors'!$A$12:$A$191,0) -> 54 | G44: =IF(F44<>0,OFFSET('Functionalization Factors'!$A$12,$F44,1),0) -> 61372.39769 | H44: 103308.8982 | I44: OTHERTRANS | J44: =MATCH(I44,'Functionalization Factors'!$A$12:$A$191,0) -> 15 | K44: =OFFSET('Functionalization Factors'!$A$12,$J44,K$9)*$H44+OFFSET('Functionalization Factors'!$A$12,$F44-1,K$9) -> 0 | L44: =OFFSET('Functionalization Factors'!$A$12,$J44,L$9)*$H44+OFFSET('Functionalization Factors'!$A$12,$F44-1,L$9) -> 0 | M44: =OFFSET('Functionalization Factors'!$A$12,$J44,M$9)*$H44+OFFSET('Functionalization Factors'!$A$12,$F44-1,M$9) -> 0 | N44: =OFFSET('Functionalization Factors'!$A$12,$J44,N$9)*$H44+OFFSET('Functionalization Factors'!$A$12,$F44-1,N$9) -> 0 | O44: =OFFSET('Functionalization Factors'!$A$12,$J44,O$9)*$H44+OFFSET('Functionalization Factors'!$A$12,$F44-1,O$9) -> 53504.05508 | P44: =OFFSET('Functionalization Factors'!$A$12,$J44,P$9)*$H44+OFFSET('Functionalization Factors'!$A$12,$F44-1,P$9) -> 0 | Q44: =OFFSET('Functionalization Factors'!$A$12,$J44,Q$9)*$H44+OFFSET('Functionalization Factors'!$A$12,$F44-1,Q$9) -> 103308.8982 | R44: =OFFSET('Functionalization Factors'!$A$12,$J44,R$9)*$H44+OFFSET('Functionalization Factors'!$A$12,$F44-1,R$9) -> 7868.342609 | S44: =OFFSET('Functionalization Factors'!$A$12,$J44,S$9)*$H44+OFFSET('Functionalization Factors'!$A$12,$F44-1,S$9) -> 0 | V44: 0.0262843102 | W44: 4328.534266 | X44: 0 | Y44: 0 | AA44: O/SC | AB44: 1018.607988
B45: Structures & Improvements | C45: 462 | D45: 53924.31905 | E45: TRANSS&I | F45: =MATCH(E45,'Functionalization Factors'!$A$12:$A$191,0) -> 57 | G45: =IF(F45<>0,OFFSET('Functionalization Factors'!$A$12,$F45,1),0) -> 45288.80626 | H45: 8635.512784 | I45: OTHERTRANS | J45: =MATCH(I45,'Functionalization Factors'!$A$12:$A$191,0) -> 15 | K45: =OFFSET('Functionalization Factors'!$A$12,$J45,K$9)*$H45+OFFSET('Functionalization Factors'!$A$12,$F45-1,K$9) -> 0 | L45: =OFFSET('Functionalization Factors'!$A$12,$J45,L$9)*$H45+OFFSET('Functionalization Factors'!$A$12,$F45-1,L$9) -> 0 | M45: =OFFSET('Functionalization Factors'!$A$12,$J45,M$9)*$H45+OFFSET('Functionalization Factors'!$A$12,$F45-1,M$9) -> 0 | N45: =OFFSET('Functionalization Factors'!$A$12,$J45,N$9)*$H45+OFFSET('Functionalization Factors'!$A$12,$F45-1,N$9) -> 0 | O45: =OFFSET('Functionalization Factors'!$A$12,$J45,O$9)*$H45+OFFSET('Functionalization Factors'!$A$12,$F45-1,O$9) -> 44088.41312 | P45: =OFFSET('Functionalization Factors'!$A$12,$J45,P$9)*$H45+OFFSET('Functionalization Factors'!$A$12,$F45-1,P$9) -> 0 | Q45: =OFFSET('Functionalization Factors'!$A$12,$J45,Q$9)*$H45+OFFSET('Functionalization Factors'!$A$12,$F45-1,Q$9) -> 8635.512784 | R45: =OFFSET('Functionalization Factors'!$A$12,$J45,R$9)*$H45+OFFSET('Functionalization Factors'!$A$12,$F45-1,R$9) -> 1200.39314 | S45: =OFFSET('Functionalization Factors'!$A$12,$J45,S$9)*$H45+OFFSET('Functionalization Factors'!$A$12,$F45-1,S$9) -> 0 | V45: 0.02045777504 | W45: 1103.171589 | X45: 0.00302627909 | Y45: 163.1900392
B46: Other | C46: 469 | D46: 0 | F46: 0 | G46: 0 | H46: 0 | I46: OTHERTRANS | J46: =MATCH(I46,'Functionalization Factors'!$A$12:$A$191,0) -> 15 | K46: =OFFSET('Functionalization Factors'!$A$12,$J46,K$9)*$H46+OFFSET('Functionalization Factors'!$A$12,$F46-1,K$9) -> 0 | L46: =OFFSET('Functionalization Factors'!$A$12,$J46,L$9)*$H46+OFFSET('Functionalization Factors'!$A$12,$F46-1,L$9) -> 0 | M46: =OFFSET('Functionalization Factors'!$A$12,$J46,M$9)*$H46+OFFSET('Functionalization Factors'!$A$12,$F46-1,M$9) -> 0 | N46: =OFFSET('Functionalization Factors'!$A$12,$J46,N$9)*$H46+OFFSET('Functionalization Factors'!$A$12,$F46-1,N$9) -> 0 | O46: =OFFSET('Functionalization Factors'!$A$12,$J46,O$9)*$H46+OFFSET('Functionalization Factors'!$A$12,$F46-1,O$9) -> 0 | P46: =OFFSET('Functionalization Factors'!$A$12,$J46,P$9)*$H46+OFFSET('Functionalization Factors'!$A$12,$F46-1,P$9) -> 0 | Q46: =OFFSET('Functionalization Factors'!$A$12,$J46,Q$9)*$H46+OFFSET('Functionalization Factors'!$A$12,$F46-1,Q$9) -> 0 | R46: =OFFSET('Functionalization Factors'!$A$12,$J46,R$9)*$H46+OFFSET('Functionalization Factors'!$A$12,$F46-1,R$9) -> 0 | S46: =OFFSET('Functionalization Factors'!$A$12,$J46,S$9)*$H46+OFFSET('Functionalization Factors'!$A$12,$F46-1,S$9) -> 0 | V46: 0 | W46: 0 | X46: 0 | Y46: 0
B47: Subtotal | D47: =SUM(D40:D46) -> 1727191.192 | G47: =SUM(G40:G46) -> 1372938.132 | H47: =SUM(H40:H46) -> 354253.0604 | K47: =SUM(K40:K46) -> 0 | L47: 0 | M47: 0 | N47: =SUM(N40:N46) -> 0 | O47: =SUM(O40:O46) -> 1319254.822 | P47: 0 | Q47: =SUM(Q40:Q46) -> 354253.0604 | R47: =SUM(R40:R46) -> 53683.30946 | S47: =SUM(S40:S46) -> 0 | W47: =SUM(W40:W46) -> 39239.70585 | Y47: =SUM(Y40:Y46) -> 22363.35614 | Z47: =IF(ABS(SUM(K47:S47)-D47)>1,"*****","") -> 
A49: E. DISTRIBUTION (Southern Ontario)
B50: Land | C50: 470 | D50: 7778.916667 | F50: 0 | G50: 0 | H50: =D50-G50 -> 7778.916667 | I50: DIST | J50: =MATCH(I50,'Functionalization Factors'!$A$12:$A$191,0) -> 18 | K50: =OFFSET('Functionalization Factors'!$A$12,$J50,K$9)*$H50+OFFSET('Functionalization Factors'!$A$12,$F50-1,K$9) -> 0 | L50: =OFFSET('Functionalization Factors'!$A$12,$J50,L$9)*$H50+OFFSET('Functionalization Factors'!$A$12,$F50-1,L$9) -> 0 | M50: =OFFSET('Functionalization Factors'!$A$12,$J50,M$9)*$H50+OFFSET('Functionalization Factors'!$A$12,$F50-1,M$9) -> 0 | N50: =OFFSET('Functionalization Factors'!$A$12,$J50,N$9)*$H50+OFFSET('Functionalization Factors'!$A$12,$F50-1,N$9) -> 0 | O50: =OFFSET('Functionalization Factors'!$A$12,$J50,O$9)*$H50+OFFSET('Functionalization Factors'!$A$12,$F50-1,O$9) -> 0 | P50: =OFFSET('Functionalization Factors'!$A$12,$J50,P$9)*$H50+OFFSET('Functionalization Factors'!$A$12,$F50-1,P$9) -> 0 | Q50: =OFFSET('Functionalization Factors'!$A$12,$J50,Q$9)*$H50+OFFSET('Functionalization Factors'!$A$12,$F50-1,Q$9) -> 0 | R50: =OFFSET('Functionalization Factors'!$A$12,$J50,R$9)*$H50+OFFSET('Functionalization Factors'!$A$12,$F50-1,R$9) -> 0 | S50: =OFFSET('Functionalization Factors'!$A$12,$J50,S$9)*$H50+OFFSET('Functionalization Factors'!$A$12,$F50-1,S$9) -> 7778.916667 | V50: =IF($D50=0,0,W50/$D50) -> 0 | W50: 0 | X50: =IF($D50=0,0,Y50/$D50) -> 0.1844016378 | Y50: 1434.444973
B51: Land Rights | C51: 471 | D51: 7538.125 | F51: 0 | G51: 0 | H51: =D51-G51 -> 7538.125 | I51: DIST | J51: =MATCH(I51,'Functionalization Factors'!$A$12:$A$191,0) -> 18 | K51: =OFFSET('Functionalization Factors'!$A$12,$J51,K$9)*$H51+OFFSET('Functionalization Factors'!$A$12,$F51-1,K$9) -> 0 | L51: =OFFSET('Functionalization Factors'!$A$12,$J51,L$9)*$H51+OFFSET('Functionalization Factors'!$A$12,$F51-1,L$9) -> 0 | M51: =OFFSET('Functionalization Factors'!$A$12,$J51,M$9)*$H51+OFFSET('Functionalization Factors'!$A$12,$F51-1,M$9) -> 0 | N51: =OFFSET('Functionalization Factors'!$A$12,$J51,N$9)*$H51+OFFSET('Functionalization Factors'!$A$12,$F51-1,N$9) -> 0 | O51: =OFFSET('Functionalization Factors'!$A$12,$J51,O$9)*$H51+OFFSET('Functionalization Factors'!$A$12,$F51-1,O$9) -> 0 | P51: =OFFSET('Functionalization Factors'!$A$12,$J51,P$9)*$H51+OFFSET('Functionalization Factors'!$A$12,$F51-1,P$9) -> 0 | Q51: =OFFSET('Functionalization Factors'!$A$12,$J51,Q$9)*$H51+OFFSET('Functionalization Factors'!$A$12,$F51-1,Q$9) -> 0 | R51: =OFFSET('Functionalization Factors'!$A$12,$J51,R$9)*$H51+OFFSET('Functionalization Factors'!$A$12,$F51-1,R$9) -> 0 | S51: =OFFSET('Functionalization Factors'!$A$12,$J51,S$9)*$H51+OFFSET('Functionalization Factors'!$A$12,$F51-1,S$9) -> 7538.125 | V51: =IF($D51=0,0,W51/$D51) -> 0.01658237294 | W51: 125 | X51: =IF($D51=0,0,Y51/$D51) -> 0 | Y51: 0
B52: Mains | C52: 475.1 | D52: 960195.2293 | F52: 0 | G52: 0 | H52: =D52-G52 -> 960195.2293 | I52: DIST | J52: =MATCH(I52,'Functionalization Factors'!$A$12:$A$191,0) -> 18 | K52: =OFFSET('Functionalization Factors'!$A$12,$J52,K$9)*$H52+OFFSET('Functionalization Factors'!$A$12,$F52-1,K$9) -> 0 | L52: =OFFSET('Functionalization Factors'!$A$12,$J52,L$9)*$H52+OFFSET('Functionalization Factors'!$A$12,$F52-1,L$9) -> 0 | M52: =OFFSET('Functionalization Factors'!$A$12,$J52,M$9)*$H52+OFFSET('Functionalization Factors'!$A$12,$F52-1,M$9) -> 0 | N52: =OFFSET('Functionalization Factors'!$A$12,$J52,N$9)*$H52+OFFSET('Functionalization Factors'!$A$12,$F52-1,N$9) -> 0 | O52: =OFFSET('Functionalization Factors'!$A$12,$J52,O$9)*$H52+OFFSET('Functionalization Factors'!$A$12,$F52-1,O$9) -> 0 | P52: =OFFSET('Functionalization Factors'!$A$12,$J52,P$9)*$H52+OFFSET('Functionalization Factors'!$A$12,$F52-1,P$9) -> 0 | Q52: =OFFSET('Functionalization Factors'!$A$12,$J52,Q$9)*$H52+OFFSET('Functionalization Factors'!$A$12,$F52-1,Q$9) -> 0 | R52: =OFFSET('Functionalization Factors'!$A$12,$J52,R$9)*$H52+OFFSET('Functionalization Factors'!$A$12,$F52-1,R$9) -> 0 | S52: =OFFSET('Functionalization Factors'!$A$12,$J52,S$9)*$H52+OFFSET('Functionalization Factors'!$A$12,$F52-1,S$9) -> 960195.2293 | V52: =IF($D52=0,0,W52/$D52) -> 0.02555545598 | W52: 24538.22692 | X52: =IF($D52=0,0,Y52/$D52) -> 0.01740905181 | Y52: 16716.0885
B53: Compressor Equipment | C53: 476 | D53: 0 | F53: 0 | G53: 0 | H53: =D53-G53 -> 0 | I53: DIST | J53: =MATCH(I53,'Functionalization Factors'!$A$12:$A$191,0) -> 18 | K53: =OFFSET('Functionalization Factors'!$A$12,$J53,K$9)*$H53+OFFSET('Functionalization Factors'!$A$12,$F53-1,K$9) -> 0 | L53: =OFFSET('Functionalization Factors'!$A$12,$J53,L$9)*$H53+OFFSET('Functionalization Factors'!$A$12,$F53-1,L$9) -> 0 | M53: =OFFSET('Functionalization Factors'!$A$12,$J53,M$9)*$H53+OFFSET('Functionalization Factors'!$A$12,$F53-1,M$9) -> 0 | N53: =OFFSET('Functionalization Factors'!$A$12,$J53,N$9)*$H53+OFFSET('Functionalization Factors'!$A$12,$F53-1,N$9) -> 0 | O53: =OFFSET('Functionalization Factors'!$A$12,$J53,O$9)*$H53+OFFSET('Functionalization Factors'!$A$12,$F53-1,O$9) -> 0 | P53: =OFFSET('Functionalization Factors'!$A$12,$J53,P$9)*$H53+OFFSET('Functionalization Factors'!$A$12,$F53-1,P$9) -> 0 | Q53: =OFFSET('Functionalization Factors'!$A$12,$J53,Q$9)*$H53+OFFSET('Functionalization Factors'!$A$12,$F53-1,Q$9) -> 0 | R53: =OFFSET('Functionalization Factors'!$A$12,$J53,R$9)*$H53+OFFSET('Functionalization Factors'!$A$12,$F53-1,R$9) -> 0 | S53: =OFFSET('Functionalization Factors'!$A$12,$J53,S$9)*$H53+OFFSET('Functionalization Factors'!$A$12,$F53-1,S$9) -> 0 | V53: =IF($D53=0,0,W53/$D53) -> 0 | W53: 0 | X53: =IF($D53=0,0,Y53/$D53) -> 0 | Y53: 0 | Z53: =IF(ABS(SUM(K53:S53)-D53)>1,"*****","") -> 
B54: Measuring and Regulating Eq. - Joint | C54: 477.1 | D54: 43464.72346 | F54: 0 | G54: 0 | H54: 43464.72346 | I54: DIST | J54: =MATCH(I54,'Functionalization Factors'!$A$12:$A$191,0) -> 18 | K54: =OFFSET('Functionalization Factors'!$A$12,$J54,K$9)*$H54+OFFSET('Functionalization Factors'!$A$12,$F54-1,K$9) -> 0 | L54: =OFFSET('Functionalization Factors'!$A$12,$J54,L$9)*$H54+OFFSET('Functionalization Factors'!$A$12,$F54-1,L$9) -> 0 | M54: =OFFSET('Functionalization Factors'!$A$12,$J54,M$9)*$H54+OFFSET('Functionalization Factors'!$A$12,$F54-1,M$9) -> 0 | N54: =OFFSET('Functionalization Factors'!$A$12,$J54,N$9)*$H54+OFFSET('Functionalization Factors'!$A$12,$F54-1,N$9) -> 0 | O54: =OFFSET('Functionalization Factors'!$A$12,$J54,O$9)*$H54+OFFSET('Functionalization Factors'!$A$12,$F54-1,O$9) -> 0 | P54: =OFFSET('Functionalization Factors'!$A$12,$J54,P$9)*$H54+OFFSET('Functionalization Factors'!$A$12,$F54-1,P$9) -> 0 | Q54: =OFFSET('Functionalization Factors'!$A$12,$J54,Q$9)*$H54+OFFSET('Functionalization Factors'!$A$12,$F54-1,Q$9) -> 0 | R54: =OFFSET('Functionalization Factors'!$A$12,$J54,R$9)*$H54+OFFSET('Functionalization Factors'!$A$12,$F54-1,R$9) -> 0 | S54: =OFFSET('Functionalization Factors'!$A$12,$J54,S$9)*$H54+OFFSET('Functionalization Factors'!$A$12,$F54-1,S$9) -> 43464.72346 | V54: 0.03621327538 | W54: 1574 | X54: 0 | Y54: 0
B55: Measuring and Regulating Eq. - Sole | C55: 477.2 | D55: 0 | F55: 0 | G55: 0 | H55: 0 | I55: DIST | J55: =MATCH(I55,'Functionalization Factors'!$A$12:$A$191,0) -> 18 | K55: =OFFSET('Functionalization Factors'!$A$12,$J55,K$9)*$H55+OFFSET('Functionalization Factors'!$A$12,$F55-1,K$9) -> 0 | L55: =OFFSET('Functionalization Factors'!$A$12,$J55,L$9)*$H55+OFFSET('Functionalization Factors'!$A$12,$F55-1,L$9) -> 0 | M55: =OFFSET('Functionalization Factors'!$A$12,$J55,M$9)*$H55+OFFSET('Functionalization Factors'!$A$12,$F55-1,M$9) -> 0 | N55: =OFFSET('Functionalization Factors'!$A$12,$J55,N$9)*$H55+OFFSET('Functionalization Factors'!$A$12,$F55-1,N$9) -> 0 | O55: =OFFSET('Functionalization Factors'!$A$12,$J55,O$9)*$H55+OFFSET('Functionalization Factors'!$A$12,$F55-1,O$9) -> 0 | P55: =OFFSET('Functionalization Factors'!$A$12,$J55,P$9)*$H55+OFFSET('Functionalization Factors'!$A$12,$F55-1,P$9) -> 0 | Q55: =OFFSET('Functionalization Factors'!$A$12,$J55,Q$9)*$H55+OFFSET('Functionalization Factors'!$A$12,$F55-1,Q$9) -> 0 | R55: =OFFSET('Functionalization Factors'!$A$12,$J55,R$9)*$H55+OFFSET('Functionalization Factors'!$A$12,$F55-1,R$9) -> 0 | S55: =OFFSET('Functionalization Factors'!$A$12,$J55,S$9)*$H55+OFFSET('Functionalization Factors'!$A$12,$F55-1,S$9) -> 0 | V55: 0 | W55: 0 | X55: 0
B56: Structures & Improvements | C56: 472 | D56: 131517.9516 | F56: 0 | G56: 0 | H56: 131517.9516 | I56: DIST | J56: =MATCH(I56,'Functionalization Factors'!$A$12:$A$191,0) -> 18 | K56: =OFFSET('Functionalization Factors'!$A$12,$J56,K$9)*$H56+OFFSET('Functionalization Factors'!$A$12,$F56-1,K$9) -> 0 | L56: =OFFSET('Functionalization Factors'!$A$12,$J56,L$9)*$H56+OFFSET('Functionalization Factors'!$A$12,$F56-1,L$9) -> 0 | M56: =OFFSET('Functionalization Factors'!$A$12,$J56,M$9)*$H56+OFFSET('Functionalization Factors'!$A$12,$F56-1,M$9) -> 0 | N56: =OFFSET('Functionalization Factors'!$A$12,$J56,N$9)*$H56+OFFSET('Functionalization Factors'!$A$12,$F56-1,N$9) -> 0 | O56: =OFFSET('Functionalization Factors'!$A$12,$J56,O$9)*$H56+OFFSET('Functionalization Factors'!$A$12,$F56-1,O$9) -> 0 | P56: =OFFSET('Functionalization Factors'!$A$12,$J56,P$9)*$H56+OFFSET('Functionalization Factors'!$A$12,$F56-1,P$9) -> 0 | Q56: =OFFSET('Functionalization Factors'!$A$12,$J56,Q$9)*$H56+OFFSET('Functionalization Factors'!$A$12,$F56-1,Q$9) -> 0 | R56: =OFFSET('Functionalization Factors'!$A$12,$J56,R$9)*$H56+OFFSET('Functionalization Factors'!$A$12,$F56-1,R$9) -> 0 | S56: =OFFSET('Functionalization Factors'!$A$12,$J56,S$9)*$H56+OFFSET('Functionalization Factors'!$A$12,$F56-1,S$9) -> 131517.9516 | V56: 0.02494716471 | W56: 3281 | X56: 0.00363561262 | Y56: 478.1483244
B57: Services | C57: 473 | D57: 917648.7071 | F57: 0 | G57: 0 | H57: 917648.7071 | I57: DIST | J57: =MATCH(I57,'Functionalization Factors'!$A$12:$A$191,0) -> 18 | K57: =OFFSET('Functionalization Factors'!$A$12,$J57,K$9)*$H57+OFFSET('Functionalization Factors'!$A$12,$F57-1,K$9) -> 0 | L57: =OFFSET('Functionalization Factors'!$A$12,$J57,L$9)*$H57+OFFSET('Functionalization Factors'!$A$12,$F57-1,L$9) -> 0 | M57: =OFFSET('Functionalization Factors'!$A$12,$J57,M$9)*$H57+OFFSET('Functionalization Factors'!$A$12,$F57-1,M$9) -> 0 | N57: =OFFSET('Functionalization Factors'!$A$12,$J57,N$9)*$H57+OFFSET('Functionalization Factors'!$A$12,$F57-1,N$9) -> 0 | O57: =OFFSET('Functionalization Factors'!$A$12,$J57,O$9)*$H57+OFFSET('Functionalization Factors'!$A$12,$F57-1,O$9) -> 0 | P57: =OFFSET('Functionalization Factors'!$A$12,$J57,P$9)*$H57+OFFSET('Functionalization Factors'!$A$12,$F57-1,P$9) -> 0 | Q57: =OFFSET('Functionalization Factors'!$A$12,$J57,Q$9)*$H57+OFFSET('Functionalization Factors'!$A$12,$F57-1,Q$9) -> 0 | R57: =OFFSET('Functionalization Factors'!$A$12,$J57,R$9)*$H57+OFFSET('Functionalization Factors'!$A$12,$F57-1,R$9) -> 0 | S57: =OFFSET('Functionalization Factors'!$A$12,$J57,S$9)*$H57+OFFSET('Functionalization Factors'!$A$12,$F57-1,S$9) -> 917648.7071 | V57: 0.02567213338 | W57: 23558 | X57: 0.007181260928 | Y57: 6589.874806
B58: Meters | C58: 478 | D58: 224996.2917 | F58: 0 | G58: 0 | H58: 224996.2917 | I58: DIST | J58: =MATCH(I58,'Functionalization Factors'!$A$12:$A$191,0) -> 18 | K58: =OFFSET('Functionalization Factors'!$A$12,$J58,K$9)*$H58+OFFSET('Functionalization Factors'!$A$12,$F58-1,K$9) -> 0 | L58: =OFFSET('Functionalization Factors'!$A$12,$J58,L$9)*$H58+OFFSET('Functionalization Factors'!$A$12,$F58-1,L$9) -> 0 | M58: =OFFSET('Functionalization Factors'!$A$12,$J58,M$9)*$H58+OFFSET('Functionalization Factors'!$A$12,$F58-1,M$9) -> 0 | N58: =OFFSET('Functionalization Factors'!$A$12,$J58,N$9)*$H58+OFFSET('Functionalization Factors'!$A$12,$F58-1,N$9) -> 0 | O58: =OFFSET('Functionalization Factors'!$A$12,$J58,O$9)*$H58+OFFSET('Functionalization Factors'!$A$12,$F58-1,O$9) -> 0 | P58: =OFFSET('Functionalization Factors'!$A$12,$J58,P$9)*$H58+OFFSET('Functionalization Factors'!$A$12,$F58-1,P$9) -> 0 | Q58: =OFFSET('Functionalization Factors'!$A$12,$J58,Q$9)*$H58+OFFSET('Functionalization Factors'!$A$12,$F58-1,Q$9) -> 0 | R58: =OFFSET('Functionalization Factors'!$A$12,$J58,R$9)*$H58+OFFSET('Functionalization Factors'!$A$12,$F58-1,R$9) -> 0 | S58: =OFFSET('Functionalization Factors'!$A$12,$J58,S$9)*$H58+OFFSET('Functionalization Factors'!$A$12,$F58-1,S$9) -> 224996.2917 | V58: 0.03852507939 | W58: 8668 | X58: 0 | Y58: 0
B59: Regulators | C59: 474.1 | D59: 74531.33333 | F59: 0 | G59: 0 | H59: 74531.33333 | I59: DIST | J59: =MATCH(I59,'Functionalization Factors'!$A$12:$A$191,0) -> 18 | K59: =OFFSET('Functionalization Factors'!$A$12,$J59,K$9)*$H59+OFFSET('Functionalization Factors'!$A$12,$F59-1,K$9) -> 0 | L59: =OFFSET('Functionalization Factors'!$A$12,$J59,L$9)*$H59+OFFSET('Functionalization Factors'!$A$12,$F59-1,L$9) -> 0 | M59: =OFFSET('Functionalization Factors'!$A$12,$J59,M$9)*$H59+OFFSET('Functionalization Factors'!$A$12,$F59-1,M$9) -> 0 | N59: =OFFSET('Functionalization Factors'!$A$12,$J59,N$9)*$H59+OFFSET('Functionalization Factors'!$A$12,$F59-1,N$9) -> 0 | O59: =OFFSET('Functionalization Factors'!$A$12,$J59,O$9)*$H59+OFFSET('Functionalization Factors'!$A$12,$F59-1,O$9) -> 0 | P59: =OFFSET('Functionalization Factors'!$A$12,$J59,P$9)*$H59+OFFSET('Functionalization Factors'!$A$12,$F59-1,P$9) -> 0 | Q59: =OFFSET('Functionalization Factors'!$A$12,$J59,Q$9)*$H59+OFFSET('Functionalization Factors'!$A$12,$F59-1,Q$9) -> 0 | R59: =OFFSET('Functionalization Factors'!$A$12,$J59,R$9)*$H59+OFFSET('Functionalization Factors'!$A$12,$F59-1,R$9) -> 0 | S59: =OFFSET('Functionalization Factors'!$A$12,$J59,S$9)*$H59+OFFSET('Functionalization Factors'!$A$12,$F59-1,S$9) -> 74531.33333 | V59: 0.04608799878 | W59: 3435 | X59: 0 | Y59: 0
B60: Customer Stations | C60: 474.2 | D60: 70521.67151 | F60: 0 | G60: 0 | H60: 70521.67151 | I60: DIST | J60: =MATCH(I60,'Functionalization Factors'!$A$12:$A$191,0) -> 18 | K60: =OFFSET('Functionalization Factors'!$A$12,$J60,K$9)*$H60+OFFSET('Functionalization Factors'!$A$12,$F60-1,K$9) -> 0 | L60: =OFFSET('Functionalization Factors'!$A$12,$J60,L$9)*$H60+OFFSET('Functionalization Factors'!$A$12,$F60-1,L$9) -> 0 | M60: =OFFSET('Functionalization Factors'!$A$12,$J60,M$9)*$H60+OFFSET('Functionalization Factors'!$A$12,$F60-1,M$9) -> 0 | N60: =OFFSET('Functionalization Factors'!$A$12,$J60,N$9)*$H60+OFFSET('Functionalization Factors'!$A$12,$F60-1,N$9) -> 0 | O60: =OFFSET('Functionalization Factors'!$A$12,$J60,O$9)*$H60+OFFSET('Functionalization Factors'!$A$12,$F60-1,O$9) -> 0 | P60: =OFFSET('Functionalization Factors'!$A$12,$J60,P$9)*$H60+OFFSET('Functionalization Factors'!$A$12,$F60-1,P$9) -> 0 | Q60: =OFFSET('Functionalization Factors'!$A$12,$J60,Q$9)*$H60+OFFSET('Functionalization Factors'!$A$12,$F60-1,Q$9) -> 0 | R60: =OFFSET('Functionalization Factors'!$A$12,$J60,R$9)*$H60+OFFSET('Functionalization Factors'!$A$12,$F60-1,R$9) -> 0 | S60: =OFFSET('Functionalization Factors'!$A$12,$J60,S$9)*$H60+OFFSET('Functionalization Factors'!$A$12,$F60-1,S$9) -> 70521.67151 | V60: 0.02807647575 | W60: 1980 | X60: 0 | Y60: 0
B61: Other | C61: 479 | D61: 0 | F61: 0 | G61: 0 | H61: 0 | I61: DIST | J61: =MATCH(I61,'Functionalization Factors'!$A$12:$A$191,0) -> 18 | K61: =OFFSET('Functionalization Factors'!$A$12,$J61,K$9)*$H61+OFFSET('Functionalization Factors'!$A$12,$F61-1,K$9) -> 0 | L61: =OFFSET('Functionalization Factors'!$A$12,$J61,L$9)*$H61+OFFSET('Functionalization Factors'!$A$12,$F61-1,L$9) -> 0 | M61: =OFFSET('Functionalization Factors'!$A$12,$J61,M$9)*$H61+OFFSET('Functionalization Factors'!$A$12,$F61-1,M$9) -> 0 | N61: =OFFSET('Functionalization Factors'!$A$12,$J61,N$9)*$H61+OFFSET('Functionalization Factors'!$A$12,$F61-1,N$9) -> 0 | O61: =OFFSET('Functionalization Factors'!$A$12,$J61,O$9)*$H61+OFFSET('Functionalization Factors'!$A$12,$F61-1,O$9) -> 0 | P61: =OFFSET('Functionalization Factors'!$A$12,$J61,P$9)*$H61+OFFSET('Functionalization Factors'!$A$12,$F61-1,P$9) -> 0 | Q61: =OFFSET('Functionalization Factors'!$A$12,$J61,Q$9)*$H61+OFFSET('Functionalization Factors'!$A$12,$F61-1,Q$9) -> 0 | R61: =OFFSET('Functionalization Factors'!$A$12,$J61,R$9)*$H61+OFFSET('Functionalization Factors'!$A$12,$F61-1,R$9) -> 0 | S61: =OFFSET('Functionalization Factors'!$A$12,$J61,S$9)*$H61+OFFSET('Functionalization Factors'!$A$12,$F61-1,S$9) -> 0 | V61: 0 | W61: 0 | X61: 0 | Y61: 0
B62: Subtotal | D62: =SUM(D50:D61) -> 2438192.95 | G62: =SUM(G50:G61) -> 0 | H62: =SUM(H50:H61) -> 2438192.95 | K62: =SUM(K50:K61) -> 0 | L62: 0 | M62: 0 | N62: 0 | O62: 0 | P62: 0 | Q62: 0 | R62: 0 | S62: =SUM(S50:S61) -> 2438192.95 | W62: =SUM(W50:W61) -> 67159.22692 | Y62: =SUM(Y50:Y61) -> 25218.5566
A64: F. DISTRIBUTION (Northern Ontario)
B65: Land | C65: 470 | D65: 4089.708333 | F65: 0 | G65: 0 | H65: =D65-G65 -> 4089.708333 | I65: DIST | J65: =MATCH(I65,'Functionalization Factors'!$A$12:$A$191,0) -> 18 | K65: =OFFSET('Functionalization Factors'!$A$12,$J65,K$9)*$H65+OFFSET('Functionalization Factors'!$A$12,$F65-1,K$9) -> 0 | L65: =OFFSET('Functionalization Factors'!$A$12,$J65,L$9)*$H65+OFFSET('Functionalization Factors'!$A$12,$F65-1,L$9) -> 0 | M65: =OFFSET('Functionalization Factors'!$A$12,$J65,M$9)*$H65+OFFSET('Functionalization Factors'!$A$12,$F65-1,M$9) -> 0 | N65: =OFFSET('Functionalization Factors'!$A$12,$J65,N$9)*$H65+OFFSET('Functionalization Factors'!$A$12,$F65-1,N$9) -> 0 | O65: =OFFSET('Functionalization Factors'!$A$12,$J65,O$9)*$H65+OFFSET('Functionalization Factors'!$A$12,$F65-1,O$9) -> 0 | P65: =OFFSET('Functionalization Factors'!$A$12,$J65,P$9)*$H65+OFFSET('Functionalization Factors'!$A$12,$F65-1,P$9) -> 0 | Q65: =OFFSET('Functionalization Factors'!$A$12,$J65,Q$9)*$H65+OFFSET('Functionalization Factors'!$A$12,$F65-1,Q$9) -> 0 | R65: =OFFSET('Functionalization Factors'!$A$12,$J65,R$9)*$H65+OFFSET('Functionalization Factors'!$A$12,$F65-1,R$9) -> 0 | S65: =OFFSET('Functionalization Factors'!$A$12,$J65,S$9)*$H65+OFFSET('Functionalization Factors'!$A$12,$F65-1,S$9) -> 4089.708333 | V65: =IF($D65=0,0,W65/$D65) -> 0 | W65: 0 | X65: =IF($D65=0,0,Y65/$D65) -> 0.1618106881 | Y65: 661.7585195 | Z65: =IF(ABS(SUM(K65:S65)-D65)>1,"*****","") -> 
B66: Land Rights | C66: 471 | D66: 9428.5 | F66: 0 | G66: 0 | H66: 9428.5 | I66: DIST | J66: =MATCH(I66,'Functionalization Factors'!$A$12:$A$191,0) -> 18 | K66: =OFFSET('Functionalization Factors'!$A$12,$J66,K$9)*$H66+OFFSET('Functionalization Factors'!$A$12,$F66-1,K$9) -> 0 | L66: =OFFSET('Functionalization Factors'!$A$12,$J66,L$9)*$H66+OFFSET('Functionalization Factors'!$A$12,$F66-1,L$9) -> 0 | M66: =OFFSET('Functionalization Factors'!$A$12,$J66,M$9)*$H66+OFFSET('Functionalization Factors'!$A$12,$F66-1,M$9) -> 0 | N66: =OFFSET('Functionalization Factors'!$A$12,$J66,N$9)*$H66+OFFSET('Functionalization Factors'!$A$12,$F66-1,N$9) -> 0 | O66: =OFFSET('Functionalization Factors'!$A$12,$J66,O$9)*$H66+OFFSET('Functionalization Factors'!$A$12,$F66-1,O$9) -> 0 | P66: =OFFSET('Functionalization Factors'!$A$12,$J66,P$9)*$H66+OFFSET('Functionalization Factors'!$A$12,$F66-1,P$9) -> 0 | Q66: =OFFSET('Functionalization Factors'!$A$12,$J66,Q$9)*$H66+OFFSET('Functionalization Factors'!$A$12,$F66-1,Q$9) -> 0 | R66: =OFFSET('Functionalization Factors'!$A$12,$J66,R$9)*$H66+OFFSET('Functionalization Factors'!$A$12,$F66-1,R$9) -> 0 | S66: =OFFSET('Functionalization Factors'!$A$12,$J66,S$9)*$H66+OFFSET('Functionalization Factors'!$A$12,$F66-1,S$9) -> 9428.5 | V66: 0.01707588694 | W66: 161 | X66: 0 | Y66: 0
B67: Mains- Grid | C67: 475.1 | D67: 378223.4831 | F67: 0 | G67: 0 | H67: 378223.4831 | I67: DIST | J67: =MATCH(I67,'Functionalization Factors'!$A$12:$A$191,0) -> 18 | K67: =OFFSET('Functionalization Factors'!$A$12,$J67,K$9)*$H67+OFFSET('Functionalization Factors'!$A$12,$F67-1,K$9) -> 0 | L67: =OFFSET('Functionalization Factors'!$A$12,$J67,L$9)*$H67+OFFSET('Functionalization Factors'!$A$12,$F67-1,L$9) -> 0 | M67: =OFFSET('Functionalization Factors'!$A$12,$J67,M$9)*$H67+OFFSET('Functionalization Factors'!$A$12,$F67-1,M$9) -> 0 | N67: =OFFSET('Functionalization Factors'!$A$12,$J67,N$9)*$H67+OFFSET('Functionalization Factors'!$A$12,$F67-1,N$9) -> 0 | O67: =OFFSET('Functionalization Factors'!$A$12,$J67,O$9)*$H67+OFFSET('Functionalization Factors'!$A$12,$F67-1,O$9) -> 0 | P67: =OFFSET('Functionalization Factors'!$A$12,$J67,P$9)*$H67+OFFSET('Functionalization Factors'!$A$12,$F67-1,P$9) -> 0 | Q67: =OFFSET('Functionalization Factors'!$A$12,$J67,Q$9)*$H67+OFFSET('Functionalization Factors'!$A$12,$F67-1,Q$9) -> 0 | R67: =OFFSET('Functionalization Factors'!$A$12,$J67,R$9)*$H67+OFFSET('Functionalization Factors'!$A$12,$F67-1,R$9) -> 0 | S67: =OFFSET('Functionalization Factors'!$A$12,$J67,S$9)*$H67+OFFSET('Functionalization Factors'!$A$12,$F67-1,S$9) -> 378223.4831 | V67: 0.02838737825 | W67: 10736.77308 | X67: 0.01612713166 | Y67: 6099.659908
B68: Mains- Joint | C68: 475.2 | D68: 164911.7215 | F68: 0 | G68: 0 | H68: 164911.7215 | I68: DIST | J68: =MATCH(I68,'Functionalization Factors'!$A$12:$A$191,0) -> 18 | K68: =OFFSET('Functionalization Factors'!$A$12,$J68,K$9)*$H68+OFFSET('Functionalization Factors'!$A$12,$F68-1,K$9) -> 0 | L68: =OFFSET('Functionalization Factors'!$A$12,$J68,L$9)*$H68+OFFSET('Functionalization Factors'!$A$12,$F68-1,L$9) -> 0 | M68: =OFFSET('Functionalization Factors'!$A$12,$J68,M$9)*$H68+OFFSET('Functionalization Factors'!$A$12,$F68-1,M$9) -> 0 | N68: =OFFSET('Functionalization Factors'!$A$12,$J68,N$9)*$H68+OFFSET('Functionalization Factors'!$A$12,$F68-1,N$9) -> 0 | O68: =OFFSET('Functionalization Factors'!$A$12,$J68,O$9)*$H68+OFFSET('Functionalization Factors'!$A$12,$F68-1,O$9) -> 0 | P68: =OFFSET('Functionalization Factors'!$A$12,$J68,P$9)*$H68+OFFSET('Functionalization Factors'!$A$12,$F68-1,P$9) -> 0 | Q68: =OFFSET('Functionalization Factors'!$A$12,$J68,Q$9)*$H68+OFFSET('Functionalization Factors'!$A$12,$F68-1,Q$9) -> 0 | R68: =OFFSET('Functionalization Factors'!$A$12,$J68,R$9)*$H68+OFFSET('Functionalization Factors'!$A$12,$F68-1,R$9) -> 0 | S68: =OFFSET('Functionalization Factors'!$A$12,$J68,S$9)*$H68+OFFSET('Functionalization Factors'!$A$12,$F68-1,S$9) -> 164911.7215 | V68: 0.02844173482 | W68: 4690.375453 | X68: 0.01606357645 | Y68: 2649.072046
B69: Mains- Sole | C69: 475.3 | D69: 45027.09072 | F69: 0 | G69: 0 | H69: 45027.09072 | I69: DIST | J69: =MATCH(I69,'Functionalization Factors'!$A$12:$A$191,0) -> 18 | K69: =OFFSET('Functionalization Factors'!$A$12,$J69,K$9)*$H69+OFFSET('Functionalization Factors'!$A$12,$F69-1,K$9) -> 0 | L69: =OFFSET('Functionalization Factors'!$A$12,$J69,L$9)*$H69+OFFSET('Functionalization Factors'!$A$12,$F69-1,L$9) -> 0 | M69: =OFFSET('Functionalization Factors'!$A$12,$J69,M$9)*$H69+OFFSET('Functionalization Factors'!$A$12,$F69-1,M$9) -> 0 | N69: =OFFSET('Functionalization Factors'!$A$12,$J69,N$9)*$H69+OFFSET('Functionalization Factors'!$A$12,$F69-1,N$9) -> 0 | O69: =OFFSET('Functionalization Factors'!$A$12,$J69,O$9)*$H69+OFFSET('Functionalization Factors'!$A$12,$F69-1,O$9) -> 0 | P69: =OFFSET('Functionalization Factors'!$A$12,$J69,P$9)*$H69+OFFSET('Functionalization Factors'!$A$12,$F69-1,P$9) -> 0 | Q69: =OFFSET('Functionalization Factors'!$A$12,$J69,Q$9)*$H69+OFFSET('Functionalization Factors'!$A$12,$F69-1,Q$9) -> 0 | R69: =OFFSET('Functionalization Factors'!$A$12,$J69,R$9)*$H69+OFFSET('Functionalization Factors'!$A$12,$F69-1,R$9) -> 0 | S69: =OFFSET('Functionalization Factors'!$A$12,$J69,S$9)*$H69+OFFSET('Functionalization Factors'!$A$12,$F69-1,S$9) -> 45027.09072 | V69: 0.02844173482 | W69: 1280.648574 | X69: 0.01606357645 | Y69: 723.2961141
B70: Compressor Equipment | C70: 476 | D70: 0 | F70: 0 | G70: 0 | H70: 0 | I70: DIST | J70: =MATCH(I70,'Functionalization Factors'!$A$12:$A$191,0) -> 18 | K70: =OFFSET('Functionalization Factors'!$A$12,$J70,K$9)*$H70+OFFSET('Functionalization Factors'!$A$12,$F70-1,K$9) -> 0 | L70: =OFFSET('Functionalization Factors'!$A$12,$J70,L$9)*$H70+OFFSET('Functionalization Factors'!$A$12,$F70-1,L$9) -> 0 | M70: =OFFSET('Functionalization Factors'!$A$12,$J70,M$9)*$H70+OFFSET('Functionalization Factors'!$A$12,$F70-1,M$9) -> 0 | N70: =OFFSET('Functionalization Factors'!$A$12,$J70,N$9)*$H70+OFFSET('Functionalization Factors'!$A$12,$F70-1,N$9) -> 0 | O70: =OFFSET('Functionalization Factors'!$A$12,$J70,O$9)*$H70+OFFSET('Functionalization Factors'!$A$12,$F70-1,O$9) -> 0 | P70: =OFFSET('Functionalization Factors'!$A$12,$J70,P$9)*$H70+OFFSET('Functionalization Factors'!$A$12,$F70-1,P$9) -> 0 | Q70: =OFFSET('Functionalization Factors'!$A$12,$J70,Q$9)*$H70+OFFSET('Functionalization Factors'!$A$12,$F70-1,Q$9) -> 0 | R70: =OFFSET('Functionalization Factors'!$A$12,$J70,R$9)*$H70+OFFSET('Functionalization Factors'!$A$12,$F70-1,R$9) -> 0 | S70: =OFFSET('Functionalization Factors'!$A$12,$J70,S$9)*$H70+OFFSET('Functionalization Factors'!$A$12,$F70-1,S$9) -> 0 | V70: 0 | W70: 0 | X70: 0 | Y70: 0
B71: Measuring and Regulating Eq. - Joint | C71: 477.1 | D71: 87218.08737 | F71: 0 | G71: 0 | H71: =D71-G71 -> 87218.08737 | I71: DIST | J71: =MATCH(I71,'Functionalization Factors'!$A$12:$A$191,0) -> 18 | K71: =OFFSET('Functionalization Factors'!$A$12,$J71,K$9)*$H71+OFFSET('Functionalization Factors'!$A$12,$F71-1,K$9) -> 0 | L71: =OFFSET('Functionalization Factors'!$A$12,$J71,L$9)*$H71+OFFSET('Functionalization Factors'!$A$12,$F71-1,L$9) -> 0 | M71: =OFFSET('Functionalization Factors'!$A$12,$J71,M$9)*$H71+OFFSET('Functionalization Factors'!$A$12,$F71-1,M$9) -> 0 | N71: =OFFSET('Functionalization Factors'!$A$12,$J71,N$9)*$H71+OFFSET('Functionalization Factors'!$A$12,$F71-1,N$9) -> 0 | O71: =OFFSET('Functionalization Factors'!$A$12,$J71,O$9)*$H71+OFFSET('Functionalization Factors'!$A$12,$F71-1,O$9) -> 0 | P71: =OFFSET('Functionalization Factors'!$A$12,$J71,P$9)*$H71+OFFSET('Functionalization Factors'!$A$12,$F71-1,P$9) -> 0 | Q71: =OFFSET('Functionalization Factors'!$A$12,$J71,Q$9)*$H71+OFFSET('Functionalization Factors'!$A$12,$F71-1,Q$9) -> 0 | R71: =OFFSET('Functionalization Factors'!$A$12,$J71,R$9)*$H71+OFFSET('Functionalization Factors'!$A$12,$F71-1,R$9) -> 0 | S71: =OFFSET('Functionalization Factors'!$A$12,$J71,S$9)*$H71+OFFSET('Functionalization Factors'!$A$12,$F71-1,S$9) -> 87218.08737 | V71: 0.04900359695 | W71: 4274 | X71: 0 | Y71: 0
B72: Measuring and Regulating Eq. - Sole | C72: 477.2 | D72: 26471.02046 | F72: 0 | G72: 0 | H72: 26471.02046 | I72: DIST | J72: =MATCH(I72,'Functionalization Factors'!$A$12:$A$191,0) -> 18 | K72: =OFFSET('Functionalization Factors'!$A$12,$J72,K$9)*$H72+OFFSET('Functionalization Factors'!$A$12,$F72-1,K$9) -> 0 | L72: =OFFSET('Functionalization Factors'!$A$12,$J72,L$9)*$H72+OFFSET('Functionalization Factors'!$A$12,$F72-1,L$9) -> 0 | M72: =OFFSET('Functionalization Factors'!$A$12,$J72,M$9)*$H72+OFFSET('Functionalization Factors'!$A$12,$F72-1,M$9) -> 0 | N72: =OFFSET('Functionalization Factors'!$A$12,$J72,N$9)*$H72+OFFSET('Functionalization Factors'!$A$12,$F72-1,N$9) -> 0 | O72: =OFFSET('Functionalization Factors'!$A$12,$J72,O$9)*$H72+OFFSET('Functionalization Factors'!$A$12,$F72-1,O$9) -> 0 | P72: =OFFSET('Functionalization Factors'!$A$12,$J72,P$9)*$H72+OFFSET('Functionalization Factors'!$A$12,$F72-1,P$9) -> 0 | Q72: =OFFSET('Functionalization Factors'!$A$12,$J72,Q$9)*$H72+OFFSET('Functionalization Factors'!$A$12,$F72-1,Q$9) -> 0 | R72: =OFFSET('Functionalization Factors'!$A$12,$J72,R$9)*$H72+OFFSET('Functionalization Factors'!$A$12,$F72-1,R$9) -> 0 | S72: =OFFSET('Functionalization Factors'!$A$12,$J72,S$9)*$H72+OFFSET('Functionalization Factors'!$A$12,$F72-1,S$9) -> 26471.02046 | V72: 0 | X72: 0 | Y72: 0
B73: Structures & Improvements | C73: 472 | D73: 63698.13385 | F73: 0 | G73: 0 | H73: 63698.13385 | I73: DIST | J73: =MATCH(I73,'Functionalization Factors'!$A$12:$A$191,0) -> 18 | K73: =OFFSET('Functionalization Factors'!$A$12,$J73,K$9)*$H73+OFFSET('Functionalization Factors'!$A$12,$F73-1,K$9) -> 0 | L73: =OFFSET('Functionalization Factors'!$A$12,$J73,L$9)*$H73+OFFSET('Functionalization Factors'!$A$12,$F73-1,L$9) -> 0 | M73: =OFFSET('Functionalization Factors'!$A$12,$J73,M$9)*$H73+OFFSET('Functionalization Factors'!$A$12,$F73-1,M$9) -> 0 | N73: =OFFSET('Functionalization Factors'!$A$12,$J73,N$9)*$H73+OFFSET('Functionalization Factors'!$A$12,$F73-1,N$9) -> 0 | O73: =OFFSET('Functionalization Factors'!$A$12,$J73,O$9)*$H73+OFFSET('Functionalization Factors'!$A$12,$F73-1,O$9) -> 0 | P73: =OFFSET('Functionalization Factors'!$A$12,$J73,P$9)*$H73+OFFSET('Functionalization Factors'!$A$12,$F73-1,P$9) -> 0 | Q73: =OFFSET('Functionalization Factors'!$A$12,$J73,Q$9)*$H73+OFFSET('Functionalization Factors'!$A$12,$F73-1,Q$9) -> 0 | R73: =OFFSET('Functionalization Factors'!$A$12,$J73,R$9)*$H73+OFFSET('Functionalization Factors'!$A$12,$F73-1,R$9) -> 0 | S73: =OFFSET('Functionalization Factors'!$A$12,$J73,S$9)*$H73+OFFSET('Functionalization Factors'!$A$12,$F73-1,S$9) -> 63698.13385 | V73: 0.02434922197 | W73: 1551 | X73: 0.00346299271 | Y73: 220.5861732
B74: Services | C74: 473 | D74: 480693.255 | F74: 0 | G74: 0 | H74: 480693.255 | I74: DIST | J74: =MATCH(I74,'Functionalization Factors'!$A$12:$A$191,0) -> 18 | K74: =OFFSET('Functionalization Factors'!$A$12,$J74,K$9)*$H74+OFFSET('Functionalization Factors'!$A$12,$F74-1,K$9) -> 0 | L74: =OFFSET('Functionalization Factors'!$A$12,$J74,L$9)*$H74+OFFSET('Functionalization Factors'!$A$12,$F74-1,L$9) -> 0 | M74: =OFFSET('Functionalization Factors'!$A$12,$J74,M$9)*$H74+OFFSET('Functionalization Factors'!$A$12,$F74-1,M$9) -> 0 | N74: =OFFSET('Functionalization Factors'!$A$12,$J74,N$9)*$H74+OFFSET('Functionalization Factors'!$A$12,$F74-1,N$9) -> 0 | O74: =OFFSET('Functionalization Factors'!$A$12,$J74,O$9)*$H74+OFFSET('Functionalization Factors'!$A$12,$F74-1,O$9) -> 0 | P74: =OFFSET('Functionalization Factors'!$A$12,$J74,P$9)*$H74+OFFSET('Functionalization Factors'!$A$12,$F74-1,P$9) -> 0 | Q74: =OFFSET('Functionalization Factors'!$A$12,$J74,Q$9)*$H74+OFFSET('Functionalization Factors'!$A$12,$F74-1,Q$9) -> 0 | R74: =OFFSET('Functionalization Factors'!$A$12,$J74,R$9)*$H74+OFFSET('Functionalization Factors'!$A$12,$F74-1,R$9) -> 0 | S74: =OFFSET('Functionalization Factors'!$A$12,$J74,S$9)*$H74+OFFSET('Functionalization Factors'!$A$12,$F74-1,S$9) -> 480693.255 | V74: 0.02745825922 | W74: 13199 | X74: 0.005152531386 | Y74: 2476.787084
B75: Meters | C75: 478 | D75: 65138.625 | F75: 0 | G75: 0 | H75: =D75-G75 -> 65138.625 | I75: DIST | J75: =MATCH(I75,'Functionalization Factors'!$A$12:$A$191,0) -> 18 | K75: =OFFSET('Functionalization Factors'!$A$12,$J75,K$9)*$H75+OFFSET('Functionalization Factors'!$A$12,$F75-1,K$9) -> 0 | L75: =OFFSET('Functionalization Factors'!$A$12,$J75,L$9)*$H75+OFFSET('Functionalization Factors'!$A$12,$F75-1,L$9) -> 0 | M75: =OFFSET('Functionalization Factors'!$A$12,$J75,M$9)*$H75+OFFSET('Functionalization Factors'!$A$12,$F75-1,M$9) -> 0 | N75: =OFFSET('Functionalization Factors'!$A$12,$J75,N$9)*$H75+OFFSET('Functionalization Factors'!$A$12,$F75-1,N$9) -> 0 | O75: =OFFSET('Functionalization Factors'!$A$12,$J75,O$9)*$H75+OFFSET('Functionalization Factors'!$A$12,$F75-1,O$9) -> 0 | P75: =OFFSET('Functionalization Factors'!$A$12,$J75,P$9)*$H75+OFFSET('Functionalization Factors'!$A$12,$F75-1,P$9) -> 0 | Q75: =OFFSET('Functionalization Factors'!$A$12,$J75,Q$9)*$H75+OFFSET('Functionalization Factors'!$A$12,$F75-1,Q$9) -> 0 | R75: =OFFSET('Functionalization Factors'!$A$12,$J75,R$9)*$H75+OFFSET('Functionalization Factors'!$A$12,$F75-1,R$9) -> 0 | S75: =OFFSET('Functionalization Factors'!$A$12,$J75,S$9)*$H75+OFFSET('Functionalization Factors'!$A$12,$F75-1,S$9) -> 65138.625 | V75: 0.04066711571 | W75: 2649 | X75: 0 | Y75: 0
B76: Regulators | C76: 474.1 | D76: 29560.45833 | F76: 0 | G76: 0 | H76: 29560.45833 | I76: DIST | J76: =MATCH(I76,'Functionalization Factors'!$A$12:$A$191,0) -> 18 | K76: =OFFSET('Functionalization Factors'!$A$12,$J76,K$9)*$H76+OFFSET('Functionalization Factors'!$A$12,$F76-1,K$9) -> 0 | L76: =OFFSET('Functionalization Factors'!$A$12,$J76,L$9)*$H76+OFFSET('Functionalization Factors'!$A$12,$F76-1,L$9) -> 0 | M76: =OFFSET('Functionalization Factors'!$A$12,$J76,M$9)*$H76+OFFSET('Functionalization Factors'!$A$12,$F76-1,M$9) -> 0 | N76: =OFFSET('Functionalization Factors'!$A$12,$J76,N$9)*$H76+OFFSET('Functionalization Factors'!$A$12,$F76-1,N$9) -> 0 | O76: =OFFSET('Functionalization Factors'!$A$12,$J76,O$9)*$H76+OFFSET('Functionalization Factors'!$A$12,$F76-1,O$9) -> 0 | P76: =OFFSET('Functionalization Factors'!$A$12,$J76,P$9)*$H76+OFFSET('Functionalization Factors'!$A$12,$F76-1,P$9) -> 0 | Q76: =OFFSET('Functionalization Factors'!$A$12,$J76,Q$9)*$H76+OFFSET('Functionalization Factors'!$A$12,$F76-1,Q$9) -> 0 | R76: =OFFSET('Functionalization Factors'!$A$12,$J76,R$9)*$H76+OFFSET('Functionalization Factors'!$A$12,$F76-1,R$9) -> 0 | S76: =OFFSET('Functionalization Factors'!$A$12,$J76,S$9)*$H76+OFFSET('Functionalization Factors'!$A$12,$F76-1,S$9) -> 29560.45833 | V76: 0.0461765506 | W76: 1365 | X76: 0 | Y76: 0
B77: Customer Stations | C77: 474.2 | D77: 29965.38333 | F77: 0 | G77: 0 | H77: 29965.38333 | I77: DIST | J77: =MATCH(I77,'Functionalization Factors'!$A$12:$A$191,0) -> 18 | K77: =OFFSET('Functionalization Factors'!$A$12,$J77,K$9)*$H77+OFFSET('Functionalization Factors'!$A$12,$F77-1,K$9) -> 0 | L77: =OFFSET('Functionalization Factors'!$A$12,$J77,L$9)*$H77+OFFSET('Functionalization Factors'!$A$12,$F77-1,L$9) -> 0 | M77: =OFFSET('Functionalization Factors'!$A$12,$J77,M$9)*$H77+OFFSET('Functionalization Factors'!$A$12,$F77-1,M$9) -> 0 | N77: =OFFSET('Functionalization Factors'!$A$12,$J77,N$9)*$H77+OFFSET('Functionalization Factors'!$A$12,$F77-1,N$9) -> 0 | O77: =OFFSET('Functionalization Factors'!$A$12,$J77,O$9)*$H77+OFFSET('Functionalization Factors'!$A$12,$F77-1,O$9) -> 0 | P77: =OFFSET('Functionalization Factors'!$A$12,$J77,P$9)*$H77+OFFSET('Functionalization Factors'!$A$12,$F77-1,P$9) -> 0 | Q77: =OFFSET('Functionalization Factors'!$A$12,$J77,Q$9)*$H77+OFFSET('Functionalization Factors'!$A$12,$F77-1,Q$9) -> 0 | R77: =OFFSET('Functionalization Factors'!$A$12,$J77,R$9)*$H77+OFFSET('Functionalization Factors'!$A$12,$F77-1,R$9) -> 0 | S77: =OFFSET('Functionalization Factors'!$A$12,$J77,S$9)*$H77+OFFSET('Functionalization Factors'!$A$12,$F77-1,S$9) -> 29965.38333 | V77: 0.02923373248 | W77: 876 | X77: 0 | Y77: 0
B78: Other | C78: 479 | D78: 0 | F78: 0 | G78: 0 | H78: 0 | I78: DIST | J78: =MATCH(I78,'Functionalization Factors'!$A$12:$A$191,0) -> 18 | K78: =OFFSET('Functionalization Factors'!$A$12,$J78,K$9)*$H78+OFFSET('Functionalization Factors'!$A$12,$F78-1,K$9) -> 0 | L78: =OFFSET('Functionalization Factors'!$A$12,$J78,L$9)*$H78+OFFSET('Functionalization Factors'!$A$12,$F78-1,L$9) -> 0 | M78: =OFFSET('Functionalization Factors'!$A$12,$J78,M$9)*$H78+OFFSET('Functionalization Factors'!$A$12,$F78-1,M$9) -> 0 | N78: =OFFSET('Functionalization Factors'!$A$12,$J78,N$9)*$H78+OFFSET('Functionalization Factors'!$A$12,$F78-1,N$9) -> 0 | O78: =OFFSET('Functionalization Factors'!$A$12,$J78,O$9)*$H78+OFFSET('Functionalization Factors'!$A$12,$F78-1,O$9) -> 0 | P78: =OFFSET('Functionalization Factors'!$A$12,$J78,P$9)*$H78+OFFSET('Functionalization Factors'!$A$12,$F78-1,P$9) -> 0 | Q78: =OFFSET('Functionalization Factors'!$A$12,$J78,Q$9)*$H78+OFFSET('Functionalization Factors'!$A$12,$F78-1,Q$9) -> 0 | R78: =OFFSET('Functionalization Factors'!$A$12,$J78,R$9)*$H78+OFFSET('Functionalization Factors'!$A$12,$F78-1,R$9) -> 0 | S78: =OFFSET('Functionalization Factors'!$A$12,$J78,S$9)*$H78+OFFSET('Functionalization Factors'!$A$12,$F78-1,S$9) -> 0 | V78: 0 | W78: 0 | X78: 0 | Y78: 0
B79: Subtotal | D79: =SUM(D65:D78) -> 1384425.467 | G79: =SUM(G65:G78) -> 0 | H79: =SUM(H65:H78) -> 1384425.467 | K79: =SUM(K65:K78) -> 0 | L79: 0 | M79: 0 | N79: 0 | O79: 0 | P79: 0 | Q79: 0 | R79: 0 | S79: =SUM(S65:S78) -> 1384425.467 | W79: =SUM(W65:W78) -> 40782.79711 | Y79: =SUM(Y65:Y78) -> 12831.15984
A81: G. INTANGIBLE PLANT | C81: 401/402 | D81: 7677 | F81: 0 | G81: 0 | H81: =D81-G81 -> 7677 | I81: DIST | J81: =MATCH(I81,'Functionalization Factors'!$A$12:$A$191,0) -> 18 | K81: =OFFSET('Functionalization Factors'!$A$12,$J81,K$9)*$H81+OFFSET('Functionalization Factors'!$A$12,$F81-1,K$9) -> 0 | L81: =OFFSET('Functionalization Factors'!$A$12,$J81,L$9)*$H81+OFFSET('Functionalization Factors'!$A$12,$F81-1,L$9) -> 0 | M81: =OFFSET('Functionalization Factors'!$A$12,$J81,M$9)*$H81+OFFSET('Functionalization Factors'!$A$12,$F81-1,M$9) -> 0 | N81: =OFFSET('Functionalization Factors'!$A$12,$J81,N$9)*$H81+OFFSET('Functionalization Factors'!$A$12,$F81-1,N$9) -> 0 | O81: =OFFSET('Functionalization Factors'!$A$12,$J81,O$9)*$H81+OFFSET('Functionalization Factors'!$A$12,$F81-1,O$9) -> 0 | P81: =OFFSET('Functionalization Factors'!$A$12,$J81,P$9)*$H81+OFFSET('Functionalization Factors'!$A$12,$F81-1,P$9) -> 0 | Q81: =OFFSET('Functionalization Factors'!$A$12,$J81,Q$9)*$H81+OFFSET('Functionalization Factors'!$A$12,$F81-1,Q$9) -> 0 | R81: =OFFSET('Functionalization Factors'!$A$12,$J81,R$9)*$H81+OFFSET('Functionalization Factors'!$A$12,$F81-1,R$9) -> 0 | S81: =OFFSET('Functionalization Factors'!$A$12,$J81,S$9)*$H81+OFFSET('Functionalization Factors'!$A$12,$F81-1,S$9) -> 7677 | V81: =IF($D81=0,0,W81/$D81) -> 0.02409795493 | W81: 185 | X81: =IF($D81=0,0,Y81/$D81) -> 0 | Y81: 0 | Z81: =IF(ABS(SUM(K81:S81)-D81)>1,"*****","") -> 
A83: H. GENERAL PLANT
B84: Land | C84: 480 | D84: 621 | G84: 0 | H84: =D84-G84 -> 621 | I84: INDIRECT_I&II | J84: =MATCH(I84,'Functionalization Factors'!$A$12:$A$191,0) -> 177 | K84: =OFFSET('Functionalization Factors'!$A$12,$J84,K$9)*$H84+OFFSET('Functionalization Factors'!$A$12,$F84-1,K$9) -> 13.31629253 | L84: =OFFSET('Functionalization Factors'!$A$12,$J84,L$9)*$H84+OFFSET('Functionalization Factors'!$A$12,$F84-1,L$9) -> 0.3829802947 | M84: =OFFSET('Functionalization Factors'!$A$12,$J84,M$9)*$H84+OFFSET('Functionalization Factors'!$A$12,$F84-1,M$9) -> 28.21305324 | N84: =OFFSET('Functionalization Factors'!$A$12,$J84,N$9)*$H84+OFFSET('Functionalization Factors'!$A$12,$F84-1,N$9) -> 14.07197087 | O84: =OFFSET('Functionalization Factors'!$A$12,$J84,O$9)*$H84+OFFSET('Functionalization Factors'!$A$12,$F84-1,O$9) -> 99.11912866 | P84: =OFFSET('Functionalization Factors'!$A$12,$J84,P$9)*$H84+OFFSET('Functionalization Factors'!$A$12,$F84-1,P$9) -> 0 | Q84: =OFFSET('Functionalization Factors'!$A$12,$J84,Q$9)*$H84+OFFSET('Functionalization Factors'!$A$12,$F84-1,Q$9) -> 31.65591129 | R84: =OFFSET('Functionalization Factors'!$A$12,$J84,R$9)*$H84+OFFSET('Functionalization Factors'!$A$12,$F84-1,R$9) -> 3.959269686 | S84: =OFFSET('Functionalization Factors'!$A$12,$J84,S$9)*$H84+OFFSET('Functionalization Factors'!$A$12,$F84-1,S$9) -> 430.2813934 | V84: =IF($D84=0,0,W84/$D84) -> 0 | W84: 0 | X84: =IF($D84=0,0,Y84/$D84) -> 0.1220430418 | Y84: 75.78872898
B85: Structures & Improvements | C85: 482 | D85: 44553.09906 | G85: 0 | H85: =D85-G85 -> 44553.09906 | I85: INDIRECT_I&II | J85: =MATCH(I85,'Functionalization Factors'!$A$12:$A$191,0) -> 177 | K85: =OFFSET('Functionalization Factors'!$A$12,$J85,K$9)*$H85+OFFSET('Functionalization Factors'!$A$12,$F85-1,K$9) -> 955.3657008 | L85: =OFFSET('Functionalization Factors'!$A$12,$J85,L$9)*$H85+OFFSET('Functionalization Factors'!$A$12,$F85-1,L$9) -> 27.47658455 | M85: =OFFSET('Functionalization Factors'!$A$12,$J85,M$9)*$H85+OFFSET('Functionalization Factors'!$A$12,$F85-1,M$9) -> 2024.120701 | N85: =OFFSET('Functionalization Factors'!$A$12,$J85,N$9)*$H85+OFFSET('Functionalization Factors'!$A$12,$F85-1,N$9) -> 1009.581179 | O85: =OFFSET('Functionalization Factors'!$A$12,$J85,O$9)*$H85+OFFSET('Functionalization Factors'!$A$12,$F85-1,O$9) -> 7111.214746 | P85: =OFFSET('Functionalization Factors'!$A$12,$J85,P$9)*$H85+OFFSET('Functionalization Factors'!$A$12,$F85-1,P$9) -> 0 | Q85: =OFFSET('Functionalization Factors'!$A$12,$J85,Q$9)*$H85+OFFSET('Functionalization Factors'!$A$12,$F85-1,Q$9) -> 2271.125525 | R85: =OFFSET('Functionalization Factors'!$A$12,$J85,R$9)*$H85+OFFSET('Functionalization Factors'!$A$12,$F85-1,R$9) -> 284.0543229 | S85: =OFFSET('Functionalization Factors'!$A$12,$J85,S$9)*$H85+OFFSET('Functionalization Factors'!$A$12,$F85-1,S$9) -> 30870.1603 | V85: 0.01952726114 | W85: 870 | X85: 0.01530978887 | Y85: 682.0985399
B86: Furniture and Equipment | C86: 483 | D86: =112276.859277709+1915.86587986095 -> 114192.7252 | G86: =IF(F86<>0,OFFSET('Functionalization Factors'!$A$12,$F86,1),0) -> 0 | H86: =D86-G86 -> 114192.7252 | I86: INDIRECT_I&II | J86: =MATCH(I86,'Functionalization Factors'!$A$12:$A$191,0) -> 177 | K86: =OFFSET('Functionalization Factors'!$A$12,$J86,K$9)*$H86+OFFSET('Functionalization Factors'!$A$12,$F86-1,K$9) -> 2448.669458 | L86: =OFFSET('Functionalization Factors'!$A$12,$J86,L$9)*$H86+OFFSET('Functionalization Factors'!$A$12,$F86-1,L$9) -> 70.42441793 | M86: =OFFSET('Functionalization Factors'!$A$12,$J86,M$9)*$H86+OFFSET('Functionalization Factors'!$A$12,$F86-1,M$9) -> 5187.963662 | N86: =OFFSET('Functionalization Factors'!$A$12,$J86,N$9)*$H86+OFFSET('Functionalization Factors'!$A$12,$F86-1,N$9) -> 2587.627539 | O86: =OFFSET('Functionalization Factors'!$A$12,$J86,O$9)*$H86+OFFSET('Functionalization Factors'!$A$12,$F86-1,O$9) -> 18226.54334 | P86: =OFFSET('Functionalization Factors'!$A$12,$J86,P$9)*$H86+OFFSET('Functionalization Factors'!$A$12,$F86-1,P$9) -> 0 | Q86: =OFFSET('Functionalization Factors'!$A$12,$J86,Q$9)*$H86+OFFSET('Functionalization Factors'!$A$12,$F86-1,Q$9) -> 5821.054392 | R86: =OFFSET('Functionalization Factors'!$A$12,$J86,R$9)*$H86+OFFSET('Functionalization Factors'!$A$12,$F86-1,R$9) -> 728.0511998 | S86: =OFFSET('Functionalization Factors'!$A$12,$J86,S$9)*$H86+OFFSET('Functionalization Factors'!$A$12,$F86-1,S$9) -> 79122.39114 | V86: 0.2294130556 | W86: =26576-378.698 -> 26197.302 | X86: 0 | Y86: 0
B87: Transportation Equipment | C87: 484 | D87: 42643.75 | G87: 0 | H87: 42643.75 | I87: INDIRECT_I&II | J87: =MATCH(I87,'Functionalization Factors'!$A$12:$A$191,0) -> 177 | K87: =OFFSET('Functionalization Factors'!$A$12,$J87,K$9)*$H87+OFFSET('Functionalization Factors'!$A$12,$F87-1,K$9) -> 914.4229463 | L87: =OFFSET('Functionalization Factors'!$A$12,$J87,L$9)*$H87+OFFSET('Functionalization Factors'!$A$12,$F87-1,L$9) -> 26.29905949 | M87: =OFFSET('Functionalization Factors'!$A$12,$J87,M$9)*$H87+OFFSET('Functionalization Factors'!$A$12,$F87-1,M$9) -> 1937.375828 | N87: =OFFSET('Functionalization Factors'!$A$12,$J87,N$9)*$H87+OFFSET('Functionalization Factors'!$A$12,$F87-1,N$9) -> 966.3149882 | O87: =OFFSET('Functionalization Factors'!$A$12,$J87,O$9)*$H87+OFFSET('Functionalization Factors'!$A$12,$F87-1,O$9) -> 6806.459489 | P87: =OFFSET('Functionalization Factors'!$A$12,$J87,P$9)*$H87+OFFSET('Functionalization Factors'!$A$12,$F87-1,P$9) -> 0 | Q87: =OFFSET('Functionalization Factors'!$A$12,$J87,Q$9)*$H87+OFFSET('Functionalization Factors'!$A$12,$F87-1,Q$9) -> 2173.795116 | R87: =OFFSET('Functionalization Factors'!$A$12,$J87,R$9)*$H87+OFFSET('Functionalization Factors'!$A$12,$F87-1,R$9) -> 271.8810091 | S87: =OFFSET('Functionalization Factors'!$A$12,$J87,S$9)*$H87+OFFSET('Functionalization Factors'!$A$12,$F87-1,S$9) -> 29547.20156 | V87: 0.0767756119 | W87: 3274 | X87: 0 | Y87: 0
B88: Construction Equipment | C88: 485/6 | D88: 48628.625 | G88: 0 | H88: 48628.625 | I88: INDIRECT_I&II | J88: =MATCH(I88,'Functionalization Factors'!$A$12:$A$191,0) -> 177 | K88: =OFFSET('Functionalization Factors'!$A$12,$J88,K$9)*$H88+OFFSET('Functionalization Factors'!$A$12,$F88-1,K$9) -> 1042.758448 | L88: =OFFSET('Functionalization Factors'!$A$12,$J88,L$9)*$H88+OFFSET('Functionalization Factors'!$A$12,$F88-1,L$9) -> 29.99002437 | M88: =OFFSET('Functionalization Factors'!$A$12,$J88,M$9)*$H88+OFFSET('Functionalization Factors'!$A$12,$F88-1,M$9) -> 2209.27856 | N88: =OFFSET('Functionalization Factors'!$A$12,$J88,N$9)*$H88+OFFSET('Functionalization Factors'!$A$12,$F88-1,N$9) -> 1101.933324 | O88: =OFFSET('Functionalization Factors'!$A$12,$J88,O$9)*$H88+OFFSET('Functionalization Factors'!$A$12,$F88-1,O$9) -> 7761.718096 | P88: =OFFSET('Functionalization Factors'!$A$12,$J88,P$9)*$H88+OFFSET('Functionalization Factors'!$A$12,$F88-1,P$9) -> 0 | Q88: =OFFSET('Functionalization Factors'!$A$12,$J88,Q$9)*$H88+OFFSET('Functionalization Factors'!$A$12,$F88-1,Q$9) -> 2478.878324 | R88: =OFFSET('Functionalization Factors'!$A$12,$J88,R$9)*$H88+OFFSET('Functionalization Factors'!$A$12,$F88-1,R$9) -> 310.038391 | S88: =OFFSET('Functionalization Factors'!$A$12,$J88,S$9)*$H88+OFFSET('Functionalization Factors'!$A$12,$F88-1,S$9) -> 33694.02983 | V88: 0.06728547229 | W88: 3272 | X88: 0 | Y88: 0
B89: Communication Equipment | C89: 488 | D89: 15505.75 | G89: 0 | H89: 15505.75 | I89: INDIRECT_I&II | J89: =MATCH(I89,'Functionalization Factors'!$A$12:$A$191,0) -> 177 | K89: =OFFSET('Functionalization Factors'!$A$12,$J89,K$9)*$H89+OFFSET('Functionalization Factors'!$A$12,$F89-1,K$9) -> 332.4945297 | L89: =OFFSET('Functionalization Factors'!$A$12,$J89,L$9)*$H89+OFFSET('Functionalization Factors'!$A$12,$F89-1,L$9) -> 9.562635595 | M89: =OFFSET('Functionalization Factors'!$A$12,$J89,M$9)*$H89+OFFSET('Functionalization Factors'!$A$12,$F89-1,M$9) -> 704.4517717 | N89: =OFFSET('Functionalization Factors'!$A$12,$J89,N$9)*$H89+OFFSET('Functionalization Factors'!$A$12,$F89-1,N$9) -> 351.3630632 | O89: =OFFSET('Functionalization Factors'!$A$12,$J89,O$9)*$H89+OFFSET('Functionalization Factors'!$A$12,$F89-1,O$9) -> 2474.905683 | P89: =OFFSET('Functionalization Factors'!$A$12,$J89,P$9)*$H89+OFFSET('Functionalization Factors'!$A$12,$F89-1,P$9) -> 0 | Q89: =OFFSET('Functionalization Factors'!$A$12,$J89,Q$9)*$H89+OFFSET('Functionalization Factors'!$A$12,$F89-1,Q$9) -> 790.4164999 | R89: =OFFSET('Functionalization Factors'!$A$12,$J89,R$9)*$H89+OFFSET('Functionalization Factors'!$A$12,$F89-1,R$9) -> 98.85901116 | S89: =OFFSET('Functionalization Factors'!$A$12,$J89,S$9)*$H89+OFFSET('Functionalization Factors'!$A$12,$F89-1,S$9) -> 10743.69681 | V89: 0.06610450962 | W89: 1025 | X89: 0 | Y89: 0
B90: Rental Equip. on Customer Premise | C90: 487 | D90: 0 | F90: 0 | G90: =IF(F90<>0,OFFSET('Functionalization Factors'!$A$12,$F90,1),0) -> 0 | H90: 0 | I90: DIST | J90: =MATCH(I90,'Functionalization Factors'!$A$12:$A$191,0) -> 18 | K90: =OFFSET('Functionalization Factors'!$A$12,$J90,K$9)*$H90+OFFSET('Functionalization Factors'!$A$12,$F90-1,K$9) -> 0 | L90: =OFFSET('Functionalization Factors'!$A$12,$J90,L$9)*$H90+OFFSET('Functionalization Factors'!$A$12,$F90-1,L$9) -> 0 | M90: =OFFSET('Functionalization Factors'!$A$12,$J90,M$9)*$H90+OFFSET('Functionalization Factors'!$A$12,$F90-1,M$9) -> 0 | N90: =OFFSET('Functionalization Factors'!$A$12,$J90,N$9)*$H90+OFFSET('Functionalization Factors'!$A$12,$F90-1,N$9) -> 0 | O90: =OFFSET('Functionalization Factors'!$A$12,$J90,O$9)*$H90+OFFSET('Functionalization Factors'!$A$12,$F90-1,O$9) -> 0 | P90: =OFFSET('Functionalization Factors'!$A$12,$J90,P$9)*$H90+OFFSET('Functionalization Factors'!$A$12,$F90-1,P$9) -> 0 | Q90: =OFFSET('Functionalization Factors'!$A$12,$J90,Q$9)*$H90+OFFSET('Functionalization Factors'!$A$12,$F90-1,Q$9) -> 0 | R90: =OFFSET('Functionalization Factors'!$A$12,$J90,R$9)*$H90+OFFSET('Functionalization Factors'!$A$12,$F90-1,R$9) -> 0 | S90: =OFFSET('Functionalization Factors'!$A$12,$J90,S$9)*$H90+OFFSET('Functionalization Factors'!$A$12,$F90-1,S$9) -> 0 | V90: 0 | W90: 0 | X90: 0 | Y90: 0
B91: Capital Leases | D91: 0 | F91: 0 | G91: =IF(F91<>0,OFFSET('Functionalization Factors'!$A$12,$F91,1),0) -> 0 | H91: 0 | I91: DIST | J91: =MATCH(I91,'Functionalization Factors'!$A$12:$A$191,0) -> 18 | K91: =OFFSET('Functionalization Factors'!$A$12,$J91,K$9)*$H91+OFFSET('Functionalization Factors'!$A$12,$F91-1,K$9) -> 0 | L91: =OFFSET('Functionalization Factors'!$A$12,$J91,L$9)*$H91+OFFSET('Functionalization Factors'!$A$12,$F91-1,L$9) -> 0 | M91: =OFFSET('Functionalization Factors'!$A$12,$J91,M$9)*$H91+OFFSET('Functionalization Factors'!$A$12,$F91-1,M$9) -> 0 | N91: =OFFSET('Functionalization Factors'!$A$12,$J91,N$9)*$H91+OFFSET('Functionalization Factors'!$A$12,$F91-1,N$9) -> 0 | O91: =OFFSET('Functionalization Factors'!$A$12,$J91,O$9)*$H91+OFFSET('Functionalization Factors'!$A$12,$F91-1,O$9) -> 0 | P91: =OFFSET('Functionalization Factors'!$A$12,$J91,P$9)*$H91+OFFSET('Functionalization Factors'!$A$12,$F91-1,P$9) -> 0 | Q91: =OFFSET('Functionalization Factors'!$A$12,$J91,Q$9)*$H91+OFFSET('Functionalization Factors'!$A$12,$F91-1,Q$9) -> 0 | R91: =OFFSET('Functionalization Factors'!$A$12,$J91,R$9)*$H91+OFFSET('Functionalization Factors'!$A$12,$F91-1,R$9) -> 0 | S91: =OFFSET('Functionalization Factors'!$A$12,$J91,S$9)*$H91+OFFSET('Functionalization Factors'!$A$12,$F91-1,S$9) -> 0 | V91: 0 | W91: 0 | X91: 0 | Y91: 0
B92: Other | C92: 489 | D92: 0 | F92: 0 | G92: =IF(F92<>0,OFFSET('Functionalization Factors'!$A$12,$F92,1),0) -> 0 | H92: 0 | I92: INDIRECT_I&II | J92: =MATCH(I92,'Functionalization Factors'!$A$12:$A$191,0) -> 177 | K92: =OFFSET('Functionalization Factors'!$A$12,$J92,K$9)*$H92+OFFSET('Functionalization Factors'!$A$12,$F92-1,K$9) -> 0 | L92: =OFFSET('Functionalization Factors'!$A$12,$J92,L$9)*$H92+OFFSET('Functionalization Factors'!$A$12,$F92-1,L$9) -> 0 | M92: =OFFSET('Functionalization Factors'!$A$12,$J92,M$9)*$H92+OFFSET('Functionalization Factors'!$A$12,$F92-1,M$9) -> 0 | N92: =OFFSET('Functionalization Factors'!$A$12,$J92,N$9)*$H92+OFFSET('Functionalization Factors'!$A$12,$F92-1,N$9) -> 0 | O92: =OFFSET('Functionalization Factors'!$A$12,$J92,O$9)*$H92+OFFSET('Functionalization Factors'!$A$12,$F92-1,O$9) -> 0 | P92: =OFFSET('Functionalization Factors'!$A$12,$J92,P$9)*$H92+OFFSET('Functionalization Factors'!$A$12,$F92-1,P$9) -> 0 | Q92: =OFFSET('Functionalization Factors'!$A$12,$J92,Q$9)*$H92+OFFSET('Functionalization Factors'!$A$12,$F92-1,Q$9) -> 0 | R92: =OFFSET('Functionalization Factors'!$A$12,$J92,R$9)*$H92+OFFSET('Functionalization Factors'!$A$12,$F92-1,R$9) -> 0 | S92: =OFFSET('Functionalization Factors'!$A$12,$J92,S$9)*$H92+OFFSET('Functionalization Factors'!$A$12,$F92-1,S$9) -> 0 | V92: 0 | W92: 0 | X92: 0 | Y92: 0
B93: Subtotal | D93: =SUM(D84:D92) -> 266144.9492 | G93: =SUM(G84:G92) -> 0 | H93: =SUM(H84:H92) -> 266144.9492 | K93: =SUM(K84:K92) -> 5707.027374 | L93: 164.1357022 | M93: 12091.40358 | N93: 6030.892064 | O93: 42479.96049 | P93: 0 | Q93: 13566.92577 | R93: 1696.843204 | S93: =SUM(S84:S92) -> 184407.761 | W93: =SUM(W84:W92) -> 34638.302 | Y93: =SUM(Y84:Y92) -> 757.8872689
A95: TOTAL GROSS PLANT IN SERVICE | D95: =D93+D81+D79+D62+D47+D37+D26+D19 -> 6363261.977 | G95: =G93+G81+G79+G62+G47+G37+G26+G19 -> 1474518.825 | H95: =H93+H81+H79+H62+H47+H37+H26+H19 -> 4888743.151 | K95: =K93+K81+K79+K62+K47+K37+K26+K19 -> 5707.027374 | L95: 7570.460422 | M95: 363821.7296 | N95: 158616.6079 | O95: 1381840.058 | P95: 0 | Q95: 367819.9861 | R95: 63182.92909 | S95: 4014703.178 | W95: =W93+W81+W79+W62+W47+W37+W26+W19 -> 195712.326 | Y95: =Y93+Y81+Y79+Y62+Y47+Y37+Y26+Y19 -> 63272
A97: II. ACCUMULATED DEPRECIATION
A99: A. PRODUCTION AND GATHERING
B100: Land | C100: 410 | D100: 0 | F100: 0 | G100: 0 | H100: =D100-G100 -> 0 | I100: PROD | J100: =MATCH(I100,'Functionalization Factors'!$A$12:$A$191,0) -> 3 | K100: =OFFSET('Functionalization Factors'!$A$12,$J100,K$9)*$H100+OFFSET('Functionalization Factors'!$A$12,$F100-1,K$9) -> 0 | L100: =OFFSET('Functionalization Factors'!$A$12,$J100,L$9)*$H100+OFFSET('Functionalization Factors'!$A$12,$F100-1,L$9) -> 0 | M100: =OFFSET('Functionalization Factors'!$A$12,$J100,M$9)*$H100+OFFSET('Functionalization Factors'!$A$12,$F100-1,M$9) -> 0 | N100: =OFFSET('Functionalization Factors'!$A$12,$J100,N$9)*$H100+OFFSET('Functionalization Factors'!$A$12,$F100-1,N$9) -> 0 | O100: =OFFSET('Functionalization Factors'!$A$12,$J100,O$9)*$H100+OFFSET('Functionalization Factors'!$A$12,$F100-1,O$9) -> 0 | P100: =OFFSET('Functionalization Factors'!$A$12,$J100,P$9)*$H100+OFFSET('Functionalization Factors'!$A$12,$F100-1,P$9) -> 0 | Q100: =OFFSET('Functionalization Factors'!$A$12,$J100,Q$9)*$H100+OFFSET('Functionalization Factors'!$A$12,$F100-1,Q$9) -> 0 | R100: =OFFSET('Functionalization Factors'!$A$12,$J100,R$9)*$H100+OFFSET('Functionalization Factors'!$A$12,$F100-1,R$9) -> 0 | S100: =OFFSET('Functionalization Factors'!$A$12,$J100,S$9)*$H100+OFFSET('Functionalization Factors'!$A$12,$F100-1,S$9) -> 0 | Z100: =IF(ABS(SUM(K100:S100)-DOLLARS)>1,"*****","") -> 
B101: Land Rights | C101: 411 | D101: 0 | F101: 0 | G101: 0 | H101: =D101-G101 -> 0 | I101: PROD | J101: =MATCH(I101,'Functionalization Factors'!$A$12:$A$191,0) -> 3 | K101: =OFFSET('Functionalization Factors'!$A$12,$J101,K$9)*$H101+OFFSET('Functionalization Factors'!$A$12,$F101-1,K$9) -> 0 | L101: =OFFSET('Functionalization Factors'!$A$12,$J101,L$9)*$H101+OFFSET('Functionalization Factors'!$A$12,$F101-1,L$9) -> 0 | M101: =OFFSET('Functionalization Factors'!$A$12,$J101,M$9)*$H101+OFFSET('Functionalization Factors'!$A$12,$F101-1,M$9) -> 0 | N101: =OFFSET('Functionalization Factors'!$A$12,$J101,N$9)*$H101+OFFSET('Functionalization Factors'!$A$12,$F101-1,N$9) -> 0 | O101: =OFFSET('Functionalization Factors'!$A$12,$J101,O$9)*$H101+OFFSET('Functionalization Factors'!$A$12,$F101-1,O$9) -> 0 | P101: =OFFSET('Functionalization Factors'!$A$12,$J101,P$9)*$H101+OFFSET('Functionalization Factors'!$A$12,$F101-1,P$9) -> 0 | Q101: =OFFSET('Functionalization Factors'!$A$12,$J101,Q$9)*$H101+OFFSET('Functionalization Factors'!$A$12,$F101-1,Q$9) -> 0 | R101: =OFFSET('Functionalization Factors'!$A$12,$J101,R$9)*$H101+OFFSET('Functionalization Factors'!$A$12,$F101-1,R$9) -> 0 | S101: =OFFSET('Functionalization Factors'!$A$12,$J101,S$9)*$H101+OFFSET('Functionalization Factors'!$A$12,$F101-1,S$9) -> 0 | Z101: =IF(ABS(SUM(K101:S101)-D101)>1,"*****","") -> 
B102: Wells and Lines | C102: 406/7/8/415 | D102: 0 | F102: 0 | G102: 0 | H102: =D102-G102 -> 0 | I102: PROD | J102: =MATCH(I102,'Functionalization Factors'!$A$12:$A$191,0) -> 3 | K102: =OFFSET('Functionalization Factors'!$A$12,$J102,K$9)*$H102+OFFSET('Functionalization Factors'!$A$12,$F102-1,K$9) -> 0 | L102: =OFFSET('Functionalization Factors'!$A$12,$J102,L$9)*$H102+OFFSET('Functionalization Factors'!$A$12,$F102-1,L$9) -> 0 | M102: =OFFSET('Functionalization Factors'!$A$12,$J102,M$9)*$H102+OFFSET('Functionalization Factors'!$A$12,$F102-1,M$9) -> 0 | N102: =OFFSET('Functionalization Factors'!$A$12,$J102,N$9)*$H102+OFFSET('Functionalization Factors'!$A$12,$F102-1,N$9) -> 0 | O102: =OFFSET('Functionalization Factors'!$A$12,$J102,O$9)*$H102+OFFSET('Functionalization Factors'!$A$12,$F102-1,O$9) -> 0 | P102: =OFFSET('Functionalization Factors'!$A$12,$J102,P$9)*$H102+OFFSET('Functionalization Factors'!$A$12,$F102-1,P$9) -> 0 | Q102: =OFFSET('Functionalization Factors'!$A$12,$J102,Q$9)*$H102+OFFSET('Functionalization Factors'!$A$12,$F102-1,Q$9) -> 0 | R102: =OFFSET('Functionalization Factors'!$A$12,$J102,R$9)*$H102+OFFSET('Functionalization Factors'!$A$12,$F102-1,R$9) -> 0 | S102: =OFFSET('Functionalization Factors'!$A$12,$J102,S$9)*$H102+OFFSET('Functionalization Factors'!$A$12,$F102-1,S$9) -> 0
B103: Comp., Meas., & Reg. Equipment | C103: 412/13/16/17 | D103: 0 | F103: 0 | G103: 0 | H103: =D103-G103 -> 0 | I103: PROD | J103: =MATCH(I103,'Functionalization Factors'!$A$12:$A$191,0) -> 3 | K103: =OFFSET('Functionalization Factors'!$A$12,$J103,K$9)*$H103+OFFSET('Functionalization Factors'!$A$12,$F103-1,K$9) -> 0 | L103: =OFFSET('Functionalization Factors'!$A$12,$J103,L$9)*$H103+OFFSET('Functionalization Factors'!$A$12,$F103-1,L$9) -> 0 | M103: =OFFSET('Functionalization Factors'!$A$12,$J103,M$9)*$H103+OFFSET('Functionalization Factors'!$A$12,$F103-1,M$9) -> 0 | N103: =OFFSET('Functionalization Factors'!$A$12,$J103,N$9)*$H103+OFFSET('Functionalization Factors'!$A$12,$F103-1,N$9) -> 0 | O103: =OFFSET('Functionalization Factors'!$A$12,$J103,O$9)*$H103+OFFSET('Functionalization Factors'!$A$12,$F103-1,O$9) -> 0 | P103: =OFFSET('Functionalization Factors'!$A$12,$J103,P$9)*$H103+OFFSET('Functionalization Factors'!$A$12,$F103-1,P$9) -> 0 | Q103: =OFFSET('Functionalization Factors'!$A$12,$J103,Q$9)*$H103+OFFSET('Functionalization Factors'!$A$12,$F103-1,Q$9) -> 0 | R103: =OFFSET('Functionalization Factors'!$A$12,$J103,R$9)*$H103+OFFSET('Functionalization Factors'!$A$12,$F103-1,R$9) -> 0 | S103: =OFFSET('Functionalization Factors'!$A$12,$J103,S$9)*$H103+OFFSET('Functionalization Factors'!$A$12,$F103-1,S$9) -> 0
B104: Other | C104: 419 | D104: 0 | F104: 0 | G104: 0 | H104: =D104-G104 -> 0 | I104: PROD | J104: =MATCH(I104,'Functionalization Factors'!$A$12:$A$191,0) -> 3 | K104: =OFFSET('Functionalization Factors'!$A$12,$J104,K$9)*$H104+OFFSET('Functionalization Factors'!$A$12,$F104-1,K$9) -> 0 | L104: =OFFSET('Functionalization Factors'!$A$12,$J104,L$9)*$H104+OFFSET('Functionalization Factors'!$A$12,$F104-1,L$9) -> 0 | M104: =OFFSET('Functionalization Factors'!$A$12,$J104,M$9)*$H104+OFFSET('Functionalization Factors'!$A$12,$F104-1,M$9) -> 0 | N104: =OFFSET('Functionalization Factors'!$A$12,$J104,N$9)*$H104+OFFSET('Functionalization Factors'!$A$12,$F104-1,N$9) -> 0 | O104: =OFFSET('Functionalization Factors'!$A$12,$J104,O$9)*$H104+OFFSET('Functionalization Factors'!$A$12,$F104-1,O$9) -> 0 | P104: =OFFSET('Functionalization Factors'!$A$12,$J104,P$9)*$H104+OFFSET('Functionalization Factors'!$A$12,$F104-1,P$9) -> 0 | Q104: =OFFSET('Functionalization Factors'!$A$12,$J104,Q$9)*$H104+OFFSET('Functionalization Factors'!$A$12,$F104-1,Q$9) -> 0 | R104: =OFFSET('Functionalization Factors'!$A$12,$J104,R$9)*$H104+OFFSET('Functionalization Factors'!$A$12,$F104-1,R$9) -> 0 | S104: =OFFSET('Functionalization Factors'!$A$12,$J104,S$9)*$H104+OFFSET('Functionalization Factors'!$A$12,$F104-1,S$9) -> 0
B105: Subtotal | D105: =SUM(D100:D104) -> 0 | G105: =SUM(G100:G104) -> 0 | H105: =SUM(H100:H104) -> 0 | K105: =SUM(K100:K104) -> 0 | L105: =SUM(L100:L104) -> 0 | M105: 0 | N105: 0 | O105: 0 | P105: 0 | Q105: 0 | R105: 0 | S105: =SUM(S100:S104) -> 0
A107: B. LOCAL STORAGE
B108: Gas Holders Storage and Equipment | C108: 443 | D108: 9353.029726 | F108: 0 | G108: 0 | H108: =D108-G108 -> 9353.029726 | I108: STORDEHYX | J108: =MATCH(I108,'Functionalization Factors'!$A$12:$A$191,0) -> 9 | K108: =OFFSET('Functionalization Factors'!$A$12,$J108,K$9)*$H108+OFFSET('Functionalization Factors'!$A$12,$F108-1,K$9) -> 0 | L108: =OFFSET('Functionalization Factors'!$A$12,$J108,L$9)*$H108+OFFSET('Functionalization Factors'!$A$12,$F108-1,L$9) -> 0 | M108: =OFFSET('Functionalization Factors'!$A$12,$J108,M$9)*$H108+OFFSET('Functionalization Factors'!$A$12,$F108-1,M$9) -> 9353.029726 | N108: =OFFSET('Functionalization Factors'!$A$12,$J108,N$9)*$H108+OFFSET('Functionalization Factors'!$A$12,$F108-1,N$9) -> 0 | O108: =OFFSET('Functionalization Factors'!$A$12,$J108,O$9)*$H108+OFFSET('Functionalization Factors'!$A$12,$F108-1,O$9) -> 0 | P108: =OFFSET('Functionalization Factors'!$A$12,$J108,P$9)*$H108+OFFSET('Functionalization Factors'!$A$12,$F108-1,P$9) -> 0 | Q108: =OFFSET('Functionalization Factors'!$A$12,$J108,Q$9)*$H108+OFFSET('Functionalization Factors'!$A$12,$F108-1,Q$9) -> 0 | R108: =OFFSET('Functionalization Factors'!$A$12,$J108,R$9)*$H108+OFFSET('Functionalization Factors'!$A$12,$F108-1,R$9) -> 0 | S108: =OFFSET('Functionalization Factors'!$A$12,$J108,S$9)*$H108+OFFSET('Functionalization Factors'!$A$12,$F108-1,S$9) -> 0
B109: Land | C109: 440 | D109: 0 | F109: 0 | G109: 0 | H109: =D109-G109 -> 0 | I109: STORDEHYX | J109: =MATCH(I109,'Functionalization Factors'!$A$12:$A$191,0) -> 9 | K109: =OFFSET('Functionalization Factors'!$A$12,$J109,K$9)*$H109+OFFSET('Functionalization Factors'!$A$12,$F109-1,K$9) -> 0 | L109: =OFFSET('Functionalization Factors'!$A$12,$J109,L$9)*$H109+OFFSET('Functionalization Factors'!$A$12,$F109-1,L$9) -> 0 | M109: =OFFSET('Functionalization Factors'!$A$12,$J109,M$9)*$H109+OFFSET('Functionalization Factors'!$A$12,$F109-1,M$9) -> 0 | N109: =OFFSET('Functionalization Factors'!$A$12,$J109,N$9)*$H109+OFFSET('Functionalization Factors'!$A$12,$F109-1,N$9) -> 0 | O109: =OFFSET('Functionalization Factors'!$A$12,$J109,O$9)*$H109+OFFSET('Functionalization Factors'!$A$12,$F109-1,O$9) -> 0 | P109: =OFFSET('Functionalization Factors'!$A$12,$J109,P$9)*$H109+OFFSET('Functionalization Factors'!$A$12,$F109-1,P$9) -> 0 | Q109: =OFFSET('Functionalization Factors'!$A$12,$J109,Q$9)*$H109+OFFSET('Functionalization Factors'!$A$12,$F109-1,Q$9) -> 0 | R109: =OFFSET('Functionalization Factors'!$A$12,$J109,R$9)*$H109+OFFSET('Functionalization Factors'!$A$12,$F109-1,R$9) -> 0 | S109: =OFFSET('Functionalization Factors'!$A$12,$J109,S$9)*$H109+OFFSET('Functionalization Factors'!$A$12,$F109-1,S$9) -> 0
B110: Structures & Improvements | C110: 442 | D110: 1868.261941 | F110: 0 | G110: 0 | H110: =D110-G110 -> 1868.261941 | I110: STORDEHYX | J110: =MATCH(I110,'Functionalization Factors'!$A$12:$A$191,0) -> 9 | K110: =OFFSET('Functionalization Factors'!$A$12,$J110,K$9)*$H110+OFFSET('Functionalization Factors'!$A$12,$F110-1,K$9) -> 0 | L110: =OFFSET('Functionalization Factors'!$A$12,$J110,L$9)*$H110+OFFSET('Functionalization Factors'!$A$12,$F110-1,L$9) -> 0 | M110: =OFFSET('Functionalization Factors'!$A$12,$J110,M$9)*$H110+OFFSET('Functionalization Factors'!$A$12,$F110-1,M$9) -> 1868.261941 | N110: =OFFSET('Functionalization Factors'!$A$12,$J110,N$9)*$H110+OFFSET('Functionalization Factors'!$A$12,$F110-1,N$9) -> 0 | O110: =OFFSET('Functionalization Factors'!$A$12,$J110,O$9)*$H110+OFFSET('Functionalization Factors'!$A$12,$F110-1,O$9) -> 0 | P110: =OFFSET('Functionalization Factors'!$A$12,$J110,P$9)*$H110+OFFSET('Functionalization Factors'!$A$12,$F110-1,P$9) -> 0 | Q110: =OFFSET('Functionalization Factors'!$A$12,$J110,Q$9)*$H110+OFFSET('Functionalization Factors'!$A$12,$F110-1,Q$9) -> 0 | R110: =OFFSET('Functionalization Factors'!$A$12,$J110,R$9)*$H110+OFFSET('Functionalization Factors'!$A$12,$F110-1,R$9) -> 0 | S110: =OFFSET('Functionalization Factors'!$A$12,$J110,S$9)*$H110+OFFSET('Functionalization Factors'!$A$12,$F110-1,S$9) -> 0
B111: Other | C111: 444 | D111: 0 | F111: 0 | G111: 0 | H111: =D111-G111 -> 0 | I111: STORDEHYX | J111: =MATCH(I111,'Functionalization Factors'!$A$12:$A$191,0) -> 9 | K111: =OFFSET('Functionalization Factors'!$A$12,$J111,K$9)*$H111+OFFSET('Functionalization Factors'!$A$12,$F111-1,K$9) -> 0 | L111: =OFFSET('Functionalization Factors'!$A$12,$J111,L$9)*$H111+OFFSET('Functionalization Factors'!$A$12,$F111-1,L$9) -> 0 | M111: =OFFSET('Functionalization Factors'!$A$12,$J111,M$9)*$H111+OFFSET('Functionalization Factors'!$A$12,$F111-1,M$9) -> 0 | N111: =OFFSET('Functionalization Factors'!$A$12,$J111,N$9)*$H111+OFFSET('Functionalization Factors'!$A$12,$F111-1,N$9) -> 0 | O111: =OFFSET('Functionalization Factors'!$A$12,$J111,O$9)*$H111+OFFSET('Functionalization Factors'!$A$12,$F111-1,O$9) -> 0 | P111: =OFFSET('Functionalization Factors'!$A$12,$J111,P$9)*$H111+OFFSET('Functionalization Factors'!$A$12,$F111-1,P$9) -> 0 | Q111: =OFFSET('Functionalization Factors'!$A$12,$J111,Q$9)*$H111+OFFSET('Functionalization Factors'!$A$12,$F111-1,Q$9) -> 0 | R111: =OFFSET('Functionalization Factors'!$A$12,$J111,R$9)*$H111+OFFSET('Functionalization Factors'!$A$12,$F111-1,R$9) -> 0 | S111: =OFFSET('Functionalization Factors'!$A$12,$J111,S$9)*$H111+OFFSET('Functionalization Factors'!$A$12,$F111-1,S$9) -> 0
B112: Subtotal | D112: =SUM(D108:D111) -> 11221.29167 | G112: =SUM(G108:G111) -> 0 | H112: =SUM(H108:H111) -> 11221.29167 | K112: =SUM(K108:K111) -> 0 | L112: 0 | M112: 11221.29167 | N112: 0 | O112: 0 | P112: 0 | Q112: 0 | R112: 0 | S112: =SUM(S108:S111) -> 0
A114: C. UNDERGROUND STORAGE
B115: Land | C115: 450 | D115: 0 | F115: 0 | G115: 0 | H115: =D115-G115 -> 0 | I115: COMPRECL-PT | J115: =MATCH(I115,'Functionalization Factors'!$A$12:$A$191,0) -> 69 | K115: =OFFSET('Functionalization Factors'!$A$12,$J115,K$9)*$H115+OFFSET('Functionalization Factors'!$A$12,$F115-1,K$9) -> 0 | L115: =OFFSET('Functionalization Factors'!$A$12,$J115,L$9)*$H115+OFFSET('Functionalization Factors'!$A$12,$F115-1,L$9) -> 0 | M115: =OFFSET('Functionalization Factors'!$A$12,$J115,M$9)*$H115+OFFSET('Functionalization Factors'!$A$12,$F115-1,M$9) -> 0 | N115: =OFFSET('Functionalization Factors'!$A$12,$J115,N$9)*$H115+OFFSET('Functionalization Factors'!$A$12,$F115-1,N$9) -> 0 | O115: =OFFSET('Functionalization Factors'!$A$12,$J115,O$9)*$H115+OFFSET('Functionalization Factors'!$A$12,$F115-1,O$9) -> 0 | P115: =OFFSET('Functionalization Factors'!$A$12,$J115,P$9)*$H115+OFFSET('Functionalization Factors'!$A$12,$F115-1,P$9) -> 0 | Q115: =OFFSET('Functionalization Factors'!$A$12,$J115,Q$9)*$H115+OFFSET('Functionalization Factors'!$A$12,$F115-1,Q$9) -> 0 | R115: =OFFSET('Functionalization Factors'!$A$12,$J115,R$9)*$H115+OFFSET('Functionalization Factors'!$A$12,$F115-1,R$9) -> 0 | S115: =OFFSET('Functionalization Factors'!$A$12,$J115,S$9)*$H115+OFFSET('Functionalization Factors'!$A$12,$F115-1,S$9) -> 0
B116: Land Rights | C116: 451 | D116: 13028.70038 | F116: 0 | G116: 0 | H116: =D116-G116 -> 13028.70038 | I116: STORDEHYX | J116: =MATCH(I116,'Functionalization Factors'!$A$12:$A$191,0) -> 9 | K116: =OFFSET('Functionalization Factors'!$A$12,$J116,K$9)*$H116+OFFSET('Functionalization Factors'!$A$12,$F116-1,K$9) -> 0 | L116: =OFFSET('Functionalization Factors'!$A$12,$J116,L$9)*$H116+OFFSET('Functionalization Factors'!$A$12,$F116-1,L$9) -> 0 | M116: =OFFSET('Functionalization Factors'!$A$12,$J116,M$9)*$H116+OFFSET('Functionalization Factors'!$A$12,$F116-1,M$9) -> 13028.70038 | N116: =OFFSET('Functionalization Factors'!$A$12,$J116,N$9)*$H116+OFFSET('Functionalization Factors'!$A$12,$F116-1,N$9) -> 0 | O116: =OFFSET('Functionalization Factors'!$A$12,$J116,O$9)*$H116+OFFSET('Functionalization Factors'!$A$12,$F116-1,O$9) -> 0 | P116: =OFFSET('Functionalization Factors'!$A$12,$J116,P$9)*$H116+OFFSET('Functionalization Factors'!$A$12,$F116-1,P$9) -> 0 | Q116: =OFFSET('Functionalization Factors'!$A$12,$J116,Q$9)*$H116+OFFSET('Functionalization Factors'!$A$12,$F116-1,Q$9) -> 0 | R116: =OFFSET('Functionalization Factors'!$A$12,$J116,R$9)*$H116+OFFSET('Functionalization Factors'!$A$12,$F116-1,R$9) -> 0 | S116: =OFFSET('Functionalization Factors'!$A$12,$J116,S$9)*$H116+OFFSET('Functionalization Factors'!$A$12,$F116-1,S$9) -> 0
B117: Structures & Improvements | C117: 452 | D117: 21564.7715 | E117: STORS&IAD | F117: =MATCH(E117,'Functionalization Factors'!$A$12:$A$191,0) -> 99 | G117: =IF(F117<>0,OFFSET('Functionalization Factors'!$A$12,$F117,1),0) -> 8897.012241 | H117: 12667.75926 | I117: COMPRECL-PT | J117: =MATCH(I117,'Functionalization Factors'!$A$12:$A$191,0) -> 69 | K117: =OFFSET('Functionalization Factors'!$A$12,$J117,K$9)*$H117+OFFSET('Functionalization Factors'!$A$12,$F117-1,K$9) -> 0 | L117: =OFFSET('Functionalization Factors'!$A$12,$J117,L$9)*$H117+OFFSET('Functionalization Factors'!$A$12,$F117-1,L$9) -> 0 | M117: =OFFSET('Functionalization Factors'!$A$12,$J117,M$9)*$H117+OFFSET('Functionalization Factors'!$A$12,$F117-1,M$9) -> 8514.839463 | N117: =OFFSET('Functionalization Factors'!$A$12,$J117,N$9)*$H117+OFFSET('Functionalization Factors'!$A$12,$F117-1,N$9) -> 12245.4556 | O117: =OFFSET('Functionalization Factors'!$A$12,$J117,O$9)*$H117+OFFSET('Functionalization Factors'!$A$12,$F117-1,O$9) -> 392.4693333 | P117: =OFFSET('Functionalization Factors'!$A$12,$J117,P$9)*$H117+OFFSET('Functionalization Factors'!$A$12,$F117-1,P$9) -> 0 | Q117: =OFFSET('Functionalization Factors'!$A$12,$J117,Q$9)*$H117+OFFSET('Functionalization Factors'!$A$12,$F117-1,Q$9) -> 0 | R117: =OFFSET('Functionalization Factors'!$A$12,$J117,R$9)*$H117+OFFSET('Functionalization Factors'!$A$12,$F117-1,R$9) -> 412.0071038 | S117: =OFFSET('Functionalization Factors'!$A$12,$J117,S$9)*$H117+OFFSET('Functionalization Factors'!$A$12,$F117-1,S$9) -> 0 | Z117: =IF(ABS(SUM(K117:S117)-D117)>1,"*****","") -> 
B118: Wells and Lines | C118: 453/4/5 | D118: 47652.23842 | F118: 0 | G118: 0 | H118: 47652.23842 | I118: STORDEHYX | J118: =MATCH(I118,'Functionalization Factors'!$A$12:$A$191,0) -> 9 | K118: =OFFSET('Functionalization Factors'!$A$12,$J118,K$9)*$H118+OFFSET('Functionalization Factors'!$A$12,$F118-1,K$9) -> 0 | L118: =OFFSET('Functionalization Factors'!$A$12,$J118,L$9)*$H118+OFFSET('Functionalization Factors'!$A$12,$F118-1,L$9) -> 0 | M118: =OFFSET('Functionalization Factors'!$A$12,$J118,M$9)*$H118+OFFSET('Functionalization Factors'!$A$12,$F118-1,M$9) -> 47652.23842 | N118: =OFFSET('Functionalization Factors'!$A$12,$J118,N$9)*$H118+OFFSET('Functionalization Factors'!$A$12,$F118-1,N$9) -> 0 | O118: =OFFSET('Functionalization Factors'!$A$12,$J118,O$9)*$H118+OFFSET('Functionalization Factors'!$A$12,$F118-1,O$9) -> 0 | P118: =OFFSET('Functionalization Factors'!$A$12,$J118,P$9)*$H118+OFFSET('Functionalization Factors'!$A$12,$F118-1,P$9) -> 0 | Q118: =OFFSET('Functionalization Factors'!$A$12,$J118,Q$9)*$H118+OFFSET('Functionalization Factors'!$A$12,$F118-1,Q$9) -> 0 | R118: =OFFSET('Functionalization Factors'!$A$12,$J118,R$9)*$H118+OFFSET('Functionalization Factors'!$A$12,$F118-1,R$9) -> 0 | S118: =OFFSET('Functionalization Factors'!$A$12,$J118,S$9)*$H118+OFFSET('Functionalization Factors'!$A$12,$F118-1,S$9) -> 0
B119: Measuring and Regulating | C119: 457 | D119: 33894.84125 | E119: STORM&RAD | F119: =MATCH(E119,'Functionalization Factors'!$A$12:$A$191,0) -> 102 | G119: =IF(F119<>0,OFFSET('Functionalization Factors'!$A$12,$F119,1),0) -> 26642.92785 | H119: 7251.913404 | I119: M&RRECL-PT | J119: =MATCH(I119,'Functionalization Factors'!$A$12:$A$191,0) -> 66 | K119: =OFFSET('Functionalization Factors'!$A$12,$J119,K$9)*$H119+OFFSET('Functionalization Factors'!$A$12,$F119-1,K$9) -> 0 | L119: =OFFSET('Functionalization Factors'!$A$12,$J119,L$9)*$H119+OFFSET('Functionalization Factors'!$A$12,$F119-1,L$9) -> 0 | M119: =OFFSET('Functionalization Factors'!$A$12,$J119,M$9)*$H119+OFFSET('Functionalization Factors'!$A$12,$F119-1,M$9) -> 14877.41846 | N119: =OFFSET('Functionalization Factors'!$A$12,$J119,N$9)*$H119+OFFSET('Functionalization Factors'!$A$12,$F119-1,N$9) -> 10723.64464 | O119: =OFFSET('Functionalization Factors'!$A$12,$J119,O$9)*$H119+OFFSET('Functionalization Factors'!$A$12,$F119-1,O$9) -> 8180.489412 | P119: =OFFSET('Functionalization Factors'!$A$12,$J119,P$9)*$H119+OFFSET('Functionalization Factors'!$A$12,$F119-1,P$9) -> 0 | Q119: =OFFSET('Functionalization Factors'!$A$12,$J119,Q$9)*$H119+OFFSET('Functionalization Factors'!$A$12,$F119-1,Q$9) -> 0 | R119: =OFFSET('Functionalization Factors'!$A$12,$J119,R$9)*$H119+OFFSET('Functionalization Factors'!$A$12,$F119-1,R$9) -> 113.2887349 | S119: =OFFSET('Functionalization Factors'!$A$12,$J119,S$9)*$H119+OFFSET('Functionalization Factors'!$A$12,$F119-1,S$9) -> 0
B120: Base Pressure Gas | C120: 458 | D120: 0 | F120: 0 | G120: 0 | H120: 0 | I120: STORDEHYX | J120: =MATCH(I120,'Functionalization Factors'!$A$12:$A$191,0) -> 9 | K120: =OFFSET('Functionalization Factors'!$A$12,$J120,K$9)*$H120+OFFSET('Functionalization Factors'!$A$12,$F120-1,K$9) -> 0 | L120: =OFFSET('Functionalization Factors'!$A$12,$J120,L$9)*$H120+OFFSET('Functionalization Factors'!$A$12,$F120-1,L$9) -> 0 | M120: =OFFSET('Functionalization Factors'!$A$12,$J120,M$9)*$H120+OFFSET('Functionalization Factors'!$A$12,$F120-1,M$9) -> 0 | N120: =OFFSET('Functionalization Factors'!$A$12,$J120,N$9)*$H120+OFFSET('Functionalization Factors'!$A$12,$F120-1,N$9) -> 0 | O120: =OFFSET('Functionalization Factors'!$A$12,$J120,O$9)*$H120+OFFSET('Functionalization Factors'!$A$12,$F120-1,O$9) -> 0 | P120: =OFFSET('Functionalization Factors'!$A$12,$J120,P$9)*$H120+OFFSET('Functionalization Factors'!$A$12,$F120-1,P$9) -> 0 | Q120: =OFFSET('Functionalization Factors'!$A$12,$J120,Q$9)*$H120+OFFSET('Functionalization Factors'!$A$12,$F120-1,Q$9) -> 0 | R120: =OFFSET('Functionalization Factors'!$A$12,$J120,R$9)*$H120+OFFSET('Functionalization Factors'!$A$12,$F120-1,R$9) -> 0 | S120: =OFFSET('Functionalization Factors'!$A$12,$J120,S$9)*$H120+OFFSET('Functionalization Factors'!$A$12,$F120-1,S$9) -> 0
B121: Compressor Equipment | C121: 456 | D121: 110497.9684 | E121: STORCOMPAD | F121: =MATCH(E121,'Functionalization Factors'!$A$12:$A$191,0) -> 105 | G121: =IF(F121<>0,OFFSET('Functionalization Factors'!$A$12,$F121,1),0) -> 24213.60887 | H121: 86284.35951 | I121: COMPRECL-PT | J121: =MATCH(I121,'Functionalization Factors'!$A$12:$A$191,0) -> 69 | K121: =OFFSET('Functionalization Factors'!$A$12,$J121,K$9)*$H121+OFFSET('Functionalization Factors'!$A$12,$F121-1,K$9) -> 0 | L121: =OFFSET('Functionalization Factors'!$A$12,$J121,L$9)*$H121+OFFSET('Functionalization Factors'!$A$12,$F121-1,L$9) -> 0 | M121: =OFFSET('Functionalization Factors'!$A$12,$J121,M$9)*$H121+OFFSET('Functionalization Factors'!$A$12,$F121-1,M$9) -> 56739.69666 | N121: =OFFSET('Functionalization Factors'!$A$12,$J121,N$9)*$H121+OFFSET('Functionalization Factors'!$A$12,$F121-1,N$9) -> 50187.70273 | O121: =OFFSET('Functionalization Factors'!$A$12,$J121,O$9)*$H121+OFFSET('Functionalization Factors'!$A$12,$F121-1,O$9) -> 764.2503333 | P121: =OFFSET('Functionalization Factors'!$A$12,$J121,P$9)*$H121+OFFSET('Functionalization Factors'!$A$12,$F121-1,P$9) -> 0 | Q121: =OFFSET('Functionalization Factors'!$A$12,$J121,Q$9)*$H121+OFFSET('Functionalization Factors'!$A$12,$F121-1,Q$9) -> 0 | R121: =OFFSET('Functionalization Factors'!$A$12,$J121,R$9)*$H121+OFFSET('Functionalization Factors'!$A$12,$F121-1,R$9) -> 2806.31865 | S121: =OFFSET('Functionalization Factors'!$A$12,$J121,S$9)*$H121+OFFSET('Functionalization Factors'!$A$12,$F121-1,S$9) -> 0
B122: Other | C122: 459 | D122: 5529.355958 | E122: STOROTHERAD | F122: =MATCH(E122,'Functionalization Factors'!$A$12:$A$191,0) -> 36 | G122: =IF(F122<>0,OFFSET('Functionalization Factors'!$A$12,$F122,1),0) -> 1109.166667 | H122: 4420.189292 | I122: STORDEHY | J122: =MATCH(I122,'Functionalization Factors'!$A$12:$A$191,0) -> 6 | K122: =OFFSET('Functionalization Factors'!$A$12,$J122,K$9)*$H122+OFFSET('Functionalization Factors'!$A$12,$F122-1,K$9) -> 0 | L122: =OFFSET('Functionalization Factors'!$A$12,$J122,L$9)*$H122+OFFSET('Functionalization Factors'!$A$12,$F122-1,L$9) -> 4420.189292 | M122: =OFFSET('Functionalization Factors'!$A$12,$J122,M$9)*$H122+OFFSET('Functionalization Factors'!$A$12,$F122-1,M$9) -> 0 | N122: =OFFSET('Functionalization Factors'!$A$12,$J122,N$9)*$H122+OFFSET('Functionalization Factors'!$A$12,$F122-1,N$9) -> 1109.166667 | O122: =OFFSET('Functionalization Factors'!$A$12,$J122,O$9)*$H122+OFFSET('Functionalization Factors'!$A$12,$F122-1,O$9) -> 0 | P122: =OFFSET('Functionalization Factors'!$A$12,$J122,P$9)*$H122+OFFSET('Functionalization Factors'!$A$12,$F122-1,P$9) -> 0 | Q122: =OFFSET('Functionalization Factors'!$A$12,$J122,Q$9)*$H122+OFFSET('Functionalization Factors'!$A$12,$F122-1,Q$9) -> 0 | R122: =OFFSET('Functionalization Factors'!$A$12,$J122,R$9)*$H122+OFFSET('Functionalization Factors'!$A$12,$F122-1,R$9) -> 0 | S122: =OFFSET('Functionalization Factors'!$A$12,$J122,S$9)*$H122+OFFSET('Functionalization Factors'!$A$12,$F122-1,S$9) -> 0
B123: Subtotal | D123: =SUM(D115:D122) -> 232167.8759 | G123: =SUM(G115:G122) -> 60862.71562 | H123: =SUM(H115:H122) -> 171305.1603 | K123: =SUM(K115:K122) -> 0 | L123: 4420.189292 | M123: 140812.8934 | N123: 74265.96964 | O123: 9337.209079 | P123: 0 | Q123: 0 | R123: 3331.614488 | S123: 0
A125: D. TRANSMISSION
B126: Land | C126: 460 | D126: 0 | F126: 0 | G126: 0 | H126: =D126-G126 -> 0 | I126: OTHERTRANS | J126: =MATCH(I126,'Functionalization Factors'!$A$12:$A$191,0) -> 15 | K126: =OFFSET('Functionalization Factors'!$A$12,$J126,K$9)*$H126+OFFSET('Functionalization Factors'!$A$12,$F126-1,K$9) -> 0 | L126: =OFFSET('Functionalization Factors'!$A$12,$J126,L$9)*$H126+OFFSET('Functionalization Factors'!$A$12,$F126-1,L$9) -> 0 | M126: =OFFSET('Functionalization Factors'!$A$12,$J126,M$9)*$H126+OFFSET('Functionalization Factors'!$A$12,$F126-1,M$9) -> 0 | N126: =OFFSET('Functionalization Factors'!$A$12,$J126,N$9)*$H126+OFFSET('Functionalization Factors'!$A$12,$F126-1,N$9) -> 0 | O126: =OFFSET('Functionalization Factors'!$A$12,$J126,O$9)*$H126+OFFSET('Functionalization Factors'!$A$12,$F126-1,O$9) -> 0 | P126: =OFFSET('Functionalization Factors'!$A$12,$J126,P$9)*$H126+OFFSET('Functionalization Factors'!$A$12,$F126-1,P$9) -> 0 | Q126: =OFFSET('Functionalization Factors'!$A$12,$J126,Q$9)*$H126+OFFSET('Functionalization Factors'!$A$12,$F126-1,Q$9) -> 0 | R126: =OFFSET('Functionalization Factors'!$A$12,$J126,R$9)*$H126+OFFSET('Functionalization Factors'!$A$12,$F126-1,R$9) -> 0 | S126: =OFFSET('Functionalization Factors'!$A$12,$J126,S$9)*$H126+OFFSET('Functionalization Factors'!$A$12,$F126-1,S$9) -> 0
B127: Land Rights | C127: 461 | D127: 10663.5 | E127: TRANSLANDRGTAD | F127: =MATCH(E127,'Functionalization Factors'!$A$12:$A$191,0) -> 108 | G127: =IF(F127<>0,OFFSET('Functionalization Factors'!$A$12,$F127,1),0) -> 7940.87858 | H127: 2722.62142 | I127: OTHERTRANS | J127: =MATCH(I127,'Functionalization Factors'!$A$12:$A$191,0) -> 15 | K127: =OFFSET('Functionalization Factors'!$A$12,$J127,K$9)*$H127+OFFSET('Functionalization Factors'!$A$12,$F127-1,K$9) -> 0 | L127: =OFFSET('Functionalization Factors'!$A$12,$J127,L$9)*$H127+OFFSET('Functionalization Factors'!$A$12,$F127-1,L$9) -> 0 | M127: =OFFSET('Functionalization Factors'!$A$12,$J127,M$9)*$H127+OFFSET('Functionalization Factors'!$A$12,$F127-1,M$9) -> 0 | N127: =OFFSET('Functionalization Factors'!$A$12,$J127,N$9)*$H127+OFFSET('Functionalization Factors'!$A$12,$F127-1,N$9) -> 0 | O127: =OFFSET('Functionalization Factors'!$A$12,$J127,O$9)*$H127+OFFSET('Functionalization Factors'!$A$12,$F127-1,O$9) -> 7335.926814 | P127: =OFFSET('Functionalization Factors'!$A$12,$J127,P$9)*$H127+OFFSET('Functionalization Factors'!$A$12,$F127-1,P$9) -> 0 | Q127: =OFFSET('Functionalization Factors'!$A$12,$J127,Q$9)*$H127+OFFSET('Functionalization Factors'!$A$12,$F127-1,Q$9) -> 2722.62142 | R127: =OFFSET('Functionalization Factors'!$A$12,$J127,R$9)*$H127+OFFSET('Functionalization Factors'!$A$12,$F127-1,R$9) -> 604.9517657 | S127: =OFFSET('Functionalization Factors'!$A$12,$J127,S$9)*$H127+OFFSET('Functionalization Factors'!$A$12,$F127-1,S$9) -> 0
B128: Mains | C128: 465 | D128: 448858.4671 | E128: TRANSMAINSAD | F128: =MATCH(E128,'Functionalization Factors'!$A$12:$A$191,0) -> 111 | G128: =IF(F128<>0,OFFSET('Functionalization Factors'!$A$12,$F128,1),0) -> 371011.7981 | H128: 77846.66905 | I128: OTHERTRANS | J128: =MATCH(I128,'Functionalization Factors'!$A$12:$A$191,0) -> 15 | K128: =OFFSET('Functionalization Factors'!$A$12,$J128,K$9)*$H128+OFFSET('Functionalization Factors'!$A$12,$F128-1,K$9) -> 0 | L128: =OFFSET('Functionalization Factors'!$A$12,$J128,L$9)*$H128+OFFSET('Functionalization Factors'!$A$12,$F128-1,L$9) -> 0 | M128: =OFFSET('Functionalization Factors'!$A$12,$J128,M$9)*$H128+OFFSET('Functionalization Factors'!$A$12,$F128-1,M$9) -> 0 | N128: =OFFSET('Functionalization Factors'!$A$12,$J128,N$9)*$H128+OFFSET('Functionalization Factors'!$A$12,$F128-1,N$9) -> 0 | O128: =OFFSET('Functionalization Factors'!$A$12,$J128,O$9)*$H128+OFFSET('Functionalization Factors'!$A$12,$F128-1,O$9) -> 348787.7837 | P128: =OFFSET('Functionalization Factors'!$A$12,$J128,P$9)*$H128+OFFSET('Functionalization Factors'!$A$12,$F128-1,P$9) -> 0 | Q128: =OFFSET('Functionalization Factors'!$A$12,$J128,Q$9)*$H128+OFFSET('Functionalization Factors'!$A$12,$F128-1,Q$9) -> 77846.66905 | R128: =OFFSET('Functionalization Factors'!$A$12,$J128,R$9)*$H128+OFFSET('Functionalization Factors'!$A$12,$F128-1,R$9) -> 22224.01431 | S128: =OFFSET('Functionalization Factors'!$A$12,$J128,S$9)*$H128+OFFSET('Functionalization Factors'!$A$12,$F128-1,S$9) -> 0
B129: Compressor Equipment | C129: 466 | D129: 126565.465 | E129: TRANSCOMPEQAD | F129: =MATCH(E129,'Functionalization Factors'!$A$12:$A$191,0) -> 114 | G129: =IF(F129<>0,OFFSET('Functionalization Factors'!$A$12,$F129,1),0) -> 123335.591 | H129: 3229.873971 | I129: OTHERTRANS | J129: =MATCH(I129,'Functionalization Factors'!$A$12:$A$191,0) -> 15 | K129: =OFFSET('Functionalization Factors'!$A$12,$J129,K$9)*$H129+OFFSET('Functionalization Factors'!$A$12,$F129-1,K$9) -> 0 | L129: =OFFSET('Functionalization Factors'!$A$12,$J129,L$9)*$H129+OFFSET('Functionalization Factors'!$A$12,$F129-1,L$9) -> 0 | M129: =OFFSET('Functionalization Factors'!$A$12,$J129,M$9)*$H129+OFFSET('Functionalization Factors'!$A$12,$F129-1,M$9) -> 0 | N129: =OFFSET('Functionalization Factors'!$A$12,$J129,N$9)*$H129+OFFSET('Functionalization Factors'!$A$12,$F129-1,N$9) -> 0 | O129: =OFFSET('Functionalization Factors'!$A$12,$J129,O$9)*$H129+OFFSET('Functionalization Factors'!$A$12,$F129-1,O$9) -> 120190.5246 | P129: =OFFSET('Functionalization Factors'!$A$12,$J129,P$9)*$H129+OFFSET('Functionalization Factors'!$A$12,$F129-1,P$9) -> 0 | Q129: =OFFSET('Functionalization Factors'!$A$12,$J129,Q$9)*$H129+OFFSET('Functionalization Factors'!$A$12,$F129-1,Q$9) -> 3229.873971 | R129: =OFFSET('Functionalization Factors'!$A$12,$J129,R$9)*$H129+OFFSET('Functionalization Factors'!$A$12,$F129-1,R$9) -> 3145.066376 | S129: =OFFSET('Functionalization Factors'!$A$12,$J129,S$9)*$H129+OFFSET('Functionalization Factors'!$A$12,$F129-1,S$9) -> 0
B130: Measuring and Regulating | C130: 467 | D130: 61077.06658 | E130: TRANSM&RAD | F130: =MATCH(E130,'Functionalization Factors'!$A$12:$A$191,0) -> 117 | G130: =IF(F130<>0,OFFSET('Functionalization Factors'!$A$12,$F130,1),0) -> 16816.32508 | H130: 44260.7415 | I130: OTHERTRANS | J130: =MATCH(I130,'Functionalization Factors'!$A$12:$A$191,0) -> 15 | K130: =OFFSET('Functionalization Factors'!$A$12,$J130,K$9)*$H130+OFFSET('Functionalization Factors'!$A$12,$F130-1,K$9) -> 0 | L130: =OFFSET('Functionalization Factors'!$A$12,$J130,L$9)*$H130+OFFSET('Functionalization Factors'!$A$12,$F130-1,L$9) -> 0 | M130: =OFFSET('Functionalization Factors'!$A$12,$J130,M$9)*$H130+OFFSET('Functionalization Factors'!$A$12,$F130-1,M$9) -> 0 | N130: =OFFSET('Functionalization Factors'!$A$12,$J130,N$9)*$H130+OFFSET('Functionalization Factors'!$A$12,$F130-1,N$9) -> 0 | O130: =OFFSET('Functionalization Factors'!$A$12,$J130,O$9)*$H130+OFFSET('Functionalization Factors'!$A$12,$F130-1,O$9) -> 11466.6513 | P130: =OFFSET('Functionalization Factors'!$A$12,$J130,P$9)*$H130+OFFSET('Functionalization Factors'!$A$12,$F130-1,P$9) -> 0 | Q130: =OFFSET('Functionalization Factors'!$A$12,$J130,Q$9)*$H130+OFFSET('Functionalization Factors'!$A$12,$F130-1,Q$9) -> 44260.7415 | R130: =OFFSET('Functionalization Factors'!$A$12,$J130,R$9)*$H130+OFFSET('Functionalization Factors'!$A$12,$F130-1,R$9) -> 5349.673777 | S130: =OFFSET('Functionalization Factors'!$A$12,$J130,S$9)*$H130+OFFSET('Functionalization Factors'!$A$12,$F130-1,S$9) -> 0
B131: Structures & Improvements | C131: 462 | D131: 26465.04741 | E131: TRANSS&IAD | F131: =MATCH(E131,'Functionalization Factors'!$A$12:$A$191,0) -> 120 | G131: =IF(F131<>0,OFFSET('Functionalization Factors'!$A$12,$F131,1),0) -> 23111.79407 | H131: 3353.253337 | I131: OTHERTRANS | J131: =MATCH(I131,'Functionalization Factors'!$A$12:$A$191,0) -> 15 | K131: =OFFSET('Functionalization Factors'!$A$12,$J131,K$9)*$H131+OFFSET('Functionalization Factors'!$A$12,$F131-1,K$9) -> 0 | L131: =OFFSET('Functionalization Factors'!$A$12,$J131,L$9)*$H131+OFFSET('Functionalization Factors'!$A$12,$F131-1,L$9) -> 0 | M131: =OFFSET('Functionalization Factors'!$A$12,$J131,M$9)*$H131+OFFSET('Functionalization Factors'!$A$12,$F131-1,M$9) -> 0 | N131: =OFFSET('Functionalization Factors'!$A$12,$J131,N$9)*$H131+OFFSET('Functionalization Factors'!$A$12,$F131-1,N$9) -> 0 | O131: =OFFSET('Functionalization Factors'!$A$12,$J131,O$9)*$H131+OFFSET('Functionalization Factors'!$A$12,$F131-1,O$9) -> 22629.48208 | P131: =OFFSET('Functionalization Factors'!$A$12,$J131,P$9)*$H131+OFFSET('Functionalization Factors'!$A$12,$F131-1,P$9) -> 0 | Q131: =OFFSET('Functionalization Factors'!$A$12,$J131,Q$9)*$H131+OFFSET('Functionalization Factors'!$A$12,$F131-1,Q$9) -> 3353.253337 | R131: =OFFSET('Functionalization Factors'!$A$12,$J131,R$9)*$H131+OFFSET('Functionalization Factors'!$A$12,$F131-1,R$9) -> 482.3119898 | S131: =OFFSET('Functionalization Factors'!$A$12,$J131,S$9)*$H131+OFFSET('Functionalization Factors'!$A$12,$F131-1,S$9) -> 0
B132: Other | C132: 469 | D132: 0 | F132: 0 | G132: 0 | H132: 0 | I132: OTHERTRANS | J132: =MATCH(I132,'Functionalization Factors'!$A$12:$A$191,0) -> 15 | K132: =OFFSET('Functionalization Factors'!$A$12,$J132,K$9)*$H132+OFFSET('Functionalization Factors'!$A$12,$F132-1,K$9) -> 0 | L132: =OFFSET('Functionalization Factors'!$A$12,$J132,L$9)*$H132+OFFSET('Functionalization Factors'!$A$12,$F132-1,L$9) -> 0 | M132: =OFFSET('Functionalization Factors'!$A$12,$J132,M$9)*$H132+OFFSET('Functionalization Factors'!$A$12,$F132-1,M$9) -> 0 | N132: =OFFSET('Functionalization Factors'!$A$12,$J132,N$9)*$H132+OFFSET('Functionalization Factors'!$A$12,$F132-1,N$9) -> 0 | O132: =OFFSET('Functionalization Factors'!$A$12,$J132,O$9)*$H132+OFFSET('Functionalization Factors'!$A$12,$F132-1,O$9) -> 0 | P132: =OFFSET('Functionalization Factors'!$A$12,$J132,P$9)*$H132+OFFSET('Functionalization Factors'!$A$12,$F132-1,P$9) -> 0 | Q132: =OFFSET('Functionalization Factors'!$A$12,$J132,Q$9)*$H132+OFFSET('Functionalization Factors'!$A$12,$F132-1,Q$9) -> 0 | R132: =OFFSET('Functionalization Factors'!$A$12,$J132,R$9)*$H132+OFFSET('Functionalization Factors'!$A$12,$F132-1,R$9) -> 0 | S132: =OFFSET('Functionalization Factors'!$A$12,$J132,S$9)*$H132+OFFSET('Functionalization Factors'!$A$12,$F132-1,S$9) -> 0
B133: Subtotal | D133: =SUM(D126:D132) -> 673629.5461 | G133: =SUM(G126:G132) -> 542216.3868 | H133: =SUM(H126:H132) -> 131413.1593 | K133: =SUM(K126:K132) -> 0 | L133: 0 | M133: 0 | N133: =SUM(N126:N132) -> 0 | O133: =SUM(O126:O132) -> 510410.3686 | P133: 0 | Q133: =SUM(Q126:Q132) -> 131413.1593 | R133: =SUM(R126:R132) -> 31806.01822 | S133: =SUM(S126:S132) -> 0 | Z133: =IF(ABS(SUM(K133:S133)-D133)>1,"*****","") -> 
A135: E. DISTRIBUTION (Southern Ontario)
B136: Land | C136: 470 | D136: 0 | F136: 0 | G136: 0 | H136: =D136-G136 -> 0 | I136: DIST | J136: =MATCH(I136,'Functionalization Factors'!$A$12:$A$191,0) -> 18 | K136: =OFFSET('Functionalization Factors'!$A$12,$J136,K$9)*$H136+OFFSET('Functionalization Factors'!$A$12,$F136-1,K$9) -> 0 | L136: =OFFSET('Functionalization Factors'!$A$12,$J136,L$9)*$H136+OFFSET('Functionalization Factors'!$A$12,$F136-1,L$9) -> 0 | M136: =OFFSET('Functionalization Factors'!$A$12,$J136,M$9)*$H136+OFFSET('Functionalization Factors'!$A$12,$F136-1,M$9) -> 0 | N136: =OFFSET('Functionalization Factors'!$A$12,$J136,N$9)*$H136+OFFSET('Functionalization Factors'!$A$12,$F136-1,N$9) -> 0 | O136: =OFFSET('Functionalization Factors'!$A$12,$J136,O$9)*$H136+OFFSET('Functionalization Factors'!$A$12,$F136-1,O$9) -> 0 | P136: =OFFSET('Functionalization Factors'!$A$12,$J136,P$9)*$H136+OFFSET('Functionalization Factors'!$A$12,$F136-1,P$9) -> 0 | Q136: =OFFSET('Functionalization Factors'!$A$12,$J136,Q$9)*$H136+OFFSET('Functionalization Factors'!$A$12,$F136-1,Q$9) -> 0 | R136: =OFFSET('Functionalization Factors'!$A$12,$J136,R$9)*$H136+OFFSET('Functionalization Factors'!$A$12,$F136-1,R$9) -> 0 | S136: =OFFSET('Functionalization Factors'!$A$12,$J136,S$9)*$H136+OFFSET('Functionalization Factors'!$A$12,$F136-1,S$9) -> 0
B137: Land Rights | C137: 471 | D137: 1429.333333 | F137: 0 | G137: 0 | H137: =D137-G137 -> 1429.333333 | I137: DIST | J137: =MATCH(I137,'Functionalization Factors'!$A$12:$A$191,0) -> 18 | K137: =OFFSET('Functionalization Factors'!$A$12,$J137,K$9)*$H137+OFFSET('Functionalization Factors'!$A$12,$F137-1,K$9) -> 0 | L137: =OFFSET('Functionalization Factors'!$A$12,$J137,L$9)*$H137+OFFSET('Functionalization Factors'!$A$12,$F137-1,L$9) -> 0 | M137: =OFFSET('Functionalization Factors'!$A$12,$J137,M$9)*$H137+OFFSET('Functionalization Factors'!$A$12,$F137-1,M$9) -> 0 | N137: =OFFSET('Functionalization Factors'!$A$12,$J137,N$9)*$H137+OFFSET('Functionalization Factors'!$A$12,$F137-1,N$9) -> 0 | O137: =OFFSET('Functionalization Factors'!$A$12,$J137,O$9)*$H137+OFFSET('Functionalization Factors'!$A$12,$F137-1,O$9) -> 0 | P137: =OFFSET('Functionalization Factors'!$A$12,$J137,P$9)*$H137+OFFSET('Functionalization Factors'!$A$12,$F137-1,P$9) -> 0 | Q137: =OFFSET('Functionalization Factors'!$A$12,$J137,Q$9)*$H137+OFFSET('Functionalization Factors'!$A$12,$F137-1,Q$9) -> 0 | R137: =OFFSET('Functionalization Factors'!$A$12,$J137,R$9)*$H137+OFFSET('Functionalization Factors'!$A$12,$F137-1,R$9) -> 0 | S137: =OFFSET('Functionalization Factors'!$A$12,$J137,S$9)*$H137+OFFSET('Functionalization Factors'!$A$12,$F137-1,S$9) -> 1429.333333
B138: Mains | C138: 475.1 | D138: 478099.5381 | F138: 0 | G138: 0 | H138: =D138-G138 -> 478099.5381 | I138: DIST | J138: =MATCH(I138,'Functionalization Factors'!$A$12:$A$191,0) -> 18 | K138: =OFFSET('Functionalization Factors'!$A$12,$J138,K$9)*$H138+OFFSET('Functionalization Factors'!$A$12,$F138-1,K$9) -> 0 | L138: =OFFSET('Functionalization Factors'!$A$12,$J138,L$9)*$H138+OFFSET('Functionalization Factors'!$A$12,$F138-1,L$9) -> 0 | M138: =OFFSET('Functionalization Factors'!$A$12,$J138,M$9)*$H138+OFFSET('Functionalization Factors'!$A$12,$F138-1,M$9) -> 0 | N138: =OFFSET('Functionalization Factors'!$A$12,$J138,N$9)*$H138+OFFSET('Functionalization Factors'!$A$12,$F138-1,N$9) -> 0 | O138: =OFFSET('Functionalization Factors'!$A$12,$J138,O$9)*$H138+OFFSET('Functionalization Factors'!$A$12,$F138-1,O$9) -> 0 | P138: =OFFSET('Functionalization Factors'!$A$12,$J138,P$9)*$H138+OFFSET('Functionalization Factors'!$A$12,$F138-1,P$9) -> 0 | Q138: =OFFSET('Functionalization Factors'!$A$12,$J138,Q$9)*$H138+OFFSET('Functionalization Factors'!$A$12,$F138-1,Q$9) -> 0 | R138: =OFFSET('Functionalization Factors'!$A$12,$J138,R$9)*$H138+OFFSET('Functionalization Factors'!$A$12,$F138-1,R$9) -> 0 | S138: =OFFSET('Functionalization Factors'!$A$12,$J138,S$9)*$H138+OFFSET('Functionalization Factors'!$A$12,$F138-1,S$9) -> 478099.5381
B139: Compressor Equipment | C139: 476 | D139: 0 | F139: 0 | G139: 0 | H139: =D139-G139 -> 0 | I139: DIST | J139: =MATCH(I139,'Functionalization Factors'!$A$12:$A$191,0) -> 18 | K139: =OFFSET('Functionalization Factors'!$A$12,$J139,K$9)*$H139+OFFSET('Functionalization Factors'!$A$12,$F139-1,K$9) -> 0 | L139: =OFFSET('Functionalization Factors'!$A$12,$J139,L$9)*$H139+OFFSET('Functionalization Factors'!$A$12,$F139-1,L$9) -> 0 | M139: =OFFSET('Functionalization Factors'!$A$12,$J139,M$9)*$H139+OFFSET('Functionalization Factors'!$A$12,$F139-1,M$9) -> 0 | N139: =OFFSET('Functionalization Factors'!$A$12,$J139,N$9)*$H139+OFFSET('Functionalization Factors'!$A$12,$F139-1,N$9) -> 0 | O139: =OFFSET('Functionalization Factors'!$A$12,$J139,O$9)*$H139+OFFSET('Functionalization Factors'!$A$12,$F139-1,O$9) -> 0 | P139: =OFFSET('Functionalization Factors'!$A$12,$J139,P$9)*$H139+OFFSET('Functionalization Factors'!$A$12,$F139-1,P$9) -> 0 | Q139: =OFFSET('Functionalization Factors'!$A$12,$J139,Q$9)*$H139+OFFSET('Functionalization Factors'!$A$12,$F139-1,Q$9) -> 0 | R139: =OFFSET('Functionalization Factors'!$A$12,$J139,R$9)*$H139+OFFSET('Functionalization Factors'!$A$12,$F139-1,R$9) -> 0 | S139: =OFFSET('Functionalization Factors'!$A$12,$J139,S$9)*$H139+OFFSET('Functionalization Factors'!$A$12,$F139-1,S$9) -> 0 | Z139: =IF(ABS(SUM(K139:S139)-D139)>1,"*****","") -> 
B140: Measuring and Regulating Equipment | C140: 477.1 | D140: 14803.80104 | F140: 0 | G140: 0 | H140: 14803.80104 | I140: DIST | J140: =MATCH(I140,'Functionalization Factors'!$A$12:$A$191,0) -> 18 | K140: =OFFSET('Functionalization Factors'!$A$12,$J140,K$9)*$H140+OFFSET('Functionalization Factors'!$A$12,$F140-1,K$9) -> 0 | L140: =OFFSET('Functionalization Factors'!$A$12,$J140,L$9)*$H140+OFFSET('Functionalization Factors'!$A$12,$F140-1,L$9) -> 0 | M140: =OFFSET('Functionalization Factors'!$A$12,$J140,M$9)*$H140+OFFSET('Functionalization Factors'!$A$12,$F140-1,M$9) -> 0 | N140: =OFFSET('Functionalization Factors'!$A$12,$J140,N$9)*$H140+OFFSET('Functionalization Factors'!$A$12,$F140-1,N$9) -> 0 | O140: =OFFSET('Functionalization Factors'!$A$12,$J140,O$9)*$H140+OFFSET('Functionalization Factors'!$A$12,$F140-1,O$9) -> 0 | P140: =OFFSET('Functionalization Factors'!$A$12,$J140,P$9)*$H140+OFFSET('Functionalization Factors'!$A$12,$F140-1,P$9) -> 0 | Q140: =OFFSET('Functionalization Factors'!$A$12,$J140,Q$9)*$H140+OFFSET('Functionalization Factors'!$A$12,$F140-1,Q$9) -> 0 | R140: =OFFSET('Functionalization Factors'!$A$12,$J140,R$9)*$H140+OFFSET('Functionalization Factors'!$A$12,$F140-1,R$9) -> 0 | S140: =OFFSET('Functionalization Factors'!$A$12,$J140,S$9)*$H140+OFFSET('Functionalization Factors'!$A$12,$F140-1,S$9) -> 14803.80104
B141: Structures & Improvements | C141: 472 | D141: 39088.26061 | F141: 0 | G141: 0 | H141: 39088.26061 | I141: DIST | J141: =MATCH(I141,'Functionalization Factors'!$A$12:$A$191,0) -> 18 | K141: =OFFSET('Functionalization Factors'!$A$12,$J141,K$9)*$H141+OFFSET('Functionalization Factors'!$A$12,$F141-1,K$9) -> 0 | L141: =OFFSET('Functionalization Factors'!$A$12,$J141,L$9)*$H141+OFFSET('Functionalization Factors'!$A$12,$F141-1,L$9) -> 0 | M141: =OFFSET('Functionalization Factors'!$A$12,$J141,M$9)*$H141+OFFSET('Functionalization Factors'!$A$12,$F141-1,M$9) -> 0 | N141: =OFFSET('Functionalization Factors'!$A$12,$J141,N$9)*$H141+OFFSET('Functionalization Factors'!$A$12,$F141-1,N$9) -> 0 | O141: =OFFSET('Functionalization Factors'!$A$12,$J141,O$9)*$H141+OFFSET('Functionalization Factors'!$A$12,$F141-1,O$9) -> 0 | P141: =OFFSET('Functionalization Factors'!$A$12,$J141,P$9)*$H141+OFFSET('Functionalization Factors'!$A$12,$F141-1,P$9) -> 0 | Q141: =OFFSET('Functionalization Factors'!$A$12,$J141,Q$9)*$H141+OFFSET('Functionalization Factors'!$A$12,$F141-1,Q$9) -> 0 | R141: =OFFSET('Functionalization Factors'!$A$12,$J141,R$9)*$H141+OFFSET('Functionalization Factors'!$A$12,$F141-1,R$9) -> 0 | S141: =OFFSET('Functionalization Factors'!$A$12,$J141,S$9)*$H141+OFFSET('Functionalization Factors'!$A$12,$F141-1,S$9) -> 39088.26061
B142: Services | C142: 473 | D142: 400003.0814 | F142: 0 | G142: 0 | H142: 400003.0814 | I142: DIST | J142: =MATCH(I142,'Functionalization Factors'!$A$12:$A$191,0) -> 18 | K142: =OFFSET('Functionalization Factors'!$A$12,$J142,K$9)*$H142+OFFSET('Functionalization Factors'!$A$12,$F142-1,K$9) -> 0 | L142: =OFFSET('Functionalization Factors'!$A$12,$J142,L$9)*$H142+OFFSET('Functionalization Factors'!$A$12,$F142-1,L$9) -> 0 | M142: =OFFSET('Functionalization Factors'!$A$12,$J142,M$9)*$H142+OFFSET('Functionalization Factors'!$A$12,$F142-1,M$9) -> 0 | N142: =OFFSET('Functionalization Factors'!$A$12,$J142,N$9)*$H142+OFFSET('Functionalization Factors'!$A$12,$F142-1,N$9) -> 0 | O142: =OFFSET('Functionalization Factors'!$A$12,$J142,O$9)*$H142+OFFSET('Functionalization Factors'!$A$12,$F142-1,O$9) -> 0 | P142: =OFFSET('Functionalization Factors'!$A$12,$J142,P$9)*$H142+OFFSET('Functionalization Factors'!$A$12,$F142-1,P$9) -> 0 | Q142: =OFFSET('Functionalization Factors'!$A$12,$J142,Q$9)*$H142+OFFSET('Functionalization Factors'!$A$12,$F142-1,Q$9) -> 0 | R142: =OFFSET('Functionalization Factors'!$A$12,$J142,R$9)*$H142+OFFSET('Functionalization Factors'!$A$12,$F142-1,R$9) -> 0 | S142: =OFFSET('Functionalization Factors'!$A$12,$J142,S$9)*$H142+OFFSET('Functionalization Factors'!$A$12,$F142-1,S$9) -> 400003.0814
B143: Meters | C143: 478 | D143: 70470.875 | F143: 0 | G143: 0 | H143: 70470.875 | I143: DIST | J143: =MATCH(I143,'Functionalization Factors'!$A$12:$A$191,0) -> 18 | K143: =OFFSET('Functionalization Factors'!$A$12,$J143,K$9)*$H143+OFFSET('Functionalization Factors'!$A$12,$F143-1,K$9) -> 0 | L143: =OFFSET('Functionalization Factors'!$A$12,$J143,L$9)*$H143+OFFSET('Functionalization Factors'!$A$12,$F143-1,L$9) -> 0 | M143: =OFFSET('Functionalization Factors'!$A$12,$J143,M$9)*$H143+OFFSET('Functionalization Factors'!$A$12,$F143-1,M$9) -> 0 | N143: =OFFSET('Functionalization Factors'!$A$12,$J143,N$9)*$H143+OFFSET('Functionalization Factors'!$A$12,$F143-1,N$9) -> 0 | O143: =OFFSET('Functionalization Factors'!$A$12,$J143,O$9)*$H143+OFFSET('Functionalization Factors'!$A$12,$F143-1,O$9) -> 0 | P143: =OFFSET('Functionalization Factors'!$A$12,$J143,P$9)*$H143+OFFSET('Functionalization Factors'!$A$12,$F143-1,P$9) -> 0 | Q143: =OFFSET('Functionalization Factors'!$A$12,$J143,Q$9)*$H143+OFFSET('Functionalization Factors'!$A$12,$F143-1,Q$9) -> 0 | R143: =OFFSET('Functionalization Factors'!$A$12,$J143,R$9)*$H143+OFFSET('Functionalization Factors'!$A$12,$F143-1,R$9) -> 0 | S143: =OFFSET('Functionalization Factors'!$A$12,$J143,S$9)*$H143+OFFSET('Functionalization Factors'!$A$12,$F143-1,S$9) -> 70470.875
B144: Regulators | C144: 474.1 | D144: 40771.54167 | F144: 0 | G144: 0 | H144: 40771.54167 | I144: DIST | J144: =MATCH(I144,'Functionalization Factors'!$A$12:$A$191,0) -> 18 | K144: =OFFSET('Functionalization Factors'!$A$12,$J144,K$9)*$H144+OFFSET('Functionalization Factors'!$A$12,$F144-1,K$9) -> 0 | L144: =OFFSET('Functionalization Factors'!$A$12,$J144,L$9)*$H144+OFFSET('Functionalization Factors'!$A$12,$F144-1,L$9) -> 0 | M144: =OFFSET('Functionalization Factors'!$A$12,$J144,M$9)*$H144+OFFSET('Functionalization Factors'!$A$12,$F144-1,M$9) -> 0 | N144: =OFFSET('Functionalization Factors'!$A$12,$J144,N$9)*$H144+OFFSET('Functionalization Factors'!$A$12,$F144-1,N$9) -> 0 | O144: =OFFSET('Functionalization Factors'!$A$12,$J144,O$9)*$H144+OFFSET('Functionalization Factors'!$A$12,$F144-1,O$9) -> 0 | P144: =OFFSET('Functionalization Factors'!$A$12,$J144,P$9)*$H144+OFFSET('Functionalization Factors'!$A$12,$F144-1,P$9) -> 0 | Q144: =OFFSET('Functionalization Factors'!$A$12,$J144,Q$9)*$H144+OFFSET('Functionalization Factors'!$A$12,$F144-1,Q$9) -> 0 | R144: =OFFSET('Functionalization Factors'!$A$12,$J144,R$9)*$H144+OFFSET('Functionalization Factors'!$A$12,$F144-1,R$9) -> 0 | S144: =OFFSET('Functionalization Factors'!$A$12,$J144,S$9)*$H144+OFFSET('Functionalization Factors'!$A$12,$F144-1,S$9) -> 40771.54167
B145: Customer Stations | C145: 474.2 | D145: 27688.92647 | F145: 0 | G145: 0 | H145: 27688.92647 | I145: DIST | J145: =MATCH(I145,'Functionalization Factors'!$A$12:$A$191,0) -> 18 | K145: =OFFSET('Functionalization Factors'!$A$12,$J145,K$9)*$H145+OFFSET('Functionalization Factors'!$A$12,$F145-1,K$9) -> 0 | L145: =OFFSET('Functionalization Factors'!$A$12,$J145,L$9)*$H145+OFFSET('Functionalization Factors'!$A$12,$F145-1,L$9) -> 0 | M145: =OFFSET('Functionalization Factors'!$A$12,$J145,M$9)*$H145+OFFSET('Functionalization Factors'!$A$12,$F145-1,M$9) -> 0 | N145: =OFFSET('Functionalization Factors'!$A$12,$J145,N$9)*$H145+OFFSET('Functionalization Factors'!$A$12,$F145-1,N$9) -> 0 | O145: =OFFSET('Functionalization Factors'!$A$12,$J145,O$9)*$H145+OFFSET('Functionalization Factors'!$A$12,$F145-1,O$9) -> 0 | P145: =OFFSET('Functionalization Factors'!$A$12,$J145,P$9)*$H145+OFFSET('Functionalization Factors'!$A$12,$F145-1,P$9) -> 0 | Q145: =OFFSET('Functionalization Factors'!$A$12,$J145,Q$9)*$H145+OFFSET('Functionalization Factors'!$A$12,$F145-1,Q$9) -> 0 | R145: =OFFSET('Functionalization Factors'!$A$12,$J145,R$9)*$H145+OFFSET('Functionalization Factors'!$A$12,$F145-1,R$9) -> 0 | S145: =OFFSET('Functionalization Factors'!$A$12,$J145,S$9)*$H145+OFFSET('Functionalization Factors'!$A$12,$F145-1,S$9) -> 27688.92647
B146: Other | C146: 479 | D146: 0 | F146: 0 | G146: 0 | H146: 0 | I146: DIST | J146: =MATCH(I146,'Functionalization Factors'!$A$12:$A$191,0) -> 18 | K146: =OFFSET('Functionalization Factors'!$A$12,$J146,K$9)*$H146+OFFSET('Functionalization Factors'!$A$12,$F146-1,K$9) -> 0 | L146: =OFFSET('Functionalization Factors'!$A$12,$J146,L$9)*$H146+OFFSET('Functionalization Factors'!$A$12,$F146-1,L$9) -> 0 | M146: =OFFSET('Functionalization Factors'!$A$12,$J146,M$9)*$H146+OFFSET('Functionalization Factors'!$A$12,$F146-1,M$9) -> 0 | N146: =OFFSET('Functionalization Factors'!$A$12,$J146,N$9)*$H146+OFFSET('Functionalization Factors'!$A$12,$F146-1,N$9) -> 0 | O146: =OFFSET('Functionalization Factors'!$A$12,$J146,O$9)*$H146+OFFSET('Functionalization Factors'!$A$12,$F146-1,O$9) -> 0 | P146: =OFFSET('Functionalization Factors'!$A$12,$J146,P$9)*$H146+OFFSET('Functionalization Factors'!$A$12,$F146-1,P$9) -> 0 | Q146: =OFFSET('Functionalization Factors'!$A$12,$J146,Q$9)*$H146+OFFSET('Functionalization Factors'!$A$12,$F146-1,Q$9) -> 0 | R146: =OFFSET('Functionalization Factors'!$A$12,$J146,R$9)*$H146+OFFSET('Functionalization Factors'!$A$12,$F146-1,R$9) -> 0 | S146: =OFFSET('Functionalization Factors'!$A$12,$J146,S$9)*$H146+OFFSET('Functionalization Factors'!$A$12,$F146-1,S$9) -> 0 | Z146: =IF(ABS(SUM(K146:S146)-D146)>1,"*****","") -> 
B147: Subtotal | D147: =SUM(D136:D146) -> 1072355.358 | G147: =SUM(G136:G146) -> 0 | H147: =SUM(H136:H146) -> 1072355.358 | K147: =SUM(K136:K146) -> 0 | L147: 0 | M147: 0 | N147: 0 | O147: 0 | P147: 0 | Q147: =SUM(Q136:Q146) -> 0 | R147: 0 | S147: =SUM(S136:S146) -> 1072355.358
A149: F. DISTRIBUTION (Northern Ontario)
B150: Land | C150: 470 | D150: 0 | F150: 0 | G150: 0 | H150: =D150-G150 -> 0 | I150: DIST | J150: =MATCH(I150,'Functionalization Factors'!$A$12:$A$191,0) -> 18 | K150: =OFFSET('Functionalization Factors'!$A$12,$J150,K$9)*$H150+OFFSET('Functionalization Factors'!$A$12,$F150-1,K$9) -> 0 | L150: =OFFSET('Functionalization Factors'!$A$12,$J150,L$9)*$H150+OFFSET('Functionalization Factors'!$A$12,$F150-1,L$9) -> 0 | M150: =OFFSET('Functionalization Factors'!$A$12,$J150,M$9)*$H150+OFFSET('Functionalization Factors'!$A$12,$F150-1,M$9) -> 0 | N150: =OFFSET('Functionalization Factors'!$A$12,$J150,N$9)*$H150+OFFSET('Functionalization Factors'!$A$12,$F150-1,N$9) -> 0 | O150: =OFFSET('Functionalization Factors'!$A$12,$J150,O$9)*$H150+OFFSET('Functionalization Factors'!$A$12,$F150-1,O$9) -> 0 | P150: =OFFSET('Functionalization Factors'!$A$12,$J150,P$9)*$H150+OFFSET('Functionalization Factors'!$A$12,$F150-1,P$9) -> 0 | Q150: =OFFSET('Functionalization Factors'!$A$12,$J150,Q$9)*$H150+OFFSET('Functionalization Factors'!$A$12,$F150-1,Q$9) -> 0 | R150: =OFFSET('Functionalization Factors'!$A$12,$J150,R$9)*$H150+OFFSET('Functionalization Factors'!$A$12,$F150-1,R$9) -> 0 | S150: =OFFSET('Functionalization Factors'!$A$12,$J150,S$9)*$H150+OFFSET('Functionalization Factors'!$A$12,$F150-1,S$9) -> 0
B151: Land Rights | C151: 471 | D151: 3075.916667 | F151: 0 | G151: 0 | H151: 3075.916667 | I151: DIST | J151: =MATCH(I151,'Functionalization Factors'!$A$12:$A$191,0) -> 18 | K151: =OFFSET('Functionalization Factors'!$A$12,$J151,K$9)*$H151+OFFSET('Functionalization Factors'!$A$12,$F151-1,K$9) -> 0 | L151: =OFFSET('Functionalization Factors'!$A$12,$J151,L$9)*$H151+OFFSET('Functionalization Factors'!$A$12,$F151-1,L$9) -> 0 | M151: =OFFSET('Functionalization Factors'!$A$12,$J151,M$9)*$H151+OFFSET('Functionalization Factors'!$A$12,$F151-1,M$9) -> 0 | N151: =OFFSET('Functionalization Factors'!$A$12,$J151,N$9)*$H151+OFFSET('Functionalization Factors'!$A$12,$F151-1,N$9) -> 0 | O151: =OFFSET('Functionalization Factors'!$A$12,$J151,O$9)*$H151+OFFSET('Functionalization Factors'!$A$12,$F151-1,O$9) -> 0 | P151: =OFFSET('Functionalization Factors'!$A$12,$J151,P$9)*$H151+OFFSET('Functionalization Factors'!$A$12,$F151-1,P$9) -> 0 | Q151: =OFFSET('Functionalization Factors'!$A$12,$J151,Q$9)*$H151+OFFSET('Functionalization Factors'!$A$12,$F151-1,Q$9) -> 0 | R151: =OFFSET('Functionalization Factors'!$A$12,$J151,R$9)*$H151+OFFSET('Functionalization Factors'!$A$12,$F151-1,R$9) -> 0 | S151: =OFFSET('Functionalization Factors'!$A$12,$J151,S$9)*$H151+OFFSET('Functionalization Factors'!$A$12,$F151-1,S$9) -> 3075.916667
B152: Mains - Grid | C152: 475.1 | D152: 205311.309 | F152: 0 | G152: 0 | H152: 205311.309 | I152: DIST | J152: =MATCH(I152,'Functionalization Factors'!$A$12:$A$191,0) -> 18 | K152: =OFFSET('Functionalization Factors'!$A$12,$J152,K$9)*$H152+OFFSET('Functionalization Factors'!$A$12,$F152-1,K$9) -> 0 | L152: =OFFSET('Functionalization Factors'!$A$12,$J152,L$9)*$H152+OFFSET('Functionalization Factors'!$A$12,$F152-1,L$9) -> 0 | M152: =OFFSET('Functionalization Factors'!$A$12,$J152,M$9)*$H152+OFFSET('Functionalization Factors'!$A$12,$F152-1,M$9) -> 0 | N152: =OFFSET('Functionalization Factors'!$A$12,$J152,N$9)*$H152+OFFSET('Functionalization Factors'!$A$12,$F152-1,N$9) -> 0 | O152: =OFFSET('Functionalization Factors'!$A$12,$J152,O$9)*$H152+OFFSET('Functionalization Factors'!$A$12,$F152-1,O$9) -> 0 | P152: =OFFSET('Functionalization Factors'!$A$12,$J152,P$9)*$H152+OFFSET('Functionalization Factors'!$A$12,$F152-1,P$9) -> 0 | Q152: =OFFSET('Functionalization Factors'!$A$12,$J152,Q$9)*$H152+OFFSET('Functionalization Factors'!$A$12,$F152-1,Q$9) -> 0 | R152: =OFFSET('Functionalization Factors'!$A$12,$J152,R$9)*$H152+OFFSET('Functionalization Factors'!$A$12,$F152-1,R$9) -> 0 | S152: =OFFSET('Functionalization Factors'!$A$12,$J152,S$9)*$H152+OFFSET('Functionalization Factors'!$A$12,$F152-1,S$9) -> 205311.309
B153: Mains- Joint | C153: 475.2 | D153: 89561.84511 | F153: 0 | G153: 0 | H153: 89561.84511 | I153: DIST | J153: =MATCH(I153,'Functionalization Factors'!$A$12:$A$191,0) -> 18 | K153: =OFFSET('Functionalization Factors'!$A$12,$J153,K$9)*$H153+OFFSET('Functionalization Factors'!$A$12,$F153-1,K$9) -> 0 | L153: =OFFSET('Functionalization Factors'!$A$12,$J153,L$9)*$H153+OFFSET('Functionalization Factors'!$A$12,$F153-1,L$9) -> 0 | M153: =OFFSET('Functionalization Factors'!$A$12,$J153,M$9)*$H153+OFFSET('Functionalization Factors'!$A$12,$F153-1,M$9) -> 0 | N153: =OFFSET('Functionalization Factors'!$A$12,$J153,N$9)*$H153+OFFSET('Functionalization Factors'!$A$12,$F153-1,N$9) -> 0 | O153: =OFFSET('Functionalization Factors'!$A$12,$J153,O$9)*$H153+OFFSET('Functionalization Factors'!$A$12,$F153-1,O$9) -> 0 | P153: =OFFSET('Functionalization Factors'!$A$12,$J153,P$9)*$H153+OFFSET('Functionalization Factors'!$A$12,$F153-1,P$9) -> 0 | Q153: =OFFSET('Functionalization Factors'!$A$12,$J153,Q$9)*$H153+OFFSET('Functionalization Factors'!$A$12,$F153-1,Q$9) -> 0 | R153: =OFFSET('Functionalization Factors'!$A$12,$J153,R$9)*$H153+OFFSET('Functionalization Factors'!$A$12,$F153-1,R$9) -> 0 | S153: =OFFSET('Functionalization Factors'!$A$12,$J153,S$9)*$H153+OFFSET('Functionalization Factors'!$A$12,$F153-1,S$9) -> 89561.84511
B154: Mains- Sole | C154: 475.3 | D154: 24453.74584 | F154: 0 | G154: 0 | H154: 24453.74584 | I154: DIST | J154: =MATCH(I154,'Functionalization Factors'!$A$12:$A$191,0) -> 18 | K154: =OFFSET('Functionalization Factors'!$A$12,$J154,K$9)*$H154+OFFSET('Functionalization Factors'!$A$12,$F154-1,K$9) -> 0 | L154: =OFFSET('Functionalization Factors'!$A$12,$J154,L$9)*$H154+OFFSET('Functionalization Factors'!$A$12,$F154-1,L$9) -> 0 | M154: =OFFSET('Functionalization Factors'!$A$12,$J154,M$9)*$H154+OFFSET('Functionalization Factors'!$A$12,$F154-1,M$9) -> 0 | N154: =OFFSET('Functionalization Factors'!$A$12,$J154,N$9)*$H154+OFFSET('Functionalization Factors'!$A$12,$F154-1,N$9) -> 0 | O154: =OFFSET('Functionalization Factors'!$A$12,$J154,O$9)*$H154+OFFSET('Functionalization Factors'!$A$12,$F154-1,O$9) -> 0 | P154: =OFFSET('Functionalization Factors'!$A$12,$J154,P$9)*$H154+OFFSET('Functionalization Factors'!$A$12,$F154-1,P$9) -> 0 | Q154: =OFFSET('Functionalization Factors'!$A$12,$J154,Q$9)*$H154+OFFSET('Functionalization Factors'!$A$12,$F154-1,Q$9) -> 0 | R154: =OFFSET('Functionalization Factors'!$A$12,$J154,R$9)*$H154+OFFSET('Functionalization Factors'!$A$12,$F154-1,R$9) -> 0 | S154: =OFFSET('Functionalization Factors'!$A$12,$J154,S$9)*$H154+OFFSET('Functionalization Factors'!$A$12,$F154-1,S$9) -> 24453.74584
B155: Compressor Equipment | C155: 476 | D155: 0 | F155: 0 | G155: 0 | H155: 0 | I155: DIST | J155: =MATCH(I155,'Functionalization Factors'!$A$12:$A$191,0) -> 18 | K155: =OFFSET('Functionalization Factors'!$A$12,$J155,K$9)*$H155+OFFSET('Functionalization Factors'!$A$12,$F155-1,K$9) -> 0 | L155: =OFFSET('Functionalization Factors'!$A$12,$J155,L$9)*$H155+OFFSET('Functionalization Factors'!$A$12,$F155-1,L$9) -> 0 | M155: =OFFSET('Functionalization Factors'!$A$12,$J155,M$9)*$H155+OFFSET('Functionalization Factors'!$A$12,$F155-1,M$9) -> 0 | N155: =OFFSET('Functionalization Factors'!$A$12,$J155,N$9)*$H155+OFFSET('Functionalization Factors'!$A$12,$F155-1,N$9) -> 0 | O155: =OFFSET('Functionalization Factors'!$A$12,$J155,O$9)*$H155+OFFSET('Functionalization Factors'!$A$12,$F155-1,O$9) -> 0 | P155: =OFFSET('Functionalization Factors'!$A$12,$J155,P$9)*$H155+OFFSET('Functionalization Factors'!$A$12,$F155-1,P$9) -> 0 | Q155: =OFFSET('Functionalization Factors'!$A$12,$J155,Q$9)*$H155+OFFSET('Functionalization Factors'!$A$12,$F155-1,Q$9) -> 0 | R155: =OFFSET('Functionalization Factors'!$A$12,$J155,R$9)*$H155+OFFSET('Functionalization Factors'!$A$12,$F155-1,R$9) -> 0 | S155: =OFFSET('Functionalization Factors'!$A$12,$J155,S$9)*$H155+OFFSET('Functionalization Factors'!$A$12,$F155-1,S$9) -> 0
B156: Measuring and Regulating Eq. - Joint | C156: 477.1 | D156: 35129.94248 | F156: 0 | G156: 0 | H156: 35129.94248 | I156: DIST | J156: =MATCH(I156,'Functionalization Factors'!$A$12:$A$191,0) -> 18 | K156: =OFFSET('Functionalization Factors'!$A$12,$J156,K$9)*$H156+OFFSET('Functionalization Factors'!$A$12,$F156-1,K$9) -> 0 | L156: =OFFSET('Functionalization Factors'!$A$12,$J156,L$9)*$H156+OFFSET('Functionalization Factors'!$A$12,$F156-1,L$9) -> 0 | M156: =OFFSET('Functionalization Factors'!$A$12,$J156,M$9)*$H156+OFFSET('Functionalization Factors'!$A$12,$F156-1,M$9) -> 0 | N156: =OFFSET('Functionalization Factors'!$A$12,$J156,N$9)*$H156+OFFSET('Functionalization Factors'!$A$12,$F156-1,N$9) -> 0 | O156: =OFFSET('Functionalization Factors'!$A$12,$J156,O$9)*$H156+OFFSET('Functionalization Factors'!$A$12,$F156-1,O$9) -> 0 | P156: =OFFSET('Functionalization Factors'!$A$12,$J156,P$9)*$H156+OFFSET('Functionalization Factors'!$A$12,$F156-1,P$9) -> 0 | Q156: =OFFSET('Functionalization Factors'!$A$12,$J156,Q$9)*$H156+OFFSET('Functionalization Factors'!$A$12,$F156-1,Q$9) -> 0 | R156: =OFFSET('Functionalization Factors'!$A$12,$J156,R$9)*$H156+OFFSET('Functionalization Factors'!$A$12,$F156-1,R$9) -> 0 | S156: =OFFSET('Functionalization Factors'!$A$12,$J156,S$9)*$H156+OFFSET('Functionalization Factors'!$A$12,$F156-1,S$9) -> 35129.94248
B157: Measuring and Regulating Eq. - Sole | C157: 477.2 | D157: 10662.07084 | F157: 0 | G157: 0 | H157: 10662.07084 | I157: DIST | J157: =MATCH(I157,'Functionalization Factors'!$A$12:$A$191,0) -> 18 | K157: =OFFSET('Functionalization Factors'!$A$12,$J157,K$9)*$H157+OFFSET('Functionalization Factors'!$A$12,$F157-1,K$9) -> 0 | L157: =OFFSET('Functionalization Factors'!$A$12,$J157,L$9)*$H157+OFFSET('Functionalization Factors'!$A$12,$F157-1,L$9) -> 0 | M157: =OFFSET('Functionalization Factors'!$A$12,$J157,M$9)*$H157+OFFSET('Functionalization Factors'!$A$12,$F157-1,M$9) -> 0 | N157: =OFFSET('Functionalization Factors'!$A$12,$J157,N$9)*$H157+OFFSET('Functionalization Factors'!$A$12,$F157-1,N$9) -> 0 | O157: =OFFSET('Functionalization Factors'!$A$12,$J157,O$9)*$H157+OFFSET('Functionalization Factors'!$A$12,$F157-1,O$9) -> 0 | P157: =OFFSET('Functionalization Factors'!$A$12,$J157,P$9)*$H157+OFFSET('Functionalization Factors'!$A$12,$F157-1,P$9) -> 0 | Q157: =OFFSET('Functionalization Factors'!$A$12,$J157,Q$9)*$H157+OFFSET('Functionalization Factors'!$A$12,$F157-1,Q$9) -> 0 | R157: =OFFSET('Functionalization Factors'!$A$12,$J157,R$9)*$H157+OFFSET('Functionalization Factors'!$A$12,$F157-1,R$9) -> 0 | S157: =OFFSET('Functionalization Factors'!$A$12,$J157,S$9)*$H157+OFFSET('Functionalization Factors'!$A$12,$F157-1,S$9) -> 10662.07084
B158: Structures & Improvements | C158: 472 | D158: 17445.32867 | F158: 0 | G158: 0 | H158: 17445.32867 | I158: DIST | J158: =MATCH(I158,'Functionalization Factors'!$A$12:$A$191,0) -> 18 | K158: =OFFSET('Functionalization Factors'!$A$12,$J158,K$9)*$H158+OFFSET('Functionalization Factors'!$A$12,$F158-1,K$9) -> 0 | L158: =OFFSET('Functionalization Factors'!$A$12,$J158,L$9)*$H158+OFFSET('Functionalization Factors'!$A$12,$F158-1,L$9) -> 0 | M158: =OFFSET('Functionalization Factors'!$A$12,$J158,M$9)*$H158+OFFSET('Functionalization Factors'!$A$12,$F158-1,M$9) -> 0 | N158: =OFFSET('Functionalization Factors'!$A$12,$J158,N$9)*$H158+OFFSET('Functionalization Factors'!$A$12,$F158-1,N$9) -> 0 | O158: =OFFSET('Functionalization Factors'!$A$12,$J158,O$9)*$H158+OFFSET('Functionalization Factors'!$A$12,$F158-1,O$9) -> 0 | P158: =OFFSET('Functionalization Factors'!$A$12,$J158,P$9)*$H158+OFFSET('Functionalization Factors'!$A$12,$F158-1,P$9) -> 0 | Q158: =OFFSET('Functionalization Factors'!$A$12,$J158,Q$9)*$H158+OFFSET('Functionalization Factors'!$A$12,$F158-1,Q$9) -> 0 | R158: =OFFSET('Functionalization Factors'!$A$12,$J158,R$9)*$H158+OFFSET('Functionalization Factors'!$A$12,$F158-1,R$9) -> 0 | S158: =OFFSET('Functionalization Factors'!$A$12,$J158,S$9)*$H158+OFFSET('Functionalization Factors'!$A$12,$F158-1,S$9) -> 17445.32867
B159: Services | C159: 473 | D159: 203174.0252 | F159: 0 | G159: 0 | H159: 203174.0252 | I159: DIST | J159: =MATCH(I159,'Functionalization Factors'!$A$12:$A$191,0) -> 18 | K159: =OFFSET('Functionalization Factors'!$A$12,$J159,K$9)*$H159+OFFSET('Functionalization Factors'!$A$12,$F159-1,K$9) -> 0 | L159: =OFFSET('Functionalization Factors'!$A$12,$J159,L$9)*$H159+OFFSET('Functionalization Factors'!$A$12,$F159-1,L$9) -> 0 | M159: =OFFSET('Functionalization Factors'!$A$12,$J159,M$9)*$H159+OFFSET('Functionalization Factors'!$A$12,$F159-1,M$9) -> 0 | N159: =OFFSET('Functionalization Factors'!$A$12,$J159,N$9)*$H159+OFFSET('Functionalization Factors'!$A$12,$F159-1,N$9) -> 0 | O159: =OFFSET('Functionalization Factors'!$A$12,$J159,O$9)*$H159+OFFSET('Functionalization Factors'!$A$12,$F159-1,O$9) -> 0 | P159: =OFFSET('Functionalization Factors'!$A$12,$J159,P$9)*$H159+OFFSET('Functionalization Factors'!$A$12,$F159-1,P$9) -> 0 | Q159: =OFFSET('Functionalization Factors'!$A$12,$J159,Q$9)*$H159+OFFSET('Functionalization Factors'!$A$12,$F159-1,Q$9) -> 0 | R159: =OFFSET('Functionalization Factors'!$A$12,$J159,R$9)*$H159+OFFSET('Functionalization Factors'!$A$12,$F159-1,R$9) -> 0 | S159: =OFFSET('Functionalization Factors'!$A$12,$J159,S$9)*$H159+OFFSET('Functionalization Factors'!$A$12,$F159-1,S$9) -> 203174.0252
B160: Meters | C160: 478 | D160: 18293.04167 | F160: 0 | G160: 0 | H160: 18293.04167 | I160: DIST | J160: =MATCH(I160,'Functionalization Factors'!$A$12:$A$191,0) -> 18 | K160: =OFFSET('Functionalization Factors'!$A$12,$J160,K$9)*$H160+OFFSET('Functionalization Factors'!$A$12,$F160-1,K$9) -> 0 | L160: =OFFSET('Functionalization Factors'!$A$12,$J160,L$9)*$H160+OFFSET('Functionalization Factors'!$A$12,$F160-1,L$9) -> 0 | M160: =OFFSET('Functionalization Factors'!$A$12,$J160,M$9)*$H160+OFFSET('Functionalization Factors'!$A$12,$F160-1,M$9) -> 0 | N160: =OFFSET('Functionalization Factors'!$A$12,$J160,N$9)*$H160+OFFSET('Functionalization Factors'!$A$12,$F160-1,N$9) -> 0 | O160: =OFFSET('Functionalization Factors'!$A$12,$J160,O$9)*$H160+OFFSET('Functionalization Factors'!$A$12,$F160-1,O$9) -> 0 | P160: =OFFSET('Functionalization Factors'!$A$12,$J160,P$9)*$H160+OFFSET('Functionalization Factors'!$A$12,$F160-1,P$9) -> 0 | Q160: =OFFSET('Functionalization Factors'!$A$12,$J160,Q$9)*$H160+OFFSET('Functionalization Factors'!$A$12,$F160-1,Q$9) -> 0 | R160: =OFFSET('Functionalization Factors'!$A$12,$J160,R$9)*$H160+OFFSET('Functionalization Factors'!$A$12,$F160-1,R$9) -> 0 | S160: =OFFSET('Functionalization Factors'!$A$12,$J160,S$9)*$H160+OFFSET('Functionalization Factors'!$A$12,$F160-1,S$9) -> 18293.04167
B161: Regulators | C161: 474.1 | D161: 17511.58333 | F161: 0 | G161: 0 | H161: 17511.58333 | I161: DIST | J161: =MATCH(I161,'Functionalization Factors'!$A$12:$A$191,0) -> 18 | K161: =OFFSET('Functionalization Factors'!$A$12,$J161,K$9)*$H161+OFFSET('Functionalization Factors'!$A$12,$F161-1,K$9) -> 0 | L161: =OFFSET('Functionalization Factors'!$A$12,$J161,L$9)*$H161+OFFSET('Functionalization Factors'!$A$12,$F161-1,L$9) -> 0 | M161: =OFFSET('Functionalization Factors'!$A$12,$J161,M$9)*$H161+OFFSET('Functionalization Factors'!$A$12,$F161-1,M$9) -> 0 | N161: =OFFSET('Functionalization Factors'!$A$12,$J161,N$9)*$H161+OFFSET('Functionalization Factors'!$A$12,$F161-1,N$9) -> 0 | O161: =OFFSET('Functionalization Factors'!$A$12,$J161,O$9)*$H161+OFFSET('Functionalization Factors'!$A$12,$F161-1,O$9) -> 0 | P161: =OFFSET('Functionalization Factors'!$A$12,$J161,P$9)*$H161+OFFSET('Functionalization Factors'!$A$12,$F161-1,P$9) -> 0 | Q161: =OFFSET('Functionalization Factors'!$A$12,$J161,Q$9)*$H161+OFFSET('Functionalization Factors'!$A$12,$F161-1,Q$9) -> 0 | R161: =OFFSET('Functionalization Factors'!$A$12,$J161,R$9)*$H161+OFFSET('Functionalization Factors'!$A$12,$F161-1,R$9) -> 0 | S161: =OFFSET('Functionalization Factors'!$A$12,$J161,S$9)*$H161+OFFSET('Functionalization Factors'!$A$12,$F161-1,S$9) -> 17511.58333
B162: Customer Stations | C162: 474.2 | D162: 12028.33363 | F162: 0 | G162: 0 | H162: 12028.33363 | I162: DIST | J162: =MATCH(I162,'Functionalization Factors'!$A$12:$A$191,0) -> 18 | K162: =OFFSET('Functionalization Factors'!$A$12,$J162,K$9)*$H162+OFFSET('Functionalization Factors'!$A$12,$F162-1,K$9) -> 0 | L162: =OFFSET('Functionalization Factors'!$A$12,$J162,L$9)*$H162+OFFSET('Functionalization Factors'!$A$12,$F162-1,L$9) -> 0 | M162: =OFFSET('Functionalization Factors'!$A$12,$J162,M$9)*$H162+OFFSET('Functionalization Factors'!$A$12,$F162-1,M$9) -> 0 | N162: =OFFSET('Functionalization Factors'!$A$12,$J162,N$9)*$H162+OFFSET('Functionalization Factors'!$A$12,$F162-1,N$9) -> 0 | O162: =OFFSET('Functionalization Factors'!$A$12,$J162,O$9)*$H162+OFFSET('Functionalization Factors'!$A$12,$F162-1,O$9) -> 0 | P162: =OFFSET('Functionalization Factors'!$A$12,$J162,P$9)*$H162+OFFSET('Functionalization Factors'!$A$12,$F162-1,P$9) -> 0 | Q162: =OFFSET('Functionalization Factors'!$A$12,$J162,Q$9)*$H162+OFFSET('Functionalization Factors'!$A$12,$F162-1,Q$9) -> 0 | R162: =OFFSET('Functionalization Factors'!$A$12,$J162,R$9)*$H162+OFFSET('Functionalization Factors'!$A$12,$F162-1,R$9) -> 0 | S162: =OFFSET('Functionalization Factors'!$A$12,$J162,S$9)*$H162+OFFSET('Functionalization Factors'!$A$12,$F162-1,S$9) -> 12028.33363 | Z162: =IF(ABS(SUM(K162:S162)-D162)>1,"*****","") -> 
B163: Other | C163: 479 | D163: 0 | F163: 0 | G163: 0 | H163: 0 | I163: DIST | J163: =MATCH(I163,'Functionalization Factors'!$A$12:$A$191,0) -> 18 | K163: =OFFSET('Functionalization Factors'!$A$12,$J163,K$9)*$H163+OFFSET('Functionalization Factors'!$A$12,$F163-1,K$9) -> 0 | L163: =OFFSET('Functionalization Factors'!$A$12,$J163,L$9)*$H163+OFFSET('Functionalization Factors'!$A$12,$F163-1,L$9) -> 0 | M163: =OFFSET('Functionalization Factors'!$A$12,$J163,M$9)*$H163+OFFSET('Functionalization Factors'!$A$12,$F163-1,M$9) -> 0 | N163: =OFFSET('Functionalization Factors'!$A$12,$J163,N$9)*$H163+OFFSET('Functionalization Factors'!$A$12,$F163-1,N$9) -> 0 | O163: =OFFSET('Functionalization Factors'!$A$12,$J163,O$9)*$H163+OFFSET('Functionalization Factors'!$A$12,$F163-1,O$9) -> 0 | P163: =OFFSET('Functionalization Factors'!$A$12,$J163,P$9)*$H163+OFFSET('Functionalization Factors'!$A$12,$F163-1,P$9) -> 0 | Q163: =OFFSET('Functionalization Factors'!$A$12,$J163,Q$9)*$H163+OFFSET('Functionalization Factors'!$A$12,$F163-1,Q$9) -> 0 | R163: =OFFSET('Functionalization Factors'!$A$12,$J163,R$9)*$H163+OFFSET('Functionalization Factors'!$A$12,$F163-1,R$9) -> 0 | S163: =OFFSET('Functionalization Factors'!$A$12,$J163,S$9)*$H163+OFFSET('Functionalization Factors'!$A$12,$F163-1,S$9) -> 0
B164: Subtotal | D164: =SUM(D150:D163) -> 636647.1424 | G164: =SUM(G150:G163) -> 0 | H164: =SUM(H150:H163) -> 636647.1424 | K164: =SUM(K150:K163) -> 0 | L164: 0 | M164: 0 | N164: 0 | O164: 0 | P164: 0 | Q164: =SUM(Q150:Q163) -> 0 | R164: 0 | S164: =SUM(S150:S163) -> 636647.1424 | Z164: =IF(ABS(SUM(K164:S164)-D164)>1,"*****","") -> 
Z165: =IF(ABS(SUM(K165:S165)-D165)>1,"*****","") -> 
A166: G. INTANGIBLE PLANT | C166: 401/402 | D166: 6192.208333 | F166: 0 | G166: 0 | H166: =D166-G166 -> 6192.208333 | I166: DIST | J166: =MATCH(I166,'Functionalization Factors'!$A$12:$A$191,0) -> 18 | K166: =OFFSET('Functionalization Factors'!$A$12,$J166,K$9)*$H166+OFFSET('Functionalization Factors'!$A$12,$F166-1,K$9) -> 0 | L166: =OFFSET('Functionalization Factors'!$A$12,$J166,L$9)*$H166+OFFSET('Functionalization Factors'!$A$12,$F166-1,L$9) -> 0 | M166: =OFFSET('Functionalization Factors'!$A$12,$J166,M$9)*$H166+OFFSET('Functionalization Factors'!$A$12,$F166-1,M$9) -> 0 | N166: =OFFSET('Functionalization Factors'!$A$12,$J166,N$9)*$H166+OFFSET('Functionalization Factors'!$A$12,$F166-1,N$9) -> 0 | O166: =OFFSET('Functionalization Factors'!$A$12,$J166,O$9)*$H166+OFFSET('Functionalization Factors'!$A$12,$F166-1,O$9) -> 0 | P166: =OFFSET('Functionalization Factors'!$A$12,$J166,P$9)*$H166+OFFSET('Functionalization Factors'!$A$12,$F166-1,P$9) -> 0 | Q166: =OFFSET('Functionalization Factors'!$A$12,$J166,Q$9)*$H166+OFFSET('Functionalization Factors'!$A$12,$F166-1,Q$9) -> 0 | R166: =OFFSET('Functionalization Factors'!$A$12,$J166,R$9)*$H166+OFFSET('Functionalization Factors'!$A$12,$F166-1,R$9) -> 0 | S166: =OFFSET('Functionalization Factors'!$A$12,$J166,S$9)*$H166+OFFSET('Functionalization Factors'!$A$12,$F166-1,S$9) -> 6192.208333 | Z166: =IF(ABS(SUM(K166:S166)-D166)>1,"*****","") -> 
A168: H. GENERAL PLANT
B169: Land | C169: 480 | D169: 0 | F169: 0 | G169: 0 | H169: =D169-G169 -> 0 | J169: 0 | K169: =OFFSET('Functionalization Factors'!$A$12,$J169,K$9)*$H169+OFFSET('Functionalization Factors'!$A$12,$F169-1,K$9) -> 0 | L169: =OFFSET('Functionalization Factors'!$A$12,$J169,L$9)*$H169+OFFSET('Functionalization Factors'!$A$12,$F169-1,L$9) -> 0 | M169: =OFFSET('Functionalization Factors'!$A$12,$J169,M$9)*$H169+OFFSET('Functionalization Factors'!$A$12,$F169-1,M$9) -> 0 | N169: =OFFSET('Functionalization Factors'!$A$12,$J169,N$9)*$H169+OFFSET('Functionalization Factors'!$A$12,$F169-1,N$9) -> 0 | O169: =OFFSET('Functionalization Factors'!$A$12,$J169,O$9)*$H169+OFFSET('Functionalization Factors'!$A$12,$F169-1,O$9) -> 0 | P169: =OFFSET('Functionalization Factors'!$A$12,$J169,P$9)*$H169+OFFSET('Functionalization Factors'!$A$12,$F169-1,P$9) -> 0 | Q169: =OFFSET('Functionalization Factors'!$A$12,$J169,Q$9)*$H169+OFFSET('Functionalization Factors'!$A$12,$F169-1,Q$9) -> 0 | R169: =OFFSET('Functionalization Factors'!$A$12,$J169,R$9)*$H169+OFFSET('Functionalization Factors'!$A$12,$F169-1,R$9) -> 0 | S169: =OFFSET('Functionalization Factors'!$A$12,$J169,S$9)*$H169+OFFSET('Functionalization Factors'!$A$12,$F169-1,S$9) -> 0
B170: Structures & Improvements | C170: 482 | D170: 12411.66573 | G170: 0 | H170: 12411.66573 | I170: INDIRECT_I&II | J170: =MATCH(I170,'Functionalization Factors'!$A$12:$A$191,0) -> 177 | K170: =OFFSET('Functionalization Factors'!$A$12,$J170,K$9)*$H170+OFFSET('Functionalization Factors'!$A$12,$F170-1,K$9) -> 266.1471364 | L170: =OFFSET('Functionalization Factors'!$A$12,$J170,L$9)*$H170+OFFSET('Functionalization Factors'!$A$12,$F170-1,L$9) -> 7.654466022 | M170: =OFFSET('Functionalization Factors'!$A$12,$J170,M$9)*$H170+OFFSET('Functionalization Factors'!$A$12,$F170-1,M$9) -> 563.8824253 | N170: =OFFSET('Functionalization Factors'!$A$12,$J170,N$9)*$H170+OFFSET('Functionalization Factors'!$A$12,$F170-1,N$9) -> 281.2505614 | O170: =OFFSET('Functionalization Factors'!$A$12,$J170,O$9)*$H170+OFFSET('Functionalization Factors'!$A$12,$F170-1,O$9) -> 1981.052323 | P170: =OFFSET('Functionalization Factors'!$A$12,$J170,P$9)*$H170+OFFSET('Functionalization Factors'!$A$12,$F170-1,P$9) -> 0 | Q170: =OFFSET('Functionalization Factors'!$A$12,$J170,Q$9)*$H170+OFFSET('Functionalization Factors'!$A$12,$F170-1,Q$9) -> 632.6933806 | R170: =OFFSET('Functionalization Factors'!$A$12,$J170,R$9)*$H170+OFFSET('Functionalization Factors'!$A$12,$F170-1,R$9) -> 79.13225747 | S170: =OFFSET('Functionalization Factors'!$A$12,$J170,S$9)*$H170+OFFSET('Functionalization Factors'!$A$12,$F170-1,S$9) -> 8599.853182
B171: Furniture and Equipment | C171: 483 | D171: =69227.5842673308+1941.49205016668 -> 71169.07632 | F171: 0 | G171: =IF(F171<>0,OFFSET('Functionalization Factors'!$A$12,$F171,1),0) -> 0 | H171: 71169.07632 | I171: INDIRECT_I&II | J171: =MATCH(I171,'Functionalization Factors'!$A$12:$A$191,0) -> 177 | K171: =OFFSET('Functionalization Factors'!$A$12,$J171,K$9)*$H171+OFFSET('Functionalization Factors'!$A$12,$F171-1,K$9) -> 1526.100225 | L171: =OFFSET('Functionalization Factors'!$A$12,$J171,L$9)*$H171+OFFSET('Functionalization Factors'!$A$12,$F171-1,L$9) -> 43.89106895 | M171: =OFFSET('Functionalization Factors'!$A$12,$J171,M$9)*$H171+OFFSET('Functionalization Factors'!$A$12,$F171-1,M$9) -> 3233.328404 | N171: =OFFSET('Functionalization Factors'!$A$12,$J171,N$9)*$H171+OFFSET('Functionalization Factors'!$A$12,$F171-1,N$9) -> 1612.703975 | O171: =OFFSET('Functionalization Factors'!$A$12,$J171,O$9)*$H171+OFFSET('Functionalization Factors'!$A$12,$F171-1,O$9) -> 11359.44739 | P171: =OFFSET('Functionalization Factors'!$A$12,$J171,P$9)*$H171+OFFSET('Functionalization Factors'!$A$12,$F171-1,P$9) -> 0 | Q171: =OFFSET('Functionalization Factors'!$A$12,$J171,Q$9)*$H171+OFFSET('Functionalization Factors'!$A$12,$F171-1,Q$9) -> 3627.893666 | R171: =OFFSET('Functionalization Factors'!$A$12,$J171,R$9)*$H171+OFFSET('Functionalization Factors'!$A$12,$F171-1,R$9) -> 453.7480941 | S171: =OFFSET('Functionalization Factors'!$A$12,$J171,S$9)*$H171+OFFSET('Functionalization Factors'!$A$12,$F171-1,S$9) -> 49311.96349
B172: Transportation Equipment | C172: 484 | D172: 14032 | G172: 0 | H172: 14032 | I172: INDIRECT_I&II | J172: =MATCH(I172,'Functionalization Factors'!$A$12:$A$191,0) -> 177 | K172: =OFFSET('Functionalization Factors'!$A$12,$J172,K$9)*$H172+OFFSET('Functionalization Factors'!$A$12,$F172-1,K$9) -> 300.8924586 | L172: =OFFSET('Functionalization Factors'!$A$12,$J172,L$9)*$H172+OFFSET('Functionalization Factors'!$A$12,$F172-1,L$9) -> 8.6537512 | M172: =OFFSET('Functionalization Factors'!$A$12,$J172,M$9)*$H172+OFFSET('Functionalization Factors'!$A$12,$F172-1,M$9) -> 637.4968809 | N172: =OFFSET('Functionalization Factors'!$A$12,$J172,N$9)*$H172+OFFSET('Functionalization Factors'!$A$12,$F172-1,N$9) -> 317.9676251 | O172: =OFFSET('Functionalization Factors'!$A$12,$J172,O$9)*$H172+OFFSET('Functionalization Factors'!$A$12,$F172-1,O$9) -> 2239.677316 | P172: =OFFSET('Functionalization Factors'!$A$12,$J172,P$9)*$H172+OFFSET('Functionalization Factors'!$A$12,$F172-1,P$9) -> 0 | Q172: =OFFSET('Functionalization Factors'!$A$12,$J172,Q$9)*$H172+OFFSET('Functionalization Factors'!$A$12,$F172-1,Q$9) -> 715.2910583 | R172: =OFFSET('Functionalization Factors'!$A$12,$J172,R$9)*$H172+OFFSET('Functionalization Factors'!$A$12,$F172-1,R$9) -> 89.46291825 | S172: =OFFSET('Functionalization Factors'!$A$12,$J172,S$9)*$H172+OFFSET('Functionalization Factors'!$A$12,$F172-1,S$9) -> 9722.557991
B173: Construction Equipment | C173: 485/6 | D173: 18082.25 | G173: 0 | H173: 18082.25 | I173: INDIRECT_I&II | J173: =MATCH(I173,'Functionalization Factors'!$A$12:$A$191,0) -> 177 | K173: =OFFSET('Functionalization Factors'!$A$12,$J173,K$9)*$H173+OFFSET('Functionalization Factors'!$A$12,$F173-1,K$9) -> 387.7432055 | L173: =OFFSET('Functionalization Factors'!$A$12,$J173,L$9)*$H173+OFFSET('Functionalization Factors'!$A$12,$F173-1,L$9) -> 11.15160295 | M173: =OFFSET('Functionalization Factors'!$A$12,$J173,M$9)*$H173+OFFSET('Functionalization Factors'!$A$12,$F173-1,M$9) -> 821.5064121 | N173: =OFFSET('Functionalization Factors'!$A$12,$J173,N$9)*$H173+OFFSET('Functionalization Factors'!$A$12,$F173-1,N$9) -> 409.7470132 | O173: =OFFSET('Functionalization Factors'!$A$12,$J173,O$9)*$H173+OFFSET('Functionalization Factors'!$A$12,$F173-1,O$9) -> 2886.146319 | P173: =OFFSET('Functionalization Factors'!$A$12,$J173,P$9)*$H173+OFFSET('Functionalization Factors'!$A$12,$F173-1,P$9) -> 0 | Q173: =OFFSET('Functionalization Factors'!$A$12,$J173,Q$9)*$H173+OFFSET('Functionalization Factors'!$A$12,$F173-1,Q$9) -> 921.7553976 | R173: =OFFSET('Functionalization Factors'!$A$12,$J173,R$9)*$H173+OFFSET('Functionalization Factors'!$A$12,$F173-1,R$9) -> 115.2858362 | S173: =OFFSET('Functionalization Factors'!$A$12,$J173,S$9)*$H173+OFFSET('Functionalization Factors'!$A$12,$F173-1,S$9) -> 12528.91421
B174: Communication Equipment | C174: 488 | D174: 7916.583333 | G174: 0 | H174: 7916.583333 | I174: INDIRECT_I&II | J174: =MATCH(I174,'Functionalization Factors'!$A$12:$A$191,0) -> 177 | K174: =OFFSET('Functionalization Factors'!$A$12,$J174,K$9)*$H174+OFFSET('Functionalization Factors'!$A$12,$F174-1,K$9) -> 169.7577126 | L174: =OFFSET('Functionalization Factors'!$A$12,$J174,L$9)*$H174+OFFSET('Functionalization Factors'!$A$12,$F174-1,L$9) -> 4.882279256 | M174: =OFFSET('Functionalization Factors'!$A$12,$J174,M$9)*$H174+OFFSET('Functionalization Factors'!$A$12,$F174-1,M$9) -> 359.6634252 | N174: =OFFSET('Functionalization Factors'!$A$12,$J174,N$9)*$H174+OFFSET('Functionalization Factors'!$A$12,$F174-1,N$9) -> 179.3911917 | O174: =OFFSET('Functionalization Factors'!$A$12,$J174,O$9)*$H174+OFFSET('Functionalization Factors'!$A$12,$F174-1,O$9) -> 1263.582676 | P174: =OFFSET('Functionalization Factors'!$A$12,$J174,P$9)*$H174+OFFSET('Functionalization Factors'!$A$12,$F174-1,P$9) -> 0 | Q174: =OFFSET('Functionalization Factors'!$A$12,$J174,Q$9)*$H174+OFFSET('Functionalization Factors'!$A$12,$F174-1,Q$9) -> 403.5533973 | R174: =OFFSET('Functionalization Factors'!$A$12,$J174,R$9)*$H174+OFFSET('Functionalization Factors'!$A$12,$F174-1,R$9) -> 50.47325025 | S174: =OFFSET('Functionalization Factors'!$A$12,$J174,S$9)*$H174+OFFSET('Functionalization Factors'!$A$12,$F174-1,S$9) -> 5485.279401
B175: Rental Equip. on Customer Premise | C175: 487 | D175: 0 | F175: 0 | G175: 0 | H175: 0 | I175: DIST | J175: =MATCH(I175,'Functionalization Factors'!$A$12:$A$191,0) -> 18 | K175: =OFFSET('Functionalization Factors'!$A$12,$J175,K$9)*$H175+OFFSET('Functionalization Factors'!$A$12,$F175-1,K$9) -> 0 | L175: =OFFSET('Functionalization Factors'!$A$12,$J175,L$9)*$H175+OFFSET('Functionalization Factors'!$A$12,$F175-1,L$9) -> 0 | M175: =OFFSET('Functionalization Factors'!$A$12,$J175,M$9)*$H175+OFFSET('Functionalization Factors'!$A$12,$F175-1,M$9) -> 0 | N175: =OFFSET('Functionalization Factors'!$A$12,$J175,N$9)*$H175+OFFSET('Functionalization Factors'!$A$12,$F175-1,N$9) -> 0 | O175: =OFFSET('Functionalization Factors'!$A$12,$J175,O$9)*$H175+OFFSET('Functionalization Factors'!$A$12,$F175-1,O$9) -> 0 | P175: =OFFSET('Functionalization Factors'!$A$12,$J175,P$9)*$H175+OFFSET('Functionalization Factors'!$A$12,$F175-1,P$9) -> 0 | Q175: =OFFSET('Functionalization Factors'!$A$12,$J175,Q$9)*$H175+OFFSET('Functionalization Factors'!$A$12,$F175-1,Q$9) -> 0 | R175: =OFFSET('Functionalization Factors'!$A$12,$J175,R$9)*$H175+OFFSET('Functionalization Factors'!$A$12,$F175-1,R$9) -> 0 | S175: =OFFSET('Functionalization Factors'!$A$12,$J175,S$9)*$H175+OFFSET('Functionalization Factors'!$A$12,$F175-1,S$9) -> 0
B176: Capital Leases | D176: 0 | F176: 0 | G176: 0 | H176: 0 | I176: DIST | J176: =MATCH(I176,'Functionalization Factors'!$A$12:$A$191,0) -> 18 | K176: =OFFSET('Functionalization Factors'!$A$12,$J176,K$9)*$H176+OFFSET('Functionalization Factors'!$A$12,$F176-1,K$9) -> 0 | L176: =OFFSET('Functionalization Factors'!$A$12,$J176,L$9)*$H176+OFFSET('Functionalization Factors'!$A$12,$F176-1,L$9) -> 0 | M176: =OFFSET('Functionalization Factors'!$A$12,$J176,M$9)*$H176+OFFSET('Functionalization Factors'!$A$12,$F176-1,M$9) -> 0 | N176: =OFFSET('Functionalization Factors'!$A$12,$J176,N$9)*$H176+OFFSET('Functionalization Factors'!$A$12,$F176-1,N$9) -> 0 | O176: =OFFSET('Functionalization Factors'!$A$12,$J176,O$9)*$H176+OFFSET('Functionalization Factors'!$A$12,$F176-1,O$9) -> 0 | P176: =OFFSET('Functionalization Factors'!$A$12,$J176,P$9)*$H176+OFFSET('Functionalization Factors'!$A$12,$F176-1,P$9) -> 0 | Q176: =OFFSET('Functionalization Factors'!$A$12,$J176,Q$9)*$H176+OFFSET('Functionalization Factors'!$A$12,$F176-1,Q$9) -> 0 | R176: =OFFSET('Functionalization Factors'!$A$12,$J176,R$9)*$H176+OFFSET('Functionalization Factors'!$A$12,$F176-1,R$9) -> 0 | S176: =OFFSET('Functionalization Factors'!$A$12,$J176,S$9)*$H176+OFFSET('Functionalization Factors'!$A$12,$F176-1,S$9) -> 0
B177: Other | C177: 489 | D177: 0 | F177: 0 | G177: 0 | H177: 0 | I177: INDIRECT_I&II | J177: =MATCH(I177,'Functionalization Factors'!$A$12:$A$191,0) -> 177 | K177: =OFFSET('Functionalization Factors'!$A$12,$J177,K$9)*$H177+OFFSET('Functionalization Factors'!$A$12,$F177-1,K$9) -> 0 | L177: =OFFSET('Functionalization Factors'!$A$12,$J177,L$9)*$H177+OFFSET('Functionalization Factors'!$A$12,$F177-1,L$9) -> 0 | M177: =OFFSET('Functionalization Factors'!$A$12,$J177,M$9)*$H177+OFFSET('Functionalization Factors'!$A$12,$F177-1,M$9) -> 0 | N177: =OFFSET('Functionalization Factors'!$A$12,$J177,N$9)*$H177+OFFSET('Functionalization Factors'!$A$12,$F177-1,N$9) -> 0 | O177: =OFFSET('Functionalization Factors'!$A$12,$J177,O$9)*$H177+OFFSET('Functionalization Factors'!$A$12,$F177-1,O$9) -> 0 | P177: =OFFSET('Functionalization Factors'!$A$12,$J177,P$9)*$H177+OFFSET('Functionalization Factors'!$A$12,$F177-1,P$9) -> 0 | Q177: =OFFSET('Functionalization Factors'!$A$12,$J177,Q$9)*$H177+OFFSET('Functionalization Factors'!$A$12,$F177-1,Q$9) -> 0 | R177: =OFFSET('Functionalization Factors'!$A$12,$J177,R$9)*$H177+OFFSET('Functionalization Factors'!$A$12,$F177-1,R$9) -> 0 | S177: =OFFSET('Functionalization Factors'!$A$12,$J177,S$9)*$H177+OFFSET('Functionalization Factors'!$A$12,$F177-1,S$9) -> 0
B178: Subtotal | D178: =SUM(D169:D177) -> 123611.5754 | G178: =SUM(G169:G177) -> 0 | H178: =SUM(H169:H177) -> 123611.5754 | K178: =SUM(K169:K177) -> 2650.640738 | L178: 76.23316839 | M178: 5615.877548 | N178: 2801.060367 | O178: 19729.90603 | P178: 0 | Q178: 6301.186899 | R178: 788.1023563 | S178: =SUM(S169:S177) -> 85648.56828
A180: TOTAL ACCUMULATED DEPRECIATION | D180: =D178+D164+D166+D147+D133+D123+D112+D105 -> 2755824.997 | G180: =G178+G164+G166+G147+G133+G123+G112+G105 -> 603079.1024 | H180: =H178+H164+H166+H147+H133+H123+H112+H105 -> 2152745.895 | K180: =K178+K164+K166+K147+K133+K123+K112+K105 -> 2650.640738 | L180: =L178+L164+L166+L147+L133+L123+L112+L105 -> 4496.42246 | M180: 157650.0626 | N180: 77067.03001 | O180: 539477.4837 | P180: 0 | Q180: 137714.3462 | R180: 35925.73507 | S180: 1800843.277 | Z180: =IF(ABS(SUM(K180:S180)-D180)>1,"*****","") -> 
A182: III. WORKING CAPITAL | Z182: =IF(ABS(SUM(K182:S182)-D182)>1,"*****","") -> 
B183: O&M Working Capital | D183: 18819 | G183: 0 | H183: =D183-G183 -> 18819 | I183: INDIRECT_II | J183: =MATCH(I183,'Functionalization Factors'!$A$12:$A$191,0) -> 174 | K183: =OFFSET('Functionalization Factors'!$A$12,$J183,K$9)*$H183+OFFSET('Functionalization Factors'!$A$12,$F183-1,K$9) -> 807.0831213 | L183: =OFFSET('Functionalization Factors'!$A$12,$J183,L$9)*$H183+OFFSET('Functionalization Factors'!$A$12,$F183-1,L$9) -> 6.81970665 | M183: =OFFSET('Functionalization Factors'!$A$12,$J183,M$9)*$H183+OFFSET('Functionalization Factors'!$A$12,$F183-1,M$9) -> 806.9860438 | N183: =OFFSET('Functionalization Factors'!$A$12,$J183,N$9)*$H183+OFFSET('Functionalization Factors'!$A$12,$F183-1,N$9) -> 422.9517742 | O183: =OFFSET('Functionalization Factors'!$A$12,$J183,O$9)*$H183+OFFSET('Functionalization Factors'!$A$12,$F183-1,O$9) -> 1508.262353 | P183: =OFFSET('Functionalization Factors'!$A$12,$J183,P$9)*$H183+OFFSET('Functionalization Factors'!$A$12,$F183-1,P$9) -> 0 | Q183: =OFFSET('Functionalization Factors'!$A$12,$J183,Q$9)*$H183+OFFSET('Functionalization Factors'!$A$12,$F183-1,Q$9) -> 695.3558677 | R183: =OFFSET('Functionalization Factors'!$A$12,$J183,R$9)*$H183+OFFSET('Functionalization Factors'!$A$12,$F183-1,R$9) -> 95.32775796 | S183: =OFFSET('Functionalization Factors'!$A$12,$J183,S$9)*$H183+OFFSET('Functionalization Factors'!$A$12,$F183-1,S$9) -> 14476.21338
B184: Gas Purchase Working Capital | D184: 1187.953688 | F184: 0 | G184: 0 | H184: 1187.953688 | I184: PROD | J184: =MATCH(I184,'Functionalization Factors'!$A$12:$A$191,0) -> 3 | K184: =OFFSET('Functionalization Factors'!$A$12,$J184,K$9)*$H184+OFFSET('Functionalization Factors'!$A$12,$F184-1,K$9) -> 1187.953688 | L184: =OFFSET('Functionalization Factors'!$A$12,$J184,L$9)*$H184+OFFSET('Functionalization Factors'!$A$12,$F184-1,L$9) -> 0 | M184: =OFFSET('Functionalization Factors'!$A$12,$J184,M$9)*$H184+OFFSET('Functionalization Factors'!$A$12,$F184-1,M$9) -> 0 | N184: =OFFSET('Functionalization Factors'!$A$12,$J184,N$9)*$H184+OFFSET('Functionalization Factors'!$A$12,$F184-1,N$9) -> 0 | O184: =OFFSET('Functionalization Factors'!$A$12,$J184,O$9)*$H184+OFFSET('Functionalization Factors'!$A$12,$F184-1,O$9) -> 0 | P184: =OFFSET('Functionalization Factors'!$A$12,$J184,P$9)*$H184+OFFSET('Functionalization Factors'!$A$12,$F184-1,P$9) -> 0 | Q184: =OFFSET('Functionalization Factors'!$A$12,$J184,Q$9)*$H184+OFFSET('Functionalization Factors'!$A$12,$F184-1,Q$9) -> 0 | R184: =OFFSET('Functionalization Factors'!$A$12,$J184,R$9)*$H184+OFFSET('Functionalization Factors'!$A$12,$F184-1,R$9) -> 0 | S184: =OFFSET('Functionalization Factors'!$A$12,$J184,S$9)*$H184+OFFSET('Functionalization Factors'!$A$12,$F184-1,S$9) -> 0
B185: Gas in Storage | D185: 131884.3837 | F185: 0 | G185: 0 | H185: =D185-G185 -> 131884.3837 | I185: STORDEHYX | J185: =MATCH(I185,'Functionalization Factors'!$A$12:$A$191,0) -> 9 | K185: =OFFSET('Functionalization Factors'!$A$12,$J185,K$9)*$H185+OFFSET('Functionalization Factors'!$A$12,$F185-1,K$9) -> 0 | L185: =OFFSET('Functionalization Factors'!$A$12,$J185,L$9)*$H185+OFFSET('Functionalization Factors'!$A$12,$F185-1,L$9) -> 0 | M185: =OFFSET('Functionalization Factors'!$A$12,$J185,M$9)*$H185+OFFSET('Functionalization Factors'!$A$12,$F185-1,M$9) -> 131884.3837 | N185: =OFFSET('Functionalization Factors'!$A$12,$J185,N$9)*$H185+OFFSET('Functionalization Factors'!$A$12,$F185-1,N$9) -> 0 | O185: =OFFSET('Functionalization Factors'!$A$12,$J185,O$9)*$H185+OFFSET('Functionalization Factors'!$A$12,$F185-1,O$9) -> 0 | P185: =OFFSET('Functionalization Factors'!$A$12,$J185,P$9)*$H185+OFFSET('Functionalization Factors'!$A$12,$F185-1,P$9) -> 0 | Q185: =OFFSET('Functionalization Factors'!$A$12,$J185,Q$9)*$H185+OFFSET('Functionalization Factors'!$A$12,$F185-1,Q$9) -> 0 | R185: =OFFSET('Functionalization Factors'!$A$12,$J185,R$9)*$H185+OFFSET('Functionalization Factors'!$A$12,$F185-1,R$9) -> 0 | S185: =OFFSET('Functionalization Factors'!$A$12,$J185,S$9)*$H185+OFFSET('Functionalization Factors'!$A$12,$F185-1,S$9) -> 0
B186: Linepack | D186: 9451.56594 | F186: 0 | G186: 0 | H186: =D186-G186 -> 9451.56594 | I186: LINEPACK | J186: =MATCH(I186,'Functionalization Factors'!$A$12:$A$191,0) -> 90 | K186: =OFFSET('Functionalization Factors'!$A$12,$J186,K$9)*$H186+OFFSET('Functionalization Factors'!$A$12,$F186-1,K$9) -> 0 | L186: =OFFSET('Functionalization Factors'!$A$12,$J186,L$9)*$H186+OFFSET('Functionalization Factors'!$A$12,$F186-1,L$9) -> 0 | M186: =OFFSET('Functionalization Factors'!$A$12,$J186,M$9)*$H186+OFFSET('Functionalization Factors'!$A$12,$F186-1,M$9) -> 0 | N186: =OFFSET('Functionalization Factors'!$A$12,$J186,N$9)*$H186+OFFSET('Functionalization Factors'!$A$12,$F186-1,N$9) -> 0 | O186: =OFFSET('Functionalization Factors'!$A$12,$J186,O$9)*$H186+OFFSET('Functionalization Factors'!$A$12,$F186-1,O$9) -> 6574.541063 | P186: =OFFSET('Functionalization Factors'!$A$12,$J186,P$9)*$H186+OFFSET('Functionalization Factors'!$A$12,$F186-1,P$9) -> 0 | Q186: =OFFSET('Functionalization Factors'!$A$12,$J186,Q$9)*$H186+OFFSET('Functionalization Factors'!$A$12,$F186-1,Q$9) -> 976.6758972 | R186: =OFFSET('Functionalization Factors'!$A$12,$J186,R$9)*$H186+OFFSET('Functionalization Factors'!$A$12,$F186-1,R$9) -> 526.0122392 | S186: =OFFSET('Functionalization Factors'!$A$12,$J186,S$9)*$H186+OFFSET('Functionalization Factors'!$A$12,$F186-1,S$9) -> 1374.336741
B187: Balancing Gas | D187: 72963 | F187: 0 | G187: 0 | H187: 72963 | I187: STORDEHYX | J187: =MATCH(I187,'Functionalization Factors'!$A$12:$A$191,0) -> 9 | K187: =OFFSET('Functionalization Factors'!$A$12,$J187,K$9)*$H187+OFFSET('Functionalization Factors'!$A$12,$F187-1,K$9) -> 0 | L187: =OFFSET('Functionalization Factors'!$A$12,$J187,L$9)*$H187+OFFSET('Functionalization Factors'!$A$12,$F187-1,L$9) -> 0 | M187: =OFFSET('Functionalization Factors'!$A$12,$J187,M$9)*$H187+OFFSET('Functionalization Factors'!$A$12,$F187-1,M$9) -> 72963 | N187: =OFFSET('Functionalization Factors'!$A$12,$J187,N$9)*$H187+OFFSET('Functionalization Factors'!$A$12,$F187-1,N$9) -> 0 | O187: =OFFSET('Functionalization Factors'!$A$12,$J187,O$9)*$H187+OFFSET('Functionalization Factors'!$A$12,$F187-1,O$9) -> 0 | P187: =OFFSET('Functionalization Factors'!$A$12,$J187,P$9)*$H187+OFFSET('Functionalization Factors'!$A$12,$F187-1,P$9) -> 0 | Q187: =OFFSET('Functionalization Factors'!$A$12,$J187,Q$9)*$H187+OFFSET('Functionalization Factors'!$A$12,$F187-1,Q$9) -> 0 | R187: =OFFSET('Functionalization Factors'!$A$12,$J187,R$9)*$H187+OFFSET('Functionalization Factors'!$A$12,$F187-1,R$9) -> 0 | S187: =OFFSET('Functionalization Factors'!$A$12,$J187,S$9)*$H187+OFFSET('Functionalization Factors'!$A$12,$F187-1,S$9) -> 0
B188: Inventory of Stores and Spare Equipment | D188: 29618 | G188: 0 | H188: 29618 | I188: INDIRECT_I | J188: =MATCH(I188,'Functionalization Factors'!$A$12:$A$191,0) -> 171 | K188: =OFFSET('Functionalization Factors'!$A$12,$J188,K$9)*$H188+OFFSET('Functionalization Factors'!$A$12,$F188-1,K$9) -> 0 | L188: =OFFSET('Functionalization Factors'!$A$12,$J188,L$9)*$H188+OFFSET('Functionalization Factors'!$A$12,$F188-1,L$9) -> 25.79866372 | M188: =OFFSET('Functionalization Factors'!$A$12,$J188,M$9)*$H188+OFFSET('Functionalization Factors'!$A$12,$F188-1,M$9) -> 1421.126242 | N188: =OFFSET('Functionalization Factors'!$A$12,$J188,N$9)*$H188+OFFSET('Functionalization Factors'!$A$12,$F188-1,N$9) -> 676.6420492 | O188: =OFFSET('Functionalization Factors'!$A$12,$J188,O$9)*$H188+OFFSET('Functionalization Factors'!$A$12,$F188-1,O$9) -> 7081.027734 | P188: =OFFSET('Functionalization Factors'!$A$12,$J188,P$9)*$H188+OFFSET('Functionalization Factors'!$A$12,$F188-1,P$9) -> 0 | Q188: =OFFSET('Functionalization Factors'!$A$12,$J188,Q$9)*$H188+OFFSET('Functionalization Factors'!$A$12,$F188-1,Q$9) -> 1925.221347 | R188: =OFFSET('Functionalization Factors'!$A$12,$J188,R$9)*$H188+OFFSET('Functionalization Factors'!$A$12,$F188-1,R$9) -> 227.6369908 | S188: =OFFSET('Functionalization Factors'!$A$12,$J188,S$9)*$H188+OFFSET('Functionalization Factors'!$A$12,$F188-1,S$9) -> 18260.54697
B189: ABC Receivable/Payables | D189: -44901 | F189: 0 | G189: 0 | H189: -44901 | I189: PROD | J189: =MATCH(I189,'Functionalization Factors'!$A$12:$A$191,0) -> 3 | K189: =OFFSET('Functionalization Factors'!$A$12,$J189,K$9)*$H189+OFFSET('Functionalization Factors'!$A$12,$F189-1,K$9) -> -44901 | L189: =OFFSET('Functionalization Factors'!$A$12,$J189,L$9)*$H189+OFFSET('Functionalization Factors'!$A$12,$F189-1,L$9) -> 0 | M189: =OFFSET('Functionalization Factors'!$A$12,$J189,M$9)*$H189+OFFSET('Functionalization Factors'!$A$12,$F189-1,M$9) -> 0 | N189: =OFFSET('Functionalization Factors'!$A$12,$J189,N$9)*$H189+OFFSET('Functionalization Factors'!$A$12,$F189-1,N$9) -> 0 | O189: =OFFSET('Functionalization Factors'!$A$12,$J189,O$9)*$H189+OFFSET('Functionalization Factors'!$A$12,$F189-1,O$9) -> 0 | P189: =OFFSET('Functionalization Factors'!$A$12,$J189,P$9)*$H189+OFFSET('Functionalization Factors'!$A$12,$F189-1,P$9) -> 0 | Q189: =OFFSET('Functionalization Factors'!$A$12,$J189,Q$9)*$H189+OFFSET('Functionalization Factors'!$A$12,$F189-1,Q$9) -> 0 | R189: =OFFSET('Functionalization Factors'!$A$12,$J189,R$9)*$H189+OFFSET('Functionalization Factors'!$A$12,$F189-1,R$9) -> 0 | S189: =OFFSET('Functionalization Factors'!$A$12,$J189,S$9)*$H189+OFFSET('Functionalization Factors'!$A$12,$F189-1,S$9) -> 0
B190: Prepaid and Deferred Expense | D190: 4955 | G190: 0 | H190: 4955 | I190: INDIRECT_I | J190: =MATCH(I190,'Functionalization Factors'!$A$12:$A$191,0) -> 171 | K190: =OFFSET('Functionalization Factors'!$A$12,$J190,K$9)*$H190+OFFSET('Functionalization Factors'!$A$12,$F190-1,K$9) -> 0 | L190: =OFFSET('Functionalization Factors'!$A$12,$J190,L$9)*$H190+OFFSET('Functionalization Factors'!$A$12,$F190-1,L$9) -> 4.316036826 | M190: =OFFSET('Functionalization Factors'!$A$12,$J190,M$9)*$H190+OFFSET('Functionalization Factors'!$A$12,$F190-1,M$9) -> 237.7500347 | N190: =OFFSET('Functionalization Factors'!$A$12,$J190,N$9)*$H190+OFFSET('Functionalization Factors'!$A$12,$F190-1,N$9) -> 113.2001267 | O190: =OFFSET('Functionalization Factors'!$A$12,$J190,O$9)*$H190+OFFSET('Functionalization Factors'!$A$12,$F190-1,O$9) -> 1184.634088 | P190: =OFFSET('Functionalization Factors'!$A$12,$J190,P$9)*$H190+OFFSET('Functionalization Factors'!$A$12,$F190-1,P$9) -> 0 | Q190: =OFFSET('Functionalization Factors'!$A$12,$J190,Q$9)*$H190+OFFSET('Functionalization Factors'!$A$12,$F190-1,Q$9) -> 322.0835901 | R190: =OFFSET('Functionalization Factors'!$A$12,$J190,R$9)*$H190+OFFSET('Functionalization Factors'!$A$12,$F190-1,R$9) -> 38.08296608 | S190: =OFFSET('Functionalization Factors'!$A$12,$J190,S$9)*$H190+OFFSET('Functionalization Factors'!$A$12,$F190-1,S$9) -> 3054.933157
B191: Customer Deposits | D191: -48995 | F191: 0 | G191: 0 | H191: -48995 | I191: DIST | J191: =MATCH(I191,'Functionalization Factors'!$A$12:$A$191,0) -> 18 | K191: =OFFSET('Functionalization Factors'!$A$12,$J191,K$9)*$H191+OFFSET('Functionalization Factors'!$A$12,$F191-1,K$9) -> 0 | L191: =OFFSET('Functionalization Factors'!$A$12,$J191,L$9)*$H191+OFFSET('Functionalization Factors'!$A$12,$F191-1,L$9) -> 0 | M191: =OFFSET('Functionalization Factors'!$A$12,$J191,M$9)*$H191+OFFSET('Functionalization Factors'!$A$12,$F191-1,M$9) -> 0 | N191: =OFFSET('Functionalization Factors'!$A$12,$J191,N$9)*$H191+OFFSET('Functionalization Factors'!$A$12,$F191-1,N$9) -> 0 | O191: =OFFSET('Functionalization Factors'!$A$12,$J191,O$9)*$H191+OFFSET('Functionalization Factors'!$A$12,$F191-1,O$9) -> 0 | P191: =OFFSET('Functionalization Factors'!$A$12,$J191,P$9)*$H191+OFFSET('Functionalization Factors'!$A$12,$F191-1,P$9) -> 0 | Q191: =OFFSET('Functionalization Factors'!$A$12,$J191,Q$9)*$H191+OFFSET('Functionalization Factors'!$A$12,$F191-1,Q$9) -> 0 | R191: =OFFSET('Functionalization Factors'!$A$12,$J191,R$9)*$H191+OFFSET('Functionalization Factors'!$A$12,$F191-1,R$9) -> 0 | S191: =OFFSET('Functionalization Factors'!$A$12,$J191,S$9)*$H191+OFFSET('Functionalization Factors'!$A$12,$F191-1,S$9) -> -48995
B192: Other | D192: 0 | F192: 0 | G192: 0 | H192: 0 | J192: 0 | K192: =OFFSET('Functionalization Factors'!$A$12,$J192,K$9)*$H192+OFFSET('Functionalization Factors'!$A$12,$F192-1,K$9) -> 0 | L192: =OFFSET('Functionalization Factors'!$A$12,$J192,L$9)*$H192+OFFSET('Functionalization Factors'!$A$12,$F192-1,L$9) -> 0 | M192: =OFFSET('Functionalization Factors'!$A$12,$J192,M$9)*$H192+OFFSET('Functionalization Factors'!$A$12,$F192-1,M$9) -> 0 | N192: =OFFSET('Functionalization Factors'!$A$12,$J192,N$9)*$H192+OFFSET('Functionalization Factors'!$A$12,$F192-1,N$9) -> 0 | O192: =OFFSET('Functionalization Factors'!$A$12,$J192,O$9)*$H192+OFFSET('Functionalization Factors'!$A$12,$F192-1,O$9) -> 0 | P192: =OFFSET('Functionalization Factors'!$A$12,$J192,P$9)*$H192+OFFSET('Functionalization Factors'!$A$12,$F192-1,P$9) -> 0 | Q192: =OFFSET('Functionalization Factors'!$A$12,$J192,Q$9)*$H192+OFFSET('Functionalization Factors'!$A$12,$F192-1,Q$9) -> 0 | R192: =OFFSET('Functionalization Factors'!$A$12,$J192,R$9)*$H192+OFFSET('Functionalization Factors'!$A$12,$F192-1,R$9) -> 0 | S192: =OFFSET('Functionalization Factors'!$A$12,$J192,S$9)*$H192+OFFSET('Functionalization Factors'!$A$12,$F192-1,S$9) -> 0
B193: Subtotal | D193: =SUM(D183:D192) -> 174982.9033 | G193: =SUM(G183:G192) -> 0 | H193: =SUM(H183:H192) -> 174982.9033 | K193: =SUM(K183:K192) -> -42905.96319 | L193: 36.93440719 | M193: 207313.246 | N193: 1212.79395 | O193: 16348.46524 | P193: 0 | Q193: 3919.336702 | R193: 887.059954 | S193: -11828.96975
A195: IV. ACCUMULATED DEFERRED TAXES | D195: -69686.08 | E195: DEFTAXDIRECT | F195: =MATCH(E195,'Functionalization Factors'!$A$12:$A$191,0) -> 96 | G195: =IF(F195<>0,OFFSET('Functionalization Factors'!$A$12,$F195,1),0) -> -20865.04411 | H195: =D195-G195 -> -48821.03589 | I195: DEFERTAXBASE | J195: =MATCH(I195,'Functionalization Factors'!$A$12:$A$191,0) -> 93 | K195: =OFFSET('Functionalization Factors'!$A$12,$J195,K$9)*$H195+OFFSET('Functionalization Factors'!$A$12,$F195-1,K$9) -> -62.04446469 | L195: =OFFSET('Functionalization Factors'!$A$12,$J195,L$9)*$H195+OFFSET('Functionalization Factors'!$A$12,$F195-1,L$9) -> -477.0183323 | M195: =OFFSET('Functionalization Factors'!$A$12,$J195,M$9)*$H195+OFFSET('Functionalization Factors'!$A$12,$F195-1,M$9) -> -7860.006579 | N195: =OFFSET('Functionalization Factors'!$A$12,$J195,N$9)*$H195+OFFSET('Functionalization Factors'!$A$12,$F195-1,N$9) -> -4262.560014 | O195: =OFFSET('Functionalization Factors'!$A$12,$J195,O$9)*$H195+OFFSET('Functionalization Factors'!$A$12,$F195-1,O$9) -> -25417.863 | P195: =OFFSET('Functionalization Factors'!$A$12,$J195,P$9)*$H195+OFFSET('Functionalization Factors'!$A$12,$F195-1,P$9) -> 0 | Q195: =OFFSET('Functionalization Factors'!$A$12,$J195,Q$9)*$H195+OFFSET('Functionalization Factors'!$A$12,$F195-1,Q$9) -> -7136.453364 | R195: =OFFSET('Functionalization Factors'!$A$12,$J195,R$9)*$H195+OFFSET('Functionalization Factors'!$A$12,$F195-1,R$9) -> -903.653126 | S195: =OFFSET('Functionalization Factors'!$A$12,$J195,S$9)*$H195+OFFSET('Functionalization Factors'!$A$12,$F195-1,S$9) -> -23566.48112
A197: TOTAL RATE BASE | D197: =+D95-D180+D193+D195 -> 3712733.803 | G197: =+G95-G180+G193+G195 -> 850574.6788 | H197: =+H95-H180+H193+H195 -> 2862159.124 | K197: =+K95-K180+K193+K195 -> -39911.62102 | L197: =+L95-L180+L193+L195 -> 2633.954037 | M197: =+M95-M180+M193+M195 -> 405624.9065 | N197: 78499.81187 | O197: 833293.1768 | P197: 0 | Q197: 226888.5233 | R197: 27240.60085 | S197: 2178464.45
Z198: =IF(ABS(SUM(K198:S198)-D198)>1,"*****","") -> 
A199: V. RETURN AND TAXES | Z199: =IF(ABS(SUM(K199:S199)-D199)>1,"*****","") -> 
B200: Percent Return on Rate Base | D200: 0.0731952713 | K200: =+$D$200 -> 0.0731952713 | L200: =+$D$200 -> 0.0731952713 | M200: 0.0731952713 | N200: 0.0731952713 | O200: 0.0731952713 | P200: 0.0731952713 | Q200: 0.0731952713 | R200: 0.0731952713 | S200: 0.0731952713
B201: Return on Rate Base | D201: =D197*D200 -> 271754.5579 | F201: 0 | G201: 0 | H201: =D201-G201 -> 271754.5579 | K201: =+K200*K197 -> -2921.341928 | L201: =+L200*L197 -> 192.7929803 | M201: 29689.82508 | N201: 5745.815027 | O201: 60993.12015 | P201: 0 | Q201: 16607.16702 | R201: 1993.88317 | S201: =+S200*S197 -> 159453.2964 | Z201: =IF(ABS(SUM(K201:S201)-D201)>1,"*****","") -> 
B202: Income Taxes | D202: 31531.03501 | F202: 0 | G202: =IF(F202<>0,OFFSET('Functionalization Factors'!$A$12,$F202,1),0) -> 0 | H202: =D202-G202 -> 31531.03501 | I202: RATEBASE | J202: =MATCH(I202,'Functionalization Factors'!$A$12:$A$191,0) -> 168 | K202: =OFFSET('Functionalization Factors'!$A$12,$J202,K$9)*$H202+OFFSET('Functionalization Factors'!$A$12,$F202-1,K$9) -> -338.9563557 | L202: =OFFSET('Functionalization Factors'!$A$12,$J202,L$9)*$H202+OFFSET('Functionalization Factors'!$A$12,$F202-1,L$9) -> 22.36931096 | M202: =OFFSET('Functionalization Factors'!$A$12,$J202,M$9)*$H202+OFFSET('Functionalization Factors'!$A$12,$F202-1,M$9) -> 3444.839788 | N202: =OFFSET('Functionalization Factors'!$A$12,$J202,N$9)*$H202+OFFSET('Functionalization Factors'!$A$12,$F202-1,N$9) -> 666.6732515 | O202: =OFFSET('Functionalization Factors'!$A$12,$J202,O$9)*$H202+OFFSET('Functionalization Factors'!$A$12,$F202-1,O$9) -> 7076.886663 | P202: =OFFSET('Functionalization Factors'!$A$12,$J202,P$9)*$H202+OFFSET('Functionalization Factors'!$A$12,$F202-1,P$9) -> 0 | Q202: =OFFSET('Functionalization Factors'!$A$12,$J202,Q$9)*$H202+OFFSET('Functionalization Factors'!$A$12,$F202-1,Q$9) -> 1926.89009 | R202: =OFFSET('Functionalization Factors'!$A$12,$J202,R$9)*$H202+OFFSET('Functionalization Factors'!$A$12,$F202-1,R$9) -> 231.3455218 | S202: =OFFSET('Functionalization Factors'!$A$12,$J202,S$9)*$H202+OFFSET('Functionalization Factors'!$A$12,$F202-1,S$9) -> 18500.98674 | Z202: =IF(ABS(SUM(K202:S202)-D202)>1,"*****","") -> 
B203: Capital Taxes | D203: 0 | F203: 0 | G203: =IF(F203<>0,OFFSET('Functionalization Factors'!$A$12,$F203,1),0) -> 0 | H203: =D203-G203 -> 0 | I203: RATEBASE | J203: =MATCH(I203,'Functionalization Factors'!$A$12:$A$191,0) -> 168 | K203: =OFFSET('Functionalization Factors'!$A$12,$J203,K$9)*$H203+OFFSET('Functionalization Factors'!$A$12,$F203-1,K$9) -> 0 | L203: =OFFSET('Functionalization Factors'!$A$12,$J203,L$9)*$H203+OFFSET('Functionalization Factors'!$A$12,$F203-1,L$9) -> 0 | M203: =OFFSET('Functionalization Factors'!$A$12,$J203,M$9)*$H203+OFFSET('Functionalization Factors'!$A$12,$F203-1,M$9) -> 0 | N203: =OFFSET('Functionalization Factors'!$A$12,$J203,N$9)*$H203+OFFSET('Functionalization Factors'!$A$12,$F203-1,N$9) -> 0 | O203: =OFFSET('Functionalization Factors'!$A$12,$J203,O$9)*$H203+OFFSET('Functionalization Factors'!$A$12,$F203-1,O$9) -> 0 | P203: =OFFSET('Functionalization Factors'!$A$12,$J203,P$9)*$H203+OFFSET('Functionalization Factors'!$A$12,$F203-1,P$9) -> 0 | Q203: =OFFSET('Functionalization Factors'!$A$12,$J203,Q$9)*$H203+OFFSET('Functionalization Factors'!$A$12,$F203-1,Q$9) -> 0 | R203: =OFFSET('Functionalization Factors'!$A$12,$J203,R$9)*$H203+OFFSET('Functionalization Factors'!$A$12,$F203-1,R$9) -> 0 | S203: =OFFSET('Functionalization Factors'!$A$12,$J203,S$9)*$H203+OFFSET('Functionalization Factors'!$A$12,$F203-1,S$9) -> 0 | Z203: =IF(ABS(SUM(K203:S203)-D203)>1,"*****","") -> 
B204: Property Tax | D204: 63272 | F204: 0 | G204: =IF(F204<>0,OFFSET('Functionalization Factors'!$A$12,$F204,1),0) -> 0 | H204: =D204-G204 -> 63272 | I204: PROPTAX | J204: =MATCH(I204,'Functionalization Factors'!$A$12:$A$191,0) -> 165 | K204: =OFFSET('Functionalization Factors'!$A$12,$J204,K$9)*$H204+OFFSET('Functionalization Factors'!$A$12,$F204-1,K$9) -> 16.25160802 | L204: =OFFSET('Functionalization Factors'!$A$12,$J204,L$9)*$H204+OFFSET('Functionalization Factors'!$A$12,$F204-1,L$9) -> 0.4674007884 | M204: =OFFSET('Functionalization Factors'!$A$12,$J204,M$9)*$H204+OFFSET('Functionalization Factors'!$A$12,$F204-1,M$9) -> 1437.54159 | N204: =OFFSET('Functionalization Factors'!$A$12,$J204,N$9)*$H204+OFFSET('Functionalization Factors'!$A$12,$F204-1,N$9) -> 662.0489245 | O204: =OFFSET('Functionalization Factors'!$A$12,$J204,O$9)*$H204+OFFSET('Functionalization Factors'!$A$12,$F204-1,O$9) -> 15291.47699 | P204: =OFFSET('Functionalization Factors'!$A$12,$J204,P$9)*$H204+OFFSET('Functionalization Factors'!$A$12,$F204-1,P$9) -> 0 | Q204: =OFFSET('Functionalization Factors'!$A$12,$J204,Q$9)*$H204+OFFSET('Functionalization Factors'!$A$12,$F204-1,Q$9) -> 6229.701842 | R204: =OFFSET('Functionalization Factors'!$A$12,$J204,R$9)*$H204+OFFSET('Functionalization Factors'!$A$12,$F204-1,R$9) -> 1059.66671 | S204: =OFFSET('Functionalization Factors'!$A$12,$J204,S$9)*$H204+OFFSET('Functionalization Factors'!$A$12,$F204-1,S$9) -> 38574.84493 | Z204: =IF(ABS(SUM(K204:S204)-D204)>1,"*****","") -> 
B205: Subtotal | D205: =SUM(D201:D204) -> 366557.5929 | G205: =SUM(G201:G204) -> 0 | H205: =SUM(H201:H204) -> 366557.5929 | K205: =SUM(K201:K204) -> -3244.046676 | L205: =SUM(L201:L204) -> 215.6296921 | M205: 34572.20646 | N205: 7074.537203 | O205: 83361.4838 | P205: 0 | Q205: 24763.75895 | R205: 3284.895402 | S205: =SUM(S201:S204) -> 216529.1281
A207: VI. ACCUMULATED DEFERRED TAX DRAWDOWN | D207: -15169 | F207: 0 | G207: 0 | H207: =D207-G207 -> -15169 | I207: DTDRAWDOWN | J207: =MATCH(I207,'Functionalization Factors'!$A$12:$A$191,0) -> 159 | K207: =OFFSET('Functionalization Factors'!$A$12,$J207,K$9)*$H207+OFFSET('Functionalization Factors'!$A$12,$F207-1,K$9) -> -13.50560234 | L207: =OFFSET('Functionalization Factors'!$A$12,$J207,L$9)*$H207+OFFSET('Functionalization Factors'!$A$12,$F207-1,L$9) -> -103.8355305 | M207: =OFFSET('Functionalization Factors'!$A$12,$J207,M$9)*$H207+OFFSET('Functionalization Factors'!$A$12,$F207-1,M$9) -> -1710.936241 | N207: =OFFSET('Functionalization Factors'!$A$12,$J207,N$9)*$H207+OFFSET('Functionalization Factors'!$A$12,$F207-1,N$9) -> -927.8577996 | O207: =OFFSET('Functionalization Factors'!$A$12,$J207,O$9)*$H207+OFFSET('Functionalization Factors'!$A$12,$F207-1,O$9) -> -5532.863433 | P207: =OFFSET('Functionalization Factors'!$A$12,$J207,P$9)*$H207+OFFSET('Functionalization Factors'!$A$12,$F207-1,P$9) -> 0 | Q207: =OFFSET('Functionalization Factors'!$A$12,$J207,Q$9)*$H207+OFFSET('Functionalization Factors'!$A$12,$F207-1,Q$9) -> -1553.435938 | R207: =OFFSET('Functionalization Factors'!$A$12,$J207,R$9)*$H207+OFFSET('Functionalization Factors'!$A$12,$F207-1,R$9) -> -196.7037645 | S207: =OFFSET('Functionalization Factors'!$A$12,$J207,S$9)*$H207+OFFSET('Functionalization Factors'!$A$12,$F207-1,S$9) -> -5129.86169 | Z207: =IF(ABS(SUM(K207:S207)-D207)>1,"*****","") -> 
A209: VII. DEPRECIATION EXPENSE
B211: Production & Gathering Plant | D211: =$W$19 -> 0 | K211: =IF($W$19=0,0,SUMPRODUCT(K$14:K$18,$V$14:$V$18)*$D211/$W$19) -> 0 | L211: 0 | M211: 0 | N211: 0 | O211: 0 | P211: 0 | Q211: 0 | R211: 0 | S211: 0 | Z211: =IF(ABS(SUM(K211:S211)-D211)>1,"*****","") -> 
B212: Local Storage Plant | D212: =$W$26 -> 734 | K212: =IF($W$26=0,0,SUMPRODUCT(K$22:K$25,$V$22:$V$25)*$D212/$W$26) -> 0 | L212: 0 | M212: 734 | N212: 0 | O212: 0 | P212: 0 | Q212: 0 | R212: 0 | S212: 0
B213: Underground Storage Plant | D213: =$W$37 -> 12973.29415 | K213: 0 | L213: 196.8847143 | M213: 7510.997702 | N213: 4464.135189 | O213: 595.2565453 | P213: 0 | Q213: 0 | R213: 206.0199953 | S213: 0
B214: Transmission Plant | D214: =$W$47 -> 39239.70585 | K214: 0 | L214: 0 | M214: 0 | N214: 0 | O214: 30140.13462 | P214: 0 | Q214: 7916.269789 | R214: 1183.301443 | S214: 0
B215: Distribution Plant (Southern Ontario) | D215: =$W$62 -> 67159.22692 | K215: =IF($W$62=0,0,SUMPRODUCT(K$50:K$61,$V$50:$V$61)*$D215/$W$62) -> 0 | L215: 0 | M215: 0 | N215: 0 | O215: 0 | P215: 0 | Q215: 0 | R215: 0 | S215: 67159.22692
B216: Distribution Plant (Northern Ontario) | D216: =$W$79 -> 40782.79711 | K216: =IF($W$79=0,0,SUMPRODUCT(K$65:K$78,$V$65:$V$78)*$D216/$W$79) -> 0 | L216: =IF($W$79=0,0,SUMPRODUCT(L$65:L$78,$V$65:$V$78)*$D216/$W$79) -> 0 | M216: 0 | N216: 0 | O216: 0 | P216: 0 | Q216: 0 | R216: 0 | S216: 40782.79711
B217: Intangible Plant | D217: =$W$81 -> 185 | K217: =IF($W$81=0,0,K$81*$V$81*$D217/$W$81) -> 0 | L217: 0 | M217: 0 | N217: 0 | O217: 0 | P217: 0 | Q217: 0 | R217: 0 | S217: 185
B218: General Plant | D218: =$W$93 -> 34638.302 | K218: =IF($W$62=0,0,SUMPRODUCT(K$84:K$92,$V$84:$V$92)*$D218/$W$93) -> 742.7596815 | L218: 21.36197602 | M218: 1573.675134 | N218: 784.9101073 | O218: 5528.692935 | P218: 0 | Q218: 1765.71178 | R218: 220.8411901 | S218: 24000.3492
B219: Subtotal | D219: =SUM(D211:D218) -> 195712.326 | K219: =SUM(K211:K218) -> 742.7596815 | L219: 218.2466903 | M219: 9818.672836 | N219: 5249.045296 | O219: 36264.0841 | P219: 0 | Q219: 9681.981569 | R219: 1610.162628 | S219: 132127.3732
A221: VIII. OPERATING EXPENSES
A223: A. COST OF GAS AND PRODUCTION
B224: Firm Supply Commodity | D224: 80651.49536 | G224: 0 | H224: =D224-G224 -> 80651.49536 | I224: PROD | J224: =MATCH(I224,'Functionalization Factors'!$A$12:$A$191,0) -> 3 | K224: =OFFSET('Functionalization Factors'!$A$12,$J224,K$9)*$H224+OFFSET('Functionalization Factors'!$A$12,$F224-1,K$9) -> 80651.49536 | L224: =OFFSET('Functionalization Factors'!$A$12,$J224,L$9)*$H224+OFFSET('Functionalization Factors'!$A$12,$F224-1,L$9) -> 0 | M224: =OFFSET('Functionalization Factors'!$A$12,$J224,M$9)*$H224+OFFSET('Functionalization Factors'!$A$12,$F224-1,M$9) -> 0 | N224: =OFFSET('Functionalization Factors'!$A$12,$J224,N$9)*$H224+OFFSET('Functionalization Factors'!$A$12,$F224-1,N$9) -> 0 | O224: =OFFSET('Functionalization Factors'!$A$12,$J224,O$9)*$H224+OFFSET('Functionalization Factors'!$A$12,$F224-1,O$9) -> 0 | P224: =OFFSET('Functionalization Factors'!$A$12,$J224,P$9)*$H224+OFFSET('Functionalization Factors'!$A$12,$F224-1,P$9) -> 0 | Q224: =OFFSET('Functionalization Factors'!$A$12,$J224,Q$9)*$H224+OFFSET('Functionalization Factors'!$A$12,$F224-1,Q$9) -> 0 | R224: =OFFSET('Functionalization Factors'!$A$12,$J224,R$9)*$H224+OFFSET('Functionalization Factors'!$A$12,$F224-1,R$9) -> 0 | S224: =OFFSET('Functionalization Factors'!$A$12,$J224,S$9)*$H224+OFFSET('Functionalization Factors'!$A$12,$F224-1,S$9) -> 0 | T224: =IF($D224=0,0,U224/$D224) -> 0 | U224: 0
B225: Load Balancing | D225: 0 | F225: 0 | G225: 0 | H225: =D225-G225 -> 0 | I225: PROD | J225: =MATCH(I225,'Functionalization Factors'!$A$12:$A$191,0) -> 3 | K225: =OFFSET('Functionalization Factors'!$A$12,$J225,K$9)*$H225+OFFSET('Functionalization Factors'!$A$12,$F225-1,K$9) -> 0 | L225: =OFFSET('Functionalization Factors'!$A$12,$J225,L$9)*$H225+OFFSET('Functionalization Factors'!$A$12,$F225-1,L$9) -> 0 | M225: =OFFSET('Functionalization Factors'!$A$12,$J225,M$9)*$H225+OFFSET('Functionalization Factors'!$A$12,$F225-1,M$9) -> 0 | N225: =OFFSET('Functionalization Factors'!$A$12,$J225,N$9)*$H225+OFFSET('Functionalization Factors'!$A$12,$F225-1,N$9) -> 0 | O225: =OFFSET('Functionalization Factors'!$A$12,$J225,O$9)*$H225+OFFSET('Functionalization Factors'!$A$12,$F225-1,O$9) -> 0 | P225: =OFFSET('Functionalization Factors'!$A$12,$J225,P$9)*$H225+OFFSET('Functionalization Factors'!$A$12,$F225-1,P$9) -> 0 | Q225: =OFFSET('Functionalization Factors'!$A$12,$J225,Q$9)*$H225+OFFSET('Functionalization Factors'!$A$12,$F225-1,Q$9) -> 0 | R225: =OFFSET('Functionalization Factors'!$A$12,$J225,R$9)*$H225+OFFSET('Functionalization Factors'!$A$12,$F225-1,R$9) -> 0 | S225: =OFFSET('Functionalization Factors'!$A$12,$J225,S$9)*$H225+OFFSET('Functionalization Factors'!$A$12,$F225-1,S$9) -> 0 | T225: 0 | U225: 0
B226: Other Supplies - UFG | D226: 11884.05785 | F226: 0 | G226: 0 | H226: =D226-G226 -> 11884.05785 | I226: UFGFUNCT | J226: =MATCH(I226,'Functionalization Factors'!$A$12:$A$191,0) -> 129 | K226: =OFFSET('Functionalization Factors'!$A$12,$J226,K$9)*$H226+OFFSET('Functionalization Factors'!$A$12,$F226-1,K$9) -> 10490.72606 | L226: =OFFSET('Functionalization Factors'!$A$12,$J226,L$9)*$H226+OFFSET('Functionalization Factors'!$A$12,$F226-1,L$9) -> 0 | M226: =OFFSET('Functionalization Factors'!$A$12,$J226,M$9)*$H226+OFFSET('Functionalization Factors'!$A$12,$F226-1,M$9) -> 1393.331789 | N226: =OFFSET('Functionalization Factors'!$A$12,$J226,N$9)*$H226+OFFSET('Functionalization Factors'!$A$12,$F226-1,N$9) -> 0 | O226: =OFFSET('Functionalization Factors'!$A$12,$J226,O$9)*$H226+OFFSET('Functionalization Factors'!$A$12,$F226-1,O$9) -> 0 | P226: =OFFSET('Functionalization Factors'!$A$12,$J226,P$9)*$H226+OFFSET('Functionalization Factors'!$A$12,$F226-1,P$9) -> 0 | Q226: =OFFSET('Functionalization Factors'!$A$12,$J226,Q$9)*$H226+OFFSET('Functionalization Factors'!$A$12,$F226-1,Q$9) -> 0 | R226: =OFFSET('Functionalization Factors'!$A$12,$J226,R$9)*$H226+OFFSET('Functionalization Factors'!$A$12,$F226-1,R$9) -> 0 | S226: =OFFSET('Functionalization Factors'!$A$12,$J226,S$9)*$H226+OFFSET('Functionalization Factors'!$A$12,$F226-1,S$9) -> 0 | T226: 0 | U226: 0
B227: FT Transportation Demand | D227: 98596.02995 | F227: 0 | G227: 0 | H227: 98596.02995 | I227: PROD | J227: =MATCH(I227,'Functionalization Factors'!$A$12:$A$191,0) -> 3 | K227: =OFFSET('Functionalization Factors'!$A$12,$J227,K$9)*$H227+OFFSET('Functionalization Factors'!$A$12,$F227-1,K$9) -> 98596.02995 | L227: =OFFSET('Functionalization Factors'!$A$12,$J227,L$9)*$H227+OFFSET('Functionalization Factors'!$A$12,$F227-1,L$9) -> 0 | M227: =OFFSET('Functionalization Factors'!$A$12,$J227,M$9)*$H227+OFFSET('Functionalization Factors'!$A$12,$F227-1,M$9) -> 0 | N227: =OFFSET('Functionalization Factors'!$A$12,$J227,N$9)*$H227+OFFSET('Functionalization Factors'!$A$12,$F227-1,N$9) -> 0 | O227: =OFFSET('Functionalization Factors'!$A$12,$J227,O$9)*$H227+OFFSET('Functionalization Factors'!$A$12,$F227-1,O$9) -> 0 | P227: =OFFSET('Functionalization Factors'!$A$12,$J227,P$9)*$H227+OFFSET('Functionalization Factors'!$A$12,$F227-1,P$9) -> 0 | Q227: =OFFSET('Functionalization Factors'!$A$12,$J227,Q$9)*$H227+OFFSET('Functionalization Factors'!$A$12,$F227-1,Q$9) -> 0 | R227: =OFFSET('Functionalization Factors'!$A$12,$J227,R$9)*$H227+OFFSET('Functionalization Factors'!$A$12,$F227-1,R$9) -> 0 | S227: =OFFSET('Functionalization Factors'!$A$12,$J227,S$9)*$H227+OFFSET('Functionalization Factors'!$A$12,$F227-1,S$9) -> 0 | T227: 0 | U227: 0
... 220 more rows

Sheet Functionalization Factors
A1: UNION GAS LIMITED
A2: Functionalization Factors
A3: 2013 Cost Allocation Study
D7: Storage | F7: Transmission
B9: NORMAL | E9: Storage | G9: Dawn- | H9: Dawn-
A10: Functional | C10: Purchase | E10: excl. | F10: Dawn | G10: Trafalgar | H10: Trafalgar | I10: Other | J10: Ojibway/ | L10: Check
A11: Allocator | B11: Total | C11: Production | D11: Dehydrator | E11: Dehydrator | F11: Station | G11: Easterly | H11: Westerly | I11: Transmission | J11: St. Clair | K11: Distribution | L11: Total
A12: NOTZERO
A14: PROD | B14: EXT | C14: 1 | D14: 0 | E14: 0 | F14: 0 | G14: 0 | H14: 0 | I14: 0 | J14: 0 | K14: 0
A15: =A14&+"%" -> PROD% | B15: =IF(AND(+B14="INT",ZERO_FUNC="ZERO"),0,SUM(C14:K14)) -> 1 | C15: =IF(ISERR($B15),0,IF($B15=0,0,+C14/$B15)) -> 1 | D15: 0 | E15: 0 | F15: 0 | G15: 0 | H15: 0 | I15: 0 | J15: 0 | K15: 0 | L15: =SUM(C15:K15) -> 1
A17: STORDEHY | B17: EXT | C17: 0 | D17: 1 | E17: 0 | F17: 0 | G17: 0 | H17: 0 | I17: 0 | J17: 0 | K17: 0
A18: =A17&+"%" -> STORDEHY% | B18: =IF(AND(+B17="INT",ZERO_FUNC="ZERO"),0,SUM(C17:K17)) -> 1 | C18: =IF(ISERR($B18),0,IF($B18=0,0,+C17/$B18)) -> 0 | D18: 1 | E18: 0 | F18: 0 | G18: 0 | H18: 0 | I18: 0 | J18: 0 | K18: 0 | L18: =SUM(C18:K18) -> 1
A20: STORDEHYX | B20: EXT | C20: 0 | D20: 0 | E20: 1 | F20: 0 | G20: 0 | H20: 0 | I20: 0 | J20: 0 | K20: 0
A21: =A20&+"%" -> STORDEHYX% | B21: =IF(AND(+B20="INT",ZERO_FUNC="ZERO"),0,SUM(C20:K20)) -> 1 | C21: =IF(ISERR($B21),0,IF($B21=0,0,+C20/$B21)) -> 0 | D21: 0 | E21: 1 | F21: 0 | G21: 0 | H21: 0 | I21: 0 | J21: 0 | K21: 0 | L21: =SUM(C21:K21) -> 1
A23: DAWNEAST | B23: EXT | C23: 0 | D23: 0 | E23: 0 | F23: 0 | G23: 1 | H23: 0 | I23: 0 | J23: 0 | K23: 0
A24: =A23&+"%" -> DAWNEAST% | B24: =IF(AND(+B23="INT",ZERO_FUNC="ZERO"),0,SUM(C23:K23)) -> 1 | C24: =IF(ISERR($B24),0,IF($B24=0,0,+C23/$B24)) -> 0 | D24: 0 | E24: 0 | F24: 0 | G24: 1 | H24: 0 | I24: 0 | J24: 0 | K24: 0 | L24: =SUM(C24:K24) -> 1
A26: OTHERTRANS | B26: EXT | C26: 0 | D26: 0 | E26: 0 | F26: 0 | G26: 0 | H26: 0 | I26: 1 | J26: 0 | K26: 0
A27: =A26&+"%" -> OTHERTRANS% | B27: =IF(AND(+B26="INT",ZERO_FUNC="ZERO"),0,SUM(C26:K26)) -> 1 | C27: =IF(ISERR($B27),0,IF($B27=0,0,+C26/$B27)) -> 0 | D27: 0 | E27: 0 | F27: 0 | G27: 0 | H27: 0 | I27: 1 | J27: 0 | K27: 0 | L27: =SUM(C27:K27) -> 1
A29: DIST | B29: EXT | C29: 0 | D29: 0 | E29: 0 | F29: 0 | G29: 0 | H29: 0 | I29: 0 | J29: 0 | K29: 1
A30: =A29&+"%" -> DIST% | B30: =IF(AND(+B29="INT",ZERO_FUNC="ZERO"),0,SUM(C29:K29)) -> 1 | C30: =IF(ISERR($B30),0,IF($B30=0,0,+C29/$B30)) -> 0 | D30: 0 | E30: 0 | F30: 0 | G30: 0 | H30: 0 | I30: 0 | J30: 0 | K30: 1 | L30: =SUM(C30:K30) -> 1
A32: GENOPACT | B32: EXT | C32: 1.116778137 | D32: 0 | E32: 4.312682655 | F32: 2.648956719 | G32: 16.75201534 | H32: 0 | I32: 8.392571478 | J32: 0.8558012629 | K32: 65.92119441
A33: =A32&+"%" -> GENOPACT% | B33: =IF(AND(+B32="INT",ZERO_FUNC="ZERO"),0,SUM(C32:K32)) -> 100 | C33: =IF(ISERR($B33),0,IF($B33=0,0,+C32/$B33)) -> 0.01116778137 | D33: 0 | E33: 0.04312682655 | F33: 0.02648956719 | G33: 0.1675201534 | H33: 0 | I33: 0.08392571478 | J33: 0.008558012629 | K33: 0.6592119441 | L33: =SUM(C33:K33) -> 1
A35: STORS&I | B35: EXT | C35: 0 | D35: 0 | E35: 2664.912366 | F35: 10641.63 | G35: 654.612 | H35: 0 | I35: 0 | J35: 0 | K35: 0
A36: =A35&+"%" -> STORS&I% | B36: =IF(AND(+B35="INT",ZERO_FUNC="ZERO"),0,SUM(C35:K35)) -> 13961.15437 | C36: =IF(ISERR($B36),0,IF($B36=0,0,+C35/$B36)) -> 0 | D36: 0 | E36: =IF(ISERR($B36),0,IF($B36=0,0,+E35/$B36)) -> 0.1908805172 | F36: =IF(ISERR($B36),0,IF($B36=0,0,+F35/$B36)) -> 0.7622313829 | G36: =IF(ISERR($B36),0,IF($B36=0,0,+G35/$B36)) -> 0.04688809985 | H36: 0 | I36: 0 | J36: 0 | K36: 0 | L36: =SUM(C36:K36) -> 1
A38: STORM&R | B38: EXT | C38: 0 | D38: 0 | E38: 19304.74616 | F38: 15400.87226 | G38: 3312.697 | H38: 0 | I38: 0 | J38: 0 | K38: 0
A39: =A38&+"%" -> STORM&R% | B39: =IF(AND(+B38="INT",ZERO_FUNC="ZERO"),0,SUM(C38:K38)) -> 38018.31542 | C39: =IF(ISERR($B39),0,IF($B39=0,0,+C38/$B39)) -> 0 | D39: 0 | E39: 0.507774896 | F39: 0.4050908646 | G39: 0.08713423946 | H39: 0 | I39: 0 | J39: 0 | K39: 0 | L39: =SUM(C39:K39) -> 1
A41: STORCOMP | B41: EXT | C41: 0 | D41: 0 | E41: 16478.43603 | F41: 27113.09896 | G41: 2896.62 | H41: 0 | I41: 0 | J41: 0 | K41: 0
A42: =A41&+"%" -> STORCOMP% | B42: =IF(AND(+B41="INT",ZERO_FUNC="ZERO"),0,SUM(C41:K41)) -> 46488.15499 | C42: =IF(ISERR($B42),0,IF($B42=0,0,+C41/$B42)) -> 0 | D42: 0 | E42: 0.3544652619 | F42: 0.5832259629 | G42: 0.06230877522 | H42: 0 | I42: 0 | J42: 0 | K42: 0 | L42: =SUM(C42:K42) -> 1
A44: STOROTHER | B44: EXT | C44: 0 | D44: 0 | E44: 0 | F44: 2301.53328 | G44: 0 | H44: 0 | I44: 0 | J44: 0 | K44: 0
A45: =A44&+"%" -> STOROTHER% | B45: =IF(AND(+B44="INT",ZERO_FUNC="ZERO"),0,SUM(C44:K44)) -> 2301.53328 | C45: =IF(ISERR($B45),0,IF($B45=0,0,+C44/$B45)) -> 0 | D45: 0 | E45: 0 | F45: 1 | G45: 0 | H45: 0 | I45: 0 | J45: 0 | K45: 0 | L45: =SUM(C45:K45) -> 1
A47: STOROTHERAD | B47: EXT | C47: 0 | D47: 0 | E47: 0 | F47: 1109.166667 | G47: 0 | H47: 0 | I47: 0 | J47: 0 | K47: 0
A48: =A47&+"%" -> STOROTHERAD% | B48: =IF(AND(+B47="INT",ZERO_FUNC="ZERO"),0,SUM(C47:K47)) -> 1109.166667 | C48: =IF(ISERR($B48),0,IF($B48=0,0,+C47/$B48)) -> 0 | D48: 0 | E48: 0 | F48: 1 | G48: 0 | H48: 0 | I48: 0 | J48: 0 | K48: 0 | L48: =SUM(C48:K48) -> 1
A50: OSC | B50: EXT | C50: 0 | D50: 0 | E50: 0 | F50: 0 | G50: 0 | H50: 0 | I50: 0 | J50: 971.625 | K50: 0
A51: =A50&+"%" -> OSC% | B51: =IF(AND(+B50="INT",ZERO_FUNC="ZERO"),0,SUM(C50:K50)) -> 971.625 | C51: =IF(ISERR($B51),0,IF($B51=0,0,+C50/$B51)) -> 0 | D51: 0 | E51: 0 | F51: 0 | G51: 0 | H51: 0 | I51: 0 | J51: 1 | K51: 0 | L51: =SUM(C51:K51) -> 1
A53: TRANSLAND | B53: EXT | C53: 0 | D53: 0 | E53: 0 | F53: 0 | G53: 19969.523 | H53: 0 | I53: 0 | J53: 598.63367 | K53: 0
A54: =A53&+"%" -> TRANSLAND% | B54: =IF(AND(+B53="INT",ZERO_FUNC="ZERO"),0,SUM(C53:K53)) -> 20568.15667 | C54: =IF(ISERR($B54),0,IF($B54=0,0,+C53/$B54)) -> 0 | D54: 0 | E54: 0 | F54: 0 | G54: 0.970895123 | H54: 0 | I54: 0 | J54: 0.029104877 | K54: 0 | L54: =SUM(C54:K54) -> 1
A56: TRANSLANDRGT | B56: EXT | C56: 0 | D56: 0 | E56: 0 | F56: 0 | G56: 29611.11 | H56: 0 | I56: 0 | J56: 1351.711379 | K56: 0
A57: =A56&+"%" -> TRANSLANDRGT% | B57: =IF(AND(+B56="INT",ZERO_FUNC="ZERO"),0,SUM(C56:K56)) -> 30962.82138 | C57: =IF(ISERR($B57),0,IF($B57=0,0,+C56/$B57)) -> 0 | D57: 0 | E57: 0 | F57: 0 | G57: 0.9563440501 | H57: 0 | I57: 0 | J57: 0.04365594991 | K57: 0 | L57: =SUM(C57:K57) -> 1
A59: TRANSMAINS | B59: EXT | C59: 0 | D59: 0 | E59: 0 | F59: 0 | G59: 826697.3195 | H59: 0 | I59: 0 | J59: 37815.53666 | K59: 0
A60: =A59&+"%" -> TRANSMAINS% | B60: =IF(AND(+B59="INT",ZERO_FUNC="ZERO"),0,SUM(C59:K59)) -> 864512.8562 | C60: =IF(ISERR($B60),0,IF($B60=0,0,+C59/$B60)) -> 0 | D60: 0 | E60: 0 | F60: 0 | G60: 0.9562579823 | H60: 0 | I60: 0 | J60: 0.04374201771 | K60: 0 | L60: =SUM(C60:K60) -> 1
A62: TRANSCOMPEQ | B62: EXT | C62: 0 | D62: 0 | E62: 0 | F62: 0 | G62: 345384.4014 | H62: 0 | I62: 0 | J62: 4848.692 | K62: 0
A63: =A62&+"%" -> TRANSCOMPEQ% | B63: =IF(AND(+B62="INT",ZERO_FUNC="ZERO"),0,SUM(C62:K62)) -> 350233.0934 | C63: =IF(ISERR($B63),0,IF($B63=0,0,+C62/$B63)) -> 0 | D63: 0 | E63: 0 | F63: 0 | G63: 0.9861558143 | H63: 0 | I63: 0 | J63: 0.01384418575 | K63: 0 | L63: =SUM(C63:K63) -> 1
A65: TRANSM&R | B65: EXT | C65: 0 | D65: 0 | E65: 0 | F65: 0 | G65: 53504.05508 | H65: 0 | I65: 0 | J65: 7868.342609 | K65: 0
A66: =A65&+"%" -> TRANSM&R% | B66: =IF(AND(+B65="INT",ZERO_FUNC="ZERO"),0,SUM(C65:K65)) -> 61372.39769 | C66: =IF(ISERR($B66),0,IF($B66=0,0,+C65/$B66)) -> 0 | D66: 0 | E66: 0 | F66: 0 | G66: 0.8717934625 | H66: 0 | I66: 0 | J66: 0.1282065375 | K66: 0 | L66: =SUM(C66:K66) -> 1
A68: TRANSS&I | B68: EXT | C68: 0 | D68: 0 | E68: 0 | F68: 0 | G68: 44088.41312 | H68: 0 | I68: 0 | J68: 1200.39314 | K68: 0
A69: =A68&+"%" -> TRANSS&I% | B69: =IF(AND(+B68="INT",ZERO_FUNC="ZERO"),0,SUM(C68:K68)) -> 45288.80626 | C69: =IF(ISERR($B69),0,IF($B69=0,0,+C68/$B69)) -> 0 | D69: 0 | E69: 0 | F69: 0 | G69: =IF(ISERR($B69),0,IF($B69=0,0,+G68/$B69)) -> 0.9734947057 | H69: 0 | I69: 0 | J69: 0.02650529433 | K69: 0 | L69: =SUM(C69:K69) -> 1
A71: M&RRECL-O&M | B71: EXT | C71: 0 | D71: 0 | E71: 23.93126524 | F71: 0 | G71: 74.50654381 | H71: 0 | I71: 0 | J71: 1.56219095 | K71: 0
A72: =A71&+"%" -> M&RRECL-O&M% | B72: =IF(AND(+B71="INT",ZERO_FUNC="ZERO"),0,SUM(C71:K71)) -> 100 | C72: =IF(ISERR($B72),0,IF($B72=0,0,+C71/$B72)) -> 0 | D72: 0 | E72: =IF(ISERR($B72),0,IF($B72=0,0,+E71/$B72)) -> 0.2393126524 | F72: 0 | G72: =IF(ISERR($B72),0,IF($B72=0,0,+G71/$B72)) -> 0.7450654381 | H72: 0 | I72: 0 | J72: =IF(ISERR($B72),0,IF($B72=0,0,+J71/$B72)) -> 0.0156219095 | K72: 0 | L72: =SUM(C72:K72) -> 1
A74: COMPRECL-O&M | B74: EXT | C74: 0 | D74: 0 | E74: 20.4567649 | F74: 73.18566455 | G74: 0 | H74: 0 | I74: 0 | J74: 6.357570543 | K74: 0
A75: =A74&+"%" -> COMPRECL-O&M% | B75: =IF(AND(+B74="INT",ZERO_FUNC="ZERO"),0,SUM(C74:K74)) -> 100 | C75: =IF(ISERR($B75),0,IF($B75=0,0,+C74/$B75)) -> 0 | D75: 0 | E75: =IF(ISERR($B75),0,IF($B75=0,0,+E74/$B75)) -> 0.204567649 | F75: =IF(ISERR($B75),0,IF($B75=0,0,+F74/$B75)) -> 0.7318566455 | G75: 0 | H75: 0 | I75: 0 | J75: 0.06357570543 | K75: 0 | L75: =SUM(C75:K75) -> 1
A77: M&RRECL-PT | B77: EXT | C77: 0 | D77: 0 | E77: 23.93126524 | F77: 0 | G77: 74.50654381 | H77: 0 | I77: 0 | J77: 1.56219095 | K77: 0
A78: =A77&+"%" -> M&RRECL-PT% | B78: =IF(AND(+B77="INT",ZERO_FUNC="ZERO"),0,SUM(C77:K77)) -> 100 | C78: =IF(ISERR($B78),0,IF($B78=0,0,+C77/$B78)) -> 0 | D78: 0 | E78: =IF(ISERR($B78),0,IF($B78=0,0,+E77/$B78)) -> 0.2393126524 | F78: 0 | G78: =IF(ISERR($B78),0,IF($B78=0,0,+G77/$B78)) -> 0.7450654381 | H78: 0 | I78: 0 | J78: 0.0156219095 | K78: 0 | L78: =SUM(C78:K78) -> 1
A80: COMPRECL-PT | B80: EXT | C80: 0 | D80: 0 | E80: 54.76809931 | F80: 41.97949357 | G80: 0 | H80: 0 | I80: 0 | J80: 3.252407117 | K80: 0
A81: =A80&+"%" -> COMPRECL-PT% | B81: =IF(AND(+B80="INT",ZERO_FUNC="ZERO"),0,SUM(C80:K80)) -> 100 | C81: =IF(ISERR($B81),0,IF($B81=0,0,+C80/$B81)) -> 0 | D81: 0 | E81: =IF(ISERR($B81),0,IF($B81=0,0,+E80/$B81)) -> 0.5476809931 | F81: =IF(ISERR($B81),0,IF($B81=0,0,+F80/$B81)) -> 0.4197949357 | G81: 0 | H81: 0 | I81: 0 | J81: 0.03252407117 | K81: 0 | L81: =SUM(C81:K81) -> 1
A83: OP-LINES | B83: EXT | C83: 0 | D83: 0 | E83: 0 | F83: 0 | G83: 230.9043783 | H83: 0 | I83: 0 | J83: 202.687449 | K83: 0
A84: =A83&+"%" -> OP-LINES% | B84: =IF(AND(+B83="INT",ZERO_FUNC="ZERO"),0,SUM(C83:K83)) -> 433.5918273 | C84: =IF(ISERR($B84),0,IF($B84=0,0,+C83/$B84)) -> 0 | D84: =IF(ISERR($B84),0,IF($B84=0,0,+D83/$B84)) -> 0 | E84: 0 | F84: 0 | G84: 0.5325385852 | H84: 0 | I84: 0 | J84: 0.4674614148 | K84: 0 | L84: =SUM(C84:K84) -> 1
A86: OP-COMP | B86: EXT | C86: 0 | D86: 0 | E86: 0 | F86: 0 | G86: 1947.028354 | H86: 0 | I86: 0 | J86: 0 | K86: 0
A87: =A86&+"%" -> OP-COMP% | B87: =IF(AND(+B86="INT",ZERO_FUNC="ZERO"),0,SUM(C86:K86)) -> 1947.028354 | C87: =IF(ISERR($B87),0,IF($B87=0,0,+C86/$B87)) -> 0 | D87: =IF(ISERR($B87),0,IF($B87=0,0,+D86/$B87)) -> 0 | E87: =IF(ISERR($B87),0,IF($B87=0,0,+E86/$B87)) -> 0 | F87: 0 | G87: 1 | H87: 0 | I87: 0 | J87: 0 | K87: 0 | L87: =SUM(C87:K87) -> 1
A89: OP-M&R | B89: EXT | C89: 0 | D89: 0 | E89: 0 | F89: 0 | G89: 41.16797482 | H89: 0 | I89: 0 | J89: 31.16856287 | K89: 0
A90: =A89&+"%" -> OP-M&R% | B90: =IF(AND(+B89="INT",ZERO_FUNC="ZERO"),0,SUM(C89:K89)) -> 72.33653769 | C90: =IF(ISERR($B90),0,IF($B90=0,0,+C89/$B90)) -> 0 | D90: 0 | E90: 0 | F90: 0 | G90: 0.5691172972 | H90: 0 | I90: 0 | J90: 0.4308827028 | K90: 0 | L90: =SUM(C90:K90) -> 1
A92: MN-LINES | B92: EXT | C92: 0 | D92: 0 | E92: 0 | F92: 0 | G92: 338.7724827 | H92: 0 | I92: 0 | J92: 42.73118585 | K92: 0
A93: =A92&+"%" -> MN-LINES% | B93: =IF(AND(+B92="INT",ZERO_FUNC="ZERO"),0,SUM(C92:K92)) -> 381.5036685 | C93: =IF(ISERR($B93),0,IF($B93=0,0,+C92/$B93)) -> 0 | D93: =IF(ISERR($B93),0,IF($B93=0,0,+D92/$B93)) -> 0 | E93: 0 | F93: 0 | G93: 0.8879927262 | H93: 0 | I93: 0 | J93: 0.1120072738 | K93: 0 | L93: =SUM(C93:K93) -> 1
A95: MN-COMP | B95: EXT | C95: 0 | D95: 0 | E95: 0 | F95: 0 | G95: 6644.012599 | H95: 0 | I95: 0 | J95: 0 | K95: 0
A96: =A95&+"%" -> MN-COMP% | B96: =IF(AND(+B95="INT",ZERO_FUNC="ZERO"),0,SUM(C95:K95)) -> 6644.012599 | C96: =IF(ISERR($B96),0,IF($B96=0,0,+C95/$B96)) -> 0 | D96: =IF(ISERR($B96),0,IF($B96=0,0,+D95/$B96)) -> 0 | E96: 0 | F96: 0 | G96: 1 | H96: 0 | I96: 0 | J96: 0 | K96: 0 | L96: =SUM(C96:K96) -> 1
A98: MN-M&R | B98: EXT | C98: 0 | D98: 0 | E98: 0 | F98: 0 | G98: 498.061924 | H98: 0 | I98: 0 | J98: 88.43829474 | K98: 0
A99: =A98&+"%" -> MN-M&R% | B99: =IF(AND(+B98="INT",ZERO_FUNC="ZERO"),0,SUM(C98:K98)) -> 586.5002187 | C99: =IF(ISERR($B99),0,IF($B99=0,0,+C98/$B99)) -> 0 | D99: 0 | E99: 0 | F99: 0 | G99: 0.8492101249 | H99: 0 | I99: 0 | J99: 0.1507898751 | K99: 0 | L99: =SUM(C99:K99) -> 1
A101: LINEPACK | B101: EXT | C101: 0 | D101: 0 | E101: 0 | F101: 0 | G101: 22826.57347 | H101: 0 | I101: 3390.984087 | J101: 1826.295845 | K101: 4771.648436
A102: =A101&+"%" -> LINEPACK% | B102: =IF(AND(+B101="INT",ZERO_FUNC="ZERO"),0,SUM(C101:K101)) -> 32815.50184 | C102: =IF(ISERR($B102),0,IF($B102=0,0,+C101/$B102)) -> 0 | D102: 0 | E102: 0 | F102: 0 | G102: =IF(ISERR($B102),0,IF($B102=0,0,+G101/$B102)) -> 0.695603364 | H102: 0 | I102: =IF(ISERR($B102),0,IF($B102=0,0,+I101/$B102)) -> 0.1033348234 | J102: 0.0556534486 | K102: 0.145408364 | L102: =SUM(C102:K102) -> 1
A104: DEFERTAXBASE | B104: EXT | C104: 702.8354379 | D104: 148.1515733 | E104: 14056.114 | F104: 5767.341202 | G104: 203497.4367 | H104: 0 | I104: 55789.27276 | J104: 6120.711495 | K104: 266959.4808
A105: =A104&+"%" -> DEFERTAXBASE% | B105: =IF(AND(+B104="INT",ZERO_FUNC="ZERO"),0,SUM(C104:K104)) -> 553041.344 | C105: =IF(ISERR($B105),0,IF($B105=0,0,+C104/$B105)) -> 0.001270855146 | D105: =IF(ISERR($B105),0,IF($B105=0,0,+D104/$B105)) -> 0.0002678851679 | E105: 0.02541602749 | F105: 0.01042840877 | G105: 0.3679606217 | H105: 0 | I105: 0.100877219 | J105: 0.01106736696 | K105: 0.4827116158 | L105: =SUM(C105:K105) -> 1
A107: DEFTAXDIRECT | B107: EXT | C107: 0 | D107: -463.9399009 | E107: -6619.169789 | F107: -3753.434295 | G107: -7453.644279 | H107: 0 | I107: -2211.523036 | J107: -363.3328067 | K107: 0
A108: =A107&+"%" -> DEFTAXDIRECT% | B108: =IF(AND(+B107="INT",ZERO_FUNC="ZERO"),0,SUM(C107:K107)) -> -20865.04411 | C108: =IF(ISERR($B108),0,IF($B108=0,0,+C107/$B108)) -> 0 | D108: 0.02223527056 | E108: 0.3172372776 | F108: 0.1798910309 | G108: 0.3572311777 | H108: 0 | I108: 0.1059917738 | J108: 0.01741346938 | K108: 0 | L108: =SUM(C108:K108) -> 1
A110: STORS&IAD | B110: EXT | C110: 0 | D110: 0 | E110: 1576.948491 | F110: 6927.594417 | G110: 392.4693333 | H110: 0 | I110: 0 | J110: 0 | K110: 0
A111: =A110&+"%" -> STORS&IAD% | B111: =IF(AND(+B110="INT",ZERO_FUNC="ZERO"),0,SUM(C110:K110)) -> 8897.012241 | C111: =IF(ISERR($B111),0,IF($B111=0,0,+C110/$B111)) -> 0 | D111: 0 | E111: 0.1772447253 | F111: 0.778642788 | G111: =IF(ISERR($B111),0,IF($B111=0,0,+G110/$B111)) -> 0.04411248661 | H111: 0 | I111: 0 | J111: 0 | K111: 0 | L111: =SUM(C111:K111) -> 1
A113: STORM&RAD | B113: EXT | C113: 0 | D113: 0 | E113: 13141.94383 | F113: 10723.64464 | G113: 2777.339375 | H113: 0 | I113: 0 | J113: 0 | K113: 0
A114: =A113&+"%" -> STORM&RAD% | B114: =IF(AND(+B113="INT",ZERO_FUNC="ZERO"),0,SUM(C113:K113)) -> 26642.92785 | C114: =IF(ISERR($B114),0,IF($B114=0,0,+C113/$B114)) -> 0 | D114: 0 | E114: 0.4932619984 | F114: 0.4024949773 | G114: 0.1042430243 | H114: 0 | I114: 0 | J114: 0 | K114: 0 | L114: =SUM(C114:K114) -> 1
A116: STORCOMPAD | B116: EXT | C116: 0 | D116: 0 | E116: 9483.39295 | F116: 13965.96558 | G116: 764.2503333 | H116: 0 | I116: 0 | J116: 0 | K116: 0
A117: =A116&+"%" -> STORCOMPAD% | B117: =IF(AND(+B116="INT",ZERO_FUNC="ZERO"),0,SUM(C116:K116)) -> 24213.60887 | C117: =IF(ISERR($B117),0,IF($B117=0,0,+C116/$B117)) -> 0 | D117: 0 | E117: 0.3916554943 | F117: 0.5767816628 | G117: 0.03156284292 | H117: 0 | I117: 0 | J117: 0 | K117: 0 | L117: =SUM(C117:K117) -> 1
A119: TRANSLANDRGTAD | B119: EXT | C119: 0 | D119: 0 | E119: 0 | F119: 0 | G119: 7335.926814 | H119: 0 | I119: 0 | J119: 604.9517657 | K119: 0
A120: =A119&+"%" -> TRANSLANDRGTAD% | B120: =IF(AND(+B119="INT",ZERO_FUNC="ZERO"),0,SUM(C119:K119)) -> 7940.87858 | C120: =IF(ISERR($B120),0,IF($B120=0,0,+C119/$B120)) -> 0 | D120: 0 | E120: 0 | F120: 0 | G120: 0.923818031 | H120: 0 | I120: 0 | J120: 0.07618196899 | K120: 0 | L120: =SUM(C120:K120) -> 1
A122: TRANSMAINSAD | B122: EXT | C122: 0 | D122: 0 | E122: 0 | F122: 0 | G122: 348787.7837 | H122: 0 | I122: 0 | J122: 22224.01431 | K122: 0
A123: =A122&+"%" -> TRANSMAINSAD% | B123: =IF(AND(+B122="INT",ZERO_FUNC="ZERO"),0,SUM(C122:K122)) -> 371011.7981 | C123: =IF(ISERR($B123),0,IF($B123=0,0,+C122/$B123)) -> 0 | D123: 0 | E123: 0 | F123: 0 | G123: 0.9400989014 | H123: 0 | I123: 0 | J123: 0.05990109865 | K123: 0 | L123: =SUM(C123:K123) -> 1
A125: TRANSCOMPEQAD | B125: EXT | C125: 0 | D125: 0 | E125: 0 | F125: 0 | G125: 120190.5246 | H125: 0 | I125: 0 | J125: 3145.066376 | K125: 0
A126: =A125&+"%" -> TRANSCOMPEQAD% | B126: =IF(AND(+B125="INT",ZERO_FUNC="ZERO"),0,SUM(C125:K125)) -> 123335.591 | C126: =IF(ISERR($B126),0,IF($B126=0,0,+C125/$B126)) -> 0 | D126: 0 | E126: 0 | F126: 0 | G126: 0.9744999286 | H126: 0 | I126: 0 | J126: 0.02550007139 | K126: 0 | L126: =SUM(C126:K126) -> 1
A128: TRANSM&RAD | B128: EXT | C128: 0 | D128: 0 | E128: 0 | F128: 0 | G128: 11466.6513 | H128: 0 | I128: 0 | J128: 5349.673777 | K128: 0
A129: =A128&+"%" -> TRANSM&RAD% | B129: =IF(AND(+B128="INT",ZERO_FUNC="ZERO"),0,SUM(C128:K128)) -> 16816.32508 | C129: =IF(ISERR($B129),0,IF($B129=0,0,+C128/$B129)) -> 0 | D129: 0 | E129: 0 | F129: 0 | G129: 0.6818761678 | H129: 0 | I129: 0 | J129: 0.3181238322 | K129: 0 | L129: =SUM(C129:K129) -> 1
A131: TRANSS&IAD | B131: EXT | C131: 0 | D131: 0 | E131: 0 | F131: 0 | G131: 22629.48208 | H131: 0 | I131: 0 | J131: 482.3119898 | K131: 0
A132: =A131&+"%" -> TRANSS&IAD% | B132: =IF(AND(+B131="INT",ZERO_FUNC="ZERO"),0,SUM(C131:K131)) -> 23111.79407 | C132: =IF(ISERR($B132),0,IF($B132=0,0,+C131/$B132)) -> 0 | D132: 0 | E132: 0 | F132: 0 | G132: 0.9791313479 | H132: 0 | I132: 0 | J132: 0.0208686521 | K132: 0 | L132: =SUM(C132:K132) -> 1
A134: TRANSMISSIONFUEL | B134: EXT | C134: 0 | D134: 0 | E134: 0 | F134: 0 | G134: 15206.26714 | H134: 27.60398185 | I134: 0 | J134: 0 | K134: 0
A135: =A134&+"%" -> TRANSMISSIONFUEL% | B135: =IF(AND(+B134="INT",ZERO_FUNC="ZERO"),0,SUM(C134:K134)) -> 15233.87112 | C135: =IF(ISERR($B135),0,IF($B135=0,0,+C134/$B135)) -> 0 | D135: 0 | E135: 0 | F135: 0 | G135: =IF(ISERR($B135),0,IF($B135=0,0,+G134/$B135)) -> 0.9981879864 | H135: =IF(ISERR($B135),0,IF($B135=0,0,+H134/$B135)) -> 0.001812013613 | I135: 0 | J135: 0 | K135: 0 | L135: =SUM(C135:K135) -> 1
A137: STORAGEFUEL | B137: EXT | C137: 0 | D137: 0 | E137: 3992.222937 | F137: 7447.976917 | G137: 0 | H137: 0 | I137: 0 | J137: 646.9988206 | K137: 0
A138: =A137&+"%" -> STORAGEFUEL% | B138: =IF(AND(+B137="INT",ZERO_FUNC="ZERO"),0,SUM(C137:K137)) -> 12087.19867 | C138: =IF(ISERR($B138),0,IF($B138=0,0,+C137/$B138)) -> 0 | D138: =IF(ISERR($B138),0,IF($B138=0,0,+D137/$B138)) -> 0 | E138: =IF(ISERR($B138),0,IF($B138=0,0,+E137/$B138)) -> 0.3302852087 | F138: =IF(ISERR($B138),0,IF($B138=0,0,+F137/$B138)) -> 0.6161871843 | G138: =IF(ISERR($B138),0,IF($B138=0,0,+G137/$B138)) -> 0 | H138: 0 | I138: =IF(ISERR($B138),0,IF($B138=0,0,+I137/$B138)) -> 0 | J138: =IF(ISERR($B138),0,IF($B138=0,0,+J137/$B138)) -> 0.05352760702 | K138: =IF(ISERR($B138),0,IF($B138=0,0,+K137/$B138)) -> 0 | L138: =SUM(C138:K138) -> 1
A140: UFGFUNCT | B140: EXT | C140: 10490.72606 | D140: 0 | E140: 1393.331789 | F140: 0 | G140: 0 | H140: 0 | I140: 0 | J140: 0 | K140: 0
A141: =A140&+"%" -> UFGFUNCT% | B141: =IF(AND(+B140="INT",ZERO_FUNC="ZERO"),0,SUM(C140:K140)) -> 11884.05785 | C141: =IF(ISERR($B141),0,IF($B141=0,0,+C140/$B141)) -> 0.8827562263 | D141: 0 | E141: 0.1172437737 | F141: 0 | G141: 0 | H141: 0 | I141: 0 | J141: 0 | K141: 0 | L141: =SUM(C141:K141) -> 1
A143: MRKTGS/M9/T3 | B143: EXT | C143: 1975.509258 | D143: 0 | E143: 0 | F143: 0 | G143: 0 | H143: 0 | I143: 0 | J143: 0 | K143: 70.7
A144: =A143&+"%" -> MRKTGS/M9/T3% | B144: =IF(AND(+B143="INT",ZERO_FUNC="ZERO"),0,SUM(C143:K143)) -> 2046.209258 | C144: =IF(ISERR($B144),0,IF($B144=0,0,+C143/$B144)) -> 0.9654483041 | D144: 0 | E144: 0 | F144: 0 | G144: 0 | H144: 0 | I144: 0 | J144: 0 | K144: 0.03455169588 | L144: =SUM(C144:K144) -> 1
A146: BDEBTFUNCT | B146: EXT | C146: 3458.501436 | D146: 0 | E146: 0 | F146: 0 | G146: 0 | H146: 0 | I146: 0 | J146: 0 | K146: 2791.498564
A147: =A146&+"%" -> BDEBTFUNCT% | B147: =IF(AND(+B146="INT",ZERO_FUNC="ZERO"),0,SUM(C146:K146)) -> 6250 | C147: =IF(ISERR($B147),0,IF($B147=0,0,+C146/$B147)) -> 0.5533602297 | D147: =IF(ISERR($B147),0,IF($B147=0,0,+D146/$B147)) -> 0 | E147: 0 | F147: 0 | G147: 0 | H147: 0 | I147: 0 | J147: 0 | K147: =IF(ISERR($B147),0,IF($B147=0,0,+K146/$B147)) -> 0.4466397703 | L147: =SUM(C147:K147) -> 1
A149: SCADAO&M | B149: EXT | C149: 0 | D149: 0 | E149: 47.78345713 | F149: 0 | G149: 48.5 | H149: 0 | I149: 28 | J149: 20.5 | K149: 216
A150: =A149&+"%" -> SCADAO&M% | B150: =IF(AND(+B149="INT",ZERO_FUNC="ZERO"),0,SUM(C149:K149)) -> 360.7834571 | C150: =IF(ISERR($B150),0,IF($B150=0,0,+C149/$B150)) -> 0 | D150: =IF(ISERR($B150),0,IF($B150=0,0,+D149/$B150)) -> 0 | E150: 0.1324435924 | F150: 0 | G150: 0.134429667 | H150: 0 | I150: 0.07760887992 | J150: 0.05682078708 | K150: =IF(ISERR($B150),0,IF($B150=0,0,+K149/$B150)) -> 0.5986970736 | L150: =SUM(C150:K150) -> 1
A152: GS/AOP/M12&F24T | B152: EXT | C152: =2547.4630695+162.864397429871*(Functionalization!K247+Functionalization!K270+Functionalization!K287+Functionalization!K322+Functionalization!K357-Functionalization!K255-Functionalization!K277-Functionalization!K259)/(Functionalization!$D$247+Functionalization!$D$270+Functionalization!$D$287+Functionalization!$D$322+Functionalization!$D$357-Functionalization!$D$259-Functionalization!$D$255-Functionalization!$D$277) -> 2547.46307 | D152: =162.864397429871*(Functionalization!L247+Functionalization!L270+Functionalization!L287+Functionalization!L322+Functionalization!L357-Functionalization!L255-Functionalization!L277-Functionalization!L259)/(Functionalization!$D$247+Functionalization!$D$270+Functionalization!$D$287+Functionalization!$D$322+Functionalization!$D$357-Functionalization!$D$259-Functionalization!$D$255-Functionalization!$D$277) -> 0.1959544477 | E152: =162.864397429871*(Functionalization!M247+Functionalization!M270+Functionalization!M287+Functionalization!M322+Functionalization!M357-Functionalization!M255-Functionalization!M277-Functionalization!M259)/(Functionalization!$D$247+Functionalization!$D$270+Functionalization!$D$287+Functionalization!$D$322+Functionalization!$D$357-Functionalization!$D$259-Functionalization!$D$255-Functionalization!$D$277) -> 14.04234453 | F152: =162.864397429871*(Functionalization!N247+Functionalization!N270+Functionalization!N287+Functionalization!N322+Functionalization!N357-Functionalization!N255-Functionalization!N277-Functionalization!N259)/(Functionalization!$D$247+Functionalization!$D$270+Functionalization!$D$287+Functionalization!$D$322+Functionalization!$D$357-Functionalization!$D$259-Functionalization!$D$255-Functionalization!$D$277) -> 6.909361519 | G152: =489.847+162.864397429871*(Functionalization!O247+Functionalization!O270+Functionalization!O287+Functionalization!O322+Functionalization!O357-Functionalization!O255-Functionalization!O277-Functionalization!O259)/(Functionalization!$D$247+Functionalization!$D$270+Functionalization!$D$287+Functionalization!$D$322+Functionalization!$D$357-Functionalization!$D$259-Functionalization!$D$255-Functionalization!$D$277) -> 508.4176596 | H152: =162.864397429871*(Functionalization!P247+Functionalization!P270+Functionalization!P287+Functionalization!P322+Functionalization!P357-Functionalization!P255-Functionalization!P277-Functionalization!P259)/(Functionalization!$D$247+Functionalization!$D$270+Functionalization!$D$287+Functionalization!$D$322+Functionalization!$D$357-Functionalization!$D$259-Functionalization!$D$255-Functionalization!$D$277) -> 0 | I152: =162.864397429871*(Functionalization!Q247+Functionalization!Q270+Functionalization!Q287+Functionalization!Q322+Functionalization!Q357-Functionalization!Q255-Functionalization!Q277-Functionalization!Q259)/(Functionalization!$D$247+Functionalization!$D$270+Functionalization!$D$287+Functionalization!$D$322+Functionalization!$D$357-Functionalization!$D$259-Functionalization!$D$255-Functionalization!$D$277) -> 9.08731478 | J152: =162.864397429871*(Functionalization!R247+Functionalization!R270+Functionalization!R287+Functionalization!R322+Functionalization!R357-Functionalization!R255-Functionalization!R277-Functionalization!R259)/(Functionalization!$D$247+Functionalization!$D$270+Functionalization!$D$287+Functionalization!$D$322+Functionalization!$D$357-Functionalization!$D$259-Functionalization!$D$255-Functionalization!$D$277) -> 1.286749368 | K152: =162.864397429871*(Functionalization!S247+Functionalization!S270+Functionalization!S287+Functionalization!S322+Functionalization!S357-Functionalization!S255-Functionalization!S277-Functionalization!S259)/(Functionalization!$D$247+Functionalization!$D$270+Functionalization!$D$287+Functionalization!$D$322+Functionalization!$D$357-Functionalization!$D$259-Functionalization!$D$255-Functionalization!$D$277) -> 112.7720132
A153: =A152&+"%" -> GS/AOP/M12&F24T% | B153: =IF(AND(+B152="INT",ZERO_FUNC="ZERO"),0,SUM(C152:K152)) -> 3200.174467 | C153: =IF(ISERR($B153),0,IF($B153=0,0,+C152/$B153)) -> 0.7960388085 | D153: =IF(ISERR($B153),0,IF($B153=0,0,+D152/$B153)) -> 6.123242644e-05 | E153: 0.004387993429 | F153: 0.002159057761 | G153: 0.1588718568 | H153: 0 | I153: 0.002839631049 | J153: 0.0004020872553 | K153: =IF(ISERR($B153),0,IF($B153=0,0,+K152/$B153)) -> 0.03523933284 | L153: =SUM(C153:K153) -> 1
A155: LRGINDBILLS | B155: EXT | C155: 0 | D155: 0 | E155: 68.02251315 | F155: 0 | G155: 124.3953071 | H155: 0 | I155: 5.133774577 | J155: 2.36943442 | K155: 360.4363895
A156: =A155&+"%" -> LRGINDBILLS% | B156: =IF(AND(+B155="INT",ZERO_FUNC="ZERO"),0,SUM(C155:K155)) -> 560.3574187 | C156: =IF(ISERR($B156),0,IF($B156=0,0,+C155/$B156)) -> 0 | D156: =IF(ISERR($B156),0,IF($B156=0,0,+D155/$B156)) -> 0 | E156: 0.1213912958 | F156: 0 | G156: 0.2219927905 | H156: 0 | I156: 0.009161607228 | J156: 0.004228434105 | K156: =IF(ISERR($B156),0,IF($B156=0,0,+K155/$B156)) -> 0.6432258724 | L156: =SUM(C156:K156) -> 1
A158: GSADM | B158: EXT | C158: 819.36684 | D158: 0 | E158: 0 | F158: 0 | G158: 0 | H158: 0 | I158: 0 | J158: 0 | K158: 0
A159: =A158&+"%" -> GSADM% | B159: =IF(AND(+B158="INT",ZERO_FUNC="ZERO"),0,SUM(C158:K158)) -> 819.36684 | C159: =IF(ISERR($B159),0,IF($B159=0,0,+C158/$B159)) -> 1 | D159: 0 | E159: 0 | F159: 0 | G159: 0 | H159: 0 | I159: 0 | J159: 0 | K159: 0 | L159: =SUM(C159:K159) -> 1
A161: GS/M12&F24T-BENEFITS | B161: EXT | C161: 1699.999414 | D161: 0 | E161: 0 | F161: 0 | G161: 57.07674 | H161: 0 | I161: 0 | J161: 0 | K161: 0
A162: =A161&+"%" -> GS/M12&F24T-BENEFITS% | B162: =IF(AND(+B161="INT",ZERO_FUNC="ZERO"),0,SUM(C161:K161)) -> 1757.076154 | C162: =IF(ISERR($B162),0,IF($B162=0,0,+C161/$B162)) -> 0.9675160693 | D162: 0 | E162: 0 | F162: 0 | G162: 0.03248393069 | H162: 0 | I162: 0 | J162: 0 | K162: 0 | L162: =SUM(C162:K162) -> 1
A164: STORLAND | B164: EXT | C164: 0 | D164: 0 | E164: 811.53566 | F164: 0 | G164: 0 | H164: 0 | I164: 0 | J164: 0 | K164: 0
A165: =A164&+"%" -> STORLAND% | B165: =IF(AND(+B164="INT",ZERO_FUNC="ZERO"),0,SUM(C164:K164)) -> 811.53566 | C165: =IF(ISERR($B165),0,IF($B165=0,0,+C164/$B165)) -> 0 | D165: 0 | E165: 1 | F165: 0 | G165: 0 | H165: 0 | I165: 0 | J165: 0 | K165: 0 | L165: =SUM(C165:K165) -> 1
A167: LABOUR | B167: INT | C167: =(SUMPRODUCT(Functionalization!$T$224:$T$391,Functionalization!K224:K391)+SUMPRODUCT(Functionalization!$T$393:$T$394,Functionalization!K393:K394))*(1+1/(Functionalization!$U$397-Functionalization!$U$392)*Functionalization!$U$392) -> 5397.131049 | D167: =(SUMPRODUCT(Functionalization!$T$224:$T$391,Functionalization!L224:L391)+SUMPRODUCT(Functionalization!$T$393:$T$394,Functionalization!L393:L394))*(1+1/(Functionalization!$U$397-Functionalization!$U$392)*Functionalization!$U$392) -> 62.07827431 | E167: =(SUMPRODUCT(Functionalization!$T$224:$T$391,Functionalization!M224:M391)+SUMPRODUCT(Functionalization!$T$393:$T$394,Functionalization!M393:M394))*(1+1/(Functionalization!$U$397-Functionalization!$U$392)*Functionalization!$U$392) -> 6150.824967 | F167: =(SUMPRODUCT(Functionalization!$T$224:$T$391,Functionalization!N224:N391)+SUMPRODUCT(Functionalization!$T$393:$T$394,Functionalization!N393:N394))*(1+1/(Functionalization!$U$397-Functionalization!$U$392)*Functionalization!$U$392) -> 3821.082055 | G167: =(SUMPRODUCT(Functionalization!$T$224:$T$391,Functionalization!O224:O391)+SUMPRODUCT(Functionalization!$T$393:$T$394,Functionalization!O393:O394))*(1+1/(Functionalization!$U$397-Functionalization!$U$392)*Functionalization!$U$392) -> 13571.01018 | H167: =(SUMPRODUCT(Functionalization!$T$224:$T$391,Functionalization!P224:P391)+SUMPRODUCT(Functionalization!$T$393:$T$394,Functionalization!P393:P394))*(1+1/(Functionalization!$U$397-Functionalization!$U$392)*Functionalization!$U$392) -> 0 | I167: =(SUMPRODUCT(Functionalization!$T$224:$T$391,Functionalization!Q224:Q391)+SUMPRODUCT(Functionalization!$T$393:$T$394,Functionalization!Q393:Q394))*(1+1/(Functionalization!$U$397-Functionalization!$U$392)*Functionalization!$U$392) -> 5631.594338 | J167: =(SUMPRODUCT(Functionalization!$T$224:$T$391,Functionalization!R224:R391)+SUMPRODUCT(Functionalization!$T$393:$T$394,Functionalization!R393:R394))*(1+1/(Functionalization!$U$397-Functionalization!$U$392)*Functionalization!$U$392) -> 854.0051426 | K167: =(SUMPRODUCT(Functionalization!$T$224:$T$391,Functionalization!S224:S391)+SUMPRODUCT(Functionalization!$T$393:$T$394,Functionalization!S393:S394))*(1+1/(Functionalization!$U$397-Functionalization!$U$392)*Functionalization!$U$392) -> 113171.5733
A168: =A167&+"%" -> LABOUR% | B168: =IF(AND(+B167="INT",ZERO_FUNC="ZERO"),0,SUM(C167:K167)) -> 148659.2993 | C168: =IF(ISERR($B168),0,IF($B168=0,0,+C167/$B168)) -> 0.03630537125 | D168: 0.0004175875617 | E168: 0.04137531252 | F168: 0.02570361944 | G168: 0.09128934583 | H168: 0 | I168: 0.03788255673 | J168: 0.005744713898 | K168: 0.7612814928 | L168: =SUM(C168:K168) -> 1
A170: DTDRAWDOWN | B170: INT | C170: =(Functionalization!K195/Functionalization!$D$195)*Functionalization!$D$207*-1 -> 13.50560234 | D170: =(Functionalization!L195/Functionalization!$D$195)*Functionalization!$D$207*-1 -> 103.8355305 | E170: =(Functionalization!M195/Functionalization!$D$195)*Functionalization!$D$207*-1 -> 1710.936241 | F170: =(Functionalization!N195/Functionalization!$D$195)*Functionalization!$D$207*-1 -> 927.8577996 | G170: =(Functionalization!O195/Functionalization!$D$195)*Functionalization!$D$207*-1 -> 5532.863433 | H170: =(Functionalization!P195/Functionalization!$D$195)*Functionalization!$D$207*-1 -> 0 | I170: =(Functionalization!Q195/Functionalization!$D$195)*Functionalization!$D$207*-1 -> 1553.435938 | J170: =(Functionalization!R195/Functionalization!$D$195)*Functionalization!$D$207*-1 -> 196.7037645 | K170: =(Functionalization!S195/Functionalization!$D$195)*Functionalization!$D$207*-1 -> 5129.86169
A171: =A170&+"%" -> DTDRAWDOWN% | B171: =IF(AND(+B170="INT",ZERO_FUNC="ZERO"),0,SUM(C170:K170)) -> 15169 | C171: =IF(ISERR($B171),0,IF($B171=0,0,+C170/$B171)) -> 0.0008903422992 | D171: 0.006845245597 | E171: 0.1127916304 | F171: 0.06116802687 | G171: 0.3647480673 | H171: 0 | I171: 0.1024085924 | J171: 0.01296748398 | K171: 0.3381806111 | L171: =SUM(C171:K171) -> 1
A173: O&MEXP | B173: INT | C173: =SUM(Functionalization!K247,Functionalization!K251:K254,Functionalization!K256,Functionalization!K258:K260,Functionalization!K263:K267,Functionalization!K269,Functionalization!K274:K276,Functionalization!K278:K279,Functionalization!K282:K286,Functionalization!K322,Functionalization!K357,Functionalization!K360:K361,Functionalization!K363,Functionalization!K367,Functionalization!K369:K370,Functionalization!K372:K373,Functionalization!K377:K382,Functionalization!K384,Functionalization!K392) -> 8583.817641 | D173: =SUM(Functionalization!L247,Functionalization!L251:L254,Functionalization!L256,Functionalization!L258:L260,Functionalization!L263:L267,Functionalization!L269,Functionalization!L274:L276,Functionalization!L278:L279,Functionalization!L282:L286,Functionalization!L322,Functionalization!L357,Functionalization!L360:L361,Functionalization!L363,Functionalization!L367,Functionalization!L369:L370,Functionalization!L372:L373,Functionalization!L377:L382,Functionalization!L384,Functionalization!L392) -> 22.92443691 | E173: =SUM(Functionalization!M247,Functionalization!M251:M254,Functionalization!M256,Functionalization!M258:M260,Functionalization!M263:M267,Functionalization!M269,Functionalization!M274:M276,Functionalization!M278:M279,Functionalization!M282:M286,Functionalization!M322,Functionalization!M357,Functionalization!M360:M361,Functionalization!M363,Functionalization!M367,Functionalization!M369:M370,Functionalization!M372:M373,Functionalization!M377:M382,Functionalization!M384,Functionalization!M392) -> 11458.51378 | F173: =SUM(Functionalization!N247,Functionalization!N251:N254,Functionalization!N256,Functionalization!N258:N260,Functionalization!N263:N267,Functionalization!N269,Functionalization!N274:N276,Functionalization!N278:N279,Functionalization!N282:N286,Functionalization!N322,Functionalization!N357,Functionalization!N360:N361,Functionalization!N363,Functionalization!N367,Functionalization!N369:N370,Functionalization!N372:N373,Functionalization!N377:N382,Functionalization!N384,Functionalization!N392) -> 6077.0662 | G173: =SUM(Functionalization!O247,Functionalization!O251:O254,Functionalization!O256,Functionalization!O258:O260,Functionalization!O263:O267,Functionalization!O269,Functionalization!O274:O276,Functionalization!O278:O279,Functionalization!O282:O286,Functionalization!O322,Functionalization!O357,Functionalization!O360:O361,Functionalization!O363,Functionalization!O367,Functionalization!O369:O370,Functionalization!O372:O373,Functionalization!O377:O382,Functionalization!O384,Functionalization!O392) -> 21532.56342 | H173: =SUM(Functionalization!P247,Functionalization!P251:P254,Functionalization!P256,Functionalization!P258:P260,Functionalization!P263:P267,Functionalization!P269,Functionalization!P274:P276,Functionalization!P278:P279,Functionalization!P282:P286,Functionalization!P322,Functionalization!P357,Functionalization!P360:P361,Functionalization!P363,Functionalization!P367,Functionalization!P369:P370,Functionalization!P372:P373,Functionalization!P377:P382,Functionalization!P384,Functionalization!P392) -> 0 | I173: =SUM(Functionalization!Q247,Functionalization!Q251:Q254,Functionalization!Q256,Functionalization!Q258:Q260,Functionalization!Q263:Q267,Functionalization!Q269,Functionalization!Q274:Q276,Functionalization!Q278:Q279,Functionalization!Q282:Q286,Functionalization!Q322,Functionalization!Q357,Functionalization!Q360:Q361,Functionalization!Q363,Functionalization!Q367,Functionalization!Q369:Q370,Functionalization!Q372:Q373,Functionalization!Q377:Q382,Functionalization!Q384,Functionalization!Q392) -> 9911.076932 | J173: =SUM(Functionalization!R247,Functionalization!R251:R254,Functionalization!R256,Functionalization!R258:R260,Functionalization!R263:R267,Functionalization!R269,Functionalization!R274:R276,Functionalization!R278:R279,Functionalization!R282:R286,Functionalization!R322,Functionalization!R357,Functionalization!R360:R361,Functionalization!R363,Functionalization!R367,Functionalization!R369:R370,Functionalization!R372:R373,Functionalization!R377:R382,Functionalization!R384,Functionalization!R392) -> 1311.153984 | K173: =SUM(Functionalization!S247,Functionalization!S251:S254,Functionalization!S256,Functionalization!S258:S260,Functionalization!S263:S267,Functionalization!S269,Functionalization!S274:S276,Functionalization!S278:S279,Functionalization!S282:S286,Functionalization!S322,Functionalization!S357,Functionalization!S360:S361,Functionalization!S363,Functionalization!S367,Functionalization!S369:S370,Functionalization!S372:S373,Functionalization!S377:S382,Functionalization!S384,Functionalization!S392) -> 183132.6763
A174: =A173&+"%" -> O&MEXP% | B174: =IF(AND(+B173="INT",ZERO_FUNC="ZERO"),0,SUM(C173:K173)) -> 242029.7927 | C174: =IF(ISERR($B174),0,IF($B174=0,0,+C173/$B174)) -> 0.0354659546 | D174: 9.471741743e-05 | E174: 0.04734340201 | F174: 0.02510875265 | G174: 0.08896658209 | H174: 0 | I174: 0.040949822 | J174: 0.005417324739 | K174: 0.7566534445 | L174: =SUM(C174:K174) -> 1
A176: PROPTAX | B176: INT | C176: =SUMPRODUCT(Functionalization!$K$14:$K$95,Functionalization!$X$14:$X$95)-SUMPRODUCT(Functionalization!$K$40:$K$46,Functionalization!$X$40:$X$46) -> 16.25160802 | D176: =SUMPRODUCT(Functionalization!$L$14:$L$95,Functionalization!$X$14:$X$95)-SUMPRODUCT(Functionalization!$L$40:$L$46,Functionalization!$X$40:$X$46) -> 0.4674007884 | E176: =SUMPRODUCT(Functionalization!$M$14:$M$95,Functionalization!$X$14:$X$95)-SUMPRODUCT(Functionalization!$M$40:$M$46,Functionalization!$X$40:$X$46) -> 1437.54159 | F176: =SUMPRODUCT(Functionalization!$N$14:$N$95,Functionalization!$X$14:$X$95)-SUMPRODUCT(Functionalization!$N$40:$N$46,Functionalization!$X$40:$X$46) -> 662.0489245 | G176: =Functionalization!AB40+SUMPRODUCT(Functionalization!$O$14:$O$95,Functionalization!$X$14:$X$95)-SUMPRODUCT(Functionalization!$O$40:$O$46,Functionalization!$X$40:$X$46) -> 15291.47699 | H176: =SUMPRODUCT(Functionalization!$P$14:$P$95,Functionalization!$X$14:$X$95)-SUMPRODUCT(Functionalization!$P$40:$P$46,Functionalization!$X$40:$X$46) -> 0 | I176: =Functionalization!AB42+SUMPRODUCT(Functionalization!$Q$14:$Q$95,Functionalization!$X$14:$X$95)-SUMPRODUCT(Functionalization!$Q$40:$Q$46,Functionalization!$X$40:$X$46) -> 6229.701842 | J176: =Functionalization!AB44+SUMPRODUCT(Functionalization!$R$14:$R$95,Functionalization!$X$14:$X$95)-SUMPRODUCT(Functionalization!$R$40:$R$46,Functionalization!$X$40:$X$46) -> 1059.66671 | K176: =SUMPRODUCT(Functionalization!$S$14:$S$95,Functionalization!$X$14:$X$95)-SUMPRODUCT(Functionalization!$S$40:$S$46,Functionalization!$X$40:$X$46) -> 38574.84493
A177: =A176&+"%" -> PROPTAX% | B177: =IF(AND(+B176="INT",ZERO_FUNC="ZERO"),0,SUM(C176:K176)) -> 63272 | C177: =IF(ISERR($B177),0,IF($B177=0,0,+C176/$B177)) -> 0.000256853079 | D177: 7.387166336e-06 | E177: 0.02272002766 | F177: 0.01046353718 | G177: 0.24167842 | H177: 0 | I177: 0.09845906313 | J177: 0.01674779855 | K177: 0.6096669132 | L177: =SUM(C177:K177) -> 1
A179: RATEBASE | B179: INT | C179: =Functionalization!K197 -> -39911.62102 | D179: =Functionalization!L197 -> 2633.954037 | E179: =Functionalization!M197 -> 405624.9065 | F179: =Functionalization!N197 -> 78499.81187 | G179: =Functionalization!O197 -> 833293.1768 | H179: =Functionalization!P197 -> 0 | I179: =Functionalization!Q197 -> 226888.5233 | J179: =Functionalization!R197 -> 27240.60085 | K179: =Functionalization!S197 -> 2178464.45
A180: =A179&+"%" -> RATEBASE% | B180: =IF(AND(+B179="INT",ZERO_FUNC="ZERO"),0,SUM(C179:K179)) -> 3712733.803 | C180: =IF(ISERR($B180),0,IF($B180=0,0,+C179/$B180)) -> -0.01074992799 | D180: 0.0007094378905 | E180: 0.1092523537 | F180: 0.02114339892 | G180: 0.2244419399 | H180: 0 | I180: 0.06111090516 | J180: 0.007337073515 | K180: 0.586754819 | L180: =SUM(C180:K180) -> 1
A182: INDIRECT_I | B182: INT | C182: =(Functionalization!K19+Functionalization!K26+Functionalization!K37+Functionalization!K47+Functionalization!K62+Functionalization!K79)-(Functionalization!K105+Functionalization!K112+Functionalization!K123+Functionalization!K133+Functionalization!K147+Functionalization!K164)-Functionalization!K34 -> 0 | D182: =(Functionalization!L19+Functionalization!L26+Functionalization!L37+Functionalization!L47+Functionalization!L62+Functionalization!L79)-(Functionalization!L105+Functionalization!L112+Functionalization!L123+Functionalization!L133+Functionalization!L147+Functionalization!L164)-Functionalization!L34 -> 2986.135428 | E182: =(Functionalization!M19+Functionalization!M26+Functionalization!M37+Functionalization!M47+Functionalization!M62+Functionalization!M79)-(Functionalization!M105+Functionalization!M112+Functionalization!M123+Functionalization!M133+Functionalization!M147+Functionalization!M164)-Functionalization!M34 -> 164492.063 | F182: =(Functionalization!N19+Functionalization!N26+Functionalization!N37+Functionalization!N47+Functionalization!N62+Functionalization!N79)-(Functionalization!N105+Functionalization!N112+Functionalization!N123+Functionalization!N133+Functionalization!N147+Functionalization!N164)-Functionalization!N34 -> 78319.74624 | G182: =(Functionalization!O19+Functionalization!O26+Functionalization!O37+Functionalization!O47+Functionalization!O62+Functionalization!O79)-(Functionalization!O105+Functionalization!O112+Functionalization!O123+Functionalization!O133+Functionalization!O147+Functionalization!O164)-Functionalization!O34 -> 819612.5202 | H182: =(Functionalization!P19+Functionalization!P26+Functionalization!P37+Functionalization!P47+Functionalization!P62+Functionalization!P79)-(Functionalization!P105+Functionalization!P112+Functionalization!P123+Functionalization!P133+Functionalization!P147+Functionalization!P164)-Functionalization!P34 -> 0 | I182: =(Functionalization!Q19+Functionalization!Q26+Functionalization!Q37+Functionalization!Q47+Functionalization!Q62+Functionalization!Q79)-(Functionalization!Q105+Functionalization!Q112+Functionalization!Q123+Functionalization!Q133+Functionalization!Q147+Functionalization!Q164)-Functionalization!Q34 -> 222839.9011 | J182: =(Functionalization!R19+Functionalization!R26+Functionalization!R37+Functionalization!R47+Functionalization!R62+Functionalization!R79)-(Functionalization!R105+Functionalization!R112+Functionalization!R123+Functionalization!R133+Functionalization!R147+Functionalization!R164)-Functionalization!R34 -> 26348.45318 | K182: =(Functionalization!S19+Functionalization!S26+Functionalization!S37+Functionalization!S47+Functionalization!S62+Functionalization!S79)-(Functionalization!S105+Functionalization!S112+Functionalization!S123+Functionalization!S133+Functionalization!S147+Functionalization!S164)-Functionalization!S34 -> 2113615.917
A183: =A182&+"%" -> INDIRECT_I% | B183: =IF(AND(+B182="INT",ZERO_FUNC="ZERO"),0,SUM(C182:K182)) -> 3428214.736 | C183: =IF(ISERR($B183),0,IF($B183=0,0,+C182/$B183)) -> 0 | D183: 0.0008710467863 | E183: 0.04798184353 | F183: 0.02284563607 | G183: 0.2390785243 | H183: 0 | I183: 0.06500173363 | J183: 0.007685765101 | K183: 0.6165354505 | L183: =SUM(C183:K183) -> 1
A185: INDIRECT_II | B185: INT | C185: =Functionalization!K397-Functionalization!K277-Functionalization!K255-Functionalization!K259 -> 16467.08824 | D185: =Functionalization!L397-Functionalization!L277-Functionalization!L255-Functionalization!L259 -> 139.1439224 | E185: =Functionalization!M397-Functionalization!M277-Functionalization!M255-Functionalization!M259 -> 16465.10755 | F185: =Functionalization!N397-Functionalization!N277-Functionalization!N255-Functionalization!N259 -> 8629.57483 | G185: =Functionalization!O397-Functionalization!O277-Functionalization!O255-Functionalization!O259 -> 30773.39694 | H185: =Functionalization!P397-Functionalization!P277-Functionalization!P255-Functionalization!P259 -> 0 | I185: =Functionalization!Q397-Functionalization!Q277-Functionalization!Q255-Functionalization!Q259 -> 14187.49337 | J185: =Functionalization!R397-Functionalization!R277-Functionalization!R255-Functionalization!R259 -> 1944.992481 | K185: =Functionalization!S397-Functionalization!S277-Functionalization!S255-Functionalization!S259 -> 295361.2544
A186: =A185&+"%" -> INDIRECT_II% | B186: =IF(AND(+B185="INT",ZERO_FUNC="ZERO"),0,SUM(C185:K185)) -> 383968.0517 | C186: =IF(ISERR($B186),0,IF($B186=0,0,+C185/$B186)) -> 0.04288661041 | D186: 0.0003623841145 | E186: 0.04288145193 | F186: 0.02247472099 | G186: 0.08014572255 | H186: 0 | I186: 0.03694967148 | J186: 0.005065506029 | K186: 0.7692339325 | L186: =SUM(C186:K186) -> 1
A188: INDIRECT_I&II | B188: INT | C188: =C183*0.5+C186*0.5 -> 0.0214433052 | D188: =D183*0.5+D186*0.5 -> 0.0006167154504 | E188: 0.04543164773 | F188: 0.02266017853 | G188: 0.1596121234 | H188: 0 | I188: 0.05097570256 | J188: 0.006375635565 | K188: 0.6928846915
A189: =A188&+"%" -> INDIRECT_I&II% | B189: =IF(AND(+B188="INT",ZERO_FUNC="ZERO"),0,SUM(C188:K188)) -> 1 | C189: =IF(ISERR($B189),0,IF($B189=0,0,+C188/$B189)) -> 0.0214433052 | D189: 0.0006167154504 | E189: 0.04543164773 | F189: 0.02266017853 | G189: 0.1596121234 | H189: 0 | I189: 0.05097570256 | J189: 0.006375635565 | K189: 0.6928846915 | L189: =SUM(C189:K189) -> 1
A192: Do not use - hide rows
A193: DSMFUNCT | B193: EXT | C193: 0 | D193: 0 | E193: 0 | F193: 0 | G193: 0 | H193: 0 | I193: 0 | J193: 0 | K193: =13239.943+2000 -> 15239.943
A194: =A193&+"%" -> DSMFUNCT% | B194: =IF(AND(+B193="INT",ZERO_FUNC="ZERO"),0,SUM(C193:K193)) -> 15239.943 | C194: =IF(ISERR($B194),0,IF($B194=0,0,+C193/$B194)) -> 0 | D194: 0 | E194: 0 | F194: 0 | G194: 0 | H194: 0 | I194: 0 | J194: 0 | K194: 1 | L194: =SUM(C194:K194) -> 1

Sheet Classification
A1: UNION GAS LIMITED
A2: Classification
A3: 2013 Cost Allocation Study
A4: ($000's)
K5: Purchase/Production | W5: Storage Dehydrator | AB5: Storage | AI5: Storage Excluding Dehydrator | AV5: Dawn Station | BA5: Dawn | BH5: Dawn-Trafalgar Easterly | BL5: Dawn | BT5: Dawn-Trafalgar Westerly | CE5: Other Transmission | CO5: Ojibway/St. Clair | DA5: Distribution
D6: Purchase | E6: Direct | G6: Total | H6: Balance | I6: Classification | K6: System | L6: Other | P6: Storage | Q6: Direct | S6: Total | T6: Balance | U6: Classification | AB6: Excluding | AC6: Direct | AE6: Total | AF6: Balance | AG6: Classification | AO6: Dawn | AP6: Direct | AR6: Total | AS6: Balance | AT6: Classification | BA6: Trafalgar | BB6: Direct | BD6: Total | BE6: Balance | BF6: Classification | BL6: Trafalgar | BM6: Direct | BO6: Total | BP6: Balance | BQ6: Classification | BX6: Other | BY6: Direct | CA6: Total | CB6: Balance | CC6: Classification | CH6: Ojibway/ | CI6: Direct | CK6: Total | CL6: Balance | CM6: Classification | CU6: Direct | CW6: Total | CX6: Balance | CY6: Classification
B7: Account | C7: Account | D7: Production | E7: Assignment | F7: Match | G7: Direct | H7: to be | I7: Allocation | J7: Match | K7: Supply | L7: Supply | P7: Dehydrator | Q7: Assignment | R7: Match | S7: Direct | T7: to be | U7: Allocation | V7: Match | AB7: Dehydrator | AC7: Assignment | AD7: Match | AE7: Direct | AF7: to be | AG7: Allocation | AH7: Match | AO7: Station | AP7: Assignment | AQ7: Match | AR7: Direct | AS7: to be | AT7: Allocation | AU7: Match | AX7: Customer | BA7: Easterly | BB7: Assignment | BC7: Match | BD7: Direct | BE7: to be | BF7: Allocation | BG7: Match | BL7: Westerly | BM7: Assignment | BN7: Match | BO7: Direct | BP7: to be | BQ7: Allocation | BR7: Match | BX7: Transmission | BY7: Assignment | BZ7: Match | CA7: Direct | CB7: to be | CC7: Allocation | CD7: Match | CH7: St. Clair | CI7: Assignment | CJ7: Match | CK7: Direct | CL7: to be | CM7: Allocation | CN7: Match | CT7: Distribution | CU7: Assignment | CV7: Match | CW7: Direct | CX7: to be | CY7: Allocation | CZ7: Match
B8: Description | C8: Code | D8: Dollars | E8: Factor | G8: Assignment | H8: Allocated | I8: Factor | K8: Commodity | L8: Commodity | M8: Demand | N8: check total | P8: Dollars | Q8: Factor | S8: Assignment | T8: Allocated | U8: Factor | W8: Demand | X8: Commodity | Z8: check total | AB8: Dollars | AC8: Factor | AE8: Assignment | AF8: Allocated | AG8: Factor | AI8: Deliverability | AJ8: Commodity | AK8: Space | AL8: System Integrity | AM8: check total | AO8: Dollars | AP8: Factor | AR8: Assignment | AS8: Allocated | AT8: Factor | AV8: Demand | AW8: Commodity | AX8: (Tecumseh) | AY8: check total | BA8: Dollars | BB8: Factor | BD8: Assignment | BE8: Allocated | BF8: Factor | BH8: Demand | BI8: Commodity | BJ8: check total | BL8: Dollars | BM8: Factor | BO8: Assignment | BP8: Allocated | BQ8: Factor | BS8: Demand | BT8: Commodity | BV8: check total | BX8: Dollars | BY8: Factor | CA8: Assignment | CB8: Allocated | CC8: Factor | CE8: Demand | CF8: check total | CH8: Dollars | CI8: Factor | CK8: Assignment | CL8: Allocated | CM8: Factor | CO8: Demand | CP8: Commodity | CR8: check total | CT8: Dollars | CU8: Factor | CW8: Assignment | CX8: Allocated | CY8: Factor | DA8: Demand | DB8: Customer | DC8: Commodity | DD8: check total
K9: 2 | L9: 3 | M9: 4 | W9: 2 | X9: 3 | AI9: 2 | AJ9: 3 | AK9: 4 | AL9: 5 | AV9: 2 | AW9: 3 | AX9: 4 | BH9: 2 | BI9: 4 | BT9: 2 | CE9: 2 | CO9: 2 | CP9: 3 | DA9: 2 | DB9: 3 | DC9: 4
A11: I. GROSS PLANT IN SERVICE
A13: A. PRODUCTION AND GATHERING
B14: Land | C14: 410 | D14: =Functionalization!K14 -> 0 | F14: 0 | G14: =IF(F14<>0,OFFSET('Classification Factors'!$A$13,F14,1),0) -> 0 | H14: =D14-G14 -> 0 | J14: 0 | K14: =OFFSET('Classification Factors'!$A$13,F14-1,K$9)+OFFSET('Classification Factors'!$A$13,J14,K$9)*H14 -> 0 | L14: =OFFSET('Classification Factors'!$A$13,F14-1,L$9)+OFFSET('Classification Factors'!$A$13,J14,L$9)*H14 -> 0 | M14: =OFFSET('Classification Factors'!$A$13,F14-1,M$9)+OFFSET('Classification Factors'!$A$13,J14,M$9)*H14 -> 0 | N14: =IF(ABS(SUM(K14:M14)-D14)>1,"*****","") ->  | P14: =Functionalization!L14 -> 0 | R14: 0 | S14: =IF(R14<>0,OFFSET('Classification Factors'!$A$13,R14,1),0) -> 0 | T14: =P14-S14 -> 0 | V14: 0 | W14: =OFFSET('Classification Factors'!$A$13,R14-1,W$9)+OFFSET('Classification Factors'!$A$13,V14,W$9)*T14 -> 0 | X14: =OFFSET('Classification Factors'!$A$13,R14-1,X$9)+OFFSET('Classification Factors'!$A$13,V14,X$9)*T14 -> 0 | Z14: =IF(ABS(SUM(W14:Y14)-P14)>1,"*****","") ->  | AB14: =Functionalization!M14 -> 0 | AD14: 0 | AE14: =IF(AD14<>0,OFFSET('Classification Factors'!$A$13,AD14,1),0) -> 0 | AF14: =AB14-AE14 -> 0 | AH14: 0 | AI14: =OFFSET('Classification Factors'!$A$13,AD14-1,AI$9)+OFFSET('Classification Factors'!$A$13,AH14,AI$9)*AF14 -> 0 | AJ14: =OFFSET('Classification Factors'!$A$13,AD14-1,AJ$9)+OFFSET('Classification Factors'!$A$13,AH14,AJ$9)*AF14 -> 0 | AK14: =OFFSET('Classification Factors'!$A$13,AD14-1,AK$9)+OFFSET('Classification Factors'!$A$13,AH14,AK$9)*AF14 -> 0 | AL14: =OFFSET('Classification Factors'!$A$13,AD14-1,AL$9)+OFFSET('Classification Factors'!$A$13,AH14,AL$9)*$AF14 -> 0 | AM14: =IF(ABS(SUM(AI14:AL14)-AB14)>1,"*****","") ->  | AO14: =Functionalization!N14 -> 0 | AQ14: 0 | AR14: =IF(AQ14<>0,OFFSET('Classification Factors'!$A$13,AQ14,1),0) -> 0 | AS14: =AO14-AR14 -> 0 | AU14: 0 | AV14: =OFFSET('Classification Factors'!$A$13,AQ14-1,AV$9)+OFFSET('Classification Factors'!$A$13,AU14,AV$9)*AS14 -> 0 | AW14: =OFFSET('Classification Factors'!$A$13,AQ14-1,AW$9)+OFFSET('Classification Factors'!$A$13,AU14,AW$9)*AS14 -> 0 | AX14: =OFFSET('Classification Factors'!$A$13,AQ14-1,AX$9)+OFFSET('Classification Factors'!$A$13,AU14,AX$9)*AS14 -> 0 | AY14: =IF(ABS(SUM(AV14:AX14)-AO14)>1,"*****","") ->  | BA14: =Functionalization!O14 -> 0 | BC14: 0 | BD14: =IF(BC14<>0,OFFSET('Classification Factors'!$A$13,BC14,1),0) -> 0 | BE14: =BA14-BD14 -> 0 | BG14: 0 | BH14: =OFFSET('Classification Factors'!$A$13,BC14-1,BH$9)+OFFSET('Classification Factors'!$A$13,BG14,BH$9)*BE14 -> 0 | BI14: =OFFSET('Classification Factors'!$A$13,BC14-1,BI$9)+OFFSET('Classification Factors'!$A$13,BG14,BI$9)*BE14 -> 0 | BJ14: =IF(ABS(SUM(BH14:BI14)-BA14)>1,"*****","") ->  | BL14: =Functionalization!P14 -> 0 | BN14: 0 | BO14: =IF(BN14<>0,OFFSET('Classification Factors'!$A$13,BN14,1),0) -> 0 | BP14: =BL14-BO14 -> 0 | BR14: 0 | BS14: =OFFSET('Classification Factors'!$A$13,BN14-1,BS$9)+OFFSET('Classification Factors'!$A$13,BR14,BS$9)*BP14 -> 0 | BT14: =OFFSET('Classification Factors'!$A$13,BN14-1,BT$9)+OFFSET('Classification Factors'!$A$13,BR14,BT$9)*BP14 -> 0 | BV14: =IF(ABS(SUM(BS14:BU14)-BL14)>1,"*****","") ->  | BX14: =Functionalization!Q14 -> 0 | BZ14: 0 | CA14: =IF(BZ14<>0,OFFSET('Classification Factors'!$A$13,BZ14,1),0) -> 0 | CB14: =BX14-CA14 -> 0 | CD14: 0 | CE14: =OFFSET('Classification Factors'!$A$13,BZ14-1,CE$9)+OFFSET('Classification Factors'!$A$13,CD14,CE$9)*CB14 -> 0 | CF14: =IF(ABS(SUM(CE14:CE14)-BX14)>1,"*****","") ->  | CH14: =Functionalization!R14 -> 0 | CJ14: 0 | CK14: =IF(CJ14<>0,OFFSET('Classification Factors'!$A$13,CJ14,1),0) -> 0 | CL14: =CH14-CK14 -> 0 | CN14: 0 | CO14: =OFFSET('Classification Factors'!$A$13,CJ14-1,CO$9)+OFFSET('Classification Factors'!$A$13,CN14,CO$9)*CL14 -> 0 | CP14: =OFFSET('Classification Factors'!$A$13,CJ14-1,CP$9)+OFFSET('Classification Factors'!$A$13,CN14,CP$9)*CL14 -> 0 | CR14: =IF(ABS(SUM(CO14:CQ14)-CH14)>1,"*****","") ->  | CT14: =Functionalization!S14 -> 0 | CV14: 0 | CW14: =IF(CV14<>0,OFFSET('Classification Factors'!$A$13,CV14,1),0) -> 0 | CX14: =CT14-CW14 -> 0 | CZ14: 0 | DA14: =OFFSET('Classification Factors'!$A$13,CV14-1,DA$9)+OFFSET('Classification Factors'!$A$13,CZ14,DA$9)*CX14 -> 0 | DB14: =OFFSET('Classification Factors'!$A$13,CV14-1,DB$9)+OFFSET('Classification Factors'!$A$13,CZ14,DB$9)*CX14 -> 0 | DC14: =OFFSET('Classification Factors'!$A$13,CV14-1,DC$9)+OFFSET('Classification Factors'!$A$13,CZ14,DC$9)*CX14 -> 0 | DD14: =IF(ABS(SUM(DA14:DC14)-CT14)>1,"*****","") ->  | DE14: =IF(ABS(SUM(DA14:DC14)+SUM(CO14:CQ14)+SUM(CE14:CE14)+SUM(BS14:BU14)+SUM(BH14:BI14)+SUM(AV14:AX14)+SUM(AI14:AK14)+SUM(W14:Y14)+SUM(K14:M14)-Functionalization!D14)>1,"*****","") -> 
B15: Land Rights | C15: 411 | D15: =Functionalization!K15 -> 0 | F15: 0 | G15: =IF(F15<>0,OFFSET('Classification Factors'!$A$13,F15,1),0) -> 0 | H15: =D15-G15 -> 0 | J15: 0 | K15: =OFFSET('Classification Factors'!$A$13,F15-1,K$9)+OFFSET('Classification Factors'!$A$13,J15,K$9)*H15 -> 0 | L15: =OFFSET('Classification Factors'!$A$13,F15-1,L$9)+OFFSET('Classification Factors'!$A$13,J15,L$9)*H15 -> 0 | M15: =OFFSET('Classification Factors'!$A$13,F15-1,M$9)+OFFSET('Classification Factors'!$A$13,J15,M$9)*H15 -> 0 | P15: =Functionalization!L15 -> 0 | R15: 0 | S15: =IF(R15<>0,OFFSET('Classification Factors'!$A$13,R15,1),0) -> 0 | T15: =P15-S15 -> 0 | V15: 0 | W15: =OFFSET('Classification Factors'!$A$13,R15-1,W$9)+OFFSET('Classification Factors'!$A$13,V15,W$9)*T15 -> 0 | X15: =OFFSET('Classification Factors'!$A$13,R15-1,X$9)+OFFSET('Classification Factors'!$A$13,V15,X$9)*T15 -> 0 | AB15: =Functionalization!M15 -> 0 | AD15: 0 | AE15: =IF(AD15<>0,OFFSET('Classification Factors'!$A$13,AD15,1),0) -> 0 | AF15: =AB15-AE15 -> 0 | AH15: 0 | AI15: =OFFSET('Classification Factors'!$A$13,AD15-1,AI$9)+OFFSET('Classification Factors'!$A$13,AH15,AI$9)*AF15 -> 0 | AJ15: =OFFSET('Classification Factors'!$A$13,AD15-1,AJ$9)+OFFSET('Classification Factors'!$A$13,AH15,AJ$9)*AF15 -> 0 | AK15: =OFFSET('Classification Factors'!$A$13,AD15-1,AK$9)+OFFSET('Classification Factors'!$A$13,AH15,AK$9)*AF15 -> 0 | AL15: =OFFSET('Classification Factors'!$A$13,AD15-1,AL$9)+OFFSET('Classification Factors'!$A$13,AH15,AL$9)*$AF15 -> 0 | AM15: =IF(ABS(SUM(AI15:AL15)-AB15)>1,"*****","") ->  | AO15: =Functionalization!N15 -> 0 | AQ15: 0 | AR15: =IF(AQ15<>0,OFFSET('Classification Factors'!$A$13,AQ15,1),0) -> 0 | AS15: =AO15-AR15 -> 0 | AU15: 0 | AV15: =OFFSET('Classification Factors'!$A$13,AQ15-1,AV$9)+OFFSET('Classification Factors'!$A$13,AU15,AV$9)*AS15 -> 0 | AW15: =OFFSET('Classification Factors'!$A$13,AQ15-1,AW$9)+OFFSET('Classification Factors'!$A$13,AU15,AW$9)*AS15 -> 0 | AX15: =OFFSET('Classification Factors'!$A$13,AQ15-1,AX$9)+OFFSET('Classification Factors'!$A$13,AU15,AX$9)*AS15 -> 0 | BA15: =Functionalization!O15 -> 0 | BC15: 0 | BD15: =IF(BC15<>0,OFFSET('Classification Factors'!$A$13,BC15,1),0) -> 0 | BE15: =BA15-BD15 -> 0 | BG15: 0 | BH15: =OFFSET('Classification Factors'!$A$13,BC15-1,BH$9)+OFFSET('Classification Factors'!$A$13,BG15,BH$9)*BE15 -> 0 | BI15: =OFFSET('Classification Factors'!$A$13,BC15-1,BI$9)+OFFSET('Classification Factors'!$A$13,BG15,BI$9)*BE15 -> 0 | BL15: =Functionalization!P15 -> 0 | BN15: 0 | BO15: =IF(BN15<>0,OFFSET('Classification Factors'!$A$13,BN15,1),0) -> 0 | BP15: =BL15-BO15 -> 0 | BR15: 0 | BS15: =OFFSET('Classification Factors'!$A$13,BN15-1,BS$9)+OFFSET('Classification Factors'!$A$13,BR15,BS$9)*BP15 -> 0 | BT15: =OFFSET('Classification Factors'!$A$13,BN15-1,BT$9)+OFFSET('Classification Factors'!$A$13,BR15,BT$9)*BP15 -> 0 | BX15: =Functionalization!Q15 -> 0 | BZ15: 0 | CA15: =IF(BZ15<>0,OFFSET('Classification Factors'!$A$13,BZ15,1),0) -> 0 | CB15: =BX15-CA15 -> 0 | CD15: 0 | CE15: =OFFSET('Classification Factors'!$A$13,BZ15-1,CE$9)+OFFSET('Classification Factors'!$A$13,CD15,CE$9)*CB15 -> 0 | CH15: =Functionalization!R15 -> 0 | CJ15: 0 | CK15: =IF(CJ15<>0,OFFSET('Classification Factors'!$A$13,CJ15,1),0) -> 0 | CL15: =CH15-CK15 -> 0 | CN15: 0 | CO15: =OFFSET('Classification Factors'!$A$13,CJ15-1,CO$9)+OFFSET('Classification Factors'!$A$13,CN15,CO$9)*CL15 -> 0 | CP15: =OFFSET('Classification Factors'!$A$13,CJ15-1,CP$9)+OFFSET('Classification Factors'!$A$13,CN15,CP$9)*CL15 -> 0 | CT15: =Functionalization!S15 -> 0 | CV15: 0 | CW15: =IF(CV15<>0,OFFSET('Classification Factors'!$A$13,CV15,1),0) -> 0 | CX15: =CT15-CW15 -> 0 | CZ15: 0 | DA15: =OFFSET('Classification Factors'!$A$13,CV15-1,DA$9)+OFFSET('Classification Factors'!$A$13,CZ15,DA$9)*CX15 -> 0 | DB15: =OFFSET('Classification Factors'!$A$13,CV15-1,DB$9)+OFFSET('Classification Factors'!$A$13,CZ15,DB$9)*CX15 -> 0 | DC15: =OFFSET('Classification Factors'!$A$13,CV15-1,DC$9)+OFFSET('Classification Factors'!$A$13,CZ15,DC$9)*CX15 -> 0 | DE15: =IF(ABS(SUM(DA15:DC15)+SUM(CO15:CQ15)+SUM(CE15:CE15)+SUM(BS15:BU15)+SUM(BH15:BI15)+SUM(AV15:AX15)+SUM(AI15:AK15)+SUM(W15:Y15)+SUM(K15:M15)-Functionalization!D15)>1,"*****","") -> 
B16: Wells and Lines | C16: 406/7/8/415 | D16: =Functionalization!K16 -> 0 | F16: 0 | G16: =IF(F16<>0,OFFSET('Classification Factors'!$A$13,F16,1),0) -> 0 | H16: =D16-G16 -> 0 | J16: 0 | K16: =OFFSET('Classification Factors'!$A$13,F16-1,K$9)+OFFSET('Classification Factors'!$A$13,J16,K$9)*H16 -> 0 | L16: =OFFSET('Classification Factors'!$A$13,F16-1,L$9)+OFFSET('Classification Factors'!$A$13,J16,L$9)*H16 -> 0 | M16: =OFFSET('Classification Factors'!$A$13,F16-1,M$9)+OFFSET('Classification Factors'!$A$13,J16,M$9)*H16 -> 0 | P16: =Functionalization!L16 -> 0 | S16: =IF(R16<>0,OFFSET('Classification Factors'!$A$13,R16,1),0) -> 0 | T16: =P16-S16 -> 0 | V16: 0 | W16: =OFFSET('Classification Factors'!$A$13,R16-1,W$9)+OFFSET('Classification Factors'!$A$13,V16,W$9)*T16 -> 0 | X16: =OFFSET('Classification Factors'!$A$13,R16-1,X$9)+OFFSET('Classification Factors'!$A$13,V16,X$9)*T16 -> 0 | AB16: =Functionalization!M16 -> 0 | AD16: 0 | AE16: =IF(AD16<>0,OFFSET('Classification Factors'!$A$13,AD16,1),0) -> 0 | AF16: =AB16-AE16 -> 0 | AH16: 0 | AI16: =OFFSET('Classification Factors'!$A$13,AD16-1,AI$9)+OFFSET('Classification Factors'!$A$13,AH16,AI$9)*AF16 -> 0 | AJ16: =OFFSET('Classification Factors'!$A$13,AD16-1,AJ$9)+OFFSET('Classification Factors'!$A$13,AH16,AJ$9)*AF16 -> 0 | AK16: =OFFSET('Classification Factors'!$A$13,AD16-1,AK$9)+OFFSET('Classification Factors'!$A$13,AH16,AK$9)*AF16 -> 0 | AL16: =OFFSET('Classification Factors'!$A$13,AD16-1,AL$9)+OFFSET('Classification Factors'!$A$13,AH16,AL$9)*$AF16 -> 0 | AO16: =Functionalization!N16 -> 0 | AQ16: 0 | AR16: =IF(AQ16<>0,OFFSET('Classification Factors'!$A$13,AQ16,1),0) -> 0 | AS16: =AO16-AR16 -> 0 | AU16: 0 | AV16: =OFFSET('Classification Factors'!$A$13,AQ16-1,AV$9)+OFFSET('Classification Factors'!$A$13,AU16,AV$9)*AS16 -> 0 | AW16: =OFFSET('Classification Factors'!$A$13,AQ16-1,AW$9)+OFFSET('Classification Factors'!$A$13,AU16,AW$9)*AS16 -> 0 | AX16: =OFFSET('Classification Factors'!$A$13,AQ16-1,AX$9)+OFFSET('Classification Factors'!$A$13,AU16,AX$9)*AS16 -> 0 | BA16: =Functionalization!O16 -> 0 | BC16: 0 | BD16: =IF(BC16<>0,OFFSET('Classification Factors'!$A$13,BC16,1),0) -> 0 | BE16: =BA16-BD16 -> 0 | BG16: 0 | BH16: =OFFSET('Classification Factors'!$A$13,BC16-1,BH$9)+OFFSET('Classification Factors'!$A$13,BG16,BH$9)*BE16 -> 0 | BI16: =OFFSET('Classification Factors'!$A$13,BC16-1,BI$9)+OFFSET('Classification Factors'!$A$13,BG16,BI$9)*BE16 -> 0 | BL16: =Functionalization!P16 -> 0 | BN16: 0 | BO16: =IF(BN16<>0,OFFSET('Classification Factors'!$A$13,BN16,1),0) -> 0 | BP16: =BL16-BO16 -> 0 | BR16: 0 | BS16: =OFFSET('Classification Factors'!$A$13,BN16-1,BS$9)+OFFSET('Classification Factors'!$A$13,BR16,BS$9)*BP16 -> 0 | BT16: =OFFSET('Classification Factors'!$A$13,BN16-1,BT$9)+OFFSET('Classification Factors'!$A$13,BR16,BT$9)*BP16 -> 0 | BX16: =Functionalization!Q16 -> 0 | BZ16: 0 | CA16: =IF(BZ16<>0,OFFSET('Classification Factors'!$A$13,BZ16,1),0) -> 0 | CB16: =BX16-CA16 -> 0 | CD16: 0 | CE16: =OFFSET('Classification Factors'!$A$13,BZ16-1,CE$9)+OFFSET('Classification Factors'!$A$13,CD16,CE$9)*CB16 -> 0 | CH16: =Functionalization!R16 -> 0 | CJ16: 0 | CK16: =IF(CJ16<>0,OFFSET('Classification Factors'!$A$13,CJ16,1),0) -> 0 | CL16: =CH16-CK16 -> 0 | CN16: 0 | CO16: =OFFSET('Classification Factors'!$A$13,CJ16-1,CO$9)+OFFSET('Classification Factors'!$A$13,CN16,CO$9)*CL16 -> 0 | CP16: =OFFSET('Classification Factors'!$A$13,CJ16-1,CP$9)+OFFSET('Classification Factors'!$A$13,CN16,CP$9)*CL16 -> 0 | CT16: =Functionalization!S16 -> 0 | CV16: 0 | CW16: =IF(CV16<>0,OFFSET('Classification Factors'!$A$13,CV16,1),0) -> 0 | CX16: =CT16-CW16 -> 0 | CZ16: 0 | DA16: =OFFSET('Classification Factors'!$A$13,CV16-1,DA$9)+OFFSET('Classification Factors'!$A$13,CZ16,DA$9)*CX16 -> 0 | DB16: =OFFSET('Classification Factors'!$A$13,CV16-1,DB$9)+OFFSET('Classification Factors'!$A$13,CZ16,DB$9)*CX16 -> 0 | DC16: =OFFSET('Classification Factors'!$A$13,CV16-1,DC$9)+OFFSET('Classification Factors'!$A$13,CZ16,DC$9)*CX16 -> 0 | DE16: =IF(ABS(SUM(DA16:DC16)+SUM(CO16:CQ16)+SUM(CE16:CE16)+SUM(BS16:BU16)+SUM(BH16:BI16)+SUM(AV16:AX16)+SUM(AI16:AK16)+SUM(W16:Y16)+SUM(K16:M16)-Functionalization!D16)>1,"*****","") -> 
